Workbook

Sheet Accessorial Conversion File (hidden)
A1: 2016 | D1: 2016 Accessorial Matrix - Applies to Daily Rate
A2: Domestic Accessorials | D2: Domestic | E2: Current | F2: 2016 Pub | G2: RFP-Adjustment
A3: Accessorials | B3: Incentives | D3: Additional Handling | E3: =B12 -> 8.854241 | F3: 10.5
D4: Address Corrections- Ground | E4: =B6 -> 11.737728 | F4: 13
A5: Export - Certificate of Origin | B5: 10 | D5: Address Corrections- Air | E5: =B6 -> 11.737728 | F5: 13
A6: Address Corrections (Grd & Air) | B6: 11.737728 | D6: Address Corrections (Maximum per Shipment) | E6: List | F6: 91
A7: Domestic - Custom Delivery Confirmation - No Signature Response | B7: 2 | D7: Carbon Neutral Surcharge - Ground | E7: List | F7: 0.05
A8: Domestic - Custom Delivery Confirmation - Signature Response | B8: 3.729174 | D8: Carbon Neutral Surcharge - Air | E8: List | F8: 0.2
A9: Domestic - Custom Delivery Confirmation Signature Response - Non Compliant | B9: 3.729174 | D9: Chargeback for Consignee Billing Shipments | E9: =B40 -> 11.737728 | F9: 13
A10: Domestic - Custom Delivery Confirmation - Adult Signature Required | B10: 4.799019 | D10: C.O.D.s | E10: =B13 -> 11.452436 | F10: 12.5
A11: Domestic - Custom Delivery Confirmation - Adult Signature Required - Non Compliant | B11: 4.799019 | D11: Delivery Area Surcharge - Air Commercial | F11: 2.45
A12: Domestic - Additional Handling Charge | B12: 8.854241 | D12: Delivery Area Surcharge - Ground Commercial | F12: 2.3
A13: C. O. D.s | B13: 11.452436 | D13: Delivery Area Surcharge - Air Extended Commercial | F13: 2.45
A14: Residential Surcharge - Domestic Delivery of Air Services* and 3 Day Select | B14: 1.59 | D14: Delivery Area Surcharge - Ground Extended Commercial | F14: 2.3
A15: Residential Surcharge - Domestic Delivery of Ground Service | B15: 1.34 | D15: Delivery Area Surcharge - Ground Residential | F15: 3.15
A16: Domestic - Print Label Charge | B16: 0.5 | D16: Delivery Area Surcharge - Air Residential | F16: 3.7
A17: Domestic - Print and Mail Label Charge | B17: 2.25 | D17: Delivery Area Surcharge - Air Extended Residential | F17: 4
A18: Domestic - Electronic Label Charge | B18: 1 | D18: Delivery Area Surcharge - Ground Extended Residential | F18: 4
A19: Fax Proof of Delivery | B19: 3 | D19: Delivery Area Surcharge - Hundredweight | E19: List | F19: $12.30 per shipment
A20: Domestic - Dry Ice | B20: 5 | D20: Delivery Change Request - Phone | F20: 6
A21: Reroute (Phone Request) | B21: 16.006919 | D21: Delivery Change Request - Web | F21: 5
A22: Reroute (Web Request) | B22: 11.737728 | D22: Delivery Confirmation Response | E22: List | F22: 2
A23: Reschedule Delivery (Phone Request) | B23: 16.006919 | D23: Delivery Confirmation Response - Signature Required | E23: =B8 -> 3.729174 | F23: 4.25
A24: Reschedule Delivery (Web Request) | B24: 11.737728 | D24: Delivery Confirmation Response - Adult Signature Required | E24: =B10 -> 4.799019 | F24: 5.25
A25: Return to Sender (Phone Request) | B25: 16.006919 | D25: Delivery Intercept - Phone Request (Redirect, Return, or Future Del) | F25: 18.7
A26: Return to Sender (Web Request) | B26: 11.737728 | D26: Delivery Intercept - Web Request (Redirect, Return, or Future Del) | F26: 12.9
A27: Domestic - Large Package Surcharge | B27: 57.272369 | D27: My Choice - upgrade fee | F27: 3.5
A28: Domestic - Lookup Surcharge | B28: 11.452436 | D28: Dimensional Weight Factor | E28: List | F28: 166
A29: Domestic - Saturday Delivery | B29: 5.328847 | D29: Direct Delivery Only | E29: 100% off | F29: 2
A30: Saturday Pickup Charge | B30: 5.328847 | D30: Dry Ice | E30: List | F30: 5
A31: Domestic - HazMat Class 1-8 Air C Fee | B31: 39.054437 | D31: Early AM Out of Territory | E31: List | F31: 10
A32: Domestic - HazMat Class 1-8 Ground Fee | B32: 28.641279 | D32: Early AM Premium | E32: List | F32: 30
A33: Domestic - HazMat Class 1-8 Air Fee | B33: 39.054437 | D33: Excessive Tracking, Tracing, & Refund Requests | F33: 3
A34: Domestic - HazMat Class 9 Cargo Quantity Fee | B34: 39.054437 | D34: Hazardous Materials Surcharge, Air | E34: =B33 -> 39.054437 | F34: 42.5
A35: Domestic - HazMat Class 9 Ground Fee | B35: 28.641279 | D35: Hazardous Materials Surcharge, Ground | E35: =B35 -> 28.641279 | F35: 30
A36: Domestic - HazMat Class 9 Air Fee | B36: 39.054437 | D36: Declared Value | E36: $0.82 per $100 ($2.46 Min.) | F36: $0.90 per $100 ($2.70 Min.)
A37: Domestic - HazMat Class 9 Air Lithium C Fee | B37: 39.054437 | D37: Large Package Surcharge | E37: =B27 -> 57.272369 | F37: 67.5
A38: Domestic - HazMat Class 9 Ground Lithium Fee | B38: 28.641279 | D38: Missing/Invalid Account # Charge | E38: =B28 -> 11.452436 | F38: 13
A39: Domestic - HazMat Class 9 Air Lithium | B39: 39.054437 | D39: On Call Pickup -- Same Day | E39: 1 | F39: 6.7
A40: Chargeback For Consignee Billing Shipments | B40: 11.737728 | D40: On Call Pickup -- Future Day | E40: 1 | F40: 5.65
A41: Domestic - Three Pickup Attempts Label Charge | B41: 7.468537 | D41: On-Call Pickup Residential Surcharge | E41: 1 | F41: 3.25
A42: Domestic - One Pickup Attempt Label Charge | B42: 5.328847 | D42: On-Call Pickup Area Surcharge - Residential | E42: 1 | F42: 3.15
A43: Weekly Late Payment Charge | B43: 83.40% Off Effective Rates | D43: On-Call Pickup Area Surcharge - Extended Residential | F43: 4
A44: Monthly Late Payment Charge | B44: 83.40% Off Effective Rates | D44: On-Call Pickup Remote Surcharge - Alaska | F44: 22.5
A45: Domestic - Consignee Initiated Delivery Change | B45: 6.245857 | D45: On-Call Pickup Remote Surcharge - Hawaii | F45: 6.75
A46: Request Deliver to UPS Access PointTM - Phone | D46: Over Maximum Limits | F46: 110
A47: Domestic - Consignee Initiated Delivery Change Request Deliver to UPS Access PointTM - Web | B47: 5.206579 | D47: Proof of Delivery- (Fax or Mail) | E47: List | F47: 3
A48: Domestic - Consignee Initiated Delivery Change Request Deliver Package to Original Residential Address - Phone | B48: 6.245857 | D48: Quantum View Notify | E48: List | F48: 0
A49: Domestic - Consignee Initiated Delivery Change Request Deliver Package to Original Residential Address - Web | B49: 5.206579 | D49: Remote Area Surcharge - Alaska | F49: 22.5
A50: Domestic - Consignee Initiated Delivery Change Request Reroute - Phone Request | B50: 6.245857 | D50: Remote Area Surcharge -Hawaii | F50: 6.75
A51: Domestic - Consignee Initiated Delivery Change Request Reroute - Web Request | B51: 5.206579 | D51: Residential Surcharge - Ground | E51: =B15 -> 1.34 | F51: 3.25
A52: Domestic - Consignee Initiated Delivery Change Request Reschedule Delivery - Web Request | B52: 5.206579 | D52: Residential Surcharge - Air | E52: =B14 -> 1.59 | F52: 3.65
A53: Domestic - Consignee Initiated Delivery Change Request Reschedule Delivery - Phone Request | B53: 6.245857 | D53: Residential Differential - Hundredweight | E53: List | F53: $31.60 per shipment
A54: International Accessorials | D54: Residential Surcharge - WWEF | E54: List | F54: $125.00 per shipment
A55: Export - Transborder & Worldwide Three Pickup Attempts Label Charge | B55: 7.468537 | D55: Saturday Pickup | E55: =B30 -> 5.328847 | F55: 16
A56: Export - Duty and Tax Forwarding Surcharge | B56: 15 | D56: Saturday Delivery | E56: =B29 -> 5.328847 | F56: 16
A57: Export - Transborder & Worldwide One Pickup Attempt Label Charge | B57: 5.328847 | D57: Ship Notification (fax) | E57: List | F57: 0
A58: Export - Residential SurchargeEF | B58: 3.199346 | D58: Third Party Billing Service | E58: List | F58: 0.025
A59: Export - HazMat Class 1-8 Air C FeeEF Shipment Minimum - $7.15 Rate | B59: 60.920031 | D59: UPS Returns: Print Return Label | E59: List | F59: 0.5
A60: Export - HazMat Class 1-8 Ground Fee - Shipment Minimum - $4.00 Rate | B60: 35.6615 | D60: UPS Returns: Electronic Return Label | E60: List | F60: 1
A61: Export - HazMat Class 1-8 Air FeeEF Shipment Minimum - $7.15 Rate | B61: 60.920031 | D61: UPS Returns: Print & Mail Return Label | E61: List | F61: 2.25
A62: Export - HazMat Class 9 Cargo Quantity FeeEF Shipment Minimum - $7.15 Rate | B62: 60.920031 | D62: UPS Returns Plus: 1 UPS Pickup Attempt | E62: =B42 -> 5.328847 | F62: 5.65
A63: Export - HazMat Class 9 Ground Fee - Shipment Minimum - $4.00 Rate | B63: 35.6615 | D63: UPS Returns Plus: 3 UPS Pickup Attempts | E63: =B41 -> 7.468537 | F63: 7.7
A64: Export - HazMat Class 9 Air FeeEF Shipment Minimum - $7.15 Rate | B64: 60.920031 | D64: UPS Returns Plus: Call Tag | E64: List | F64: 8
A65: Export - HazMat Class 9 Air Lithium C FeeEF Shipment Minimum - $7.15 Rate | B65: 60.920031 | D65: Verbal Confirmation of Delivery | E65: List | F65: 3
A66: Export - HazMat Class 9 Ground Lithium Fee - Shipment Minimum - $4.00 Rate | B66: 35.6615 | D66: Weekly Service Charges:
A67: Export - HazMat Class 9 Air LithiumEF Shipment Minimum - $7.15 Rate | B67: 60.920031 | D67: Daily Pickup ($0.00-$74.99 Billed) | F67: 25
A68: UPS Worldwide Express FreightSM-Export- Oversize Pallet Handling Surcharge: Bill Shipper & Bill Third Party - Rate per pallet | B68: 52.626185 | D68: Daily Pickup ( $75+ Billed) | F68: 12.5
A69: Export - Large Package Surcharge | B69: 57.272369 | D69: Daily On Route ($0.00-$74.99 Billed) | F69: 23
A70: Import - Duty and Tax Forwarding Surcharge | B70: 15 | D70: Daily On Route ( $75+ Billed) | F70: 11.5
A71: Import - Residential SurchargeEF | B71: 3.199346 | D71: UPS Smart Pickup | F71: 11.5
A72: Import - Saturday DeliveryEF | B72: 15.619737 | D72: Day-Specific Pickup- 4 Days ($0.00-$74.99 Billed) | F72: 23
A73: Import - HazMat Class 1-8 Air C FeeEF - Shipment Minimum - $7.15 Rate | B73: 60.920031 | D73: Day-Specific Pickup- 4 Days ( $75+ Billed) | F73: 11.5
A74: Import - HazMat Class 1-8 Ground Fee - Shipment Minimum - $4.00 Rate | B74: 35.6615 | D74: Day-Specific Pickup- 3 Days ($0.00-$74.99 Billed) | F74: 16.65
A75: Import - HazMat Class 1-8 Air FeeEF Shipment Minimum - $7.15 Rate | B75: 60.920031 | D75: Day-Specific Pickup- 3 Days ( $75+ Billed) | F75: 11.5
A76: Import - HazMat Class 9 Cargo Quantity FeeEF Shipment Minimum - $7.15 Rate | B76: 60.920031 | D76: Day-Specific Pickup- 1 or 2 Days | F76: 11.5
A77: Import - HazMat Class 9 Ground Fee - Shipment Minimum - $4.00 Rate | B77: 35.6615 | D77: Printer Lease Fee | F77: 3
A78: Import - HazMat Class 9 Air FeeEF Shipment Minimum - $7.15 Rate | B78: 60.920031 | D78: International | F78: 2016
A79: Import - HazMat Class 9 Air Lithium C FeeEF Shipment Minimum - $7.15 Rate | B79: 60.920031 | D79: Bill Duty/Tax & Shipping Charges to Shipper (Import & Export) | E79: List | F79: 15
A80: Import - HazMat Class 9 Ground Lithium Fee - Shipment Minimum - $4.00 Rate | B80: 35.6615 | D80: Carbon Neutral Surcharge - International Express | E80: List | F80: 0.75
A81: Import - HazMat Class 9 Air LithiumEF Shipment Minimum - $7.15 Rate | B81: 60.920031 | D81: Carbon Neutral Surcharge - International Standard | E81: List | F81: 0.1
A82: Import - Export VAT | B82: 15 | D82: Certificate of Origin | E82: List | F82: 10
A83: UPS Worldwide Express FreightSM-Import- Oversize Pallet Handling Surcharge: Bill Receiver & Bill Third Party - Rate per pallet | B83: 52.626185 | D83: Currency Conversion Rate | E83: List | F83: 0.0075
A84: Import - Commercial Invoice Removal Fee | B84: 20 | D84: Delivery Area Surcharge (Import services) | F84: 2
A85: Import - Large Package Surcharge | B85: 57.272369 | D85: Delivery Area Surcharge - Extended (Import services) | F85: 2
A86: Import - Late Payment Fee | B86: 83.40% Off Effective Rates | D86: Remote Area Surcharge (Import services / Hawaii) | F86: 6.75
A87: Pickup Accessorials | D87: Remote Area Surcharge - Extended (Import services / Alaska) | F87: 22.5
A88: Daily Pickup | B88: 1 | D88: Delivered Duty Paid, V.A.T. Unpaid | E88: List | F88: 15
A89: UPS Smart Pickup ® | B89: 1 | D89: Dimensional Weight Factor | F89: 139
A90: Day-Specific Pickup 1 Day | B90: 1 | D90: Extended Area Surcharge (Export services) | F90: Greater of $30 or $0.30 per pound
A91: Day-Specific Pickup 2 Days | B91: 1 | D91: Remote Area Surcharge (Export Services) | F91: Greater of $30 or $0.30 per pound
A92: Day-Specific Pickup 3 Days | B92: 1 | D92: Freight Collect Refusal - International | F92: 13
A93: Day-Specific Pickup 4 Days | B93: 1 | D93: International Dangerous Goods - Standard to/from CA | E93: =B74 -> 35.6615 | F93: $37.00 per shipment or $4.25 per pkg
A94: Daily On-Route Pickup | B94: 1 | D94: International Dangerous Goods - Small Package | E94: =B73 -> 60.920031 | F94: $66.25 per shipment or $7.95 per pkg
A95: UPS On-Call Pickup ® - Same Day - Phone | B95: 1 | D95: International Dangerous Goods - WWEF | F95: $66.25 per shipment or $0.36 per pound
A96: UPS On-Call Pickup ® - Same Day - Web | B96: 1 | D96: Large Package Surcharge (Import & Export) | E96: =B85 -> 57.272369 | F96: 67.5
A97: UPS On-Call Pickup® - Future Day - Phone | B97: 1 | D97: Saturday Delivery | E97: =B72 -> 15.619737 | F97: 16
A98: UPS On-Call Pickup® - Future Day - Web | B98: 1 | D98: Residential Surcharge - Standard to / from Canada and Standard from Mexico | F98: 3.25
A99: UPS On-Call Pickup®- Ground Returns - Same Day - Phone | B99: 1 | D99: Residential Surcharge - From all other origins | F99: 3.65
A100: UPS On-Call Pickup® - Ground Returns - Same Day-Web | B100: 1 | D100: Worldwide Express Plus Surcharge | F100: 40
A101: UPS On-Call Pickup® - Ground Returns - Future Day - Phone | B101: 1 | D101: Import Control CI Removal Charge | E101: List | F101: 20
A102: UPS On-Call Pickup® - Ground Returns - Future Day - Web | B102: 1 | D102: Residential Surcharge (Shipment) | E102: List | F102: 125
A103: UPS On-Call Pickup® - Air Returns - Same Day - Phone | B103: 1 | D103: Carbon Neutral (Pallet) | E103: List | F103: 20
A104: UPS On-Call Pickup® - Air Returns - Same Day - Web | B104: 1 | D104: Oversized Pallet Handling Surcharge | E104: =B83 -> 52.626185 | F104: 110
A105: UPS On-Call Pickup® - Air Returns - Future Day - Phone | B105: 1 | D105: Entry Preparation Charge - UPS Standard from Canada
A106: UPS On-Call Pickup® - Air Returns - Future Day - Web | B106: 1 | D106: Value for Duty ($0.00 to $200.00) | F106: 0
A107: UPS On-Call Pickup® - Alternate Address - Same Day - Phone | B107: 1 | D107: Value for Duty ($200.01 to $1,250.00) | F107: 27.5
A108: UPS On-Call Pickup® - Alternate Address - Same Day-Web | B108: 1 | D108: Value for Duty ($1,250.01 to $2,500.00) | F108: 39
A109: UPS On-Call Pickup® - Alternate Address - Future Day - Phone | B109: 1 | D109: Value for Duty (Each additional $1,000.00 or part thereof) | F109: 1.9
A110: UPS On-Call Pickup® - Alternate Address - Future Day - Web | B110: 1 | D110: Disbursement Fee minimum | F110: 9
A111: Residential Pickup Surcharge | B111: 1.334759 | D111: Other Government Agency (OGA) Clearance | F111: 22
A112: Pickup Area Surcharge - Residential | B112: 2.863109 | D112: Complex Entries | F112: 22
A113: Pickup Area Surcharge - Extended Residential | B113: 3.46426
A114: Pickup Remote Area Surcharge - Alaska Residential | B114: 15.619737
A115: Pickup Remote Area Surcharge - Hawaii Residential | B115: 6.1134

Sheet Domestic Accessorials (hidden)
A1: 2016
A2: Domestic Accessorials
A3: Accessorials | B3: Incentives | C3: Current Incentives | D3: 2015 1.89% Rate increase | E3: 0.0189
A4: Export - Certificate of Origin | B4: 10 | C4: 10 | D4: 10
A5: Address Corrections (Grd & Air) | B5: 11.737728 | C5: 11.52 | D5: =C5+(C5*$E$3) -> 11.737728
A6: Domestic - Custom Delivery Confirmation - No Signature Response | B6: 2 | C6: 2.04 | D6: 2
A7: Domestic - Custom Delivery Confirmation - Signature Response | B7: 3.729174 | C7: 3.66 | D7: =C7+(C7*$E$3) -> 3.729174
A8: Domestic - Custom Delivery Confirmation Signature Response - Non Compliant | B8: 3.729174 | C8: 3.66 | D8: =C8+(C8*$E$3) -> 3.729174
A9: Domestic - Custom Delivery Confirmation - Adult Signature Required | B9: 4.799019 | C9: 4.71 | D9: 4.799019
A10: Domestic - Custom Delivery Confirmation - Adult Signature Required - Non Compliant | B10: 4.799019 | C10: 4.71 | D10: 4.799019
A11: Domestic - Additional Handling Charge | B11: 8.854241 | C11: 8.69 | D11: 8.854241
A12: C. O. D.s | B12: 11.452436 | C12: 11.24 | D12: 11.452436
A13: Residential Surcharge - Domestic Delivery of Air Services* and 3 Day Select | B13: 1.59 | C13: 1.56 | D13: 1.589484
A14: Residential Surcharge - Domestic Delivery of Ground Service | B14: 1.34 | C14: 1.31 | D14: 1.334759
A15: Domestic - Print Label Charge | B15: 0.5 | C15: 0.5 | D15: 0.5
A16: Domestic - Print and Mail Label Charge | B16: 2.25 | C16: 2.25 | D16: 2.25
A17: Domestic - Electronic Label Charge | B17: 1 | C17: 1 | D17: 1
A18: Fax Proof of Delivery | B18: 3 | C18: 3 | D18: 3
A19: Domestic - Dry Ice | B19: 5 | C19: 5 | D19: 5
A20: Reroute (Phone Request) | B20: 16.006919 | C20: 15.71 | D20: =C20+(C20*$E$3) -> 16.006919
A21: Reroute (Web Request) | B21: 11.737728 | C21: 11.52 | D21: =C21+(C21*$E$3) -> 11.737728
A22: Reschedule Delivery (Phone Request) | B22: 16.006919 | C22: 15.71 | D22: 16.006919
A23: Reschedule Delivery (Web Request) | B23: 11.737728 | C23: 11.52 | D23: 11.737728
A24: Return to Sender (Phone Request) | B24: 16.006919 | C24: 15.71 | D24: 16.006919
A25: Return to Sender (Web Request) | B25: 11.737728 | C25: 11.52 | D25: 11.737728
A26: Domestic - Large Package Surcharge | B26: 57.272369 | C26: 56.21 | D26: 57.272369
A27: Domestic - Lookup Surcharge | B27: 11.452436 | C27: 11.24 | D27: 11.452436
A28: Domestic - Saturday Delivery | B28: 5.328847 | C28: 5.23 | D28: 5.328847
A29: Saturday Pickup Charge | B29: 5.328847 | C29: 5.23 | D29: 5.328847
A30: Domestic - HazMat Class 1-8 Air C Fee | B30: 39.054437 | C30: 38.33 | D30: 39.054437
A31: Domestic - HazMat Class 1-8 Ground Fee | B31: 28.641279 | C31: 28.11 | D31: 28.641279
A32: Domestic - HazMat Class 1-8 Air Fee | B32: 39.054437 | C32: 38.33 | D32: 39.054437
A33: Domestic - HazMat Class 9 Cargo Quantity Fee | B33: 39.054437 | C33: 38.33 | D33: 39.054437
A34: Domestic - HazMat Class 9 Ground Fee | B34: 28.641279 | C34: 28.11 | D34: 28.641279
A35: Domestic - HazMat Class 9 Air Fee | B35: 39.054437 | C35: 38.33 | D35: 39.054437
A36: Domestic - HazMat Class 9 Air Lithium C Fee | B36: 39.054437 | C36: 38.33 | D36: 39.054437
A37: Domestic - HazMat Class 9 Ground Lithium Fee | B37: 28.641279 | C37: 28.11 | D37: 28.641279
A38: Domestic - HazMat Class 9 Air Lithium | B38: 39.054437 | C38: 38.33 | D38: 39.054437
A39: Chargeback For Consignee Billing Shipments | B39: 11.737728 | C39: 11.52 | D39: 11.737728
A40: Domestic - Three Pickup Attempts Label Charge | B40: 7.468537 | C40: 7.33 | D40: 7.468537
A41: Domestic - One Pickup Attempt Label Charge | B41: 5.328847 | C41: 5.23 | D41: 5.328847
A42: Weekly Late Payment Charge | B42: 83.40% Off Effective Rates | D42: 83.40% Off Effective Rates
A43: Monthly Late Payment Charge | B43: 83.40% Off Effective Rates | D43: 83.40% Off Effective Rates
A44: Domestic - Consignee Initiated Delivery Change | B44: 6.245857 | C44: 6.13 | D44: =C44+(C44*$E$3) -> 6.245857
A45: Request Deliver to UPS Access PointTM - Phone
A46: Domestic - Consignee Initiated Delivery Change Request Deliver to UPS Access PointTM - Web | B46: 5.206579 | C46: 5.11 | D46: =C46+(C46*$E$3) -> 5.206579
A47: Domestic - Consignee Initiated Delivery Change Request Deliver Package to Original Residential Address - Phone | B47: 6.245857 | C47: 6.13 | D47: =C47+(C47*$E$3) -> 6.245857
A48: Domestic - Consignee Initiated Delivery Change Request Deliver Package to Original Residential Address - Web | B48: 5.206579 | C48: 5.11 | D48: 5.206579
A49: Domestic - Consignee Initiated Delivery Change Request Reroute - Phone Request | B49: 6.245857 | C49: 6.13 | D49: 6.245857
A50: Domestic - Consignee Initiated Delivery Change Request Reroute - Web Request | B50: 5.206579 | C50: 5.11 | D50: 5.206579
A51: Domestic - Consignee Initiated Delivery Change Request Reschedule Delivery - Web Request | B51: 5.206579 | C51: 5.11 | D51: 5.206579
A52: Domestic - Consignee Initiated Delivery Change Request Reschedule Delivery - Phone Request | B52: 6.245857 | C52: 6.13 | D52: 6.245857

Sheet International Accessorials (hidden)
A1: 2016
A2: International Accessorials | C2: curr incen | D2: 2015 1.89% Increase
A3: Export - Transborder & Worldwide Three Pickup Attempts Label Charge | B3: 7.468537 | C3: 7.33 | D3: =C3+(C3*1.89%) -> 7.468537
A4: Export - Duty and Tax Forwarding Surcharge | B4: 15 | C4: 15 | D4: 15
A5: Export - Transborder & Worldwide One Pickup Attempt Label Charge | B5: 5.328847 | C5: 5.23 | D5: =C5+(C5*1.89%) -> 5.328847
A6: Export - Residential SurchargeEF | B6: 3.199346 | C6: 3.14 | D6: 3.199346
A7: Export - HazMat Class 1-8 Air C FeeEF Shipment Minimum - $7.15 Rate | B7: 60.920031 | C7: 59.79 | D7: 60.920031
A8: Export - HazMat Class 1-8 Ground Fee - Shipment Minimum - $4.00 Rate | B8: 35.6615 | C8: 35 | D8: 35.6615
A9: Export - HazMat Class 1-8 Air FeeEF Shipment Minimum - $7.15 Rate | B9: 60.920031 | C9: 59.79 | D9: 60.920031
A10: Export - HazMat Class 9 Cargo Quantity FeeEF Shipment Minimum - $7.15 Rate | B10: 60.920031 | C10: 59.79 | D10: 60.920031
A11: Export - HazMat Class 9 Ground Fee - Shipment Minimum - $4.00 Rate | B11: 35.6615 | C11: 35 | D11: 35.6615
A12: Export - HazMat Class 9 Air FeeEF Shipment Minimum - $7.15 Rate | B12: 60.920031 | C12: 59.79 | D12: 60.920031
A13: Export - HazMat Class 9 Air Lithium C FeeEF Shipment Minimum - $7.15 Rate | B13: 60.920031 | C13: 59.79 | D13: 60.920031
A14: Export - HazMat Class 9 Ground Lithium Fee - Shipment Minimum - $4.00 Rate | B14: 35.6615 | C14: 35 | D14: 35.6615
A15: Export - HazMat Class 9 Air LithiumEF Shipment Minimum - $7.15 Rate | B15: 60.920031 | C15: 59.79 | D15: 60.920031
A16: UPS Worldwide Express FreightSM-Export- Oversize Pallet Handling Surcharge: Bill Shipper & Bill Third Party - Rate per pallet | B16: 52.626185 | C16: 51.65 | D16: 52.626185
A17: Export - Large Package Surcharge | B17: 57.272369 | C17: 56.21 | D17: 57.272369
A18: Import - Duty and Tax Forwarding Surcharge | B18: 15 | C18: 15 | D18: 15
A19: Import - Residential SurchargeEF | B19: 3.199346 | C19: 3.14 | D19: 3.199346
A20: Import - Saturday DeliveryEF | B20: 15.619737 | C20: 15.33 | D20: 15.619737
A21: Import - HazMat Class 1-8 Air C FeeEF - Shipment Minimum - $7.15 Rate | B21: 60.920031 | C21: 59.79 | D21: =C21+(C21*1.89%) -> 60.920031
A22: Import - HazMat Class 1-8 Ground Fee - Shipment Minimum - $4.00 Rate | B22: 35.6615 | C22: 35 | D22: 35.6615
A23: Import - HazMat Class 1-8 Air FeeEF Shipment Minimum - $7.15 Rate | B23: 60.920031 | C23: 59.79 | D23: 60.920031
A24: Import - HazMat Class 9 Cargo Quantity FeeEF Shipment Minimum - $7.15 Rate | B24: 60.920031 | C24: 59.79 | D24: 60.920031
A25: Import - HazMat Class 9 Ground Fee - Shipment Minimum - $4.00 Rate | B25: 35.6615 | C25: 35 | D25: 35.6615
A26: Import - HazMat Class 9 Air FeeEF Shipment Minimum - $7.15 Rate | B26: 60.920031 | C26: 59.79 | D26: 60.920031
A27: Import - HazMat Class 9 Air Lithium C FeeEF Shipment Minimum - $7.15 Rate | B27: 60.920031 | C27: 59.79 | D27: 60.920031
A28: Import - HazMat Class 9 Ground Lithium Fee - Shipment Minimum - $4.00 Rate | B28: 35.6615 | C28: 35 | D28: 35.6615
A29: Import - HazMat Class 9 Air LithiumEF Shipment Minimum - $7.15 Rate | B29: 60.920031 | C29: 59.79 | D29: 60.920031
A30: Import - Export VAT | B30: 15 | C30: 15 | D30: 15
A31: UPS Worldwide Express FreightSM-Import- Oversize Pallet Handling Surcharge: Bill Receiver & Bill Third Party - Rate per pallet | B31: 52.626185 | C31: 51.65 | D31: 52.626185
A32: Import - Commercial Invoice Removal Fee | B32: 20 | C32: 20 | D32: 20
A33: Import - Large Package Surcharge | B33: 57.272369 | C33: 56.21 | D33: 57.272369
A34: Import - Late Payment Fee | B34: 83.40% Off Effective Rates | D34: 83.40% Off Effective s
A36: Accessorials | B36: Incentives | C36: Incentives | D36: Incentives
A37: National - Direct Delivery Only | B37: 100.00% Off Effective Rates | D37: 100.00% Off Effective Rates
A38: Export - Direct Delivery Only | B38: 100.00% Off Effective Rates | D38: 100.00% Off Effective Rates
A39: Import - Direct Delivery Only | B39: 100.00% Off Effective Rates | D39: 100.00% Off Effective Rates

Sheet Pick Up Accessorials (hidden)
A1: 2016
A2: Pickup Accessorials
A3: Daily Pickup | B3: 1
A4: UPS Smart Pickup ® | B4: 1
A5: Day-Specific Pickup 1 Day | B5: 1
A6: Day-Specific Pickup 2 Days | B6: 1
A7: Day-Specific Pickup 3 Days | B7: 1
A8: Day-Specific Pickup 4 Days | B8: 1
A9: Daily On-Route Pickup | B9: 1
A10: UPS On-Call Pickup ® - Same Day - Phone | B10: 1
A11: UPS On-Call Pickup ® - Same Day - Web | B11: 1
A12: UPS On-Call Pickup® - Future Day - Phone | B12: 1
A13: UPS On-Call Pickup® - Future Day - Web | B13: 1
A14: UPS On-Call Pickup®- Ground Returns - Same Day - Phone | B14: 1
A15: UPS On-Call Pickup® - Ground Returns - Same Day-Web | B15: 1
A16: UPS On-Call Pickup® - Ground Returns - Future Day - Phone | B16: 1
A17: UPS On-Call Pickup® - Ground Returns - Future Day - Web | B17: 1
A18: UPS On-Call Pickup® - Air Returns - Same Day - Phone | B18: 1
A19: UPS On-Call Pickup® - Air Returns - Same Day - Web | B19: 1
A20: UPS On-Call Pickup® - Air Returns - Future Day - Phone | B20: 1
A21: UPS On-Call Pickup® - Air Returns - Future Day - Web | B21: 1
A22: UPS On-Call Pickup® - Alternate Address - Same Day - Phone | B22: 1
A23: UPS On-Call Pickup® - Alternate Address - Same Day-Web | B23: 1
A24: UPS On-Call Pickup® - Alternate Address - Future Day - Phone | B24: 1
A25: UPS On-Call Pickup® - Alternate Address - Future Day - Web | B25: 1
A26: Residential Pickup Surcharge | B26: 1.334759
A27: Pickup Area Surcharge - Residential | B27: 2.863109
A28: Pickup Area Surcharge - Extended Residential | B28: 3.46426
A29: Pickup Remote Area Surcharge - Alaska Residential | B29: 15.619737
A30: Pickup Remote Area Surcharge - Hawaii Residential | B30: 6.1134

Sheet Cover
A35: Pursuant to Section 4.1(B) of the RFP, UPS certifies that the rates set forth in this UPS Cost Proposal will remain the same for at least one (1) year from the execution of the contract. After the first year of the initial term , UPS reserves the right to adjust its rates on an annual basis subject to Section 4.1(B) of the RFP.

Sheet Tab Descriptions
C3: Multi Shippers - Money Back Guarantee
C4: Full Service Name | D4: Name on Tab
C5: Next Day 10:30 AM Commercial and Residential | D5: NDA Exclusive
C6: Next Day Saver Commercial and Residential | D6: ND SVR Exclusive
C7: Two Day AM Commercial | D7: 2DA AM Exclusive
C8: Two Day Commercial and Residential | D8: 2DA Exclusive
C9: Three Day Commercial and Residential | D9: 3DS Exclusive
C10: Ground Commercial and Residential | D10: Ground Exclusive
C11: Next Day, Two Day, Three Day and Ground Hundredweight | D11: CWT
C12: Alaska Origin Air and Ground Services - Intra and to the 48 states and Puerto Rico | D12: AK Origin
C13: HI Origin Air and Ground Services - Intra and to the 48 states and Puerto Rico | D13: HI Origin
C14: Zones for Air and Ground Services from Puerto Rico to all of US | D14: DOM PR NDA Zones
C15: Next Day Air rates Intra Puerto Rico | D15: DOM PR NDA
C16: Domestic Standard Service for Intra Puerto Rico | D16: Domestic Standard PR
C17: UPS Export Express from Origin CONUS 48 states | D17: E-XPR Ltr Pak Doc Pkg
C18: UPS Export Express from Alaska and Hawaii | D18: E-XPR Ltr AK HI
C19: UPS Export Express Saver from Origin CONUS 48 states | D19: E-XSV Ltr Pak Doc Pkg
C20: UPS Export Express Saver from Alaska and Hawaii | D20: E-XSV AK HI
C21: UPS Export Expedited from Origin CONUS 48 states | D21: E-XPD Doc Pkg
C22: UPS Export Expedited from Alaska and Hawaii | D22: E-XPD AK HI
C23: Export Standard to Canada from Alaska and Origin CONUS 48 states | D23: E-Standard
C24: Export Standard to Canada from Origin CONUS 48 states | D24: E-Standard AK HI
C25: UPS Import Express from into US CONUS 48 states | D25: I-XPR-Ltr Doc Pkg & LN
C26: UPS Import Express into Alaska and Hawaii | D26: I-XPR-AK HI
C27: UPS Import Express Saver into US CONUS 48 states | D27: I-XSV Ltr Doc Pkg
C28: UPS Import Express Saver into Alaska and Hawaii | D28: I-XSV AK HI
C29: UPS Import Expedited into US CONUS 48 states | D29: I-XPD Doc Pkg
C30: UPS Import Expedited into Alaska and Hawaii | D30: I-XPD AK HI
C31: Import Standard from Canada to CONUS 48 states | D31: I Standard
C32: Import Standard from Canada to Alaska and Hawaii | D32: I Standard AK HI
C33: Puerto Rico Export | D33: Country Grouping PR
C34: Puerto Rico Export Express | D34: Express PR
C35: Puerto Rico Export Express Saver | D35: Express Saver PR
C36: Puerto Rico Export Expedited | D36: Expedited PR
C37: Accessorials chart for CONUS 48 States | D37: 2016 Accessorial Matrix
C38: Accessorials chart for AK HI | D38: Accessorials AK HI
C39: Ground Fuel Surcharge Custom Index | D39: Grnd FSC & Language
C40: Air Fuel Surcharge Custom Index | D40: Air FSC Language
C41: Fuel Surcharge Cap Language | D41: FSC Cap Language

Sheet Schedule
A1: SCHEDULE OF RATES AND CHARGES
A3: Zone based pricing
A4: Zone based pricing for services must include, but not be limited to, the following:
A6: Intrastate
A7: □Ground (other than guaranteed next day)
A8: □Pouch Service – Specify state, if offered. See Attachment A.
A9: □Next Day Ground AM
A10: □Next Day Ground PM
A11: □Next Day Air AM
A12: □Next Day Air PM
A13: □Multiweight/Hundredweight service
A15: Please see the UPS Service Guide for service availability by specific state. The service guide is available at www.ups.com. Please note that UPS Ground is a day-definite, not a time-definite, service.
A19: Interstate
A20: □Ground (Guaranteed day definite delivery)
A21: □Next Day Air AM
A22: □Next Day Air PM
A23: □Second Day Air AM
A24: □Second Day Air PM
A25: □Three day service
A26: □Multiweight/Hundredweight service
A28: Please see the UPS Service Guide for service availability by specific state. The service guide is available at www.ups.com. Please note that UPS Ground is a day-definite, not a time-definite, service.
A33: International
A34: □Inbound to US points and places
A35: □Outbound from US points and places
A38: Please see the UPS Service Guide for service availability by specific state. The service guide is available at www.ups.com. Please note that UPS Ground is a day-definite, not a time-definite, service.

Sheet Domestic Zones
B3: Zone Definitions and Descriptions
B5: The zone names referenced on this worksheet must match the zone names provided in the zone definition delimited text file as described in the Instructions for Response document.
B7: Express Delivery Services
B8: Zone Name | G8: Zone Description
B9: Express Next Day First AM | C9: Express Next Day Mid-Morning | D9: Express Next Day Afternoon | E9: Express Second Day | F9: Express Third Day
B10: 102 | C10: 102 | D10: 132 | E10: 202 | F10: 302 | G10: 48 Contiguous states.
B11: 103 | C11: 103 | D11: 133 | E11: 203 | F11: 303 | G11: 48 Contiguous states.
B12: 104 | C12: 104 | D12: 134 | E12: 204 | F12: 304 | G12: 48 Contiguous states
B13: 105 | C13: 105 | D13: 135 | E13: 205 | F13: 305 | G13: 48 Contiguous states
B14: 106 | C14: 106 | D14: 136 | E14: 206 | F14: 306 | G14: 48 Contiguous states
B15: 107 | C15: 107 | D15: 137 | E15: 207 | F15: 307 | G15: 48 Contiguous states
B16: 108 | C16: 108 | D16: 138 | E16: 208 | F16: 308 | G16: 48 Contiguous states
B17: 124 | C17: 124 | E17: 224 | G17: Metro Alaska and Hawaii
B18: 125 | C18: 125 | E18: 225 | G18: Puerto Rico
B19: 126 | C19: 126 | E19: 226 | G19: Remote Alaska and Hawaii
B24: Ground Delivery Services
B25: Zone Name | C25: Zone Description
B26: 2 | C26: 48 Contiguous states
B27: 3 | C27: 48 Contiguous states
B28: 4 | C28: 48 Contiguous states
B29: 5 | C29: 48 Contiguous states
B30: 6 | C30: 48 Contiguous states
B31: 7 | C31: 48 Contiguous states
B32: 8 | C32: 48 Contiguous states
B33: 44 | C33: Metro Alaska and Hawaii
B34: 45 | C34: Puerto Rico
B35: 46 | C35: Remote Alaska and Hawaii

Sheet NDA Multi
A1: UPS Next Day Air Service | M1: UPS Next Day Air Service | Q1: Residential Surcharge | T1: 1.59
A2: - Commercial | M2: -Residential
A3: (Per Package Rates from 48 State Origin) | M3: (Per Package Rates from 48 State Origin)
A4: Rates below do not include Residential Surcharge | M4: Rates Include Residential Surcharge
A5: Lbs. | B5: Zone 102 | C5: Zone 103 | D5: Zone 104 | E5: Zone 105 | F5: Zone 106 | G5: Zone 107 | H5: Zone 108 | I5: Zone 124 | J5: Zone 125 | K5: Zone 126 | M5: Lbs. | N5: Zone 102 | O5: Zone 103 | P5: Zone 104 | Q5: Zone 105 | R5: Zone 106 | S5: Zone 107 | T5: Zone 108 | U5: Zone 124 | V5: Zone 125 | W5: Zone 126
A6: Letter | B6: 5.8242 | C6: 5.8242 | D6: 6.7014 | E6: 7.2114 | F6: 7.2726 | G6: 8.007 | H6: 8.1396 | I6: 8.67 | J6: 8.67 | K6: 9.1086 | M6: Letter | N6: 7.4142 | O6: 7.4142 | P6: 8.2914 | Q6: 8.8014 | R6: 8.8626 | S6: 9.597 | T6: 9.7296 | U6: 10.26 | V6: 10.26 | W6: 10.6986
A7: 1 | B7: 5.8344 | C7: 7.8234 | D7: 9.996 | E7: 11.0976 | F7: 12.0462 | G7: 12.8724 | H7: 13.2294 | I7: 13.617 | J7: 13.617 | K7: 13.6374 | M7: 1 | N7: 7.4244 | O7: 9.4134 | P7: 11.586 | Q7: 12.6876 | R7: 13.6362 | S7: 14.4624 | T7: 14.8194 | U7: 15.207 | V7: 15.207 | W7: 15.2274
A8: 2 | B8: 5.9568 | C8: 8.4456 | D8: 11.2608 | E8: 12.2808 | F8: 13.617 | G8: 14.1882 | H8: 14.7696 | I8: 14.8716 | J8: 14.8716 | K8: 14.8818 | M8: 2 | N8: 7.5468 | O8: 10.0356 | P8: 12.8508 | Q8: 13.8708 | R8: 15.207 | S8: 15.7782 | T8: 16.3596 | U8: 16.4616 | V8: 16.4616 | W8: 16.4718
A9: 3 | B9: 6.7014 | C9: 9.0474 | D9: 12.4746 | E9: 13.6068 | F9: 15.0858 | G9: 15.5958 | H9: 16.1466 | I9: 16.5954 | J9: 16.5954 | K9: 18.6252 | M9: 3 | N9: 8.2914 | O9: 10.6374 | P9: 14.0646 | Q9: 15.1968 | R9: 16.6758 | S9: 17.1858 | T9: 17.7366 | U9: 18.1854 | V9: 18.1854 | W9: 20.2152
A10: 4 | B10: 7.2318 | C10: 9.486 | D10: 13.5252 | E10: 14.8818 | F10: 16.473 | G10: 16.983 | H10: 17.646 | I10: 18.1254 | J10: 18.1254 | K10: 20.3082 | M10: 4 | N10: 8.8218 | O10: 11.076 | P10: 15.1152 | Q10: 16.4718 | R10: 18.063 | S10: 18.573 | T10: 19.236 | U10: 19.7154 | V10: 19.7154 | W10: 21.8982
A11: 5 | B11: 7.3032 | C11: 9.8838 | D11: 14.7798 | E11: 16.2894 | F11: 17.8602 | G11: 18.3906 | H11: 19.0536 | I11: 19.6146 | J11: 19.6146 | K11: 21.8688 | M11: 5 | N11: 8.8932 | O11: 11.4738 | P11: 16.3698 | Q11: 17.8794 | R11: 19.4502 | S11: 19.9806 | T11: 20.6436 | U11: 21.2046 | V11: 21.2046 | W11: 23.4588
A12: 6 | B12: 8.0886 | C12: 10.4346 | D12: 15.9936 | E12: 17.544 | F12: 19.3494 | G12: 19.686 | H12: 20.5224 | I12: 21.012 | J12: 21.012 | K12: 23.5416 | M12: 6 | N12: 9.6786 | O12: 12.0246 | P12: 17.5836 | Q12: 19.134 | R12: 20.9394 | S12: 21.276 | T12: 22.1124 | U12: 22.602 | V12: 22.602 | W12: 25.1316
A13: 7 | B13: 8.466 | C13: 10.9548 | D13: 17.0952 | E13: 18.8496 | F13: 20.7264 | G13: 21.2058 | H13: 21.93 | I13: 22.4094 | J13: 22.4094 | K13: 25.2042 | M13: 7 | N13: 10.056 | O13: 12.5448 | P13: 18.6852 | Q13: 20.4396 | R13: 22.3164 | S13: 22.7958 | T13: 23.52 | U13: 23.9994 | V13: 23.9994 | W13: 26.7942
A14: 8 | B14: 8.5476 | C14: 11.4954 | D14: 18.1968 | E14: 20.0634 | F14: 22.1034 | G14: 22.6848 | H14: 23.3376 | I14: 23.7762 | J14: 23.7762 | K14: 26.4486 | M14: 8 | N14: 10.1376 | O14: 13.0854 | P14: 19.7868 | Q14: 21.6534 | R14: 23.6934 | S14: 24.2748 | T14: 24.9276 | U14: 25.3662 | V14: 25.3662 | W14: 28.0386
A15: 9 | B15: 8.6496 | C15: 11.9238 | D15: 19.2372 | E15: 21.3588 | F15: 23.4906 | G15: 24.1638 | H15: 24.837 | I15: 25.2858 | J15: 25.2858 | K15: 28.1826 | M15: 9 | N15: 10.2396 | O15: 13.5138 | P15: 20.8272 | Q15: 22.9488 | R15: 25.0806 | S15: 25.7538 | T15: 26.427 | U15: 26.8758 | V15: 26.8758 | W15: 29.7726
A16: 10 | B16: 8.6598 | C16: 11.934 | D16: 20.1246 | E16: 22.4808 | F16: 23.5008 | G16: 24.1842 | H16: 25.4898 | I16: 26.775 | J16: 26.775 | K16: 28.1928 | M16: 10 | N16: 10.2498 | O16: 13.524 | P16: 21.7146 | Q16: 24.0708 | R16: 25.0908 | S16: 25.7742 | T16: 27.0798 | U16: 28.365 | V16: 28.365 | W16: 29.7828
A17: 11 | B17: 9.5574 | C17: 13.0866 | D17: 21.1854 | E17: 23.6844 | F17: 26.2548 | G17: 27.0912 | H17: 27.7236 | I17: 28.2642 | J17: 28.2642 | K17: 31.1712 | M17: 11 | N17: 11.1474 | O17: 14.6766 | P17: 22.7754 | Q17: 25.2744 | R17: 27.8448 | S17: 28.6812 | T17: 29.3136 | U17: 29.8542 | V17: 29.8542 | W17: 32.7612
A18: 12 | B18: 9.9552 | C18: 13.617 | D18: 22.3278 | E18: 24.7962 | F18: 27.54 | G18: 28.56 | H18: 29.2128 | I18: 29.6514 | J18: 29.6514 | K18: 31.8954 | M18: 12 | N18: 11.5452 | O18: 15.207 | P18: 23.9178 | Q18: 26.3862 | R18: 29.13 | S18: 30.15 | T18: 30.8028 | U18: 31.2414 | V18: 31.2414 | W18: 33.4854
A19: 13 | B19: 10.098 | C19: 14.127 | D19: 23.3886 | E19: 25.9284 | F19: 28.6518 | G19: 30.0798 | H19: 30.6306 | I19: 31.1406 | J19: 31.1406 | K19: 32.8134 | M19: 13 | N19: 11.688 | O19: 15.717 | P19: 24.9786 | Q19: 27.5184 | R19: 30.2418 | S19: 31.6698 | T19: 32.2206 | U19: 32.7306 | V19: 32.7306 | W19: 34.4034
A20: 14 | B20: 10.506 | C20: 14.6676 | D20: 24.5922 | E20: 27.0198 | F20: 29.7636 | G20: 31.3854 | H20: 32.1198 | I20: 32.5278 | J20: 32.5278 | K20: 33.7416 | M20: 14 | N20: 12.096 | O20: 16.2576 | P20: 26.1822 | Q20: 28.6098 | R20: 31.3536 | S20: 32.9754 | T20: 33.7098 | U20: 34.1178 | V20: 34.1178 | W20: 35.3316
A21: 15 | B21: 10.6284 | C21: 15.0552 | D21: 25.4184 | E21: 28.1112 | F21: 29.784 | G21: 32.4054 | H21: 33.354 | I21: 33.5274 | J21: 33.5274 | K21: 34.5984 | M21: 15 | N21: 12.2184 | O21: 16.6452 | P21: 27.0084 | Q21: 29.7012 | R21: 31.374 | S21: 33.9954 | T21: 34.944 | U21: 35.1174 | V21: 35.1174 | W21: 36.1884
A22: 16 | B22: 11.0568 | C22: 15.7182 | D22: 26.6322 | E22: 29.1618 | F22: 31.875 | G22: 33.2418 | H22: 34.1802 | I22: 34.8534 | J22: 34.8534 | K22: 36.1488 | M22: 16 | N22: 12.6468 | O22: 17.3082 | P22: 28.2222 | Q22: 30.7518 | R22: 33.465 | S22: 34.8318 | T22: 35.7702 | U22: 36.4434 | V22: 36.4434 | W22: 37.7388
A23: 17 | B23: 11.5056 | C23: 16.2384 | D23: 27.3972 | E23: 30.0798 | F23: 32.5992 | G23: 33.9864 | H23: 34.935 | I23: 35.6388 | J23: 35.6388 | K23: 37.179 | M23: 17 | N23: 13.0956 | O23: 17.8284 | P23: 28.9872 | Q23: 31.6698 | R23: 34.1892 | S23: 35.5764 | T23: 36.525 | U23: 37.2288 | V23: 37.2288 | W23: 38.769
A24: 18 | B24: 11.9034 | C24: 16.7586 | D24: 28.2234 | E24: 30.7122 | F24: 33.3336 | G24: 34.7412 | H24: 35.853 | I24: 36.516 | J24: 36.516 | K24: 38.6886 | M24: 18 | N24: 13.4934 | O24: 18.3486 | P24: 29.8134 | Q24: 32.3022 | R24: 34.9236 | S24: 36.3312 | T24: 37.443 | U24: 38.106 | V24: 38.106 | W24: 40.2786
A25: 19 | B25: 12.138 | C25: 17.2074 | D25: 28.8864 | E25: 31.365 | F25: 34.0884 | G25: 35.5164 | H25: 36.8016 | I25: 37.7298 | J25: 37.7298 | K25: 39.729 | M25: 19 | N25: 13.728 | O25: 18.7974 | P25: 30.4764 | Q25: 32.955 | R25: 35.6784 | S25: 37.1064 | T25: 38.3916 | U25: 39.3198 | V25: 39.3198 | W25: 41.319
A26: 20 | B26: 12.1482 | C26: 17.4318 | D26: 29.6208 | E26: 32.1198 | F26: 34.833 | G26: 36.3426 | H26: 37.638 | I26: 38.4744 | J26: 38.4744 | K26: 42.3708 | M26: 20 | N26: 13.7382 | O26: 19.0218 | P26: 31.2108 | Q26: 33.7098 | R26: 36.423 | S26: 37.9326 | T26: 39.228 | U26: 40.0644 | V26: 40.0644 | W26: 43.9608
A27: 21 | B27: 12.7908 | C27: 18.1152 | D27: 30.2634 | E27: 32.946 | F27: 35.547 | G27: 37.0668 | H27: 38.6682 | I27: 39.3618 | J27: 39.3618 | K27: 43.5438 | M27: 21 | N27: 14.3808 | O27: 19.7052 | P27: 31.8534 | Q27: 34.536 | R27: 37.137 | S27: 38.6568 | T27: 40.2582 | U27: 40.9518 | V27: 40.9518 | W27: 45.1338
A28: 22 | B28: 13.1682 | C28: 18.5232 | D28: 30.9876 | E28: 33.6804 | F28: 36.2916 | G28: 37.9338 | H28: 39.5046 | I28: 40.2288 | J28: 40.2288 | K28: 44.5536 | M28: 22 | N28: 14.7582 | O28: 20.1132 | P28: 32.5776 | Q28: 35.2704 | R28: 37.8816 | S28: 39.5238 | T28: 41.0946 | U28: 41.8188 | V28: 41.8188 | W28: 46.1436
A29: 23 | B29: 13.4232 | C29: 18.9006 | D29: 31.7322 | E29: 34.5168 | F29: 37.1382 | G29: 38.7396 | H29: 40.443 | I29: 41.3202 | J29: 41.3202 | K29: 45.2778 | M29: 23 | N29: 15.0132 | O29: 20.4906 | P29: 33.3222 | Q29: 36.1068 | R29: 38.7282 | S29: 40.3296 | T29: 42.033 | U29: 42.9102 | V29: 42.9102 | W29: 46.8678
A30: 24 | B30: 13.719 | C30: 19.2372 | D30: 32.5788 | E30: 35.3838 | F30: 38.1174 | G30: 39.5862 | H30: 41.259 | I30: 42.1158 | J30: 42.1158 | K30: 46.1652 | M30: 24 | N30: 15.309 | O30: 20.8272 | P30: 34.1688 | Q30: 36.9738 | R30: 39.7074 | S30: 41.1762 | T30: 42.849 | U30: 43.7058 | V30: 43.7058 | W30: 47.7552
A31: 25 | B31: 13.8312 | C31: 19.3392 | D31: 33.405 | E31: 36.1182 | F31: 38.5152 | G31: 40.5552 | H31: 42.1158 | I31: 43.4214 | J31: 43.4214 | K31: 46.4406 | M31: 25 | N31: 15.4212 | O31: 20.9292 | P31: 34.995 | Q31: 37.7082 | R31: 40.1052 | S31: 42.1452 | T31: 43.7058 | U31: 45.0114 | V31: 45.0114 | W31: 48.0306
A32: 26 | B32: 14.3718 | C32: 20.0838 | D32: 34.323 | E32: 36.9954 | F32: 40.1676 | G32: 41.5854 | H32: 42.993 | I32: 44.0844 | J32: 44.0844 | K32: 47.9298 | M32: 26 | N32: 15.9618 | O32: 21.6738 | P32: 35.913 | Q32: 38.5854 | R32: 41.7576 | S32: 43.1754 | T32: 44.583 | U32: 45.6744 | V32: 45.6744 | W32: 49.5198
A33: 27 | B33: 14.637 | C33: 20.451 | D33: 35.1696 | E33: 38.0562 | F33: 41.2794 | G33: 42.483 | H33: 43.809 | I33: 45.0024 | J33: 45.0024 | K33: 48.7458 | M33: 27 | N33: 16.227 | O33: 22.041 | P33: 36.7596 | Q33: 39.6462 | R33: 42.8694 | S33: 44.073 | T33: 45.399 | U33: 46.5924 | V33: 46.5924 | W33: 50.3358
A34: 28 | B34: 15.0144 | C34: 20.91 | D34: 36.0978 | E34: 39.1476 | F34: 42.126 | G34: 43.3296 | H34: 44.7372 | I34: 45.8286 | J34: 45.8286 | K34: 49.776 | M34: 28 | N34: 16.6044 | O34: 22.5 | P34: 37.6878 | Q34: 40.7376 | R34: 43.716 | S34: 44.9196 | T34: 46.3272 | U34: 47.4186 | V34: 47.4186 | W34: 51.366
A35: 29 | B35: 15.1674 | C35: 21.2568 | D35: 37.0158 | E35: 39.984 | F35: 43.0236 | G35: 44.2782 | H35: 45.6858 | I35: 46.5732 | J35: 46.5732 | K35: 50.9184 | M35: 29 | N35: 16.7574 | O35: 22.8468 | P35: 38.6058 | Q35: 41.574 | R35: 44.6136 | S35: 45.8682 | T35: 47.2758 | U35: 48.1632 | V35: 48.1632 | W35: 52.5084
A36: 30 | B36: 15.1776 | C36: 21.2772 | D36: 37.7604 | E36: 40.8918 | F36: 43.0338 | G36: 45.1146 | H36: 45.9918 | I36: 47.4198 | J36: 47.4198 | K36: 51.102 | M36: 30 | N36: 16.7676 | O36: 22.8672 | P36: 39.3504 | Q36: 42.4818 | R36: 44.6238 | S36: 46.7046 | T36: 47.5818 | U36: 49.0098 | V36: 49.0098 | W36: 52.692
A37: 31 | B37: 15.861 | C37: 22.0524 | D37: 38.5662 | E37: 41.8302 | F37: 44.7678 | G37: 46.0428 | H37: 47.5422 | I37: 48.2766 | J37: 48.2766 | K37: 52.7748 | M37: 31 | N37: 17.451 | O37: 23.6424 | P37: 40.1562 | Q37: 43.4202 | R37: 46.3578 | S37: 47.6328 | T37: 49.1322 | U37: 49.8666 | V37: 49.8666 | W37: 54.3648
A38: 32 | B38: 16.3098 | C38: 22.5624 | D38: 39.423 | E38: 42.7686 | F38: 45.6858 | G38: 46.9608 | H38: 48.45 | I38: 49.1742 | J38: 49.1742 | K38: 53.907 | M38: 32 | N38: 17.8998 | O38: 24.1524 | P38: 41.013 | Q38: 44.3586 | R38: 47.2758 | S38: 48.5508 | T38: 50.04 | U38: 50.7642 | V38: 50.7642 | W38: 55.497
A39: 33 | B39: 16.6872 | C39: 23.1336 | D39: 40.1676 | E39: 43.6764 | F39: 46.6242 | G39: 48.0114 | H39: 49.5516 | I39: 50.2962 | J39: 50.2962 | K39: 55.0698 | M39: 33 | N39: 18.2772 | O39: 24.7236 | P39: 41.7576 | Q39: 45.2664 | R39: 48.2142 | S39: 49.6014 | T39: 51.1416 | U39: 51.8862 | V39: 51.8862 | W39: 56.6598
A40: 34 | B40: 17.0544 | C40: 23.4906 | D40: 41.0958 | E40: 44.6046 | F40: 47.6238 | G40: 49.0416 | H40: 50.592 | I40: 51.3162 | J40: 51.3162 | K40: 56.1204 | M40: 34 | N40: 18.6444 | O40: 25.0806 | P40: 42.6858 | Q40: 46.1946 | R40: 49.2138 | S40: 50.6316 | T40: 52.182 | U40: 52.9062 | V40: 52.9062 | W40: 57.7104
A41: 35 | B41: 17.4216 | C41: 23.9292 | D41: 42.0036 | E41: 45.543 | F41: 48.5316 | G41: 50.082 | H41: 51.5814 | I41: 52.3668 | J41: 52.3668 | K41: 57.2424 | M41: 35 | N41: 19.0116 | O41: 25.5192 | P41: 43.5936 | Q41: 47.133 | R41: 50.1216 | S41: 51.672 | T41: 53.1714 | U41: 53.9568 | V41: 53.9568 | W41: 58.8324
A42: 36 | B42: 18.003 | C42: 24.2964 | D42: 42.9114 | E42: 46.4508 | F42: 49.4802 | G42: 51.1836 | H42: 52.5912 | I42: 53.3664 | J42: 53.3664 | K42: 58.497 | M42: 36 | N42: 19.593 | O42: 25.8864 | P42: 44.5014 | Q42: 48.0408 | R42: 51.0702 | S42: 52.7736 | T42: 54.1812 | U42: 54.9564 | V42: 54.9564 | W42: 60.087
A43: 37 | B43: 18.0132 | C43: 24.99 | D43: 43.758 | E43: 47.3994 | F43: 50.4798 | G43: 52.3158 | H43: 53.6928 | I43: 54.4986 | J43: 54.4986 | K43: 59.4456 | M43: 37 | N43: 19.6032 | O43: 26.58 | P43: 45.348 | Q43: 48.9894 | R43: 52.0698 | S43: 53.9058 | T43: 55.2828 | U43: 56.0886 | V43: 56.0886 | W43: 61.0356
A44: 38 | B44: 18.2988 | C44: 25.3878 | D44: 44.523 | E44: 48.2358 | F44: 51.4386 | G44: 53.5398 | H44: 54.7026 | I44: 55.5186 | J44: 55.5186 | K44: 60.6084 | M44: 38 | N44: 19.8888 | O44: 26.9778 | P44: 46.113 | Q44: 49.8258 | R44: 53.0286 | S44: 55.1298 | T44: 56.2926 | U44: 57.1086 | V44: 57.1086 | W44: 62.1984
A45: 39 | B45: 18.9006 | C45: 25.8264 | D45: 45.3492 | E45: 49.1334 | F45: 52.4076 | G45: 54.6414 | H45: 55.794 | I45: 56.61 | J45: 56.61 | K45: 60.6288 | M45: 39 | N45: 20.4906 | O45: 27.4164 | P45: 46.9392 | Q45: 50.7234 | R45: 53.9976 | S45: 56.2314 | T45: 57.384 | U45: 58.2 | V45: 58.2 | W45: 62.2188
A46: 40 | B46: 18.9108 | C46: 26.265 | D46: 46.1856 | E46: 50.0616 | F46: 53.3358 | G46: 55.692 | H46: 56.9262 | I46: 57.7524 | J46: 57.7524 | K46: 60.639 | M46: 40 | N46: 20.5008 | O46: 27.855 | P46: 47.7756 | Q46: 51.6516 | R46: 54.9258 | S46: 57.282 | T46: 58.5162 | U46: 59.3424 | V46: 59.3424 | W46: 62.229
A47: 41 | B47: 19.533 | C47: 26.8056 | D47: 47.0016 | E47: 51.0102 | F47: 54.3558 | G47: 56.5998 | H47: 57.987 | I47: 58.8642 | J47: 58.8642 | K47: 64.4232 | M47: 41 | N47: 21.123 | O47: 28.3956 | P47: 48.5916 | Q47: 52.6002 | R47: 55.9458 | S47: 58.1898 | T47: 59.577 | U47: 60.4542 | V47: 60.4542 | W47: 66.0132
A48: 42 | B48: 19.8186 | C48: 27.3462 | D48: 47.9298 | E48: 51.9282 | F48: 55.4676 | G48: 57.9156 | H48: 59.1804 | I48: 60.078 | J48: 60.078 | K48: 65.4432 | M48: 42 | N48: 21.4086 | O48: 28.9362 | P48: 49.5198 | Q48: 53.5182 | R48: 57.0576 | S48: 59.5056 | T48: 60.7704 | U48: 61.668 | V48: 61.668 | W48: 67.0332
A49: 43 | B49: 20.3388 | C49: 27.8562 | D49: 48.8784 | E49: 52.8462 | F49: 56.4978 | G49: 58.854 | H49: 60.3942 | I49: 61.2816 | J49: 61.2816 | K49: 66.504 | M49: 43 | N49: 21.9288 | O49: 29.4462 | P49: 50.4684 | Q49: 54.4362 | R49: 58.0878 | S49: 60.444 | T49: 61.9842 | U49: 62.8716 | V49: 62.8716 | W49: 68.094
A50: 44 | B50: 20.7978 | C50: 28.407 | D50: 49.6944 | E50: 53.7744 | F50: 57.4872 | G50: 59.8842 | H50: 61.6794 | I50: 62.6076 | J50: 62.6076 | K50: 67.7586 | M50: 44 | N50: 22.3878 | O50: 29.997 | P50: 51.2844 | Q50: 55.3644 | R50: 59.0772 | S50: 61.4742 | T50: 63.2694 | U50: 64.1976 | V50: 64.1976 | W50: 69.3486
A51: 45 | B51: 21.2364 | C51: 28.9986 | D51: 50.592 | E51: 54.6924 | F51: 58.6092 | G51: 60.9246 | H51: 62.6688 | I51: 63.597 | J51: 63.597 | K51: 69.0336 | M51: 45 | N51: 22.8264 | O51: 30.5886 | P51: 52.182 | Q51: 56.2824 | R51: 60.1992 | S51: 62.5146 | T51: 64.2588 | U51: 65.187 | V51: 65.187 | W51: 70.6236
A52: 46 | B52: 21.6444 | C52: 29.6208 | D52: 51.4794 | E52: 55.6206 | F52: 59.721 | G52: 61.9752 | H52: 63.7704 | I52: 64.719 | J52: 64.719 | K52: 69.921 | M52: 46 | N52: 23.2344 | O52: 31.2108 | P52: 53.0694 | Q52: 57.2106 | R52: 61.311 | S52: 63.5652 | T52: 65.3604 | U52: 66.309 | V52: 66.309 | W52: 71.511
A53: 47 | B53: 22.0116 | C53: 30.2532 | D53: 52.377 | E53: 56.4672 | F53: 60.8226 | G53: 62.8626 | H53: 64.7802 | I53: 65.7594 | J53: 65.7594 | K53: 69.9414 | M53: 47 | N53: 23.6016 | O53: 31.8432 | P53: 53.967 | Q53: 58.0572 | R53: 62.4126 | S53: 64.4526 | T53: 66.3702 | U53: 67.3494 | V53: 67.3494 | W53: 71.5314
A54: 48 | B54: 22.1544 | C54: 30.8448 | D54: 53.1216 | E54: 57.3954 | F54: 61.9242 | G54: 64.005 | H54: 65.9838 | I54: 66.9732 | J54: 66.9732 | K54: 71.4816 | M54: 48 | N54: 23.7444 | O54: 32.4348 | P54: 54.7116 | Q54: 58.9854 | R54: 63.5142 | S54: 65.595 | T54: 67.5738 | U54: 68.5632 | V54: 68.5632 | W54: 73.0716
A55: 49 | B55: 22.3278 | C55: 31.5588 | D55: 53.8764 | E55: 57.5586 | F55: 61.9446 | G55: 65.025 | H55: 67.1568 | I55: 68.1564 | J55: 68.1564 | K55: 71.502 | M55: 49 | N55: 23.9178 | O55: 33.1488 | P55: 55.4664 | Q55: 59.1486 | R55: 63.5346 | S55: 66.615 | T55: 68.7468 | U55: 69.7464 | V55: 69.7464 | W55: 73.092
A56: 50 | B56: 22.338 | C56: 31.5996 | D56: 53.8968 | E56: 57.579 | F56: 61.9548 | G56: 65.0352 | H56: 67.1772 | I56: 68.1666 | J56: 68.1666 | K56: 71.5122 | M56: 50 | N56: 23.928 | O56: 33.1896 | P56: 55.4868 | Q56: 59.169 | R56: 63.5448 | S56: 66.6252 | T56: 68.7672 | U56: 69.7566 | V56: 69.7566 | W56: 73.1022
A57: 51 | B57: 23.5416 | C57: 32.8746 | D57: 55.59 | E57: 60.1596 | F57: 65.331 | G57: 67.2792 | H57: 69.7374 | I57: 70.7574 | J57: 70.7574 | K57: 73.899 | M57: 51 | N57: 25.1316 | O57: 34.4646 | P57: 57.18 | Q57: 61.7496 | R57: 66.921 | S57: 68.8692 | T57: 71.3274 | U57: 72.3474 | V57: 72.3474 | W57: 75.489
A58: 52 | B58: 23.8986 | C58: 33.5682 | D58: 56.457 | E58: 61.0776 | F58: 66.4326 | G58: 68.3808 | H58: 71.1042 | I58: 72.165 | J58: 72.165 | K58: 76.3572 | M58: 52 | N58: 25.4886 | O58: 35.1582 | P58: 58.047 | Q58: 62.6676 | R58: 68.0226 | S58: 69.9708 | T58: 72.6942 | U58: 73.755 | V58: 73.755 | W58: 77.9472
A59: 53 | B59: 24.3678 | C59: 34.119 | D59: 57.3138 | E59: 62.0976 | F59: 67.626 | G59: 69.5028 | H59: 72.2976 | I59: 73.389 | J59: 73.389 | K59: 76.3776 | M59: 53 | N59: 25.9578 | O59: 35.709 | P59: 58.9038 | Q59: 63.6876 | R59: 69.216 | S59: 71.0928 | T59: 73.8876 | U59: 74.979 | V59: 74.979 | W59: 77.9676
A60: 54 | B60: 24.7656 | C60: 34.8024 | D60: 58.2624 | E60: 63.0156 | F60: 68.646 | G60: 70.8492 | H60: 73.6644 | I60: 74.7558 | J60: 74.7558 | K60: 78.4686 | M60: 54 | N60: 26.3556 | O60: 36.3924 | P60: 59.8524 | Q60: 64.6056 | R60: 70.236 | S60: 72.4392 | T60: 75.2544 | U60: 76.3458 | V60: 76.3458 | W60: 80.0586
A61: 55 | B61: 25.1328 | C61: 35.4348 | D61: 59.2926 | E61: 63.8724 | F61: 69.6864 | G61: 72.0222 | H61: 74.7558 | I61: 75.888 | J61: 75.888 | K61: 81.0084 | M61: 55 | N61: 26.7228 | O61: 37.0248 | P61: 60.8826 | Q61: 65.4624 | R61: 71.2764 | S61: 73.6122 | T61: 76.3458 | U61: 77.478 | V61: 77.478 | W61: 82.5984
A62: 56 | B62: 25.602 | C62: 36.1182 | D62: 60.3738 | E62: 64.617 | F62: 70.7778 | G62: 73.3584 | H62: 75.9594 | I62: 77.1018 | J62: 77.1018 | K62: 81.0288 | M62: 56 | N62: 27.192 | O62: 37.7082 | P62: 61.9638 | Q62: 66.207 | R62: 72.3678 | S62: 74.9484 | T62: 77.5494 | U62: 78.6918 | V62: 78.6918 | W62: 82.6188
A63: 57 | B63: 26.0814 | C63: 36.7404 | D63: 61.4652 | E63: 65.7696 | F63: 71.7978 | G63: 74.562 | H63: 77.265 | I63: 78.3972 | J63: 78.3972 | K63: 83.385 | M63: 57 | N63: 27.6714 | O63: 38.3304 | P63: 63.0552 | Q63: 67.3596 | R63: 73.3878 | S63: 76.152 | T63: 78.855 | U63: 79.9872 | V63: 79.9872 | W63: 84.975
A64: 58 | B64: 26.6526 | C64: 37.3524 | D64: 62.577 | E64: 66.6672 | F64: 72.8994 | G64: 75.888 | H64: 78.6318 | I64: 79.7946 | J64: 79.7946 | K64: 83.4054 | M64: 58 | N64: 28.2426 | O64: 38.9424 | P64: 64.167 | Q64: 68.2572 | R64: 74.4894 | S64: 77.478 | T64: 80.2218 | U64: 81.3846 | V64: 81.3846 | W64: 84.9954
A65: 59 | B65: 27.03 | C65: 37.9746 | D65: 63.6684 | E65: 67.4832 | F65: 74.001 | G65: 77.0814 | H65: 80.019 | I65: 81.2022 | J65: 81.2022 | K65: 84.6498 | M65: 59 | N65: 28.62 | O65: 39.5646 | P65: 65.2584 | Q65: 69.0732 | R65: 75.591 | S65: 78.6714 | T65: 81.609 | U65: 82.7922 | V65: 82.7922 | W65: 86.2398
A66: 60 | B66: 27.3156 | C66: 38.2398 | D66: 64.7088 | E66: 68.6358 | F66: 75.1944 | G66: 78.3972 | H66: 80.9778 | I66: 82.1712 | J66: 82.1712 | K66: 85.731 | M66: 60 | N66: 28.9056 | O66: 39.8298 | P66: 66.2988 | Q66: 70.2258 | R66: 76.7844 | S66: 79.9872 | T66: 82.5678 | U66: 83.7612 | V66: 83.7612 | W66: 87.321
A67: 61 | B67: 28.05 | C67: 39.2904 | D67: 65.8104 | E67: 69.5028 | F67: 76.3878 | G67: 79.6008 | H67: 80.9982 | I67: 83.9868 | J67: 83.9868 | K67: 89.0766 | M67: 61 | N67: 29.64 | O67: 40.8804 | P67: 67.4004 | Q67: 71.0928 | R67: 77.9778 | S67: 81.1908 | T67: 82.5882 | U67: 85.5768 | V67: 85.5768 | W67: 90.6666
A68: 62 | B68: 28.7232 | C68: 40.0044 | D68: 66.8202 | E68: 70.8288 | F68: 77.5812 | G68: 80.9064 | H68: 84.0276 | I68: 85.272 | J68: 85.272 | K68: 90.1272 | M68: 62 | N68: 30.3132 | O68: 41.5944 | P68: 68.4102 | Q68: 72.4188 | R68: 79.1712 | S68: 82.4964 | T68: 85.6176 | U68: 86.862 | V68: 86.862 | W68: 91.7172
A69: 63 | B69: 29.2026 | C69: 40.7796 | D69: 67.9524 | E69: 71.8488 | F69: 78.8562 | G69: 82.314 | H69: 85.4148 | I69: 86.6898 | J69: 86.6898 | K69: 91.239 | M69: 63 | N69: 30.7926 | O69: 42.3696 | P69: 69.5424 | Q69: 73.4388 | R69: 80.4462 | S69: 83.904 | T69: 87.0048 | U69: 88.2798 | V69: 88.2798 | W69: 92.829
A70: 64 | B70: 29.7534 | C70: 41.5854 | D70: 69.054 | E70: 73.0524 | F70: 80.172 | G70: 83.7318 | H70: 86.7918 | I70: 88.0668 | J70: 88.0668 | K70: 93.3096 | M70: 64 | N70: 31.3434 | O70: 43.1754 | P70: 70.644 | Q70: 74.6424 | R70: 81.762 | S70: 85.3218 | T70: 88.3818 | U70: 89.6568 | V70: 89.6568 | W70: 94.8996
A71: 65 | B71: 29.937 | C71: 42.381 | D71: 70.0638 | E71: 74.2356 | F71: 81.447 | G71: 85.221 | H71: 87.9648 | I71: 88.0872 | J71: 88.0872 | K71: 93.33 | M71: 65 | N71: 31.527 | O71: 43.971 | P71: 71.6538 | Q71: 75.8256 | R71: 83.037 | S71: 86.811 | T71: 89.5548 | U71: 89.6772 | V71: 89.6772 | W71: 94.92
A72: 66 | B72: 30.8142 | C72: 43.146 | D72: 71.1858 | E72: 75.4392 | F72: 82.722 | G72: 86.6184 | H72: 89.5458 | I72: 90.8718 | J72: 90.8718 | K72: 95.115 | M72: 66 | N72: 32.4042 | O72: 44.736 | P72: 72.7758 | Q72: 77.0292 | R72: 84.312 | S72: 88.2084 | T72: 91.1358 | U72: 92.4618 | V72: 92.4618 | W72: 96.705
A73: 67 | B73: 30.957 | C73: 43.9722 | D73: 72.2058 | E73: 76.755 | F73: 84.1296 | G73: 88.1076 | H73: 91.0962 | I73: 92.4528 | J73: 92.4528 | K73: 96.696 | M73: 67 | N73: 32.547 | O73: 45.5622 | P73: 73.7958 | Q73: 78.345 | R73: 85.7196 | S73: 89.6976 | T73: 92.6862 | U73: 94.0428 | V73: 94.0428 | W73: 98.286
A74: 68 | B74: 31.926 | C74: 44.7372 | D74: 73.3176 | E74: 78.03 | F74: 85.4148 | G74: 88.128 | H74: 92.565 | I74: 93.9318 | J74: 93.9318 | K74: 98.7258 | M74: 68 | N74: 33.516 | O74: 46.3272 | P74: 74.9076 | Q74: 79.62 | R74: 87.0048 | S74: 89.718 | T74: 94.155 | U74: 95.5218 | V74: 95.5218 | W74: 100.3158
A75: 69 | B75: 32.4054 | C75: 45.543 | D75: 74.409 | E75: 79.3254 | F75: 85.4352 | G75: 88.5666 | H75: 94.1256 | I75: 95.523 | J75: 95.523 | K75: 100.3272 | M75: 69 | N75: 33.9954 | O75: 47.133 | P75: 75.999 | Q75: 80.9154 | R75: 87.0252 | S75: 90.1566 | T75: 95.7156 | U75: 97.113 | V75: 97.113 | W75: 101.9172
A76: 70 | B76: 32.4156 | C76: 45.8898 | D76: 74.4192 | E76: 80.5392 | F76: 86.7204 | G76: 89.6682 | H76: 95.4108 | I76: 96.8184 | J76: 96.8184 | K76: 101.7858 | M76: 70 | N76: 34.0056 | O76: 47.4798 | P76: 76.0092 | Q76: 82.1292 | R76: 88.3104 | S76: 91.2582 | T76: 97.0008 | U76: 98.4084 | V76: 98.4084 | W76: 103.3758
A77: 71 | B77: 33.5274 | C77: 47.1852 | D77: 76.5612 | E77: 81.8346 | F77: 87.1182 | G77: 90.9024 | H77: 97.1346 | I77: 98.5728 | J77: 98.5728 | K77: 103.2954 | M77: 71 | N77: 35.1174 | O77: 48.7752 | P77: 78.1512 | Q77: 83.4246 | R77: 88.7082 | S77: 92.4924 | T77: 98.7246 | U77: 100.1628 | V77: 100.1628 | W77: 104.8854
A78: 72 | B78: 33.8232 | C78: 47.5728 | D78: 76.5714 | E78: 83.1402 | F78: 88.179 | G78: 92.0856 | H78: 97.155 | I78: 98.583 | J78: 98.583 | K78: 105.264 | M78: 72 | N78: 35.4132 | O78: 49.1628 | P78: 78.1614 | Q78: 84.7302 | R78: 89.769 | S78: 93.6756 | T78: 98.745 | U78: 100.173 | V78: 100.173 | W78: 106.854
A79: 73 | B79: 33.8334 | C79: 48.8784 | D79: 76.602 | E79: 83.1504 | F79: 89.3826 | G79: 93.5442 | H79: 98.8584 | I79: 100.2864 | J79: 100.2864 | K79: 108.1812 | M79: 73 | N79: 35.4234 | O79: 50.4684 | P79: 78.192 | Q79: 84.7404 | R79: 90.9726 | S79: 95.1342 | T79: 100.4484 | U79: 101.8764 | V79: 101.8764 | W79: 109.7712
A80: 74 | B80: 33.8436 | C80: 49.674 | D80: 77.5914 | E80: 85.7106 | F80: 90.7902 | G80: 97.3488 | H80: 99.297 | I80: 100.3068 | J80: 100.3068 | K80: 108.1914 | M80: 74 | N80: 35.4336 | O80: 51.264 | P80: 79.1814 | Q80: 87.3006 | R80: 92.3802 | S80: 98.9388 | T80: 100.887 | U80: 101.8968 | V80: 101.8968 | W80: 109.7814
A81: 75 | B81: 33.864 | C81: 50.0922 | D81: 79.7946 | E81: 85.731 | F81: 91.4838 | G81: 98.685 | H81: 100.3068 | I81: 100.317 | J81: 100.317 | K81: 108.2118 | M81: 75 | N81: 35.454 | O81: 51.6822 | P81: 81.3846 | Q81: 87.321 | R81: 93.0738 | S81: 100.275 | T81: 101.8968 | U81: 101.907 | V81: 101.907 | W81: 109.8018
A82: 76 | B82: 35.9754 | C82: 51.3264 | D82: 81.9162 | E82: 88.2096 | F82: 93.279 | G82: 98.685 | H82: 103.9278 | I82: 104.499 | J82: 104.499 | K82: 112.9752 | M82: 76 | N82: 37.5654 | O82: 52.9164 | P82: 83.5062 | Q82: 89.7996 | R82: 94.869 | S82: 100.275 | T82: 105.5178 | U82: 106.089 | V82: 106.089 | W82: 114.5652
A83: 77 | B83: 35.9958 | C83: 51.6528 | D83: 82.2834 | E83: 88.23 | F83: 94.503 | G83: 99.297 | H83: 104.142 | I83: 106.8756 | J83: 106.8756 | K83: 112.9854 | M83: 77 | N83: 37.5858 | O83: 53.2428 | P83: 83.8734 | Q83: 89.82 | R83: 96.093 | S83: 100.887 | T83: 105.732 | U83: 108.4656 | V83: 108.4656 | W83: 114.5754
A84: 78 | B84: 35.9958 | C84: 51.9486 | D84: 82.2936 | E84: 88.689 | F84: 95.676 | G84: 100.6026 | H84: 105.7434 | I84: 108.2628 | J84: 108.2628 | K84: 113.9544 | M84: 78 | N84: 37.5858 | O84: 53.5386 | P84: 83.8836 | Q84: 90.279 | R84: 97.266 | S84: 102.1926 | T84: 107.3334 | U84: 109.8528 | V84: 109.8528 | W84: 115.5444
A85: 79 | B85: 36.006 | C85: 53.142 | D85: 82.5792 | E85: 91.2186 | F85: 96.9102 | G85: 101.9898 | H85: 107.2938 | I85: 109.6602 | J85: 109.6602 | K85: 116.1168 | M85: 79 | N85: 37.596 | O85: 54.732 | P85: 84.1692 | Q85: 92.8086 | R85: 98.5002 | S85: 103.5798 | T85: 108.8838 | U85: 111.2502 | V85: 111.2502 | W85: 117.7068
A86: 80 | B86: 36.0264 | C86: 53.1522 | D86: 83.2218 | E86: 91.3104 | F86: 97.41 | G86: 103.5198 | H86: 108.2526 | I86: 111.0576 | J86: 111.0576 | K86: 117.1878 | M86: 80 | N86: 37.6164 | O86: 54.7422 | P86: 84.8118 | Q86: 92.9004 | R86: 99 | S86: 105.1098 | T86: 109.8426 | U86: 112.6476 | V86: 112.6476 | W86: 118.7778
A87: 81 | B87: 38.454 | C87: 54.2028 | D87: 84.2316 | E87: 92.4222 | F87: 98.9706 | G87: 104.8662 | H87: 109.9662 | I87: 111.078 | J87: 111.078 | K87: 117.504 | M87: 81 | N87: 40.044 | O87: 55.7928 | P87: 85.8216 | Q87: 94.0122 | R87: 100.5606 | S87: 106.4562 | T87: 111.5562 | U87: 112.668 | V87: 112.668 | W87: 119.094
A88: 82 | B88: 39.066 | C88: 55.9368 | D88: 87.0468 | E88: 95.268 | F88: 99.6948 | G88: 106.3656 | H88: 112.0776 | I88: 113.7402 | J88: 113.7402 | K88: 121.2372 | M88: 82 | N88: 40.656 | O88: 57.5268 | P88: 88.6368 | Q88: 96.858 | R88: 101.2848 | S88: 107.9556 | T88: 113.6676 | U88: 115.3302 | V88: 115.3302 | W88: 122.8272
A89: 83 | B89: 39.5148 | C89: 56.61 | D89: 87.1896 | E89: 95.268 | F89: 101.5716 | G89: 107.8854 | H89: 112.8222 | I89: 114.0666 | J89: 114.0666 | K89: 121.2678 | M89: 83 | N89: 41.1048 | O89: 58.2 | P89: 88.7796 | Q89: 96.858 | R89: 103.1616 | S89: 109.4754 | T89: 114.4122 | U89: 115.6566 | V89: 115.6566 | W89: 122.8578
A90: 84 | B90: 39.5352 | C90: 56.7018 | D90: 88.128 | E90: 95.9106 | F90: 101.592 | G90: 109.446 | H90: 114.0666 | I90: 114.1074 | J90: 114.1074 | K90: 121.278 | M90: 84 | N90: 41.1252 | O90: 58.2918 | P90: 89.718 | Q90: 97.5006 | R90: 103.182 | S90: 111.036 | T90: 115.6566 | U90: 115.6974 | V90: 115.6974 | W90: 122.868
A91: 85 | B91: 39.5454 | C91: 57.4056 | D91: 89.5458 | E91: 98.6748 | F91: 103.9992 | G91: 110.8638 | H91: 115.464 | I91: 115.566 | J91: 115.566 | K91: 124.0116 | M91: 85 | N91: 41.1354 | O91: 58.9956 | P91: 91.1358 | Q91: 100.2648 | R91: 105.5892 | S91: 112.4538 | T91: 117.054 | U91: 117.156 | V91: 117.156 | W91: 125.6016
A92: 86 | B92: 40.8204 | C92: 58.1196 | D92: 91.443 | E92: 98.685 | F92: 104.0196 | G92: 112.2408 | H92: 116.841 | I92: 118.0344 | J92: 118.0344 | K92: 124.032 | M92: 86 | N92: 42.4104 | O92: 59.7096 | P92: 93.033 | Q92: 100.275 | R92: 105.6096 | S92: 113.8308 | T92: 118.431 | U92: 119.6244 | V92: 119.6244 | W92: 125.622
A93: 87 | B93: 40.8408 | C93: 59.3538 | D93: 92.8608 | E93: 99.6336 | F93: 104.0196 | G93: 113.8116 | H93: 118.1364 | I93: 119.3502 | J93: 119.3502 | K93: 128.01 | M93: 87 | N93: 42.4308 | O93: 60.9438 | P93: 94.4508 | Q93: 101.2236 | R93: 105.6096 | S93: 115.4016 | T93: 119.7264 | U93: 120.9402 | V93: 120.9402 | W93: 129.6
A94: 88 | B94: 40.851 | C94: 59.4966 | D94: 93.7686 | E94: 100.7148 | F94: 107.0592 | G94: 115.0764 | H94: 120.3396 | I94: 121.0128 | J94: 121.0128 | K94: 128.0304 | M94: 88 | N94: 42.441 | O94: 61.0866 | P94: 95.3586 | Q94: 102.3048 | R94: 108.6492 | S94: 116.6664 | T94: 121.9296 | U94: 122.6028 | V94: 122.6028 | W94: 129.6204
A95: 89 | B95: 40.8714 | C95: 59.5068 | D95: 95.676 | E95: 101.7756 | F95: 112.4244 | G95: 116.3616 | H95: 120.972 | I95: 123.1752 | J95: 123.1752 | K95: 131.835 | M95: 89 | N95: 42.4614 | O95: 61.0968 | P95: 97.266 | Q95: 103.3656 | R95: 114.0144 | S95: 117.9516 | T95: 122.562 | U95: 124.7652 | V95: 124.7652 | W95: 133.425
A96: 90 | B96: 40.8816 | C96: 59.517 | D96: 97.2264 | E96: 102.8976 | F96: 112.4346 | G96: 117.6264 | H96: 122.247 | I96: 123.1956 | J96: 123.1956 | K96: 133.5588 | M96: 90 | N96: 42.4716 | O96: 61.107 | P96: 98.8164 | Q96: 104.4876 | R96: 114.0246 | S96: 119.2164 | T96: 123.837 | U96: 124.7856 | V96: 124.7856 | W96: 135.1488
A97: 91 | B97: 43.248 | C97: 62.0874 | D97: 98.532 | E97: 104.1828 | F97: 114.903 | G97: 118.983 | H97: 123.6036 | I97: 126.327 | J97: 126.327 | K97: 136.068 | M97: 91 | N97: 44.838 | O97: 63.6774 | P97: 100.122 | Q97: 105.7728 | R97: 116.493 | S97: 120.573 | T97: 125.1936 | U97: 127.917 | V97: 127.917 | W97: 137.658
A98: 92 | B98: 43.2786 | C98: 62.0976 | D98: 99.8274 | E98: 105.621 | F98: 114.9336 | G98: 121.0128 | H98: 125.358 | I98: 127.7142 | J98: 127.7142 | K98: 137.292 | M98: 92 | N98: 44.8686 | O98: 63.6876 | P98: 101.4174 | Q98: 107.211 | R98: 116.5236 | S98: 122.6028 | T98: 126.948 | U98: 129.3042 | V98: 129.3042 | W98: 138.882
A99: 93 | B99: 43.2888 | C99: 62.3016 | D99: 101.0208 | E99: 106.9062 | F99: 114.9438 | G99: 122.3286 | H99: 126.3678 | I99: 129.0912 | J99: 129.0912 | K99: 137.3124 | M99: 93 | N99: 44.8788 | O99: 63.8916 | P99: 102.6108 | Q99: 108.4962 | R99: 116.5338 | S99: 123.9186 | T99: 127.9578 | U99: 130.6812 | V99: 130.6812 | W99: 138.9024
A100: 94 | B100: 43.299 | C100: 62.9238 | D100: 102.255 | E100: 108.12 | F100: 115.2294 | G100: 122.9406 | H100: 127.6428 | I100: 130.3968 | J100: 130.3968 | K100: 140.8008 | M100: 94 | N100: 44.889 | O100: 64.5138 | P100: 103.845 | Q100: 109.71 | R100: 116.8194 | S100: 124.5306 | T100: 129.2328 | U100: 131.9868 | V100: 131.9868 | W100: 142.3908
A101: 95 | B101: 43.299 | C101: 62.934 | D101: 103.2036 | E101: 109.3134 | F101: 116.535 | G101: 124.1238 | H101: 129.0912 | I101: 130.407 | J101: 130.407 | K101: 140.811 | M101: 95 | N101: 44.889 | O101: 64.524 | P101: 104.7936 | Q101: 110.9034 | R101: 118.125 | S101: 125.7138 | T101: 130.6812 | U101: 131.997 | V101: 131.997 | W101: 142.401
A102: 96 | B102: 45.8286 | C102: 65.4126 | D102: 104.3256 | E102: 110.5068 | F102: 117.8202 | G102: 125.4906 | H102: 130.3764 | I102: 130.4274 | J102: 130.4274 | K102: 140.8314 | M102: 96 | N102: 47.4186 | O102: 67.0026 | P102: 105.9156 | Q102: 112.0968 | R102: 119.4102 | S102: 127.0806 | T102: 131.9664 | U102: 132.0174 | V102: 132.0174 | W102: 142.4214
A103: 97 | B103: 46.2366 | C103: 65.5044 | D103: 105.3864 | E103: 111.843 | F103: 121.2882 | G103: 127.6326 | H103: 132.6306 | I103: 133.3548 | J103: 133.3548 | K103: 140.8416 | M103: 97 | N103: 47.8266 | O103: 67.0944 | P103: 106.9764 | Q103: 113.433 | R103: 122.8782 | S103: 129.2226 | T103: 134.2206 | U103: 134.9448 | V103: 134.9448 | W103: 142.4316
A104: 98 | B104: 46.257 | C104: 66.2082 | D104: 106.4982 | E104: 111.8532 | F104: 121.3086 | G104: 128.1222 | H104: 133.161 | I104: 133.4874 | J104: 133.4874 | K104: 146.6352 | M104: 98 | N104: 47.847 | O104: 67.7982 | P104: 108.0882 | Q104: 113.4432 | R104: 122.8986 | S104: 129.7122 | T104: 134.751 | U104: 135.0774 | V104: 135.0774 | W104: 148.2252
A105: 99 | B105: 47.2158 | C105: 66.2796 | D105: 107.3652 | E105: 114.2298 | F105: 121.5228 | G105: 129.489 | H105: 134.5278 | I105: 134.946 | J105: 134.946 | K105: 149.5626 | M105: 99 | N105: 48.8058 | O105: 67.8696 | P105: 108.9552 | Q105: 115.8198 | R105: 123.1128 | S105: 131.079 | T105: 136.1178 | U105: 136.536 | V105: 136.536 | W105: 151.1526
A106: 100 | B106: 47.6136 | C106: 67.575 | D106: 108.0792 | E106: 115.4436 | F106: 125.8272 | G106: 131.0292 | H106: 135.9558 | I106: 138.1386 | J106: 138.1386 | K106: 149.5728 | M106: 100 | N106: 49.2036 | O106: 69.165 | P106: 109.6692 | Q106: 117.0336 | R106: 127.4172 | S106: 132.6192 | T106: 137.5458 | U106: 139.7286 | V106: 139.7286 | W106: 151.1628
A107: 101 | B107: 48.0726 | C107: 68.238 | D107: 109.1706 | E107: 116.586 | F107: 127.092 | G107: 132.345 | H107: 137.3124 | I107: 139.5258 | J107: 139.5258 | K107: 151.0926 | M107: 101 | N107: 49.6626 | O107: 69.828 | P107: 110.7606 | Q107: 118.176 | R107: 128.682 | S107: 133.935 | T107: 138.9024 | U107: 141.1158 | V107: 141.1158 | W107: 152.6826
A108: 102 | B108: 48.552 | C108: 68.9214 | D108: 110.2212 | E108: 117.7488 | F108: 128.3364 | G108: 133.6506 | H108: 138.669 | I108: 140.9028 | J108: 140.9028 | K108: 152.6022 | M108: 102 | N108: 50.142 | O108: 70.5114 | P108: 111.8112 | Q108: 119.3388 | R108: 129.9264 | S108: 135.2406 | T108: 140.259 | U108: 142.4928 | V108: 142.4928 | W108: 154.1922
A109: 103 | B109: 49.0314 | C109: 69.5946 | D109: 111.3126 | E109: 118.9014 | F109: 129.6114 | G109: 134.9562 | H109: 140.0358 | I109: 142.29 | J109: 142.29 | K109: 154.1118 | M109: 103 | N109: 50.6214 | O109: 71.1846 | P109: 112.9026 | Q109: 120.4914 | R109: 131.2014 | S109: 136.5462 | T109: 141.6258 | U109: 143.88 | V109: 143.88 | W109: 155.7018
A110: 104 | B110: 49.5006 | C110: 70.278 | D110: 112.3938 | E110: 120.0438 | F110: 130.866 | G110: 136.272 | H110: 141.3924 | I110: 143.667 | J110: 143.667 | K110: 155.6214 | M110: 104 | N110: 51.0906 | O110: 71.868 | P110: 113.9838 | Q110: 121.6338 | R110: 132.456 | S110: 137.862 | T110: 142.9824 | U110: 145.257 | V110: 145.257 | W110: 157.2114
A111: 105 | B111: 49.98 | C111: 70.941 | D111: 113.4852 | E111: 121.2066 | F111: 132.1206 | G111: 137.5776 | H111: 142.749 | I111: 145.0542 | J111: 145.0542 | K111: 157.1412 | M111: 105 | N111: 51.57 | O111: 72.531 | P111: 115.0752 | Q111: 122.7966 | R111: 133.7106 | S111: 139.1676 | T111: 144.339 | U111: 146.6442 | V111: 146.6442 | W111: 158.7312
A112: 106 | B112: 50.4594 | C112: 71.6244 | D112: 114.546 | E112: 122.3694 | F112: 133.3854 | G112: 138.8934 | H112: 144.1158 | I112: 146.4312 | J112: 146.4312 | K112: 158.661 | M112: 106 | N112: 52.0494 | O112: 73.2144 | P112: 116.136 | Q112: 123.9594 | R112: 134.9754 | S112: 140.4834 | T112: 145.7058 | U112: 148.0212 | V112: 148.0212 | W112: 160.251
A113: 107 | B113: 50.9388 | C113: 72.2976 | D113: 115.6374 | E113: 123.522 | F113: 134.6502 | G113: 140.199 | H113: 145.4724 | I113: 147.8184 | J113: 147.8184 | K113: 160.1604 | M113: 107 | N113: 52.5288 | O113: 73.8876 | P113: 117.2274 | Q113: 125.112 | R113: 136.2402 | S113: 141.789 | T113: 147.0624 | U113: 149.4084 | V113: 149.4084 | W113: 161.7504
A114: 108 | B114: 51.3978 | C114: 72.9708 | D114: 116.7186 | E114: 124.6848 | F114: 135.8946 | G114: 141.5046 | H114: 146.8188 | I114: 149.1954 | J114: 149.1954 | K114: 161.6802 | M114: 108 | N114: 52.9878 | O114: 74.5608 | P114: 118.3086 | Q114: 126.2748 | R114: 137.4846 | S114: 143.0946 | T114: 148.4088 | U114: 150.7854 | V114: 150.7854 | W114: 163.2702
A115: 109 | B115: 51.8772 | C115: 73.6542 | D115: 117.81 | E115: 125.8272 | F115: 137.1594 | G115: 142.8204 | H115: 148.1856 | I115: 150.5826 | J115: 150.5826 | K115: 163.1898 | M115: 109 | N115: 53.4672 | O115: 75.2442 | P115: 119.4 | Q115: 127.4172 | R115: 138.7494 | S115: 144.4104 | T115: 149.7756 | U115: 152.1726 | V115: 152.1726 | W115: 164.7798
A116: 110 | B116: 52.3668 | C116: 74.3172 | D116: 118.8708 | E116: 126.9798 | F116: 138.414 | G116: 144.126 | H116: 149.5422 | I116: 151.9596 | J116: 151.9596 | K116: 164.7096 | M116: 110 | N116: 53.9568 | O116: 75.9072 | P116: 120.4608 | Q116: 128.5698 | R116: 140.004 | S116: 145.716 | T116: 151.1322 | U116: 153.5496 | V116: 153.5496 | W116: 166.2996
A117: 111 | B117: 52.8258 | C117: 75.0006 | D117: 119.9622 | E117: 128.1426 | F117: 139.6788 | G117: 145.4316 | H117: 150.909 | I117: 153.3468 | J117: 153.3468 | K117: 166.2192 | M117: 111 | N117: 54.4158 | O117: 76.5906 | P117: 121.5522 | Q117: 129.7326 | R117: 141.2688 | S117: 147.0216 | T117: 152.499 | U117: 154.9368 | V117: 154.9368 | W117: 167.8092
A118: 112 | B118: 53.3154 | C118: 75.6738 | D118: 121.0434 | E118: 129.285 | F118: 140.9232 | G118: 146.7474 | H118: 152.2656 | I118: 154.7238 | J118: 154.7238 | K118: 167.7288 | M118: 112 | N118: 54.9054 | O118: 77.2638 | P118: 122.6334 | Q118: 130.875 | R118: 142.5132 | S118: 148.3374 | T118: 153.8556 | U118: 156.3138 | V118: 156.3138 | W118: 169.3188
A119: 113 | B119: 53.7948 | C119: 76.3572 | D119: 122.1348 | E119: 130.4376 | F119: 142.1982 | G119: 148.053 | H119: 153.6324 | I119: 156.111 | J119: 156.111 | K119: 169.2486 | M119: 113 | N119: 55.3848 | O119: 77.9472 | P119: 123.7248 | Q119: 132.0276 | R119: 143.7882 | S119: 149.643 | T119: 155.2224 | U119: 157.701 | V119: 157.701 | W119: 170.8386
A120: 114 | B120: 54.2742 | C120: 77.0304 | D120: 123.2058 | E120: 131.6004 | F120: 143.4528 | G120: 149.3688 | H120: 154.989 | I120: 157.488 | J120: 157.488 | K120: 170.7582 | M120: 114 | N120: 55.8642 | O120: 78.6204 | P120: 124.7958 | Q120: 133.1904 | R120: 145.0428 | S120: 150.9588 | T120: 156.579 | U120: 159.078 | V120: 159.078 | W120: 172.3482
A121: 115 | B121: 54.7434 | C121: 77.7036 | D121: 124.287 | E121: 132.753 | F121: 144.7074 | G121: 150.6744 | H121: 156.3456 | I121: 158.8752 | J121: 158.8752 | K121: 172.2678 | M121: 115 | N121: 56.3334 | O121: 79.2936 | P121: 125.877 | Q121: 134.343 | R121: 146.2974 | S121: 152.2644 | T121: 157.9356 | U121: 160.4652 | V121: 160.4652 | W121: 173.8578
A122: 116 | B122: 55.2126 | C122: 78.387 | D122: 125.3784 | E122: 133.9056 | F122: 145.962 | G122: 151.98 | H122: 157.7124 | I122: 160.2318 | J122: 160.2318 | K122: 173.7876 | M122: 116 | N122: 56.8026 | O122: 79.977 | P122: 126.9684 | Q122: 135.4956 | R122: 147.552 | S122: 153.57 | T122: 159.3024 | U122: 161.8218 | V122: 161.8218 | W122: 175.3776
A123: 117 | B123: 55.692 | C123: 79.05 | D123: 126.4392 | E123: 135.0684 | F123: 147.237 | G123: 153.2958 | H123: 159.0588 | I123: 161.619 | J123: 161.619 | K123: 175.2972 | M123: 117 | N123: 57.282 | O123: 80.64 | P123: 128.0292 | Q123: 136.6584 | R123: 148.827 | S123: 154.8858 | T123: 160.6488 | U123: 163.209 | V123: 163.209 | W123: 176.8872
A124: 118 | B124: 56.1612 | C124: 79.7334 | D124: 127.5306 | E124: 136.221 | F124: 148.4814 | G124: 154.6218 | H124: 160.4256 | I124: 162.996 | J124: 162.996 | K124: 176.817 | M124: 118 | N124: 57.7512 | O124: 81.3234 | P124: 129.1206 | Q124: 137.811 | R124: 150.0714 | S124: 156.2118 | T124: 162.0156 | U124: 164.586 | V124: 164.586 | W124: 178.407
A125: 119 | B125: 56.6406 | C125: 80.3964 | D125: 128.6118 | E125: 137.3634 | F125: 149.7462 | G125: 155.9376 | H125: 161.7822 | I125: 164.3832 | J125: 164.3832 | K125: 178.3164 | M125: 119 | N125: 58.2306 | O125: 81.9864 | P125: 130.2018 | Q125: 138.9534 | R125: 151.3362 | S125: 157.5276 | T125: 163.3722 | U125: 165.9732 | V125: 165.9732 | W125: 179.9064
A126: 120 | B126: 57.12 | C126: 81.0798 | D126: 129.7032 | E126: 138.5262 | F126: 151.0008 | G126: 157.2432 | H126: 163.149 | I126: 165.7602 | J126: 165.7602 | K126: 179.8362 | M126: 120 | N126: 58.71 | O126: 82.6698 | P126: 131.2932 | Q126: 140.1162 | R126: 152.5908 | S126: 158.8332 | T126: 164.739 | U126: 167.3502 | V126: 167.3502 | W126: 181.4262
A127: 121 | B127: 57.6096 | C127: 81.7632 | D127: 130.764 | E127: 139.6788 | F127: 152.2554 | G127: 158.5488 | H127: 164.4954 | I127: 167.1474 | J127: 167.1474 | K127: 181.356 | M127: 121 | N127: 59.1996 | O127: 83.3532 | P127: 132.354 | Q127: 141.2688 | R127: 153.8454 | S127: 160.1388 | T127: 166.0854 | U127: 168.7374 | V127: 168.7374 | W127: 182.946
A128: 122 | B128: 58.0686 | C128: 82.4364 | D128: 131.8554 | E128: 140.8314 | F128: 153.51 | G128: 159.8646 | H128: 165.8724 | I128: 168.5244 | J128: 168.5244 | K128: 182.8656 | M128: 122 | N128: 59.6586 | O128: 84.0264 | P128: 133.4454 | Q128: 142.4214 | R128: 155.1 | S128: 161.4546 | T128: 167.4624 | U128: 170.1144 | V128: 170.1144 | W128: 184.4556
A129: 123 | B129: 58.548 | C129: 83.1096 | D129: 132.9264 | E129: 141.9942 | F129: 154.7646 | G129: 161.1702 | H129: 167.2188 | I129: 169.9116 | J129: 169.9116 | K129: 184.3752 | M129: 123 | N129: 60.138 | O129: 84.6996 | P129: 134.5164 | Q129: 143.5842 | R129: 156.3546 | S129: 162.7602 | T129: 168.8088 | U129: 171.5016 | V129: 171.5016 | W129: 185.9652
A130: 124 | B130: 59.0274 | C130: 83.7726 | D130: 134.0178 | E130: 143.1366 | F130: 156.0396 | G130: 162.4758 | H130: 168.5754 | I130: 171.2988 | J130: 171.2988 | K130: 185.8848 | M130: 124 | N130: 60.6174 | O130: 85.3626 | P130: 135.6078 | Q130: 144.7266 | R130: 157.6296 | S130: 164.0658 | T130: 170.1654 | U130: 172.8888 | V130: 172.8888 | W130: 187.4748
A131: 125 | B131: 59.4966 | C131: 84.4662 | D131: 135.0888 | E131: 144.2892 | F131: 157.284 | G131: 163.7916 | H131: 169.9422 | I131: 172.6758 | J131: 172.6758 | K131: 187.4046 | M131: 125 | N131: 61.0866 | O131: 86.0562 | P131: 136.6788 | Q131: 145.8792 | R131: 158.874 | S131: 165.3816 | T131: 171.5322 | U131: 174.2658 | V131: 174.2658 | W131: 188.9946
A132: 126 | B132: 59.976 | C132: 85.1292 | D132: 136.1802 | E132: 145.4622 | F132: 158.5488 | G132: 165.0972 | H132: 171.2988 | I132: 174.063 | J132: 174.063 | K132: 188.9244 | M132: 126 | N132: 61.566 | O132: 86.7192 | P132: 137.7702 | Q132: 147.0522 | R132: 160.1388 | S132: 166.6872 | T132: 172.8888 | U132: 175.653 | V132: 175.653 | W132: 190.5144
A133: 127 | B133: 60.4554 | C133: 85.8126 | D133: 137.2512 | E133: 146.6046 | F133: 159.8034 | G133: 166.413 | H133: 172.6656 | I133: 175.44 | J133: 175.44 | K133: 190.4238 | M133: 127 | N133: 62.0454 | O133: 87.4026 | P133: 138.8412 | Q133: 148.1946 | R133: 161.3934 | S133: 168.003 | T133: 174.2556 | U133: 177.03 | V133: 177.03 | W133: 192.0138
A134: 128 | B134: 60.9348 | C134: 86.4858 | D134: 138.3426 | E134: 147.7572 | F134: 161.0682 | G134: 167.7186 | H134: 174.012 | I134: 176.8272 | J134: 176.8272 | K134: 191.9436 | M134: 128 | N134: 62.5248 | O134: 88.0758 | P134: 139.9326 | Q134: 149.3472 | R134: 162.6582 | S134: 169.3086 | T134: 175.602 | U134: 178.4172 | V134: 178.4172 | W134: 193.5336
A135: 129 | B135: 61.404 | C135: 87.1692 | D135: 139.4238 | E135: 148.92 | F135: 162.3126 | G135: 169.0242 | H135: 175.389 | I135: 178.2042 | J135: 178.2042 | K135: 193.4532 | M135: 129 | N135: 62.994 | O135: 88.7592 | P135: 141.0138 | Q135: 150.51 | R135: 163.9026 | S135: 170.6142 | T135: 176.979 | U135: 179.7942 | V135: 179.7942 | W135: 195.0432
A136: 130 | B136: 61.8834 | C136: 87.8424 | D136: 140.4846 | E136: 150.0726 | F136: 163.5774 | G136: 170.34 | H136: 176.7354 | I136: 179.5914 | J136: 179.5914 | K136: 194.973 | M136: 130 | N136: 63.4734 | O136: 89.4324 | P136: 142.0746 | Q136: 151.6626 | R136: 165.1674 | S136: 171.93 | T136: 178.3254 | U136: 181.1814 | V136: 181.1814 | W136: 196.563
A137: 131 | B137: 62.3526 | C137: 88.5258 | D137: 141.576 | E137: 151.215 | F137: 164.8422 | G137: 171.6456 | H137: 178.1022 | I137: 180.9684 | J137: 180.9684 | K137: 196.4826 | M137: 131 | N137: 63.9426 | O137: 90.1158 | P137: 143.166 | Q137: 152.805 | R137: 166.4322 | S137: 173.2356 | T137: 179.6922 | U137: 182.5584 | V137: 182.5584 | W137: 198.0726
A138: 132 | B138: 62.8218 | C138: 89.1888 | D138: 142.647 | E138: 152.3778 | F138: 166.0968 | G138: 172.9614 | H138: 179.4588 | I138: 182.3454 | J138: 182.3454 | K138: 197.9922 | M138: 132 | N138: 64.4118 | O138: 90.7788 | P138: 144.237 | Q138: 153.9678 | R138: 167.6868 | S138: 174.5514 | T138: 181.0488 | U138: 183.9354 | V138: 183.9354 | W138: 199.5822
A139: 133 | B139: 63.3012 | C139: 89.8518 | D139: 143.7384 | E139: 153.5304 | F139: 167.3514 | G139: 174.267 | H139: 180.8154 | I139: 183.7224 | J139: 183.7224 | K139: 199.512 | M139: 133 | N139: 64.8912 | O139: 91.4418 | P139: 145.3284 | Q139: 155.1204 | R139: 168.9414 | S139: 175.857 | T139: 182.4054 | U139: 185.3124 | V139: 185.3124 | W139: 201.102
A140: 134 | B140: 63.7908 | C140: 90.5454 | D140: 144.8094 | E140: 154.6728 | F140: 168.6264 | G140: 175.5726 | H140: 182.172 | I140: 185.1096 | J140: 185.1096 | K140: 201.0216 | M140: 134 | N140: 65.3808 | O140: 92.1354 | P140: 146.3994 | Q140: 156.2628 | R140: 170.2164 | S140: 177.1626 | T140: 183.762 | U140: 186.6996 | V140: 186.6996 | W140: 202.6116
A141: 135 | B141: 64.2702 | C141: 91.2186 | D141: 145.9008 | E141: 155.8356 | F141: 169.8708 | G141: 176.8884 | H141: 183.5388 | I141: 186.4866 | J141: 186.4866 | K141: 202.5312 | M141: 135 | N141: 65.8602 | O141: 92.8086 | P141: 147.4908 | Q141: 157.4256 | R141: 171.4608 | S141: 178.4784 | T141: 185.1288 | U141: 188.0766 | V141: 188.0766 | W141: 204.1212
A142: 136 | B142: 64.7394 | C142: 91.8918 | D142: 146.9616 | E142: 156.9984 | F142: 171.1356 | G142: 178.194 | H142: 184.8954 | I142: 187.8738 | J142: 187.8738 | K142: 204.051 | M142: 136 | N142: 66.3294 | O142: 93.4818 | P142: 148.5516 | Q142: 158.5884 | R142: 172.7256 | S142: 179.784 | T142: 186.4854 | U142: 189.4638 | V142: 189.4638 | W142: 205.641
A143: 137 | B143: 65.2188 | C143: 92.565 | D143: 148.053 | E143: 158.151 | F143: 172.38 | G143: 179.5098 | H143: 186.252 | I143: 189.2508 | J143: 189.2508 | K143: 205.5606 | M143: 137 | N143: 66.8088 | O143: 94.155 | P143: 149.643 | Q143: 159.741 | R143: 173.97 | S143: 181.0998 | T143: 187.842 | U143: 190.8408 | V143: 190.8408 | W143: 207.1506
A144: 138 | B144: 65.688 | C144: 93.2586 | D144: 149.1342 | E144: 159.3138 | F144: 173.655 | G144: 180.8256 | H144: 187.6188 | I144: 190.638 | J144: 190.638 | K144: 207.0804 | M144: 138 | N144: 67.278 | O144: 94.8486 | P144: 150.7242 | Q144: 160.9038 | R144: 175.245 | S144: 182.4156 | T144: 189.2088 | U144: 192.228 | V144: 192.228 | W144: 208.6704
A145: 139 | B145: 66.1572 | C145: 93.9216 | D145: 150.2256 | E145: 160.4562 | F145: 174.8994 | G145: 182.1312 | H145: 188.9754 | I145: 192.015 | J145: 192.015 | K145: 208.5798 | M145: 139 | N145: 67.7472 | O145: 95.5116 | P145: 151.8156 | Q145: 162.0462 | R145: 176.4894 | S145: 183.7212 | T145: 190.5654 | U145: 193.605 | V145: 193.605 | W145: 210.1698
A146: 140 | B146: 66.6366 | C146: 94.5846 | D146: 151.2864 | E146: 161.6088 | F146: 176.1642 | G146: 183.447 | H146: 190.3218 | I146: 193.4022 | J146: 193.4022 | K146: 210.0996 | M146: 140 | N146: 68.2266 | O146: 96.1746 | P146: 152.8764 | Q146: 163.1988 | R146: 177.7542 | S146: 185.037 | T146: 191.9118 | U146: 194.9922 | V146: 194.9922 | W146: 211.6896
A147: 141 | B147: 67.116 | C147: 95.268 | D147: 152.3778 | E147: 162.7716 | F147: 177.429 | G147: 184.7526 | H147: 191.6988 | I147: 194.7792 | J147: 194.7792 | K147: 211.6194 | M147: 141 | N147: 68.706 | O147: 96.858 | P147: 153.9678 | Q147: 164.3616 | R147: 179.019 | S147: 186.3426 | T147: 193.2888 | U147: 196.3692 | V147: 196.3692 | W147: 213.2094
A148: 142 | B148: 67.5954 | C148: 95.9412 | D148: 153.4692 | E148: 163.914 | F148: 178.6836 | G148: 186.0582 | H148: 193.0452 | I148: 196.1664 | J148: 196.1664 | K148: 213.129 | M148: 142 | N148: 69.1854 | O148: 97.5312 | P148: 155.0592 | Q148: 165.504 | R148: 180.2736 | S148: 187.6482 | T148: 194.6352 | U148: 197.7564 | V148: 197.7564 | W148: 214.719
A149: 143 | B149: 68.0646 | C149: 96.6246 | D149: 154.5504 | E149: 165.0666 | F149: 179.9382 | G149: 187.374 | H149: 194.4222 | I149: 197.5434 | J149: 197.5434 | K149: 214.6386 | M149: 143 | N149: 69.6546 | O149: 98.2146 | P149: 156.1404 | Q149: 166.6566 | R149: 181.5282 | S149: 188.964 | T149: 196.0122 | U149: 199.1334 | V149: 199.1334 | W149: 216.2286
A150: 144 | B150: 68.544 | C150: 97.2978 | D150: 155.6214 | E150: 166.2294 | F150: 181.2132 | G150: 188.6796 | H150: 195.7686 | I150: 198.9306 | J150: 198.9306 | K150: 216.1482 | M150: 144 | N150: 70.134 | O150: 98.8878 | P150: 157.2114 | Q150: 167.8194 | R150: 182.8032 | S150: 190.2696 | T150: 197.3586 | U150: 200.5206 | V150: 200.5206 | W150: 217.7382
A151: 145 | B151: 69.0336 | C151: 97.9812 | D151: 156.7026 | E151: 167.382 | F151: 182.4576 | G151: 189.9954 | H151: 197.1456 | I151: 200.3076 | J151: 200.3076 | K151: 217.668 | M151: 145 | N151: 70.6236 | O151: 99.5712 | P151: 158.2926 | Q151: 168.972 | R151: 184.0476 | S151: 191.5854 | T151: 198.7356 | U151: 201.8976 | V151: 201.8976 | W151: 219.258
A152: 146 | B152: 69.4824 | C152: 98.6442 | D152: 157.794 | E152: 168.5244 | F152: 183.702 | G152: 191.301 | H152: 198.492 | I152: 201.6948 | J152: 201.6948 | K152: 219.1878 | M152: 146 | N152: 71.0724 | O152: 100.2342 | P152: 159.384 | Q152: 170.1144 | R152: 185.292 | S152: 192.891 | T152: 200.082 | U152: 203.2848 | V152: 203.2848 | W152: 220.7778
A153: 147 | B153: 69.972 | C153: 99.3174 | D153: 158.8752 | E153: 169.6974 | F153: 184.9668 | G153: 192.6066 | H153: 199.8384 | I153: 203.0718 | J153: 203.0718 | K153: 220.6872 | M153: 147 | N153: 71.562 | O153: 100.9074 | P153: 160.4652 | Q153: 171.2874 | R153: 186.5568 | S153: 194.1966 | T153: 201.4284 | U153: 204.6618 | V153: 204.6618 | W153: 222.2772
A154: 148 | B154: 70.4514 | C154: 100.0008 | D154: 159.9462 | E154: 170.85 | F154: 186.2316 | G154: 193.9224 | H154: 201.2154 | I154: 204.459 | J154: 204.459 | K154: 222.207 | M154: 148 | N154: 72.0414 | O154: 101.5908 | P154: 161.5362 | Q154: 172.44 | R154: 187.8216 | S154: 195.5124 | T154: 202.8054 | U154: 206.049 | V154: 206.049 | W154: 223.797
A155: 149 | B155: 70.9206 | C155: 100.674 | D155: 161.0274 | E155: 171.9924 | F155: 187.4862 | G155: 195.228 | H155: 202.5618 | I155: 205.8156 | J155: 205.8156 | K155: 223.7166 | M155: 149 | N155: 72.5106 | O155: 102.264 | P155: 162.6174 | Q155: 173.5824 | R155: 189.0762 | S155: 196.818 | T155: 204.1518 | U155: 207.4056 | V155: 207.4056 | W155: 225.3066
A156: 150 | B156: 71.4 | C156: 101.3472 | D156: 162.1188 | E156: 173.1552 | F156: 188.7408 | G156: 196.5336 | H156: 203.9286 | I156: 207.2028 | J156: 207.2028 | K156: 225.2364 | M156: 150 | N156: 72.99 | O156: 102.9372 | P156: 163.7088 | Q156: 174.7452 | R156: 190.3308 | S156: 198.1236 | T156: 205.5186 | U156: 208.7928 | V156: 208.7928 | W156: 226.8264
A157: 151+ | B157: 0.4687 | C157: 0.6623 | D157: 1.0597 | E157: 1.131 | F157: 1.2329 | G157: 1.2838 | H157: 1.3348 | I157: 1.3551 | J157: 1.3551 | K157: 1.4672 | M157: 151+ | N157: 2.0276 | O157: 2.2212 | P157: 2.6186 | Q157: 2.6899 | R157: 2.7918 | S157: 2.8427 | T157: 2.8937 | U157: 2.9141 | V157: 2.9141 | W157: 3.0261

Sheet Sheet1 (hidden)
A1: UPS Next Day Air Service | M1: UPS Next Day Air Service | Q1: CURRENT | AA1: UPS Next Day Air Service | AM1: UPS Next Day Saver Service | AV1: UPS Next Day Saver Service | AZ1: Current | BE1: UPS Next Day Saver Service
A2: - Commercial | M2: - Commercial | AA2: -Residential | AM2: - Commercial | AV2: - Commercial | BE2: - Residential
A3: (Per Package Rates from 48 State Origin) | M3: (Per Package Rates from 48 State Origin) | AA3: (Per Package Rates from 48 State Origin) | AM3: (Per Package Rates from 48 State Origin) | AV3: (Per Package Rates from 48 State Origin) | BE3: (Per Package Rates from 48 State Origin)
A4: Rates below do not include Residential Surcharge | M4: Rates below do not include Residential Surcharge | AM4: Rates below do not include Residential Surcharge | AV4: Rates below do not include Residential Surcharge
AT5: 0.05 | BL5: 0.05
AO6: 5.614 | AP6: 6.454 | AQ6: 6.944 | AR6: 7 | AS6: 7.7 | AT6: 7.826 | BH6: 0.376 | BI6: 0.256 | BJ6: 0.24 | BK6: 0 | BL6: 0.244
A7: Lbs. | B7: Zone 102 | C7: Zone 103 | D7: Zone 104 | E7: Zone 105 | F7: Zone 106 | G7: Zone 107 | H7: Zone 108 | I7: Zone 124 | J7: Zone 125 | K7: Zone 126 | M7: Lbs. | N7: Zone 102 | O7: Zone 103 | P7: Zone 104 | Q7: Zone 105 | R7: Zone 106 | S7: Zone 107 | T7: Zone 108 | U7: Zone 124 | V7: Zone 125 | W7: Zone 126 | AA7: Lbs. | AB7: Zone 102 | AC7: Zone 103 | AD7: Zone 104 | AE7: Zone 105 | AF7: Zone 106 | AG7: Zone 107 | AH7: Zone 108 | AI7: Zone 124 | AJ7: Zone 125 | AK7: Zone 126 | AM7: Lbs. | AN7: Zone 132 | AO7: Zone 133 | AP7: Zone 134 | AQ7: Zone 135 | AR7: Zone 136 | AS7: Zone 137 | AT7: Zone 138 | AV7: Lbs. | AW7: Zone 132 | AX7: Zone 133 | AY7: Zone 134 | AZ7: Zone 135 | BA7: Zone 136 | BB7: Zone 137 | BC7: Zone 138 | BE7: Lbs. | BF7: Zone 132 | BG7: Zone 133 | BH7: Zone 134 | BI7: Zone 135 | BJ7: Zone 136 | BK7: Zone 137 | BL7: Zone 138
A8: Letter | B8: 5.6 | C8: 5.6 | D8: 6.454 | E8: 6.944 | F8: 7 | G8: 7.7 | H8: 7.826 | I8: 8.344 | J8: 8.344 | K8: 8.764 | M8: Letter | N8: 5.6 | O8: 5.6 | P8: 6.454 | Q8: 6.944 | R8: 7 | S8: 7.7 | T8: 7.826 | U8: 8.344 | V8: 8.344 | W8: 8.764 | AA8: Letter | AB8: =B8+1.5 -> 7.1 | AC8: 7.1 | AD8: 7.954 | AE8: 8.444 | AF8: 8.5 | AG8: 9.2 | AH8: 9.326 | AI8: 9.844 | AJ8: 9.844 | AK8: 10.264 | AM8: Letter | AN8: 5.59 | AO8: 5.59 | AP8: =AP6-$AT$5 -> 6.404 | AQ8: =AQ6-$AT$5 -> 6.894 | AR8: =AR6-$AT$5 -> 6.95 | AS8: =AS6-$AT$5 -> 7.65 | AT8: =AT6-$AT$5 -> 7.776 | AV8: Letter | AW8: 5.45 | AX8: 5.45 | AY8: 6.66 | AZ8: 7.02 | BA8: 7.065 | BB8: 7.515 | BC8: 7.875 | BE8: Letter | BF8: =AN8+1.5 -> 7.09 | BG8: 7.09 | BH8: 7.904 | BI8: 8.394 | BJ8: 8.45 | BK8: 9.15 | BL8: 9.276
A9: 1 | B9: 5.614 | C9: 7.532 | D9: 9.618 | E9: 10.682 | F9: 11.592 | G9: 12.39 | H9: 12.726 | I9: 13.104 | J9: 13.104 | K9: 13.118 | M9: 1 | N9: 5.614 | O9: 7.532 | P9: 9.618 | Q9: 10.682 | R9: 11.592 | S9: 12.39 | T9: 12.726 | U9: 13.104 | V9: 13.104 | W9: 13.118 | AA9: 1 | AB9: 7.114 | AC9: 9.032 | AD9: 11.118 | AE9: 12.182 | AF9: 13.092 | AG9: 13.89 | AH9: 14.226 | AI9: 14.604 | AJ9: 14.604 | AK9: 14.618 | AM9: 1 | AN9: =AO6-AT5 -> 5.564 | AO9: 5.64 | AP9: 6.87 | AQ9: 7.28 | AR9: 7.33 | AS9: 7.79 | AT9: 8.2 | AV9: 1 | AW9: 5.5 | AX9: 5.5 | AY9: 6.7 | AZ9: 7.1 | BA9: 7.15 | BB9: 7.6 | BC9: 8 | BE9: 1 | BF9: 7.064 | BG9: 7.14 | BH9: 8.37 | BI9: 8.78 | BJ9: 8.83 | BK9: 9.29 | BL9: 9.7
A10: 2 | B10: 5.726 | C10: 8.134 | D10: 10.836 | E10: 11.816 | F10: 13.104 | G10: 13.65 | H10: 14.21 | I10: 14.308 | J10: 14.308 | K10: 14.322 | M10: 2 | N10: 5.726 | O10: 8.134 | P10: 10.836 | Q10: 11.816 | R10: 13.104 | S10: 13.65 | T10: 14.21 | U10: 14.308 | V10: 14.308 | W10: 14.322 | AA10: 2 | AB10: 7.226 | AC10: 9.634 | AD10: 12.336 | AE10: 13.316 | AF10: 14.604 | AG10: 15.15 | AH10: 15.71 | AI10: 15.808 | AJ10: 15.808 | AK10: 15.822 | AM10: 2 | AN10: 5.64 | AO10: 6.41 | AP10: 8.03 | AQ10: 8.9 | AR10: 9.67 | AS10: 10.31 | AT10: 10.6 | AV10: 2 | AW10: 5.5 | AX10: 6.2505 | AY10: 7.8375 | AZ10: 8.6875 | BA10: 9.4375 | BB10: 10.0625 | BC10: 10.3375 | BE10: 2 | BF10: 7.14 | BG10: 7.91 | BH10: 9.53 | BI10: 10.4 | BJ10: 11.17 | BK10: 11.81 | BL10: 12.1
A11: 3 | B11: 6.454 | C11: 8.708 | D11: 11.998 | E11: 13.09 | F11: 14.518 | G11: 15.008 | H11: 15.54 | I11: 15.974 | J11: 15.974 | K11: 17.92 | M11: 3 | N11: 6.454 | O11: 8.708 | P11: 11.998 | Q11: 13.09 | R11: 14.518 | S11: 15.008 | T11: 15.54 | U11: 15.974 | V11: 15.974 | W11: 17.92 | AA11: 3 | AB11: 7.954 | AC11: 10.208 | AD11: 13.498 | AE11: 14.59 | AF11: 16.018 | AG11: 16.508 | AH11: 17.04 | AI11: 17.474 | AJ11: 17.474 | AK11: 19.42 | AM11: 3 | AN11: 5.64 | AO11: 6.78 | AP11: 9.06 | AQ11: 9.85 | AR11: 10.92 | AS11: 11.35 | AT11: 11.83 | AV11: 3 | AW11: 5.5 | AX11: 6.615 | AY11: 8.8375 | AZ11: 9.6125 | BA11: 10.65 | BB11: 11.075 | BC11: 11.5375 | BE11: 3 | BF11: 7.14 | BG11: 8.28 | BH11: 10.56 | BI11: 11.35 | BJ11: 12.42 | BK11: 12.85 | BL11: 13.33
A12: 4 | B12: 6.958 | C12: 9.128 | D12: 13.006 | E12: 14.322 | F12: 15.848 | G12: 16.338 | H12: 16.982 | I12: 17.444 | J12: 17.444 | K12: 19.544 | M12: 4 | N12: 6.958 | O12: 9.128 | P12: 13.006 | Q12: 14.322 | R12: 15.848 | S12: 16.338 | T12: 16.982 | U12: 17.444 | V12: 17.444 | W12: 19.544 | AA12: 4 | AB12: 8.458 | AC12: 10.628 | AD12: 14.506 | AE12: 15.822 | AF12: 17.348 | AG12: 17.838 | AH12: 18.482 | AI12: 18.944 | AJ12: 18.944 | AK12: 21.044 | AM12: 4 | AN12: 5.64 | AO12: 7.18 | AP12: 10.03 | AQ12: 10.92 | AR12: 12.11 | AS12: 12.49 | AT12: 12.92 | AV12: 4 | AW12: 5.5 | AX12: 7.0065 | AY12: 9.7875 | AZ12: 10.65 | BA12: 11.8125 | BB12: 12.1875 | BC12: 12.6 | BE12: 4 | BF12: 7.14 | BG12: 8.68 | BH12: 11.53 | BI12: 12.42 | BJ12: 13.61 | BK12: 13.99 | BL12: 14.42
A13: 5 | B13: 7.028 | C13: 9.506 | D13: 14.224 | E13: 15.666 | F13: 17.192 | G13: 17.696 | H13: 18.326 | I13: 18.872 | J13: 18.872 | K13: 21.042 | M13: 5 | N13: 7.028 | O13: 9.506 | P13: 14.224 | Q13: 15.666 | R13: 17.192 | S13: 17.696 | T13: 18.326 | U13: 18.872 | V13: 18.872 | W13: 21.042 | AA13: 5 | AB13: 8.528 | AC13: 11.006 | AD13: 15.724 | AE13: 17.166 | AF13: 18.692 | AG13: 19.196 | AH13: 19.826 | AI13: 20.372 | AJ13: 20.372 | AK13: 22.542 | AM13: 5 | AN13: 5.84 | AO13: 7.65 | AP13: 10.88 | AQ13: 11.97 | AR13: 13.21 | AS13: 13.59 | AT13: 14.13 | AV13: 5 | AW13: 5.697 | AX13: 7.4655 | AY13: 10.6125 | AZ13: 11.675 | BA13: 12.8875 | BB13: 13.2625 | BC13: 13.7875 | BE13: 5 | BF13: 7.34 | BG13: 9.15 | BH13: 12.38 | BI13: 13.47 | BJ13: 14.71 | BK13: 15.09 | BL13: 15.63
A14: 6 | B14: 7.784 | C14: 10.038 | D14: 15.386 | E14: 16.884 | F14: 18.62 | G14: 18.942 | H14: 19.754 | I14: 20.216 | J14: 20.216 | K14: 22.652 | M14: 6 | N14: 7.784 | O14: 10.038 | P14: 15.386 | Q14: 16.884 | R14: 18.62 | S14: 18.942 | T14: 19.754 | U14: 20.216 | V14: 20.216 | W14: 22.652 | AA14: 6 | AB14: 9.284 | AC14: 11.538 | AD14: 16.886 | AE14: 18.384 | AF14: 20.12 | AG14: 20.442 | AH14: 21.254 | AI14: 21.716 | AJ14: 21.716 | AK14: 24.152 | AM14: 6 | AN14: 6.01 | AO14: 7.76 | AP14: 11.89 | AQ14: 13 | AR14: 14.11 | AS14: 14.49 | AT14: 15 | AV14: 6 | AW14: 5.859 | AX14: 7.5735 | AY14: 11.6 | AZ14: 12.6875 | BA14: 13.7625 | BB14: 14.1375 | BC14: 14.6375 | BE14: 6 | BF14: 7.51 | BG14: 9.26 | BH14: 13.39 | BI14: 14.5 | BJ14: 15.61 | BK14: 15.99 | BL14: 16.5
A15: 7 | B15: 8.148 | C15: 10.542 | D15: 16.45 | E15: 18.144 | F15: 19.936 | G15: 20.398 | H15: 21.098 | I15: 21.56 | J15: 21.56 | K15: 24.248 | M15: 7 | N15: 8.148 | O15: 10.542 | P15: 16.45 | Q15: 18.144 | R15: 19.936 | S15: 20.398 | T15: 21.098 | U15: 21.56 | V15: 21.56 | W15: 24.248 | AA15: 7 | AB15: 9.648 | AC15: 12.042 | AD15: 17.95 | AE15: 19.644 | AF15: 21.436 | AG15: 21.898 | AH15: 22.598 | AI15: 23.06 | AJ15: 23.06 | AK15: 25.748 | AM15: 7 | AN15: 6.35 | AO15: 8.73 | AP15: 12.86 | AQ15: 13.86 | AR15: 15.29 | AS15: 15.52 | AT15: 16.18 | AV15: 7 | AW15: 6.1965 | AX15: 8.5185 | AY15: 12.55 | AZ15: 13.525 | BA15: 14.9125 | BB15: 15.1375 | BC15: 15.7875 | BE15: 7 | BF15: 7.85 | BG15: 10.23 | BH15: 14.36 | BI15: 15.36 | BJ15: 16.79 | BK15: 17.02 | BL15: 17.68
A16: 8 | B16: 8.218 | C16: 11.06 | D16: 17.514 | E16: 19.306 | F16: 21.266 | G16: 21.826 | H16: 22.456 | I16: 22.876 | J16: 22.876 | K16: 25.452 | M16: 8 | N16: 8.218 | O16: 11.06 | P16: 17.514 | Q16: 19.306 | R16: 21.266 | S16: 21.826 | T16: 22.456 | U16: 22.876 | V16: 22.876 | W16: 25.452 | AA16: 8 | AB16: 9.718 | AC16: 12.56 | AD16: 19.014 | AE16: 20.806 | AF16: 22.766 | AG16: 23.326 | AH16: 23.956 | AI16: 24.376 | AJ16: 24.376 | AK16: 26.952 | AM16: 8 | AN16: 6.48 | AO16: 9.11 | AP16: 13.76 | AQ16: 15.05 | AR16: 16.35 | AS16: 16.69 | AT16: 17.28 | AV16: 8 | AW16: 6.318 | AX16: 8.883 | AY16: 13.425 | AZ16: 14.6875 | BA16: 15.95 | BB16: 16.2875 | BC16: 16.8625 | BE16: 8 | BF16: 7.98 | BG16: 10.61 | BH16: 15.26 | BI16: 16.55 | BJ16: 17.85 | BK16: 18.19 | BL16: 18.78
A17: 9 | B17: 8.316 | C17: 11.466 | D17: 18.508 | E17: 20.552 | F17: 22.596 | G17: 23.254 | H17: 23.898 | I17: 24.332 | J17: 24.332 | K17: 27.118 | M17: 9 | N17: 8.316 | O17: 11.466 | P17: 18.508 | Q17: 20.552 | R17: 22.596 | S17: 23.254 | T17: 23.898 | U17: 24.332 | V17: 24.332 | W17: 27.118 | AA17: 9 | AB17: 9.816 | AC17: 12.966 | AD17: 20.008 | AE17: 22.052 | AF17: 24.096 | AG17: 24.754 | AH17: 25.398 | AI17: 25.832 | AJ17: 25.832 | AK17: 28.618 | AM17: 9 | AN17: 6.81 | AO17: 9.37 | AP17: 14.66 | AQ17: 16.03 | AR17: 17.46 | AS17: 17.87 | AT17: 18.39 | AV17: 9 | AW17: 6.642 | AX17: 9.1395 | AY17: 14.3 | AZ17: 15.6375 | BA17: 17.0375 | BB17: 17.4375 | BC17: 17.9375 | BE17: 9 | BF17: 8.31 | BG17: 10.87 | BH17: 16.16 | BI17: 17.53 | BJ17: 18.96 | BK17: 19.37 | BL17: 19.89
A18: 10 | B18: 8.33 | C18: 11.48 | D18: 19.362 | E18: 21.63 | F18: 22.61 | G18: 23.268 | H18: 24.528 | I18: 25.76 | J18: 25.76 | K18: 27.132 | M18: 10 | N18: 8.33 | O18: 11.48 | P18: 19.362 | Q18: 21.63 | R18: 22.61 | S18: 23.268 | T18: 24.528 | U18: 25.76 | V18: 25.76 | W18: 27.132 | AA18: 10 | AB18: 9.83 | AC18: 12.98 | AD18: 20.862 | AE18: 23.13 | AF18: 24.11 | AG18: 24.768 | AH18: 26.028 | AI18: 27.26 | AJ18: 27.26 | AK18: 28.632 | AM18: 10 | AN18: 7.17 | AO18: 9.78 | AP18: 15.48 | AQ18: 17.07 | AR18: 18.54 | AS18: 19.04 | AT18: 19.56 | AV18: 10 | AW18: 6.993 | AX18: 9.5445 | AY18: 15.1 | AZ18: 16.65 | BA18: 18.0875 | BB18: 18.575 | BC18: 19.0875 | BE18: 10 | BF18: 8.67 | BG18: 11.28 | BH18: 16.98 | BI18: 18.57 | BJ18: 20.04 | BK18: 20.54 | BL18: 21.06
A19: 11 | B19: 9.198 | C19: 12.586 | D19: 20.384 | E19: 22.792 | F19: 25.256 | G19: 26.068 | H19: 26.684 | I19: 27.202 | J19: 27.202 | K19: 29.988 | M19: 11 | N19: 9.198 | O19: 12.586 | P19: 20.384 | Q19: 22.792 | R19: 25.256 | S19: 26.068 | T19: 26.684 | U19: 27.202 | V19: 27.202 | W19: 29.988 | AA19: 11 | AB19: 10.698 | AC19: 14.086 | AD19: 21.884 | AE19: 24.292 | AF19: 26.756 | AG19: 27.568 | AH19: 28.184 | AI19: 28.702 | AJ19: 28.702 | AK19: 31.488 | AM19: 11 | AN19: 7.32 | AO19: 10.17 | AP19: 16.2 | AQ19: 17.96 | AR19: 19.64 | AS19: 20.15 | AT19: 20.73 | AV19: 11 | AW19: 7.1415 | AX19: 9.9225 | AY19: 15.8 | AZ19: 17.525 | BA19: 19.1625 | BB19: 19.6625 | BC19: 20.225 | BE19: 11 | BF19: 8.82 | BG19: 11.67 | BH19: 17.7 | BI19: 19.46 | BJ19: 21.14 | BK19: 21.65 | BL19: 22.23
A20: 12 | B20: 9.576 | C20: 13.104 | D20: 21.476 | E20: 23.856 | F20: 26.502 | G20: 27.482 | H20: 28.112 | I20: 28.532 | J20: 28.532 | K20: 30.688 | M20: 12 | N20: 9.576 | O20: 13.104 | P20: 21.476 | Q20: 23.856 | R20: 26.502 | S20: 27.482 | T20: 28.112 | U20: 28.532 | V20: 28.532 | W20: 30.688 | AA20: 12 | AB20: 11.076 | AC20: 14.604 | AD20: 22.976 | AE20: 25.356 | AF20: 28.002 | AG20: 28.982 | AH20: 29.612 | AI20: 30.032 | AJ20: 30.032 | AK20: 32.188 | AM20: 12 | AN20: 7.58 | AO20: 10.61 | AP20: 17.04 | AQ20: 18.95 | AR20: 20.73 | AS20: 21.33 | AT20: 21.85 | AV20: 12 | AW20: 7.398 | AX20: 10.3545 | AY20: 16.625 | AZ20: 18.4875 | BA20: 20.225 | BB20: 20.8125 | BC20: 21.3125 | BE20: 12 | BF20: 9.08 | BG20: 12.11 | BH20: 18.54 | BI20: 20.45 | BJ20: 22.23 | BK20: 22.83 | BL20: 23.35
A21: 13 | B21: 9.716 | C21: 13.594 | D21: 22.498 | E21: 24.948 | F21: 27.566 | G21: 28.938 | H21: 29.47 | I21: 29.96 | J21: 29.96 | K21: 31.57 | M21: 13 | N21: 9.716 | O21: 13.594 | P21: 22.498 | Q21: 24.948 | R21: 27.566 | S21: 28.938 | T21: 29.47 | U21: 29.96 | V21: 29.96 | W21: 31.57 | AA21: 13 | AB21: 11.216 | AC21: 15.094 | AD21: 23.998 | AE21: 26.448 | AF21: 29.066 | AG21: 30.438 | AH21: 30.97 | AI21: 31.46 | AJ21: 31.46 | AK21: 33.07 | AM21: 13 | AN21: 7.83 | AO21: 11.14 | AP21: 17.96 | AQ21: 19.82 | AR21: 21.74 | AS21: 22.5 | AT21: 23.02 | AV21: 13 | AW21: 7.641 | AX21: 10.8675 | AY21: 17.525 | AZ21: 19.3375 | BA21: 21.2125 | BB21: 21.95 | BC21: 22.4625 | BE21: 13 | BF21: 9.33 | BG21: 12.64 | BH21: 19.46 | BI21: 21.32 | BJ21: 23.24 | BK21: 24 | BL21: 24.52
A22: 14 | B22: 10.108 | C22: 14.112 | D22: 23.66 | E22: 25.998 | F22: 28.644 | G22: 30.198 | H22: 30.912 | I22: 31.304 | J22: 31.304 | K22: 32.466 | M22: 14 | N22: 10.108 | O22: 14.112 | P22: 23.66 | Q22: 25.998 | R22: 28.644 | S22: 30.198 | T22: 30.912 | U22: 31.304 | V22: 31.304 | W22: 32.466 | AA22: 14 | AB22: 11.608 | AC22: 15.612 | AD22: 25.16 | AE22: 27.498 | AF22: 30.144 | AG22: 31.698 | AH22: 32.412 | AI22: 32.804 | AJ22: 32.804 | AK22: 33.966 | AM22: 14 | AN22: 7.94 | AO22: 11.71 | AP22: 18.81 | AQ22: 20.72 | AR22: 22.63 | AS22: 23.68 | AT22: 24.14 | AV22: 14 | AW22: 7.749 | AX22: 11.421 | AY22: 18.35 | AZ22: 20.2125 | BA22: 22.075 | BB22: 23.1 | BC22: 23.55 | BE22: 14 | BF22: 9.44 | BG22: 13.21 | BH22: 20.31 | BI22: 22.22 | BJ22: 24.13 | BK22: 25.18 | BL22: 25.64
A23: 15 | B23: 10.234 | C23: 14.49 | D23: 24.458 | E23: 27.048 | F23: 28.658 | G23: 31.178 | H23: 32.088 | I23: 32.256 | J23: 32.256 | K23: 33.292 | M23: 15 | N23: 10.234 | O23: 14.49 | P23: 24.458 | Q23: 27.048 | R23: 28.658 | S23: 31.178 | T23: 32.088 | U23: 32.256 | V23: 32.256 | W23: 33.292 | AA23: 15 | AB23: 11.734 | AC23: 15.99 | AD23: 25.958 | AE23: 28.548 | AF23: 30.158 | AG23: 32.678 | AH23: 33.588 | AI23: 33.756 | AJ23: 33.756 | AK23: 34.792 | AM23: 15 | AN23: 8.22 | AO23: 12.15 | AP23: 19.78 | AQ23: 21.6 | AR23: 23.5 | AS23: 24.72 | AT23: 25.32 | AV23: 15 | AW23: 8.019 | AX23: 11.853 | AY23: 19.3 | AZ23: 21.075 | BA23: 22.925 | BB23: 24.1125 | BC23: 24.7 | BE23: 15 | BF23: 9.72 | BG23: 13.65 | BH23: 21.28 | BI23: 23.1 | BJ23: 25 | BK23: 26.22 | BL23: 26.82
A24: 16 | B24: 10.64 | C24: 15.12 | D24: 25.634 | E24: 28.056 | F24: 30.674 | G24: 31.99 | H24: 32.886 | I24: 33.544 | J24: 33.544 | K24: 34.776 | M24: 16 | N24: 10.64 | O24: 15.12 | P24: 25.634 | Q24: 28.056 | R24: 30.674 | S24: 31.99 | T24: 32.886 | U24: 33.544 | V24: 33.544 | W24: 34.776 | AA24: 16 | AB24: 12.14 | AC24: 16.62 | AD24: 27.134 | AE24: 29.556 | AF24: 32.174 | AG24: 33.49 | AH24: 34.386 | AI24: 35.044 | AJ24: 35.044 | AK24: 36.276 | AM24: 16 | AN24: 8.55 | AO24: 12.58 | AP24: 20.46 | AQ24: 22.47 | AR24: 24.37 | AS24: 25.52 | AT24: 26.28 | AV24: 16 | AW24: 8.343 | AX24: 12.2715 | AY24: 19.9625 | AZ24: 21.925 | BA24: 23.775 | BB24: 24.9 | BC24: 25.6375 | BE24: 16 | BF24: 10.05 | BG24: 14.08 | BH24: 21.96 | BI24: 23.97 | BJ24: 25.87 | BK24: 27.02 | BL24: 27.78
A25: 17 | B25: 11.074 | C25: 15.624 | D25: 26.362 | E25: 28.938 | F25: 31.374 | G25: 32.704 | H25: 33.614 | I25: 34.286 | J25: 34.286 | K25: 35.77 | M25: 17 | N25: 11.074 | O25: 15.624 | P25: 26.362 | Q25: 28.938 | R25: 31.374 | S25: 32.704 | T25: 33.614 | U25: 34.286 | V25: 34.286 | W25: 35.77 | AA25: 17 | AB25: 12.574 | AC25: 17.124 | AD25: 27.862 | AE25: 30.438 | AF25: 32.874 | AG25: 34.204 | AH25: 35.114 | AI25: 35.786 | AJ25: 35.786 | AK25: 37.27 | AM25: 17 | AN25: 8.72 | AO25: 12.87 | AP25: 21.45 | AQ25: 23.31 | AR25: 25.18 | AS25: 26.19 | AT25: 26.94 | AV25: 17 | AW25: 8.505 | AX25: 12.555 | AY25: 20.925 | AZ25: 22.7375 | BA25: 24.5625 | BB25: 25.55 | BC25: 26.2875 | BE25: 17 | BF25: 10.22 | BG25: 14.37 | BH25: 22.95 | BI25: 24.81 | BJ25: 26.68 | BK25: 27.69 | BL25: 28.44
A26: 18 | B26: 11.452 | C26: 16.128 | D26: 27.16 | E26: 29.554 | F26: 32.074 | G26: 33.432 | H26: 34.496 | I26: 35.14 | J26: 35.14 | K26: 37.226 | M26: 18 | N26: 11.452 | O26: 16.128 | P26: 27.16 | Q26: 29.554 | R26: 32.074 | S26: 33.432 | T26: 34.496 | U26: 35.14 | V26: 35.14 | W26: 37.226 | AA26: 18 | AB26: 12.952 | AC26: 17.628 | AD26: 28.66 | AE26: 31.054 | AF26: 33.574 | AG26: 34.932 | AH26: 35.996 | AI26: 36.64 | AJ26: 36.64 | AK26: 38.726 | AM26: 18 | AN26: 9.17 | AO26: 13.1 | AP26: 22.05 | AQ26: 24.04 | AR26: 25.77 | AS26: 26.78 | AT26: 27.52 | AV26: 18 | AW26: 8.9505 | AX26: 12.7845 | AY26: 21.5125 | AZ26: 23.45 | BA26: 25.1375 | BB26: 26.125 | BC26: 26.85 | BE26: 18 | BF26: 10.67 | BG26: 14.6 | BH26: 23.55 | BI26: 25.54 | BJ26: 27.27 | BK26: 28.28 | BL26: 29.02
A27: 19 | B27: 11.676 | C27: 16.562 | D27: 27.79 | E27: 30.184 | F27: 32.802 | G27: 34.174 | H27: 35.406 | I27: 36.302 | J27: 36.302 | K27: 38.234 | M27: 19 | N27: 11.676 | O27: 16.562 | P27: 27.79 | Q27: 30.184 | R27: 32.802 | S27: 34.174 | T27: 35.406 | U27: 36.302 | V27: 36.302 | W27: 38.234 | AA27: 19 | AB27: 13.176 | AC27: 18.062 | AD27: 29.29 | AE27: 31.684 | AF27: 34.302 | AG27: 35.674 | AH27: 36.906 | AI27: 37.802 | AJ27: 37.802 | AK27: 39.734 | AM27: 19 | AN27: 9.44 | AO27: 13.45 | AP27: 22.72 | AQ27: 24.55 | AR27: 26.33 | AS27: 27.37 | AT27: 28.26 | AV27: 19 | AW27: 9.207 | AX27: 13.122 | AY27: 22.1625 | AZ27: 23.95 | BA27: 25.6875 | BB27: 26.7 | BC27: 27.575 | BE27: 19 | BF27: 10.94 | BG27: 14.95 | BH27: 24.22 | BI27: 26.05 | BJ27: 27.83 | BK27: 28.87 | BL27: 29.76
A28: 20 | B28: 11.69 | C28: 16.772 | D28: 28.504 | E28: 30.912 | F28: 33.516 | G28: 34.972 | H28: 36.218 | I28: 37.016 | J28: 37.016 | K28: 40.768 | M28: 20 | N28: 11.69 | O28: 16.772 | P28: 28.504 | Q28: 30.912 | R28: 33.516 | S28: 34.972 | T28: 36.218 | U28: 37.016 | V28: 37.016 | W28: 40.768 | AA28: 20 | AB28: 13.19 | AC28: 18.272 | AD28: 30.004 | AE28: 32.412 | AF28: 35.016 | AG28: 36.472 | AH28: 37.718 | AI28: 38.516 | AJ28: 38.516 | AK28: 42.268 | AM28: 20 | AN28: 9.69 | AO28: 13.82 | AP28: 23.25 | AQ28: 25.06 | AR28: 26.93 | AS28: 27.97 | AT28: 28.99 | AV28: 20 | AW28: 9.45 | AX28: 13.4865 | AY28: 22.6875 | AZ28: 24.45 | BA28: 26.275 | BB28: 27.2875 | BC28: 28.2875 | BE28: 20 | BF28: 11.19 | BG28: 15.32 | BH28: 24.75 | BI28: 26.56 | BJ28: 28.43 | BK28: 29.47 | BL28: 30.49
A29: 21 | B29: 12.306 | C29: 17.43 | D29: 29.12 | E29: 31.696 | F29: 34.202 | G29: 35.672 | H29: 37.212 | I29: 37.87 | J29: 37.87 | K29: 41.902 | M29: 21 | N29: 12.306 | O29: 17.43 | P29: 29.12 | Q29: 31.696 | R29: 34.202 | S29: 35.672 | T29: 37.212 | U29: 37.87 | V29: 37.87 | W29: 41.902 | AA29: 21 | AB29: 13.806 | AC29: 18.93 | AD29: 30.62 | AE29: 33.196 | AF29: 35.702 | AG29: 37.172 | AH29: 38.712 | AI29: 39.37 | AJ29: 39.37 | AK29: 43.402 | AM29: 21 | AN29: 9.87 | AO29: 14.22 | AP29: 25.06 | AQ29: 27.24 | AR29: 29.15 | AS29: 30.37 | AT29: 31.47 | AV29: 21 | AW29: 9.6255 | AX29: 13.878 | AY29: 24.45 | AZ29: 26.575 | BA29: 28.4375 | BB29: 29.625 | BC29: 30.7 | BE29: 21 | BF29: 11.37 | BG29: 15.72 | BH29: 26.56 | BI29: 28.74 | BJ29: 30.65 | BK29: 31.87 | BL29: 32.97
A30: 22 | B30: 12.67 | C30: 17.822 | D30: 29.82 | E30: 32.41 | F30: 34.916 | G30: 36.498 | H30: 38.01 | I30: 38.71 | J30: 38.71 | K30: 42.868 | M30: 22 | N30: 12.67 | O30: 17.822 | P30: 29.82 | Q30: 32.41 | R30: 34.916 | S30: 36.498 | T30: 38.01 | U30: 38.71 | V30: 38.71 | W30: 42.868 | AA30: 22 | AB30: 14.17 | AC30: 19.322 | AD30: 31.32 | AE30: 33.91 | AF30: 36.416 | AG30: 37.998 | AH30: 39.51 | AI30: 40.21 | AJ30: 40.21 | AK30: 44.368 | AM30: 22 | AN30: 10.13 | AO30: 14.5 | AP30: 25.73 | AQ30: 27.91 | AR30: 30.01 | AS30: 31.24 | AT30: 32.33 | AV30: 22 | AW30: 9.882 | AX30: 14.148 | AY30: 25.1 | AZ30: 27.225 | BA30: 29.275 | BB30: 30.475 | BC30: 31.5375 | BE30: 22 | BF30: 11.63 | BG30: 16 | BH30: 27.23 | BI30: 29.41 | BJ30: 31.51 | BK30: 32.74 | BL30: 33.83
A31: 23 | B31: 12.922 | C31: 18.186 | D31: 30.534 | E31: 33.208 | F31: 35.728 | G31: 37.282 | H31: 38.906 | I31: 39.76 | J31: 39.76 | K31: 43.568 | M31: 23 | N31: 12.922 | O31: 18.186 | P31: 30.534 | Q31: 33.208 | R31: 35.728 | S31: 37.282 | T31: 38.906 | U31: 39.76 | V31: 39.76 | W31: 43.568 | AA31: 23 | AB31: 14.422 | AC31: 19.686 | AD31: 32.034 | AE31: 34.708 | AF31: 37.228 | AG31: 38.782 | AH31: 40.406 | AI31: 41.26 | AJ31: 41.26 | AK31: 45.068 | AM31: 23 | AN31: 10.49 | AO31: 14.82 | AP31: 26.38 | AQ31: 28.55 | AR31: 30.76 | AS31: 32.08 | AT31: 33.02 | AV31: 23 | AW31: 10.233 | AX31: 14.4585 | AY31: 25.7375 | AZ31: 27.85 | BA31: 30.0125 | BB31: 31.3 | BC31: 32.2125 | BE31: 23 | BF31: 11.99 | BG31: 16.32 | BH31: 27.88 | BI31: 30.05 | BJ31: 32.26 | BK31: 33.58 | BL31: 34.52
A32: 24 | B32: 13.202 | C32: 18.508 | D32: 31.346 | E32: 34.048 | F32: 36.68 | G32: 38.094 | H32: 39.704 | I32: 40.516 | J32: 40.516 | K32: 44.422 | M32: 24 | N32: 13.202 | O32: 18.508 | P32: 31.346 | Q32: 34.048 | R32: 36.68 | S32: 38.094 | T32: 39.704 | U32: 40.516 | V32: 40.516 | W32: 44.422 | AA32: 24 | AB32: 14.702 | AC32: 20.008 | AD32: 32.846 | AE32: 35.548 | AF32: 38.18 | AG32: 39.594 | AH32: 41.204 | AI32: 42.016 | AJ32: 42.016 | AK32: 45.922 | AM32: 24 | AN32: 10.65 | AO32: 15.08 | AP32: 27.11 | AQ32: 29.25 | AR32: 31.47 | AS32: 32.77 | AT32: 33.8 | AV32: 24 | AW32: 10.395 | AX32: 14.715 | AY32: 26.45 | AZ32: 28.5375 | BA32: 30.7 | BB32: 31.975 | BC32: 32.975 | BE32: 24 | BF32: 12.15 | BG32: 16.58 | BH32: 28.61 | BI32: 30.75 | BJ32: 32.97 | BK32: 34.27 | BL32: 35.3
A33: 25 | B33: 13.314 | C33: 18.606 | D33: 32.144 | E33: 34.748 | F33: 37.058 | G33: 39.018 | H33: 40.516 | I33: 41.776 | J33: 41.776 | K33: 44.688 | M33: 25 | N33: 13.314 | O33: 18.606 | P33: 32.144 | Q33: 34.748 | R33: 37.058 | S33: 39.018 | T33: 40.516 | U33: 41.776 | V33: 41.776 | W33: 44.688 | AA33: 25 | AB33: 14.814 | AC33: 20.106 | AD33: 33.644 | AE33: 36.248 | AF33: 38.558 | AG33: =G33+1.5 -> 40.518 | AH33: 42.016 | AI33: 43.276 | AJ33: 43.276 | AK33: 46.188 | AM33: 25 | AN33: 10.93 | AO33: 15.33 | AP33: 27.83 | AQ33: 29.99 | AR33: 32.31 | AS33: 33.49 | AT33: 34.49 | AV33: 25 | AW33: 10.665 | AX33: 14.958 | AY33: 27.15 | AZ33: 29.2625 | BA33: 31.525 | BB33: 32.675 | BC33: 33.65 | BE33: 25 | BF33: 12.43 | BG33: 16.83 | BH33: 29.33 | BI33: 31.49 | BJ33: 33.81 | BK33: 34.99 | BL33: 35.99
A34: 26 | B34: 13.832 | C34: 19.32 | D34: 33.026 | E34: 35.602 | F34: 38.654 | G34: 40.012 | H34: 41.37 | I34: 42.42 | J34: 42.42 | K34: 46.116 | M34: 26 | N34: 13.832 | O34: 19.32 | P34: 33.026 | Q34: 35.602 | R34: 38.654 | S34: 40.012 | T34: 41.37 | U34: 42.42 | V34: 42.42 | W34: 46.116 | AA34: 26 | AB34: =B34+1.5 -> 15.332 | AC34: 20.82 | AD34: 34.526 | AE34: 37.102 | AF34: 40.154 | AG34: 41.512 | AH34: 42.87 | AI34: 43.92 | AJ34: 43.92 | AK34: 47.616 | AM34: 26 | AN34: 11.19 | AO34: 15.66 | AP34: 28.57 | AQ34: 30.96 | AR34: 33.16 | AS34: 34.67 | AT34: 35.34 | AV34: 26 | AW34: 10.9215 | AX34: 15.282 | AY34: 27.875 | AZ34: 30.2 | BA34: 32.35 | BB34: 33.825 | BC34: 34.475 | BE34: 26 | BF34: 12.69 | BG34: 17.16 | BH34: 30.07 | BI34: 32.46 | BJ34: 34.66 | BK34: 36.17 | BL34: 36.84
A35: 27 | B35: 14.084 | C35: 19.684 | D35: 33.838 | E35: 36.624 | F35: 39.718 | G35: 40.88 | H35: 42.154 | I35: 43.302 | J35: 43.302 | K35: 46.9 | M35: 27 | N35: 14.084 | O35: 19.684 | P35: 33.838 | Q35: 36.624 | R35: 39.718 | S35: 40.88 | T35: 42.154 | U35: 43.302 | V35: 43.302 | W35: 46.9 | AA35: 27 | AB35: 15.584 | AC35: 21.184 | AD35: 35.338 | AE35: 38.124 | AF35: 41.218 | AG35: 42.38 | AH35: 43.654 | AI35: 44.802 | AJ35: 44.802 | AK35: 48.4 | AM35: 27 | AN35: 11.43 | AO35: 16.11 | AP35: 29.39 | AQ35: 31.69 | AR35: 33.93 | AS35: 35.39 | AT35: 36.11 | AV35: 27 | AW35: 11.151 | AX35: 15.714 | AY35: 28.675 | AZ35: 30.9125 | BA35: 33.1 | BB35: 34.525 | BC35: 35.225 | BE35: 27 | BF35: 12.93 | BG35: 17.61 | BH35: 30.89 | BI35: 33.19 | BJ35: 35.43 | BK35: 36.89 | BL35: 37.61
A36: 28 | B36: 14.448 | C36: 20.118 | D36: 34.734 | E36: 37.674 | F36: 40.53 | G36: 41.692 | H36: 43.05 | I36: 44.1 | J36: 44.1 | K36: 47.894 | M36: 28 | N36: 14.448 | O36: 20.118 | P36: 34.734 | Q36: 37.674 | R36: 40.53 | S36: 41.692 | T36: 43.05 | U36: 44.1 | V36: 44.1 | W36: 47.894 | AA36: 28 | AB36: 15.948 | AC36: 21.618 | AD36: 36.234 | AE36: 39.174 | AF36: 42.03 | AG36: 43.192 | AH36: 44.55 | AI36: 45.6 | AJ36: 45.6 | AK36: 49.394 | AM36: 28 | AN36: 11.61 | AO36: 16.55 | AP36: 30.15 | AQ36: 32.39 | AR36: 34.58 | AS36: 36.27 | AT36: 37.04 | AV36: 28 | AW36: 11.3265 | AX36: 16.146 | AY36: 29.4125 | AZ36: 31.6 | BA36: 33.7375 | BB36: 35.3875 | BC36: 36.1375 | BE36: 28 | BF36: 13.11 | BG36: 18.05 | BH36: 31.65 | BI36: 33.89 | BJ36: 36.08 | BK36: 37.77 | BL36: 38.54
A37: 29 | B37: 14.588 | C37: 20.454 | D37: 35.616 | E37: 38.472 | F37: 41.398 | G37: 42.602 | H37: 43.96 | I37: 44.814 | J37: 44.814 | K37: 48.986 | M37: 29 | N37: 14.588 | O37: 20.454 | P37: 35.616 | Q37: 38.472 | R37: 41.398 | S37: 42.602 | T37: 43.96 | U37: 44.814 | V37: 44.814 | W37: 48.986 | AA37: 29 | AB37: 16.088 | AC37: 21.954 | AD37: 37.116 | AE37: 39.972 | AF37: 42.898 | AG37: 44.102 | AH37: 45.46 | AI37: 46.314 | AJ37: 46.314 | AK37: 50.486 | AM37: 29 | AN37: 11.96 | AO37: 16.98 | AP37: 30.96 | AQ37: 33.06 | AR37: 35.44 | AS37: 37.11 | AT37: 38.1 | AV37: 29 | AW37: 11.664 | AX37: 16.5645 | AY37: 30.2 | AZ37: 32.25 | BA37: 34.575 | BB37: 36.2 | BC37: 37.175 | BE37: 29 | BF37: 13.46 | BG37: 18.48 | BH37: 32.46 | BI37: 34.56 | BJ37: 36.94 | BK37: 38.61 | BL37: 39.6
A38: 30 | B38: 14.602 | C38: 20.468 | D38: 36.33 | E38: 39.354 | F38: 41.412 | G38: 43.414 | H38: 44.254 | I38: 45.626 | J38: 45.626 | K38: 49.168 | M38: 30 | N38: 14.602 | O38: 20.468 | P38: 36.33 | Q38: 39.354 | R38: 41.412 | S38: 43.414 | T38: 44.254 | U38: 45.626 | V38: 45.626 | W38: 49.168 | AA38: 30 | AB38: 16.102 | AC38: 21.968 | AD38: 37.83 | AE38: 40.854 | AF38: 42.912 | AG38: 44.914 | AH38: 45.754 | AI38: 47.126 | AJ38: 47.126 | AK38: 50.668 | AM38: 30 | AN38: 12.23 | AO38: 17.28 | AP38: 31.65 | AQ38: 33.72 | AR38: 36.11 | AS38: 37.78 | AT38: 39.13 | AV38: 30 | AW38: 11.934 | AX38: 16.8615 | AY38: 30.875 | AZ38: 32.9 | BA38: 35.225 | BB38: 36.8625 | BC38: 38.175 | BE38: 30 | BF38: 13.73 | BG38: 18.78 | BH38: 33.15 | BI38: 35.22 | BJ38: 37.61 | BK38: 39.28 | BL38: 40.63
A39: 31 | B39: 15.26 | C39: 21.224 | D39: 37.114 | E39: 40.25 | F39: 43.078 | G39: 44.296 | H39: 45.752 | I39: 46.452 | J39: 46.452 | K39: 50.778 | M39: 31 | N39: 15.26 | O39: 21.224 | P39: 37.114 | Q39: 40.25 | R39: 43.078 | S39: 44.296 | T39: 45.752 | U39: 46.452 | V39: 46.452 | W39: 50.778 | AA39: 31 | AB39: 16.76 | AC39: 22.724 | AD39: 38.614 | AE39: 41.75 | AF39: 44.578 | AG39: 45.796 | AH39: 47.252 | AI39: 47.952 | AJ39: 47.952 | AK39: 52.278 | AM39: 31 | AN39: 12.41 | AO39: 17.49 | AP39: 32.48 | AQ39: 34.47 | AR39: 36.96 | AS39: 38.46 | AT39: 39.89 | AV39: 31 | AW39: 12.1095 | AX39: 17.064 | AY39: 31.6875 | AZ39: 33.625 | BA39: 36.0625 | BB39: 37.525 | BC39: 38.9125 | BE39: 31 | BF39: 13.91 | BG39: 18.99 | BH39: 33.98 | BI39: 35.97 | BJ39: 38.46 | BK39: 39.96 | BL39: 41.39
A40: 32 | B40: 15.694 | C40: 21.714 | D40: 37.926 | E40: 41.146 | F40: 43.96 | G40: 45.192 | H40: 46.62 | I40: 47.32 | J40: 47.32 | K40: 51.87 | M40: 32 | N40: 15.694 | O40: 21.714 | P40: 37.926 | Q40: 41.146 | R40: 43.96 | S40: 45.192 | T40: 46.62 | U40: 47.32 | V40: 47.32 | W40: 51.87 | AA40: 32 | AB40: 17.194 | AC40: 23.214 | AD40: 39.426 | AE40: 42.646 | AF40: 45.46 | AG40: 46.692 | AH40: 48.12 | AI40: 48.82 | AJ40: 48.82 | AK40: 53.37 | AM40: 32 | AN40: 12.66 | AO40: 17.68 | AP40: 33.16 | AQ40: 35.34 | AR40: 37.78 | AS40: 39.13 | AT40: 40.69 | AV40: 32 | AW40: 12.3525 | AX40: 17.253 | AY40: 32.35 | AZ40: 34.475 | BA40: 36.8625 | BB40: 38.175 | BC40: 39.7 | BE40: 32 | BF40: =AN40+1.5 -> 14.16 | BG40: 19.18 | BH40: 34.66 | BI40: 36.84 | BJ40: 39.28 | BK40: 40.63 | BL40: 42.19
A41: 33 | B41: 16.058 | C41: 22.26 | D41: 38.654 | E41: 42.028 | F41: 44.856 | G41: 46.2 | H41: 47.684 | I41: 48.398 | J41: 48.398 | K41: 52.99 | M41: 33 | N41: 16.058 | O41: 22.26 | P41: 38.654 | Q41: 42.028 | R41: 44.856 | S41: 46.2 | T41: 47.684 | U41: 48.398 | V41: 48.398 | W41: 52.99 | AA41: 33 | AB41: 17.558 | AC41: 23.76 | AD41: 40.154 | AE41: 43.528 | AF41: 46.356 | AG41: 47.7 | AH41: 49.184 | AI41: 49.898 | AJ41: 49.898 | AK41: 54.49 | AM41: 33 | AN41: 12.92 | AO41: 17.97 | AP41: 33.72 | AQ41: 36.11 | AR41: 38.64 | AS41: 39.91 | AT41: 41.47 | AV41: 33 | AW41: 12.609 | AX41: 17.5365 | AY41: 32.9 | AZ41: 35.225 | BA41: 37.7 | BB41: 38.9375 | BC41: 40.4625 | BE41: 33 | BF41: 14.42 | BG41: 19.47 | BH41: 35.22 | BI41: 37.61 | BJ41: 40.14 | BK41: 41.41 | BL41: 42.97
A42: 34 | B42: 16.408 | C42: 22.596 | D42: 39.536 | E42: 42.924 | F42: 45.822 | G42: 47.194 | H42: 48.678 | I42: 49.378 | J42: 49.378 | K42: 53.998 | M42: 34 | N42: 16.408 | O42: 22.596 | P42: 39.536 | Q42: 42.924 | R42: 45.822 | S42: 47.194 | T42: 48.678 | U42: 49.378 | V42: 49.378 | W42: 53.998 | AA42: 34 | AB42: 17.908 | AC42: 24.096 | AD42: 41.036 | AE42: 44.424 | AF42: 47.322 | AG42: 48.694 | AH42: 50.178 | AI42: 50.878 | AJ42: 50.878 | AK42: 55.498 | AM42: 34 | AN42: 13.21 | AO42: 18.35 | AP42: 34.41 | AQ42: 36.85 | AR42: 39.62 | AS42: 40.64 | AT42: 42.4 | AV42: 34 | AW42: 12.8925 | AX42: 17.901 | AY42: 33.575 | AZ42: 35.95 | BA42: 38.65 | BB42: 39.65 | BC42: 41.3625 | BE42: 34 | BF42: 14.71 | BG42: 19.85 | BH42: 35.91 | BI42: 38.35 | BJ42: 41.12 | BK42: 42.14 | BL42: 43.9
A43: 35 | B43: 16.758 | C43: 23.016 | D43: 40.418 | E43: 43.82 | F43: 46.704 | G43: 48.188 | H43: 49.63 | I43: 50.386 | J43: 50.386 | K43: 55.076 | M43: 35 | N43: 16.758 | O43: 23.016 | P43: 40.418 | Q43: 43.82 | R43: 46.704 | S43: 48.188 | T43: 49.63 | U43: 50.386 | V43: 50.386 | W43: 55.076 | AA43: 35 | AB43: 18.258 | AC43: 24.516 | AD43: 41.918 | AE43: 45.32 | AF43: 48.204 | AG43: 49.688 | AH43: 51.13 | AI43: 51.886 | AJ43: 51.886 | AK43: 56.576 | AM43: 35 | AN43: 13.44 | AO43: 18.76 | AP43: 35.25 | AQ43: 37.5 | AR43: 40.47 | AS43: 41.53 | AT43: 43.24 | AV43: 35 | AW43: 13.1085 | AX43: 18.306 | AY43: 34.3875 | AZ43: 36.5875 | BA43: 39.4875 | BB43: 40.5125 | BC43: 42.1875 | BE43: 35 | BF43: 14.94 | BG43: 20.26 | BH43: 36.75 | BI43: 39 | BJ43: 41.97 | BK43: 43.03 | BL43: 44.74
A44: 36 | B44: 17.318 | C44: 23.38 | D44: 41.286 | E44: 44.702 | F44: 47.614 | G44: 49.252 | H44: 50.596 | I44: 51.352 | J44: 51.352 | K44: 56.294 | M44: 36 | N44: 17.318 | O44: 23.38 | P44: 41.286 | Q44: 44.702 | R44: 47.614 | S44: 49.252 | T44: 50.596 | U44: 51.352 | V44: 51.352 | W44: 56.294 | AA44: 36 | AB44: 18.818 | AC44: 24.88 | AD44: 42.786 | AE44: 46.202 | AF44: 49.114 | AG44: 50.752 | AH44: 52.096 | AI44: 52.852 | AJ44: 52.852 | AK44: 57.794 | AM44: 36 | AN44: 13.82 | AO44: 19.12 | AP44: 35.98 | AQ44: 38.27 | AR44: 41.24 | AS44: 42.44 | AT44: 44.06 | AV44: 36 | AW44: 13.4865 | AX44: 18.657 | AY44: 35.1 | AZ44: 37.3375 | BA44: 40.2375 | BB44: 41.4 | BC44: 42.9875 | BE44: 36 | BF44: 15.32 | BG44: 20.62 | BH44: 37.48 | BI44: 39.77 | BJ44: 42.74 | BK44: 43.94 | BL44: 45.56
A45: 37 | B45: 17.332 | C45: 24.052 | D45: 42.098 | E45: 45.612 | F45: 48.566 | G45: 50.344 | H45: 51.66 | I45: 52.444 | J45: 52.444 | K45: 57.204 | M45: 37 | N45: 17.332 | O45: 24.052 | P45: 42.098 | Q45: 45.612 | R45: 48.566 | S45: 50.344 | T45: 51.66 | U45: 52.444 | V45: 52.444 | W45: 57.204 | AA45: 37 | AB45: 18.832 | AC45: 25.552 | AD45: 43.598 | AE45: 47.112 | AF45: 50.066 | AG45: 51.844 | AH45: 53.16 | AI45: 53.944 | AJ45: 53.944 | AK45: 58.704 | AM45: 37 | AN45: 14.07 | AO45: 19.54 | AP45: 36.75 | AQ45: 39.04 | AR45: 42.08 | AS45: 43.23 | AT45: 45.02 | AV45: 37 | AW45: 13.7295 | AX45: 19.062 | AY45: 35.85 | AZ45: 38.0875 | BA45: 41.05 | BB45: 42.175 | BC45: 43.925 | BE45: 37 | BF45: 15.57 | BG45: 21.04 | BH45: 38.25 | BI45: 40.54 | BJ45: 43.58 | BK45: 44.73 | BL45: 46.52
A46: 38 | B46: 17.612 | C46: 24.43 | D46: 42.84 | E46: 46.41 | F46: 49.49 | G46: 51.52 | H46: 52.64 | I46: 53.424 | J46: 53.424 | K46: 58.324 | M46: 38 | N46: 17.612 | O46: 24.43 | P46: 42.84 | Q46: 46.41 | R46: 49.49 | S46: 51.52 | T46: 52.64 | U46: 53.424 | V46: 53.424 | W46: 58.324 | AA46: 38 | AB46: 19.112 | AC46: 25.93 | AD46: 44.34 | AE46: 47.91 | AF46: 50.99 | AG46: 53.02 | AH46: 54.14 | AI46: 54.924 | AJ46: 54.924 | AK46: 59.824 | AM46: 38 | AN46: 14.34 | AO46: 19.8 | AP46: 37.73 | AQ46: 39.99 | AR46: 42.93 | AS46: 43.97 | AT46: 45.6 | AV46: 38 | AW46: 13.986 | AX46: 19.3185 | AY46: 36.8125 | AZ46: 39.0125 | BA46: 41.8875 | BB46: 42.9 | BC46: 44.4875 | BE46: 38 | BF46: 15.84 | BG46: 21.3 | BH46: 39.23 | BI46: 41.49 | BJ46: 44.43 | BK46: 45.47 | BL46: 47.1
A47: 39 | B47: 18.186 | C47: 24.85 | D47: 43.638 | E47: 47.278 | F47: 50.428 | G47: 52.584 | H47: 53.69 | I47: 54.474 | J47: 54.474 | K47: 58.338 | M47: 39 | N47: 18.186 | O47: 24.85 | P47: 43.638 | Q47: 47.278 | R47: 50.428 | S47: 52.584 | T47: 53.69 | U47: 54.474 | V47: 54.474 | W47: 58.338 | AA47: 39 | AB47: 19.686 | AC47: 26.35 | AD47: 45.138 | AE47: 48.778 | AF47: 51.928 | AG47: 54.084 | AH47: 55.19 | AI47: 55.974 | AJ47: 55.974 | AK47: 59.838 | AM47: 39 | AN47: 14.58 | AO47: 20.2 | AP47: 38.57 | AQ47: 40.94 | AR47: 43.79 | AS47: 44.61 | AT47: 46.37 | AV47: 39 | AW47: 14.229 | AX47: 19.71 | AY47: 37.625 | AZ47: 39.9375 | BA47: 42.725 | BB47: 43.525 | BC47: 45.2375 | BE47: 39 | BF47: 16.08 | BG47: 21.7 | BH47: 40.07 | BI47: 42.44 | BJ47: 45.29 | BK47: 46.11 | BL47: 47.87
A48: 40 | B48: 18.2 | C48: 25.27 | D48: 44.436 | E48: 48.174 | F48: 51.324 | G48: 53.592 | H48: 54.768 | I48: 55.566 | J48: 55.566 | K48: 58.352 | M48: 40 | N48: 18.2 | O48: 25.27 | P48: 44.436 | Q48: 48.174 | R48: 51.324 | S48: 53.592 | T48: 54.768 | U48: 55.566 | V48: 55.566 | W48: 58.352 | AA48: 40 | AB48: 19.7 | AC48: 26.77 | AD48: 45.936 | AE48: 49.674 | AF48: 52.824 | AG48: 55.092 | AH48: 56.268 | AI48: 57.066 | AJ48: 57.066 | AK48: 59.852 | AM48: 40 | AN48: 14.96 | AO48: 20.67 | AP48: 39.32 | AQ48: 41.79 | AR48: 44.86 | AS48: 45.39 | AT48: 47.23 | AV48: 40 | AW48: 14.5935 | AX48: 20.169 | AY48: 38.3625 | AZ48: 40.775 | BA48: 43.7625 | BB48: 44.2875 | BC48: 46.075 | BE48: 40 | BF48: 16.46 | BG48: 22.17 | BH48: 40.82 | BI48: 43.29 | BJ48: 46.36 | BK48: 46.89 | BL48: 48.73
A49: 41 | B49: 18.788 | C49: 25.788 | D49: 45.234 | E49: 49.084 | F49: 52.304 | G49: 54.46 | H49: 55.804 | I49: 56.644 | J49: 56.644 | K49: 61.992 | M49: 41 | N49: 18.788 | O49: 25.788 | P49: 45.234 | Q49: 49.084 | R49: 52.304 | S49: 54.46 | T49: 55.804 | U49: 56.644 | V49: 56.644 | W49: 61.992 | AA49: 41 | AB49: 20.288 | AC49: 27.288 | AD49: 46.734 | AE49: 50.584 | AF49: 53.804 | AG49: 55.96 | AH49: 57.304 | AI49: 58.144 | AJ49: 58.144 | AK49: 63.492 | AM49: 41 | AN49: 15.21 | AO49: 21.16 | AP49: 40.05 | AQ49: 42.76 | AR49: 45.8 | AS49: 46.37 | AT49: 48.25 | AV49: 41 | AW49: 14.8365 | AX49: 20.6415 | AY49: 39.075 | AZ49: 41.7125 | BA49: 44.6875 | BB49: 45.2375 | BC49: 47.075 | BE49: 41 | BF49: 16.71 | BG49: 22.66 | BH49: 41.55 | BI49: 44.26 | BJ49: 47.3 | BK49: 47.87 | BL49: 49.75
A50: 42 | B50: 19.068 | C50: 26.306 | D50: 46.116 | E50: 49.966 | F50: 53.368 | G50: 55.734 | H50: 56.938 | I50: 57.806 | J50: 57.806 | K50: 62.972 | M50: 42 | N50: 19.068 | O50: 26.306 | P50: 46.116 | Q50: 49.966 | R50: 53.368 | S50: 55.734 | T50: 56.938 | U50: 57.806 | V50: 57.806 | W50: 62.972 | AA50: 42 | AB50: 20.568 | AC50: 27.806 | AD50: 47.616 | AE50: 51.466 | AF50: 54.868 | AG50: 57.234 | AH50: 58.438 | AI50: 59.306 | AJ50: 59.306 | AK50: 64.472 | AM50: 42 | AN50: 15.47 | AO50: 21.45 | AP50: 40.81 | AQ50: 43.6 | AR50: 46.73 | AS50: 47.23 | AT50: 49.29 | AV50: 42 | AW50: 15.093 | AX50: 20.925 | AY50: 39.8125 | AZ50: 42.5375 | BA50: 45.5875 | BB50: 46.075 | BC50: 48.0875 | BE50: 42 | BF50: 16.97 | BG50: 22.95 | BH50: 42.31 | BI50: 45.1 | BJ50: 48.23 | BK50: 48.73 | BL50: 50.79
A51: 43 | B51: 19.572 | C51: 26.796 | D51: 47.026 | E51: 50.848 | F51: 54.362 | G51: 56.63 | H51: 58.114 | I51: 58.968 | J51: 58.968 | K51: 63.994 | M51: 43 | N51: 19.572 | O51: 26.796 | P51: 47.026 | Q51: 50.848 | R51: 54.362 | S51: 56.63 | T51: 58.114 | U51: 58.968 | V51: 58.968 | W51: 63.994 | AA51: 43 | AB51: 21.072 | AC51: 28.296 | AD51: 48.526 | AE51: 52.348 | AF51: 55.862 | AG51: 58.13 | AH51: 59.614 | AI51: 60.468 | AJ51: 60.468 | AK51: 65.494 | AM51: 43 | AN51: 15.73 | AO51: 21.74 | AP51: 41.53 | AQ51: 44.56 | AR51: 47.68 | AS51: 48.16 | AT51: 50.44 | AV51: 43 | AW51: 15.3495 | AX51: 21.2085 | AY51: 40.5125 | AZ51: 43.475 | BA51: 46.5125 | BB51: 46.9875 | BC51: 49.2125 | BE51: 43 | BF51: 17.23 | BG51: 23.24 | BH51: 43.03 | BI51: 46.06 | BJ51: 49.18 | BK51: 49.66 | BL51: 51.94
A52: 44 | B52: 20.006 | C52: 27.328 | D52: 47.824 | E52: 51.744 | F52: 55.314 | G52: 57.624 | H52: 59.346 | I52: 60.242 | J52: 60.242 | K52: 65.198 | M52: 44 | N52: 20.006 | O52: 27.328 | P52: 47.824 | Q52: 51.744 | R52: 55.314 | S52: 57.624 | T52: 59.346 | U52: 60.242 | V52: 60.242 | W52: 65.198 | AA52: 44 | AB52: 21.506 | AC52: 28.828 | AD52: 49.324 | AE52: 53.244 | AF52: 56.814 | AG52: 59.124 | AH52: 60.846 | AI52: 61.742 | AJ52: 61.742 | AK52: 66.698 | AM52: 44 | AN52: 16 | AO52: 22.22 | AP52: 42.27 | AQ52: 45.5 | AR52: 48.55 | AS52: 49.14 | AT52: 51.57 | AV52: 44 | AW52: 15.606 | AX52: 21.681 | AY52: 41.2375 | AZ52: 44.3875 | BA52: 47.3625 | BB52: 47.9375 | BC52: 50.3125 | BE52: 44 | BF52: 17.5 | BG52: 23.72 | BH52: 43.77 | BI52: 47 | BJ52: 50.05 | BK52: 50.64 | BL52: 53.07
A53: 45 | B53: 20.426 | C53: 27.902 | D53: 48.678 | E53: 52.626 | F53: 56.392 | G53: 58.618 | H53: 60.298 | I53: 61.194 | J53: 61.194 | K53: 66.416 | M53: 45 | N53: 20.426 | O53: 27.902 | P53: 48.678 | Q53: 52.626 | R53: 56.392 | S53: 58.618 | T53: 60.298 | U53: 61.194 | V53: 61.194 | W53: 66.416 | AA53: 45 | AB53: 21.926 | AC53: 29.402 | AD53: 50.178 | AE53: 54.126 | AF53: 57.892 | AG53: 60.118 | AH53: 61.798 | AI53: 62.694 | AJ53: 62.694 | AK53: 67.916 | AM53: 45 | AN53: 16.27 | AO53: 22.6 | AP53: 43.05 | AQ53: 46.37 | AR53: 49.61 | AS53: 49.96 | AT53: 52.72 | AV53: 45 | AW53: 15.876 | AX53: 22.0455 | AY53: 42 | AZ53: 45.2375 | BA53: 48.4 | BB53: 48.7375 | BC53: 51.4375 | BE53: 45 | BF53: 17.77 | BG53: 24.1 | BH53: 44.55 | BI53: 47.87 | BJ53: 51.11 | BK53: 51.46 | BL53: 54.22
A54: 46 | B54: 20.832 | C54: 28.504 | D54: 49.532 | E54: 53.522 | F54: 57.456 | G54: 59.626 | H54: 61.362 | I54: 62.272 | J54: 62.272 | K54: 67.284 | M54: 46 | N54: 20.832 | O54: 28.504 | P54: 49.532 | Q54: 53.522 | R54: 57.456 | S54: 59.626 | T54: 61.362 | U54: 62.272 | V54: 62.272 | W54: 67.284 | AA54: 46 | AB54: 22.332 | AC54: 30.004 | AD54: 51.032 | AE54: 55.022 | AF54: 58.956 | AG54: 61.126 | AH54: 62.862 | AI54: 63.772 | AJ54: 63.772 | AK54: 68.784 | AM54: 46 | AN54: 16.55 | AO54: 23.09 | AP54: 43.79 | AQ54: 47.23 | AR54: 50.53 | AS54: 50.9 | AT54: 53.68 | AV54: 46 | AW54: 16.146 | AX54: 22.5315 | AY54: 42.725 | AZ54: 46.075 | BA54: 49.3 | BB54: 49.6625 | BC54: 52.375 | BE54: 46 | BF54: 18.05 | BG54: 24.59 | BH54: 45.29 | BI54: 48.73 | BJ54: 52.03 | BK54: 52.4 | BL54: 55.18
A55: 47 | B55: 21.182 | C55: 29.106 | D55: 50.4 | E55: 54.334 | F55: 58.52 | G55: 60.494 | H55: 62.328 | I55: 63.266 | J55: 63.266 | K55: 67.298 | M55: 47 | N55: 21.182 | O55: 29.106 | P55: 50.4 | Q55: 54.334 | R55: 58.52 | S55: 60.494 | T55: 62.328 | U55: 63.266 | V55: 63.266 | W55: 67.298 | AA55: 47 | AB55: 22.682 | AC55: 30.606 | AD55: 51.9 | AE55: 55.834 | AF55: 60.02 | AG55: 61.994 | AH55: 63.828 | AI55: 64.766 | AJ55: 64.766 | AK55: 68.798 | AM55: 47 | AN55: 16.8 | AO55: 23.48 | AP55: 44.61 | AQ55: 47.97 | AR55: 51.39 | AS55: 51.89 | AT55: 54.54 | AV55: 47 | AW55: 16.389 | AX55: 22.9095 | AY55: 43.525 | AZ55: 46.8 | BA55: 50.1375 | BB55: 50.625 | BC55: 53.2125 | BE55: 47 | BF55: 18.3 | BG55: 24.98 | BH55: 46.11 | BI55: 49.47 | BJ55: 52.89 | BK55: 53.39 | BL55: 56.04
A56: 48 | B56: 21.322 | C56: 29.68 | D56: 51.114 | E56: 55.23 | F56: 59.584 | G56: 61.586 | H56: 63.49 | I56: 64.442 | J56: 64.442 | K56: 68.782 | M56: 48 | N56: 21.322 | O56: 29.68 | P56: 51.114 | Q56: 55.23 | R56: 59.584 | S56: 61.586 | T56: 63.49 | U56: 64.442 | V56: 64.442 | W56: 68.782 | AA56: 48 | AB56: 22.822 | AC56: 31.18 | AD56: 52.614 | AE56: 56.73 | AF56: 61.084 | AG56: 63.086 | AH56: 64.99 | AI56: 65.942 | AJ56: 65.942 | AK56: 70.282 | AM56: 48 | AN56: 17.14 | AO56: 23.97 | AP56: 45.5 | AQ56: 48.74 | AR56: 52.17 | AS56: 52.93 | AT56: 55.36 | AV56: 48 | AW56: 16.7265 | AX56: 23.382 | AY56: 44.3875 | AZ56: 47.55 | BA56: 50.9 | BB56: 51.6375 | BC56: 54.0125 | BE56: 48 | BF56: 18.64 | BG56: 25.47 | BH56: 47 | BI56: 50.24 | BJ56: 53.67 | BK56: 54.43 | BL56: 56.86
A57: 49 | B57: 21.476 | C57: 30.366 | D57: 51.842 | E57: 55.384 | F57: 59.598 | G57: 62.566 | H57: 64.624 | I57: 65.576 | J57: 65.576 | K57: 68.796 | M57: 49 | N57: 21.476 | O57: 30.366 | P57: 51.842 | Q57: 55.384 | R57: 59.598 | S57: 62.566 | T57: 64.624 | U57: 65.576 | V57: 65.576 | W57: 68.796 | AA57: 49 | AB57: 22.976 | AC57: 31.866 | AD57: 53.342 | AE57: 56.884 | AF57: 61.098 | AG57: 64.066 | AH57: 66.124 | AI57: 67.076 | AJ57: 67.076 | AK57: 70.296 | AM57: 49 | AN57: 17.41 | AO57: 24.45 | AP57: 46.3 | AQ57: 49.61 | AR57: 52.99 | AS57: 53.76 | AT57: 56.16 | AV57: 49 | AW57: 16.983 | AX57: 23.8545 | AY57: 45.175 | AZ57: 48.4 | BA57: 51.7 | BB57: 52.45 | BC57: 54.7875 | BE57: 49 | BF57: 18.91 | BG57: 25.95 | BH57: 47.8 | BI57: 51.11 | BJ57: 54.49 | BK57: 55.26 | BL57: 57.66
A58: 50 | B58: 21.49 | C58: 30.408 | D58: 51.856 | E58: 55.398 | F58: 59.612 | G58: 62.58 | H58: 64.638 | I58: 65.59 | J58: 65.59 | K58: 68.81 | M58: 50 | N58: 21.49 | O58: 30.408 | P58: 51.856 | Q58: 55.398 | R58: 59.612 | S58: 62.58 | T58: 64.638 | U58: 65.59 | V58: 65.59 | W58: 68.81 | AA58: 50 | AB58: 22.99 | AC58: 31.908 | AD58: 53.356 | AE58: 56.898 | AF58: 61.112 | AG58: 64.08 | AH58: 66.138 | AI58: 67.09 | AJ58: 67.09 | AK58: 70.31 | AM58: 50 | AN58: 17.67 | AO58: 24.92 | AP58: 46.97 | AQ58: 50.17 | AR58: 53.8 | AS58: 54.65 | AT58: 56.68 | AV58: 50 | AW58: 17.2395 | AX58: 24.3135 | AY58: 45.825 | AZ58: 48.95 | BA58: 52.4875 | BB58: 53.3125 | BC58: 55.3 | BE58: 50 | BF58: 19.17 | BG58: 26.42 | BH58: 48.47 | BI58: 51.67 | BJ58: 55.3 | BK58: 56.15 | BL58: 58.18
A59: 51 | B59: 22.652 | C59: 31.626 | D59: 53.494 | E59: 57.89 | F59: 62.86 | G59: 64.736 | H59: 67.102 | I59: 68.082 | J59: 68.082 | K59: 71.106 | M59: 51 | N59: 22.652 | O59: 31.626 | P59: 53.494 | Q59: 57.89 | R59: 62.86 | S59: 64.736 | T59: 67.102 | U59: 68.082 | V59: 68.082 | W59: 71.106 | AA59: 51 | AB59: 24.152 | AC59: 33.126 | AD59: 54.994 | AE59: 59.39 | AF59: 64.36 | AG59: 66.236 | AH59: 68.602 | AI59: 69.582 | AJ59: 69.582 | AK59: 72.606 | AM59: 51 | AN59: 18 | AO59: 25.29 | AP59: 46.98 | AQ59: 50.19 | AR59: 53.81 | AS59: 54.66 | AT59: 56.7 | AV59: 51 | AW59: 17.5635 | AX59: 24.678 | AY59: 45.8375 | AZ59: 48.9625 | BA59: 52.5 | BB59: 53.325 | BC59: 55.3125 | BE59: 51 | BF59: 19.5 | BG59: 26.79 | BH59: 48.48 | BI59: 51.69 | BJ59: 55.31 | BK59: 56.16 | BL59: 58.2
A60: 52 | B60: 23.002 | C60: 32.298 | D60: 54.32 | E60: 58.772 | F60: 63.924 | G60: 65.8 | H60: 68.418 | I60: 69.44 | J60: 69.44 | K60: 73.472 | M60: 52 | N60: 23.002 | O60: 32.298 | P60: 54.32 | Q60: 58.772 | R60: 63.924 | S60: 65.8 | T60: 68.418 | U60: 69.44 | V60: 69.44 | W60: 73.472 | AA60: 52 | AB60: 24.502 | AC60: 33.798 | AD60: 55.82 | AE60: 60.272 | AF60: 65.424 | AG60: 67.3 | AH60: 69.918 | AI60: 70.94 | AJ60: 70.94 | AK60: 74.972 | AM60: 52 | AN60: 18.27 | AO60: 25.78 | AP60: 48.47 | AQ60: 51.94 | AR60: 55.36 | AS60: 56.61 | AT60: 58.91 | AV60: 52 | AW60: 17.82 | AX60: 25.1505 | AY60: 47.2875 | AZ60: 50.675 | BA60: 54.0125 | BB60: 55.225 | BC60: 57.475 | BE60: 52 | BF60: 19.77 | BG60: 27.28 | BH60: 49.97 | BI60: 53.44 | BJ60: 56.86 | BK60: 58.11 | BL60: 60.41
A61: 53 | B61: 23.45 | C61: 32.83 | D61: 55.146 | E61: 59.752 | F61: 65.072 | G61: 66.878 | H61: 69.566 | I61: 70.616 | J61: 70.616 | K61: 73.486 | M61: 53 | N61: 23.45 | O61: 32.83 | P61: 55.146 | Q61: 59.752 | R61: 65.072 | S61: 66.878 | T61: 69.566 | U61: 70.616 | V61: 70.616 | W61: 73.486 | AA61: 53 | AB61: 24.95 | AC61: 34.33 | AD61: 56.646 | AE61: 61.252 | AF61: 66.572 | AG61: 68.378 | AH61: 71.066 | AI61: 72.116 | AJ61: 72.116 | AK61: 74.986 | AM61: 53 | AN61: 18.63 | AO61: 26.18 | AP61: 49.21 | AQ61: 52.93 | AR61: 56.16 | AS61: 57.77 | AT61: 60.04 | AV61: 53 | AW61: 18.171 | AX61: 25.542 | AY61: 48.0125 | AZ61: 51.6375 | BA61: 54.7875 | BB61: 56.3625 | BC61: 58.575 | BE61: 53 | BF61: 20.13 | BG61: 27.68 | BH61: 50.71 | BI61: 54.43 | BJ61: 57.66 | BK61: 59.27 | BL61: 61.54
A62: 54 | B62: 23.828 | C62: 33.488 | D62: 56.056 | E62: 60.634 | F62: 66.052 | G62: 68.166 | H62: 70.882 | I62: 71.932 | J62: 71.932 | K62: 75.502 | M62: 54 | N62: 23.828 | O62: 33.488 | P62: 56.056 | Q62: 60.634 | R62: 66.052 | S62: 68.166 | T62: 70.882 | U62: 71.932 | V62: 71.932 | W62: 75.502 | AA62: 54 | AB62: 25.328 | AC62: 34.988 | AD62: 57.556 | AE62: 62.134 | AF62: 67.552 | AG62: 69.666 | AH62: 72.382 | AI62: 73.432 | AJ62: 73.432 | AK62: 77.002 | AM62: 54 | AN62: 18.99 | AO62: 26.73 | AP62: 49.97 | AQ62: 53.85 | AR62: 56.8 | AS62: 59.01 | AT62: 61.28 | AV62: 54 | AW62: 18.522 | AX62: 26.082 | AY62: 48.75 | AZ62: 52.5375 | BA62: 55.4125 | BB62: 57.575 | BC62: 59.7875 | BE62: 54 | BF62: 20.49 | BG62: 28.23 | BH62: 51.47 | BI62: 55.35 | BJ62: 58.3 | BK62: 60.51 | BL62: 62.78
A63: 55 | B63: 24.178 | C63: 34.104 | D63: 57.05 | E63: 61.46 | F63: 67.046 | G63: 69.3 | H63: 71.932 | I63: 73.024 | J63: 73.024 | K63: 77.952 | M63: 55 | N63: 24.178 | O63: 34.104 | P63: 57.05 | Q63: 61.46 | R63: 67.046 | S63: 69.3 | T63: 71.932 | U63: 73.024 | V63: 73.024 | W63: 77.952 | AA63: 55 | AB63: 25.678 | AC63: 35.604 | AD63: 58.55 | AE63: 62.96 | AF63: 68.546 | AG63: 70.8 | AH63: 73.432 | AI63: 74.524 | AJ63: 74.524 | AK63: 79.452 | AM63: 55 | AN63: 19.23 | AO63: 27.23 | AP63: 50.79 | AQ63: 54.94 | AR63: 57.57 | AS63: 60.32 | AT63: 62.4 | AV63: 55 | AW63: 18.765 | AX63: 26.568 | AY63: 49.55 | AZ63: 53.6 | BA63: 56.1625 | BB63: 58.85 | BC63: 60.875 | BE63: 55 | BF63: 20.73 | BG63: 28.73 | BH63: 52.29 | BI63: 56.44 | BJ63: 59.07 | BK63: 61.82 | BL63: 63.9
A64: 56 | B64: 24.626 | C64: 34.748 | D64: 58.086 | E64: 62.174 | F64: 68.096 | G64: 70.588 | H64: 73.094 | I64: 74.186 | J64: 74.186 | K64: 77.966 | M64: 56 | N64: 24.626 | O64: 34.748 | P64: 58.086 | Q64: 62.174 | R64: 68.096 | S64: 70.588 | T64: 73.094 | U64: 74.186 | V64: 74.186 | W64: 77.966 | AA64: 56 | AB64: 26.126 | AC64: 36.248 | AD64: 59.586 | AE64: 63.674 | AF64: 69.596 | AG64: 72.088 | AH64: 74.594 | AI64: 75.686 | AJ64: 75.686 | AK64: 79.466 | AM64: 56 | AN64: 19.59 | AO64: 27.81 | AP64: 51.69 | AQ64: 55.68 | AR64: 58.41 | AS64: 61.18 | AT64: 63.51 | AV64: 56 | AW64: 19.116 | AX64: 27.135 | AY64: 50.425 | AZ64: 54.325 | BA64: 56.9875 | BB64: 59.6875 | BC64: 61.9625 | BE64: 56 | BF64: 21.09 | BG64: 29.31 | BH64: 53.19 | BI64: 57.18 | BJ64: 59.91 | BK64: 62.68 | BL64: 65.01
A65: 57 | B65: 25.102 | C65: 35.35 | D65: 59.136 | E65: 63.28 | F65: 69.076 | G65: 71.736 | H65: 74.34 | I65: 75.432 | J65: 75.432 | K65: 80.234 | M65: 57 | N65: 25.102 | O65: 35.35 | P65: 59.136 | Q65: 63.28 | R65: 69.076 | S65: 71.736 | T65: 74.34 | U65: 75.432 | V65: 75.432 | W65: 80.234 | AA65: 57 | AB65: 26.602 | AC65: 36.85 | AD65: 60.636 | AE65: 64.78 | AF65: 70.576 | AG65: 73.236 | AH65: 75.84 | AI65: 76.932 | AJ65: 76.932 | AK65: 81.734 | AM65: 57 | AN65: 19.94 | AO65: 28.28 | AP65: 52.56 | AQ65: 56.27 | AR65: 59.3 | AS65: 62.47 | AT65: 64.61 | AV65: 57 | AW65: 19.4535 | AX65: 27.594 | AY65: 51.275 | AZ65: 54.9 | BA65: 57.85 | BB65: 60.95 | BC65: 63.0375 | BE65: 57 | BF65: 21.44 | BG65: 29.78 | BH65: 54.06 | BI65: 57.77 | BJ65: 60.8 | BK65: 63.97 | BL65: 66.11
A66: 58 | B66: 25.648 | C66: 35.938 | D66: 60.214 | E66: 64.148 | F66: 70.14 | G66: 73.024 | H66: 75.656 | I66: 76.776 | J66: 76.776 | K66: 80.248 | M66: 58 | N66: 25.648 | O66: 35.938 | P66: 60.214 | Q66: 64.148 | R66: 70.14 | S66: 73.024 | T66: 75.656 | U66: 76.776 | V66: 76.776 | W66: 80.248 | AA66: 58 | AB66: =B66+1.5 -> 27.148 | AC66: 37.438 | AD66: 61.714 | AE66: 65.648 | AF66: 71.64 | AG66: 74.524 | AH66: 77.156 | AI66: 78.276 | AJ66: 78.276 | AK66: 81.748 | AM66: 58 | AN66: 20.38 | AO66: 28.88 | AP66: 53.2 | AQ66: 57.34 | AR66: 60.41 | AS66: 63.59 | AT66: 65.47 | AV66: 58 | AW66: 19.8855 | AX66: 28.1745 | AY66: 51.9 | AZ66: 55.9375 | BA66: 58.9375 | BB66: 62.0375 | BC66: 63.875 | BE66: 58 | BF66: 21.88 | BG66: 30.38 | BH66: 54.7 | BI66: 58.84 | BJ66: 61.91 | BK66: 65.09 | BL66: 66.97
A67: 59 | B67: 26.012 | C67: 36.54 | D67: 61.264 | E67: 64.932 | F67: 71.204 | G67: 74.172 | H67: 76.986 | I67: 78.134 | J67: 78.134 | K67: 81.452 | M67: 59 | N67: 26.012 | O67: 36.54 | P67: 61.264 | Q67: 64.932 | R67: 71.204 | S67: 74.172 | T67: 76.986 | U67: 78.134 | V67: 78.134 | W67: 81.452 | AA67: 59 | AB67: 27.512 | AC67: 38.04 | AD67: 62.764 | AE67: 66.432 | AF67: 72.704 | AG67: 75.672 | AH67: 78.486 | AI67: 79.634 | AJ67: 79.634 | AK67: 82.952 | AM67: 59 | AN67: 20.83 | AO67: 29.54 | AP67: 53.76 | AQ67: 58.12 | AR67: 61.69 | AS67: 64.79 | AT67: 66.68 | AV67: 59 | AW67: 20.3175 | AX67: 28.8225 | AY67: 52.45 | AZ67: 56.7 | BA67: 60.1875 | BB67: 63.2125 | BC67: 65.05 | BE67: 59 | BF67: 22.33 | BG67: 31.04 | BH67: 55.26 | BI67: 59.62 | BJ67: 63.19 | BK67: 66.29 | BL67: 68.18
A68: 60 | B68: 26.278 | C68: 36.792 | D68: 62.258 | E68: 66.038 | F68: 72.352 | G68: 75.432 | H68: 77.924 | I68: 79.072 | J68: 79.072 | K68: 82.488 | M68: 60 | N68: 26.278 | O68: 36.792 | P68: 62.258 | Q68: 66.038 | R68: 72.352 | S68: 75.432 | T68: 77.924 | U68: 79.072 | V68: 79.072 | W68: 82.488 | AA68: 60 | AB68: 27.778 | AC68: 38.292 | AD68: 63.758 | AE68: 67.538 | AF68: 73.852 | AG68: 76.932 | AH68: 79.424 | AI68: 80.572 | AJ68: 80.572 | AK68: 83.988 | AM68: 60 | AN68: 21.19 | AO68: 30.3 | AP68: 54.62 | AQ68: 58.84 | AR68: 62.88 | AS68: 65.86 | AT68: 67.8 | AV68: 60 | AW68: 20.6685 | AX68: 29.565 | AY68: 53.2875 | AZ68: 57.4 | BA68: 61.35 | BB68: 64.25 | BC68: 66.15 | BE68: 60 | BF68: 22.69 | BG68: 31.8 | BH68: 56.12 | BI68: 60.34 | BJ68: 64.38 | BK68: 67.36 | BL68: 69.3
A69: 61 | B69: 26.992 | C69: 37.814 | D69: 63.322 | E69: 66.878 | F69: 73.5 | G69: 76.594 | H69: 77.938 | I69: 80.808 | J69: 80.808 | K69: 85.708 | M69: 61 | N69: 26.992 | O69: 37.814 | P69: 63.322 | Q69: 66.878 | R69: 73.5 | S69: 76.594 | T69: 77.938 | U69: 80.808 | V69: 80.808 | W69: 85.708 | AA69: 61 | AB69: 28.492 | AC69: 39.314 | AD69: 64.822 | AE69: 68.378 | AF69: 75 | AG69: 78.094 | AH69: 79.438 | AI69: 82.308 | AJ69: 82.308 | AK69: 87.208 | AM69: 61 | AN69: 21.52 | AO69: 30.98 | AP69: 55.49 | AQ69: 59.83 | AR69: 63.95 | AS69: 67.06 | AT69: 68.89 | AV69: 61 | AW69: 20.9925 | AX69: 30.2265 | AY69: 54.1375 | AZ69: 58.375 | BA69: 62.3875 | BB69: 65.425 | BC69: 67.2125 | BE69: 61 | BF69: 23.02 | BG69: 32.48 | BH69: 56.99 | BI69: 61.33 | BJ69: 65.45 | BK69: 68.56 | BL69: 70.39
A70: 62 | B70: 27.636 | C70: 38.486 | D70: 64.288 | E70: 68.152 | F70: 74.648 | G70: 77.854 | H70: 80.85 | I70: 82.054 | J70: 82.054 | K70: 86.716 | M70: 62 | N70: 27.636 | O70: 38.486 | P70: 64.288 | Q70: 68.152 | R70: 74.648 | S70: 77.854 | T70: 80.85 | U70: 82.054 | V70: 82.054 | W70: 86.716 | AA70: 62 | AB70: 29.136 | AC70: 39.986 | AD70: 65.788 | AE70: 69.652 | AF70: 76.148 | AG70: 79.354 | AH70: 82.35 | AI70: 83.554 | AJ70: 83.554 | AK70: 88.216 | AM70: 62 | AN70: 21.89 | AO70: 31.55 | AP70: 56.35 | AQ70: 60.54 | AR70: 65.07 | AS70: 68.19 | AT70: 70.08 | AV70: 62 | AW70: 21.357 | AX70: 30.78 | AY70: 54.975 | AZ70: 59.0625 | BA70: 63.4875 | BB70: 66.525 | BC70: 68.375 | BE70: 62 | BF70: 23.39 | BG70: 33.05 | BH70: 57.85 | BI70: 62.04 | BJ70: 66.57 | BK70: 69.69 | BL70: 71.58
A71: 63 | B71: 28.098 | C71: 39.242 | D71: 65.38 | E71: 69.132 | F71: 75.88 | G71: 79.198 | H71: 82.194 | I71: 83.412 | J71: 83.412 | K71: 87.794 | M71: 63 | N71: 28.098 | O71: 39.242 | P71: 65.38 | Q71: 69.132 | R71: 75.88 | S71: 79.198 | T71: 82.194 | U71: 83.412 | V71: 83.412 | W71: 87.794 | AA71: 63 | AB71: 29.598 | AC71: 40.742 | AD71: 66.88 | AE71: 70.632 | AF71: 77.38 | AG71: 80.698 | AH71: 83.694 | AI71: 84.912 | AJ71: 84.912 | AK71: 89.294 | AM71: 63 | AN71: 22.5 | AO71: 32.02 | AP71: 57.22 | AQ71: 61.28 | AR71: 66.23 | AS71: 69.19 | AT71: 71.38 | AV71: 63 | AW71: 21.951 | AX71: 31.239 | AY71: 55.825 | AZ71: 59.7875 | BA71: 64.6125 | BB71: 67.5 | BC71: 69.6375 | BE71: 63 | BF71: 24 | BG71: 33.52 | BH71: 58.72 | BI71: 62.78 | BJ71: 67.73 | BK71: 70.69 | BL71: 72.88
A72: 64 | B72: 28.63 | C72: 40.012 | D72: 66.444 | E72: 70.294 | F72: 77.14 | G72: 80.57 | H72: 83.51 | I72: 84.742 | J72: 84.742 | K72: 89.782 | M72: 64 | N72: 28.63 | O72: 40.012 | P72: 66.444 | Q72: 70.294 | R72: 77.14 | S72: 80.57 | T72: 83.51 | U72: 84.742 | V72: 84.742 | W72: 89.782 | AA72: 64 | AB72: 30.13 | AC72: 41.512 | AD72: 67.944 | AE72: 71.794 | AF72: 78.64 | AG72: 82.07 | AH72: 85.01 | AI72: 86.242 | AJ72: 86.242 | AK72: 91.282 | AM72: 64 | AN72: 22.82 | AO72: 32.64 | AP72: 58.14 | AQ72: 62.23 | AR72: 67.37 | AS72: 70.2 | AT72: 72.67 | AV72: 64 | AW72: 22.2615 | AX72: 31.8465 | AY72: 56.725 | AZ72: 60.7125 | BA72: 65.725 | BB72: 68.4875 | BC72: 70.9 | BE72: 64 | BF72: =AN72+1.5 -> 24.32 | BG72: 34.14 | BH72: 59.64 | BI72: 63.73 | BJ72: 68.87 | BK72: 71.7 | BL72: 74.17
A73: 65 | B73: 28.812 | C73: 40.782 | D73: 67.424 | E73: 71.428 | F73: 78.372 | G73: 81.998 | H73: 84.644 | I73: 84.756 | J73: 84.756 | K73: 89.796 | M73: 65 | N73: 28.812 | O73: 40.782 | P73: 67.424 | Q73: 71.428 | R73: 78.372 | S73: 81.998 | T73: 84.644 | U73: 84.756 | V73: 84.756 | W73: 89.796 | AA73: 65 | AB73: 30.312 | AC73: 42.282 | AD73: 68.924 | AE73: 72.928 | AF73: 79.872 | AG73: 83.498 | AH73: 86.144 | AI73: 86.256 | AJ73: 86.256 | AK73: 91.296 | AM73: 65 | AN73: 23.27 | AO73: 33.28 | AP73: 59.01 | AQ73: 63.19 | AR73: 68.52 | AS73: 71.52 | AT73: 73.95 | AV73: 65 | AW73: 22.707 | AX73: 32.4675 | AY73: 57.575 | AZ73: 61.65 | BA73: 66.85 | BB73: 69.775 | BC73: 72.15 | BE73: 65 | BF73: 24.77 | BG73: 34.78 | BH73: 60.51 | BI73: 64.69 | BJ73: 70.02 | BK73: 73.02 | BL73: 75.45
A74: 66 | B74: 29.652 | C74: 41.524 | D74: 68.502 | E74: 72.59 | F74: 79.604 | G74: 83.342 | H74: 86.156 | I74: 87.444 | J74: 87.444 | K74: 91.518 | M74: 66 | N74: 29.652 | O74: 41.524 | P74: 68.502 | Q74: 72.59 | R74: 79.604 | S74: 83.342 | T74: 86.156 | U74: 87.444 | V74: 87.444 | W74: 91.518 | AA74: 66 | AB74: 31.152 | AC74: 43.024 | AD74: 70.002 | AE74: 74.09 | AF74: 81.104 | AG74: 84.842 | AH74: 87.656 | AI74: 88.944 | AJ74: 88.944 | AK74: 93.018 | AM74: 66 | AN74: 23.63 | AO74: 33.87 | AP74: 59.83 | AQ74: 64.05 | AR74: 69.53 | AS74: 72.65 | AT74: 75.03 | AV74: 66 | AW74: 23.058 | AX74: 33.048 | AY74: 58.375 | AZ74: 62.4875 | BA74: 67.8375 | BB74: 70.875 | BC74: 73.2 | BE74: 66 | BF74: 25.13 | BG74: 35.37 | BH74: 61.33 | BI74: 65.55 | BJ74: 71.03 | BK74: 74.15 | BL74: 76.53
A75: 67 | B75: 29.792 | C75: 42.308 | D75: 69.482 | E75: 73.85 | F75: 80.948 | G75: 84.784 | H75: 87.654 | I75: 88.956 | J75: 88.956 | K75: 93.044 | M75: 67 | N75: 29.792 | O75: 42.308 | P75: 69.482 | Q75: 73.85 | R75: 80.948 | S75: 84.784 | T75: 87.654 | U75: 88.956 | V75: 88.956 | W75: 93.044 | AA75: 67 | AB75: 31.292 | AC75: 43.808 | AD75: 70.982 | AE75: 75.35 | AF75: 82.448 | AG75: 86.284 | AH75: 89.154 | AI75: 90.456 | AJ75: 90.456 | AK75: 94.544 | AM75: 67 | AN75: 24.06 | AO75: 33.89 | AP75: 59.85 | AQ75: 64.06 | AR75: 70.7 | AS75: 73.95 | AT75: 76 | AV75: 67 | AW75: 23.4765 | AX75: 33.0615 | AY75: 58.3875 | AZ75: 62.5 | BA75: 68.975 | BB75: 72.15 | BC75: 74.15 | BE75: 67 | BF75: 25.56 | BG75: 35.39 | BH75: 61.35 | BI75: 65.56 | BJ75: 72.2 | BK75: 75.45 | BL75: 77.5
A76: 68 | B76: 30.716 | C76: 43.05 | D76: 70.546 | E76: 75.082 | F76: 82.194 | G76: 84.798 | H76: 89.068 | I76: 90.384 | J76: 90.384 | K76: 94.99 | M76: 68 | N76: 30.716 | O76: 43.05 | P76: 70.546 | Q76: 75.082 | R76: 82.194 | S76: 84.798 | T76: 89.068 | U76: 90.384 | V76: 90.384 | W76: 94.99 | AA76: 68 | AB76: 32.216 | AC76: 44.55 | AD76: 72.046 | AE76: 76.582 | AF76: 83.694 | AG76: 86.298 | AH76: 90.568 | AI76: 91.884 | AJ76: 91.884 | AK76: 96.49 | AM76: 68 | AN76: 24.42 | AO76: 35.23 | AP76: 61.69 | AQ76: 65.95 | AR76: 71.74 | AS76: 75.03 | AT76: 77.16 | AV76: 68 | AW76: 23.8275 | AX76: 34.371 | AY76: 60.1875 | AZ76: 64.3375 | BA76: 69.9875 | BB76: 73.2 | BC76: 75.275 | BE76: 68 | BF76: 25.92 | BG76: 36.73 | BH76: 63.19 | BI76: 67.45 | BJ76: 73.24 | BK76: 76.53 | BL76: 78.66
A77: 69 | B77: 31.178 | C77: 43.82 | D77: 71.596 | E77: 76.328 | F77: 82.208 | G77: 85.218 | H77: 90.566 | I77: 91.91 | J77: 91.91 | K77: 96.544 | M77: 69 | N77: 31.178 | O77: 43.82 | P77: 71.596 | Q77: 76.328 | R77: 82.208 | S77: 85.218 | T77: 90.566 | U77: 91.91 | V77: 91.91 | W77: 96.544 | AA77: 69 | AB77: 32.678 | AC77: 45.32 | AD77: 73.096 | AE77: 77.828 | AF77: 83.708 | AG77: 86.718 | AH77: 92.066 | AI77: 93.41 | AJ77: 93.41 | AK77: 98.044 | AM77: 69 | AN77: 24.87 | AO77: 35.88 | AP77: 62.61 | AQ77: 66.89 | AR77: 72.85 | AS77: 76.12 | AT77: 78.4 | AV77: 69 | AW77: 24.2595 | AX77: 35.0055 | AY77: 61.0875 | AZ77: 65.2625 | BA77: 71.075 | BB77: 74.2625 | BC77: 76.4875 | BE77: 69 | BF77: 26.37 | BG77: 37.38 | BH77: 64.11 | BI77: 68.39 | BJ77: 74.35 | BK77: 77.62 | BL77: 79.9
A78: 70 | B78: 31.192 | C78: 44.156 | D78: 71.61 | E78: 77.504 | F78: 83.44 | G78: 86.282 | H78: 91.798 | I78: 93.156 | J78: 93.156 | K78: 97.944 | M78: 70 | N78: 31.192 | O78: 44.156 | P78: 71.61 | Q78: 77.504 | R78: 83.44 | S78: 86.282 | T78: 91.798 | U78: 93.156 | V78: 93.156 | W78: 97.944 | AA78: 70 | AB78: 32.692 | AC78: 45.656 | AD78: 73.11 | AE78: 79.004 | AF78: 84.94 | AG78: 87.782 | AH78: 93.298 | AI78: 94.656 | AJ78: 94.656 | AK78: 99.444 | AM78: 70 | AN78: 25.31 | AO78: 36.49 | AP78: 63.36 | AQ78: 67.86 | AR78: 74.12 | AS78: 77.16 | AT78: 79.6 | AV78: 70 | AW78: 24.6915 | AX78: 35.5995 | AY78: 61.8125 | AZ78: 66.2 | BA78: 72.3125 | BB78: 75.275 | BC78: 77.6625 | BE78: 70 | BF78: 26.81 | BG78: 37.99 | BH78: 64.86 | BI78: 69.36 | BJ78: 75.62 | BK78: 78.66 | BL78: 81.1
A79: 71 | B79: 32.256 | C79: 45.402 | D79: 73.668 | E79: 78.736 | F79: 83.832 | G79: 87.472 | H79: 93.464 | I79: 94.85 | J79: 94.85 | K79: 99.386 | M79: 71 | N79: 32.256 | O79: 45.402 | P79: 73.668 | Q79: 78.736 | R79: 83.832 | S79: 87.472 | T79: 93.464 | U79: 94.85 | V79: 94.85 | W79: 99.386 | AA79: 71 | AB79: 33.756 | AC79: 46.902 | AD79: 75.168 | AE79: 80.236 | AF79: 85.332 | AG79: 88.972 | AH79: 94.964 | AI79: 96.35 | AJ79: 96.35 | AK79: 100.886 | AM79: 71 | AN79: 25.82 | AO79: 37.22 | AP79: 64.33 | AQ79: 68.88 | AR79: 75.35 | AS79: 78.18 | AT79: 80.95 | AV79: 71 | AW79: 25.191 | AX79: 36.315 | AY79: 62.7625 | AZ79: 67.2 | BA79: 73.5125 | BB79: 76.275 | BC79: 78.975 | BE79: 71 | BF79: 27.32 | BG79: 38.72 | BH79: 65.83 | BI79: 70.38 | BJ79: 76.85 | BK79: 79.68 | BL79: 82.45
A80: 72 | B80: 32.536 | C80: 45.766 | D80: 73.682 | E80: 79.996 | F80: 84.854 | G80: 88.606 | H80: 93.478 | I80: 94.864 | J80: 94.864 | K80: 101.29 | M80: 72 | N80: 32.536 | O80: 45.766 | P80: 73.682 | Q80: 79.996 | R80: 84.854 | S80: 88.606 | T80: 93.478 | U80: 94.864 | V80: 94.864 | W80: 101.29 | AA80: 72 | AB80: 34.036 | AC80: 47.266 | AD80: 75.182 | AE80: 81.496 | AF80: 86.354 | AG80: 90.106 | AH80: 94.978 | AI80: 96.364 | AJ80: 96.364 | AK80: 102.79 | AM80: 72 | AN80: 26.32 | AO80: 37.83 | AP80: 64.87 | AQ80: 69.75 | AR80: 75.8 | AS80: 78.96 | AT80: 82.09 | AV80: 72 | AW80: 25.677 | AX80: 36.909 | AY80: 63.2875 | AZ80: 68.05 | BA80: 73.95 | BB80: 77.0375 | BC80: 80.0875 | BE80: 72 | BF80: 27.82 | BG80: 39.33 | BH80: 66.37 | BI80: 71.25 | BJ80: 77.3 | BK80: 80.46 | BL80: 83.59
A81: 73 | B81: 32.55 | C81: 47.026 | D81: 73.71 | E81: 80.01 | F81: 86.002 | G81: 90.006 | H81: 95.116 | I81: 96.502 | J81: 96.502 | K81: 104.09 | M81: 73 | N81: 32.55 | O81: 47.026 | P81: 73.71 | Q81: 80.01 | R81: 86.002 | S81: 90.006 | T81: 95.116 | U81: 96.502 | V81: 96.502 | W81: 104.09 | AA81: 73 | AB81: 34.05 | AC81: 48.526 | AD81: 75.21 | AE81: 81.51 | AF81: 87.502 | AG81: 91.506 | AH81: 96.616 | AI81: 98.002 | AJ81: 98.002 | AK81: 105.59 | AM81: 73 | AN81: 26.86 | AO81: 38.41 | AP81: 65.74 | AQ81: 70.7 | AR81: 76.89 | AS81: 80.28 | AT81: 83.51 | AV81: 73 | AW81: 26.2035 | AX81: 37.476 | AY81: 64.1375 | AZ81: 68.975 | BA81: 75.0125 | BB81: 78.325 | BC81: 81.475 | BE81: 73 | BF81: 28.36 | BG81: 39.91 | BH81: 67.24 | BI81: 72.2 | BJ81: 78.39 | BK81: 81.78 | BL81: 85.01
A82: 74 | B82: 32.564 | C82: 47.796 | D82: 74.662 | E82: 82.474 | F82: 87.36 | G82: 93.674 | H82: 95.536 | I82: 96.516 | J82: 96.516 | K82: 104.104 | M82: 74 | N82: 32.564 | O82: 47.796 | P82: 74.662 | Q82: 82.474 | R82: 87.36 | S82: 93.674 | T82: 95.536 | U82: 96.516 | V82: 96.516 | W82: 104.104 | AA82: 74 | AB82: 34.064 | AC82: 49.296 | AD82: 76.162 | AE82: 83.974 | AF82: 88.86 | AG82: 95.174 | AH82: 97.036 | AI82: 98.016 | AJ82: 98.016 | AK82: 105.604 | AM82: 74 | AN82: 27.23 | AO82: 39.27 | AP82: 66.78 | AQ82: 71.74 | AR82: 77.93 | AS82: 81.55 | AT82: 85.05 | AV82: 74 | AW82: 26.568 | AX82: 38.313 | AY82: 65.15 | AZ82: 69.9875 | BA82: 76.025 | BB82: 79.5625 | BC82: 82.975 | BE82: 74 | BF82: 28.73 | BG82: 40.77 | BH82: 68.28 | BI82: 73.24 | BJ82: 79.43 | BK82: 83.05 | BL82: 86.55
A83: 75 | B83: 32.578 | C83: 48.202 | D83: 76.776 | E83: 82.488 | F83: 88.032 | G83: 94.962 | H83: 96.516 | I83: 96.53 | J83: 96.53 | K83: 104.118 | M83: 75 | N83: 32.578 | O83: 48.202 | P83: 76.776 | Q83: 82.488 | R83: 88.032 | S83: 94.962 | T83: 96.516 | U83: 96.53 | V83: 96.53 | W83: 104.118 | AA83: 75 | AB83: 34.078 | AC83: 49.702 | AD83: 78.276 | AE83: 83.988 | AF83: 89.532 | AG83: 96.462 | AH83: 98.016 | AI83: 98.03 | AJ83: 98.03 | AK83: 105.618 | AM83: 75 | AN83: 27.77 | AO83: 39.96 | AP83: 67.65 | AQ83: 72.85 | AR83: 79.16 | AS83: 82.64 | AT83: 86.56 | AV83: 75 | AW83: 27.0945 | AX83: 38.988 | AY83: 66 | AZ83: 71.075 | BA83: 77.225 | BB83: 80.625 | BC83: 84.45 | BE83: 75 | BF83: 29.27 | BG83: 41.46 | BH83: 69.15 | BI83: 74.35 | BJ83: 80.66 | BK83: 84.14 | BL83: 88.06
A84: 76 | B84: 34.622 | C84: 49.392 | D84: 78.82 | E84: 84.882 | F84: 89.754 | G84: 94.962 | H84: 100.002 | I84: 100.548 | J84: 100.548 | K84: 108.71 | M84: 76 | N84: 34.622 | O84: 49.392 | P84: 78.82 | Q84: 84.882 | R84: 89.754 | S84: 94.962 | T84: 100.002 | U84: 100.548 | V84: 100.548 | W84: 108.71 | AA84: 76 | AB84: 36.122 | AC84: 50.892 | AD84: 80.32 | AE84: 86.382 | AF84: 91.254 | AG84: 96.462 | AH84: 101.502 | AI84: 102.048 | AJ84: 102.048 | AK84: 110.21 | AM84: 76 | AN84: 28.19 | AO84: 40.5 | AP84: 68.42 | AQ84: 73.95 | AR84: 79.76 | AS84: 84 | AT84: 87.45 | AV84: 76 | AW84: 27.4995 | AX84: 39.5145 | AY84: 66.75 | AZ84: 72.15 | BA84: 77.8125 | BB84: 81.95 | BC84: 85.3125 | BE84: 76 | BF84: 29.69 | BG84: 42 | BH84: 69.92 | BI84: 75.45 | BJ84: 81.26 | BK84: 85.5 | BL84: 88.95
A85: 77 | B85: 34.636 | C85: 49.7 | D85: 79.17 | E85: 84.896 | F85: 90.93 | G85: 95.536 | H85: 100.212 | I85: 102.844 | J85: 102.844 | K85: 108.724 | M85: 77 | N85: 34.636 | O85: 49.7 | P85: 79.17 | Q85: 84.896 | R85: 90.93 | S85: 95.536 | T85: 100.212 | U85: 102.844 | V85: 102.844 | W85: 108.724 | AA85: 77 | AB85: 36.136 | AC85: 51.2 | AD85: 80.67 | AE85: 86.396 | AF85: 92.43 | AG85: 97.036 | AH85: 101.712 | AI85: 104.344 | AJ85: 104.344 | AK85: 110.224 | AM85: 77 | AN85: 28.62 | AO85: 40.52 | AP85: 69.37 | AQ85: 75.03 | AR85: 81.32 | AS85: 85.24 | AT85: 89.05 | AV85: 77 | AW85: 27.918 | AX85: 39.528 | AY85: 67.675 | AZ85: 73.2 | BA85: 79.3375 | BB85: 83.1625 | BC85: 86.875 | BE85: 77 | BF85: 30.12 | BG85: 42.02 | BH85: 70.87 | BI85: 76.53 | BJ85: 82.82 | BK85: 86.74 | BL85: 90.55
A86: 78 | B86: 34.636 | C86: 49.994 | D86: 79.184 | E86: 85.344 | F86: 92.064 | G86: 96.796 | H86: 101.752 | I86: 104.174 | J86: 104.174 | K86: 109.648 | M86: 78 | N86: 34.636 | O86: 49.994 | P86: 79.184 | Q86: 85.344 | R86: 92.064 | S86: 96.796 | T86: 101.752 | U86: 104.174 | V86: 104.174 | W86: 109.648 | AA86: 78 | AB86: 36.136 | AC86: 51.494 | AD86: 80.684 | AE86: 86.844 | AF86: 93.564 | AG86: 98.296 | AH86: 103.252 | AI86: 105.674 | AJ86: 105.674 | AK86: 111.148 | AM86: 78 | AN86: 29.16 | AO86: 41.8 | AP86: 70.2 | AQ86: 76.23 | AR86: 82.38 | AS86: 86.56 | AT86: 90.57 | AV86: 78 | AW86: 28.4445 | AX86: 40.7835 | AY86: 68.4875 | AZ86: 74.375 | BA86: 80.375 | BB86: 84.45 | BC86: 88.3625 | BE86: 78 | BF86: 30.66 | BG86: 43.3 | BH86: 71.7 | BI86: 77.73 | BJ86: 83.88 | BK86: 88.06 | BL86: 92.07
A87: 79 | B87: 34.65 | C87: 51.128 | D87: 79.464 | E87: 87.766 | F87: 93.254 | G87: 98.14 | H87: 103.236 | I87: 105.518 | J87: 105.518 | K87: 111.734 | M87: 79 | N87: 34.65 | O87: 51.128 | P87: 79.464 | Q87: 87.766 | R87: 93.254 | S87: 98.14 | T87: 103.236 | U87: 105.518 | V87: 105.518 | W87: 111.734 | AA87: 79 | AB87: 36.15 | AC87: 52.628 | AD87: 80.964 | AE87: 89.266 | AF87: 94.754 | AG87: 99.64 | AH87: 104.736 | AI87: 107.018 | AJ87: 107.018 | AK87: 113.234 | AM87: 79 | AN87: 29.58 | AO87: 42.47 | AP87: 71.17 | AQ87: 77.32 | AR87: 83.41 | AS87: 87.7 | AT87: 92.2 | AV87: 79 | AW87: 28.863 | AX87: 41.4315 | AY87: 69.4375 | AZ87: 75.4375 | BA87: 81.375 | BB87: 85.5625 | BC87: 89.95 | BE87: 79 | BF87: 31.08 | BG87: 43.97 | BH87: 72.67 | BI87: 78.82 | BJ87: 84.91 | BK87: 89.2 | BL87: 93.7
A88: 80 | B88: 34.664 | C88: 51.142 | D88: 80.08 | E88: 87.864 | F88: 93.73 | G88: 99.61 | H88: 104.16 | I88: 106.862 | J88: 106.862 | K88: 112.756 | M88: 80 | N88: 34.664 | O88: 51.142 | P88: 80.08 | Q88: 87.864 | R88: 93.73 | S88: 99.61 | T88: 104.16 | U88: 106.862 | V88: 106.862 | W88: 112.756 | AA88: 80 | AB88: 36.164 | AC88: 52.642 | AD88: 81.58 | AE88: 89.364 | AF88: 95.23 | AG88: 101.11 | AH88: 105.66 | AI88: 108.362 | AJ88: 108.362 | AK88: 114.256 | AM88: 80 | AN88: 29.94 | AO88: 43.24 | AP88: 71.99 | AQ88: 78.49 | AR88: 84.5 | AS88: 88.92 | AT88: 93.54 | AV88: 80 | AW88: 29.214 | AX88: 42.1875 | AY88: 70.2375 | AZ88: 76.575 | BA88: 82.4375 | BB88: 86.75 | BC88: 91.2625 | BE88: 80 | BF88: 31.44 | BG88: 44.74 | BH88: 73.49 | BI88: 79.99 | BJ88: 86 | BK88: 90.42 | BL88: 95.04
A89: 81 | B89: 37.002 | C89: 52.15 | D89: 81.046 | E89: 88.928 | F89: 95.228 | G89: 100.898 | H89: 105.812 | I89: 106.876 | J89: 106.876 | K89: 113.064 | M89: 81 | N89: 37.002 | O89: 52.15 | P89: 81.046 | Q89: 88.928 | R89: 95.228 | S89: 100.898 | T89: 105.812 | U89: 106.876 | V89: 106.876 | W89: 113.064 | AA89: 81 | AB89: 38.502 | AC89: 53.65 | AD89: 82.546 | AE89: 90.428 | AF89: 96.728 | AG89: 102.398 | AH89: 107.312 | AI89: 108.376 | AJ89: 108.376 | AK89: 114.564 | AM89: 81 | AN89: 30.01 | AO89: 43.93 | AP89: 72.56 | AQ89: 79.6 | AR89: 84.92 | AS89: 90.25 | AT89: 94.38 | AV89: 81 | AW89: 29.2815 | AX89: 42.8625 | AY89: 70.7875 | AZ89: 77.6625 | BA89: 82.85 | BB89: 88.05 | BC89: 92.075 | BE89: 81 | BF89: 31.51 | BG89: 45.43 | BH89: 74.06 | BI89: 81.1 | BJ89: 86.42 | BK89: 91.75 | BL89: 95.88
A90: 82 | B90: 37.59 | C90: 53.816 | D90: 83.762 | E90: 91.672 | F90: 95.928 | G90: 102.354 | H90: 107.842 | I90: 109.438 | J90: 109.438 | K90: 116.662 | M90: 82 | N90: 37.59 | O90: 53.816 | P90: 83.762 | Q90: 91.672 | R90: 95.928 | S90: 102.354 | T90: 107.842 | U90: 109.438 | V90: 109.438 | W90: 116.662 | AA90: 82 | AB90: 39.09 | AC90: 55.316 | AD90: 85.262 | AE90: 93.172 | AF90: 97.428 | AG90: 103.854 | AH90: 109.342 | AI90: 110.938 | AJ90: 110.938 | AK90: 118.162 | AM90: 82 | AN90: 30.9 | AO90: 44.71 | AP90: 73.43 | AQ90: 80.58 | AR90: 86.28 | AS90: 91.42 | AT90: 95.88 | AV90: 82 | AW90: 30.1455 | AX90: 43.6185 | AY90: 71.6375 | AZ90: 78.6125 | BA90: 84.175 | BB90: 89.1875 | BC90: 93.5375 | BE90: 82 | BF90: 32.4 | BG90: 46.21 | BH90: 74.93 | BI90: 82.08 | BJ90: 87.78 | BK90: 92.92 | BL90: 97.38
A91: 83 | B91: 38.024 | C91: 54.474 | D91: 83.888 | E91: 91.672 | F91: 97.734 | G91: 103.81 | H91: 108.556 | I91: 109.76 | J91: 109.76 | K91: 116.676 | M91: 83 | N91: 38.024 | O91: 54.474 | P91: 83.888 | Q91: 91.672 | R91: 97.734 | S91: 103.81 | T91: 108.556 | U91: 109.76 | V91: 109.76 | W91: 116.676 | AA91: 83 | AB91: 39.524 | AC91: 55.974 | AD91: 85.388 | AE91: 93.172 | AF91: 99.234 | AG91: =G91+1.5 -> 105.31 | AH91: 110.056 | AI91: 111.26 | AJ91: 111.26 | AK91: 118.176 | AM91: 83 | AN91: 31.6 | AO91: 45.4 | AP91: 74.99 | AQ91: 81.73 | AR91: 86.92 | AS91: 92.74 | AT91: 97.08 | AV91: 83 | AW91: 30.834 | AX91: 44.2935 | AY91: 73.1625 | AZ91: 79.7375 | BA91: 84.8 | BB91: 90.475 | BC91: 94.7125 | BE91: 83 | BF91: 33.1 | BG91: 46.9 | BH91: 76.49 | BI91: 83.23 | BJ91: 88.42 | BK91: 94.24 | BL91: 98.58
A92: 84 | B92: 38.038 | C92: 54.558 | D92: 84.798 | E92: 92.288 | F92: 97.748 | G92: 105.308 | H92: 109.76 | I92: 109.788 | J92: 109.788 | K92: 116.69 | M92: 84 | N92: 38.038 | O92: 54.558 | P92: 84.798 | Q92: 92.288 | R92: 97.748 | S92: 105.308 | T92: 109.76 | U92: 109.788 | V92: 109.788 | W92: 116.69 | AA92: 84 | AB92: =B92+1.5 -> 39.538 | AC92: 56.058 | AD92: 86.298 | AE92: 93.788 | AF92: 99.248 | AG92: 106.808 | AH92: 111.26 | AI92: 111.288 | AJ92: 111.288 | AK92: 118.19 | AM92: 84 | AN92: 32.05 | AO92: 46.15 | AP92: 76 | AQ92: 82.59 | AR92: 88.55 | AS92: 94.06 | AT92: 98.36 | AV92: 84 | AW92: 31.266 | AX92: 45.0225 | AY92: 74.15 | AZ92: 80.575 | BA92: 86.3875 | BB92: 91.7625 | BC92: 95.9625 | BE92: 84 | BF92: 33.55 | BG92: 47.65 | BH92: 77.5 | BI92: 84.09 | BJ92: 90.05 | BK92: 95.56 | BL92: 99.86
A93: 85 | B93: 38.052 | C93: 55.244 | D93: 86.156 | E93: 94.948 | F93: 100.072 | G93: 106.666 | H93: 111.104 | I93: 111.202 | J93: 111.202 | K93: 119.322 | M93: 85 | N93: 38.052 | O93: 55.244 | P93: 86.156 | Q93: 94.948 | R93: 100.072 | S93: 106.666 | T93: 111.104 | U93: 111.202 | V93: 111.202 | W93: 119.322 | AA93: 85 | AB93: 39.552 | AC93: 56.744 | AD93: 87.656 | AE93: 96.448 | AF93: 101.572 | AG93: 108.166 | AH93: 112.604 | AI93: 112.702 | AJ93: 112.702 | AK93: 120.822 | AM93: 85 | AN93: 32.39 | AO93: 46.85 | AP93: 76.84 | AQ93: 83.61 | AR93: 88.56 | AS93: 95.41 | AT93: 99.45 | AV93: 85 | AW93: 31.6035 | AX93: 45.711 | AY93: 74.9625 | AZ93: 81.575 | BA93: 86.4 | BB93: 93.0875 | BC93: 97.025 | BE93: 85 | BF93: 33.89 | BG93: 48.35 | BH93: 78.34 | BI93: 85.11 | BJ93: 90.06 | BK93: 96.91 | BL93: 100.95
A94: 86 | B94: 39.284 | C94: 55.916 | D94: 87.99 | E94: 94.962 | F94: 100.086 | G94: 107.996 | H94: 112.434 | I94: 113.568 | J94: 113.568 | K94: 119.336 | M94: 86 | N94: 39.284 | O94: 55.916 | P94: 87.99 | Q94: 94.962 | R94: 100.086 | S94: 107.996 | T94: 112.434 | U94: 113.568 | V94: 113.568 | W94: 119.336 | AA94: 86 | AB94: 40.784 | AC94: 57.416 | AD94: 89.49 | AE94: 96.462 | AF94: 101.586 | AG94: 109.496 | AH94: 113.934 | AI94: 115.068 | AJ94: 115.068 | AK94: 120.836 | AM94: 86 | AN94: 32.55 | AO94: 47.61 | AP94: 78.07 | AQ94: 84.58 | AR94: 90.67 | AS94: 96.64 | AT94: 100.67 | AV94: 86 | AW94: 31.752 | AX94: 46.4535 | AY94: 76.1625 | AZ94: 82.5125 | BA94: 88.4625 | BB94: 94.2875 | BC94: 98.2125 | BE94: 86 | BF94: 34.05 | BG94: 49.11 | BH94: 79.57 | BI94: 86.08 | BJ94: 92.17 | BK94: 98.14 | BL94: 102.17
A95: 87 | B95: 39.298 | C95: 57.106 | D95: 89.348 | E95: 95.872 | F95: 100.086 | G95: 109.508 | H95: 113.666 | I95: 114.842 | J95: 114.842 | K95: 123.172 | M95: 87 | N95: 39.298 | O95: 57.106 | P95: 89.348 | Q95: 95.872 | R95: 100.086 | S95: 109.508 | T95: 113.666 | U95: 114.842 | V95: 114.842 | W95: 123.172 | AA95: 87 | AB95: 40.798 | AC95: 58.606 | AD95: 90.848 | AE95: 97.372 | AF95: 101.586 | AG95: 111.008 | AH95: 115.166 | AI95: 116.342 | AJ95: 116.342 | AK95: 124.672 | AM95: 87 | AN95: 33.24 | AO95: 48.31 | AP95: 79.72 | AQ95: 85.7 | AR95: 90.69 | AS95: 97.85 | AT95: 101.87 | AV95: 87 | AW95: 32.427 | AX95: 47.1285 | AY95: 77.775 | AZ95: 83.6125 | BA95: 88.475 | BB95: 95.4625 | BC95: 99.3875 | BE95: 87 | BF95: 34.74 | BG95: 49.81 | BH95: 81.22 | BI95: 87.2 | BJ95: 92.19 | BK95: 99.35 | BL95: 103.37
A96: 88 | B96: 39.312 | C96: 57.246 | D96: 90.216 | E96: 96.908 | F96: 103.012 | G96: 110.726 | H96: 115.794 | I96: 116.438 | J96: 116.438 | K96: 123.186 | M96: 88 | N96: 39.312 | O96: 57.246 | P96: 90.216 | Q96: 96.908 | R96: 103.012 | S96: 110.726 | T96: 115.794 | U96: 116.438 | V96: 116.438 | W96: 123.186 | AA96: 88 | AB96: 40.812 | AC96: 58.746 | AD96: 91.716 | AE96: 98.408 | AF96: 104.512 | AG96: 112.226 | AH96: 117.294 | AI96: 117.938 | AJ96: 117.938 | AK96: 124.686 | AM96: 88 | AN96: 33.64 | AO96: 49.1 | AP96: 80.95 | AQ96: 86.87 | AR96: 90.69 | AS96: 99.22 | AT96: 102.99 | AV96: 88 | AW96: 32.8185 | AX96: 47.898 | AY96: 78.975 | AZ96: 84.75 | BA96: 88.475 | BB96: 96.8 | BC96: 100.475 | BE96: 88 | BF96: 35.14 | BG96: 50.6 | BH96: 82.45 | BI96: 88.37 | BJ96: 92.19 | BK96: 100.72 | BL96: 104.49
A97: 89 | B97: 39.326 | C97: 57.26 | D97: 92.064 | E97: 97.93 | F97: 108.178 | G97: 111.958 | H97: 116.396 | I97: 118.524 | J97: 118.524 | K97: 126.854 | M97: 89 | N97: 39.326 | O97: 57.26 | P97: 92.064 | Q97: 97.93 | R97: 108.178 | S97: 111.958 | T97: 116.396 | U97: 118.524 | V97: 118.524 | W97: 126.854 | AA97: 89 | AB97: 40.826 | AC97: 58.76 | AD97: 93.564 | AE97: 99.43 | AF97: 109.678 | AG97: 113.458 | AH97: 117.896 | AI97: 120.024 | AJ97: 120.024 | AK97: 128.354 | AM97: 89 | AN97: 33.97 | AO97: 49.86 | AP97: 81.74 | AQ97: 87.8 | AR97: 93.34 | AS97: 100.32 | AT97: 104.18 | AV97: 89 | AW97: 33.1425 | AX97: 48.6405 | AY97: 79.75 | AZ97: 85.6625 | BA97: 91.0625 | BB97: 97.875 | BC97: 101.6375 | BE97: 89 | BF97: 35.47 | BG97: 51.36 | BH97: 83.24 | BI97: 89.3 | BJ97: 94.84 | BK97: 101.82 | BL97: 105.68
A98: 90 | B98: 39.34 | C98: 57.274 | D98: 93.548 | E98: 99.008 | F98: 108.192 | G98: 113.176 | H98: 117.628 | I98: 118.538 | J98: 118.538 | K98: 128.506 | M98: 90 | N98: 39.34 | O98: 57.274 | P98: 93.548 | Q98: 99.008 | R98: 108.192 | S98: 113.176 | T98: 117.628 | U98: 118.538 | V98: 118.538 | W98: 128.506 | AA98: 90 | AB98: 40.84 | AC98: 58.774 | AD98: 95.048 | AE98: 100.508 | AF98: 109.692 | AG98: 114.676 | AH98: 119.128 | AI98: 120.038 | AJ98: 120.038 | AK98: 130.006 | AM98: 90 | AN98: 34.51 | AO98: 50.62 | AP98: 83.41 | AQ98: 88.73 | AR98: 95.02 | AS98: 101.44 | AT98: 105.46 | AV98: 90 | AW98: 33.669 | AX98: 49.383 | AY98: 81.375 | AZ98: 86.5625 | BA98: 92.7 | BB98: 98.9625 | BC98: 102.8875 | BE98: 90 | BF98: 36.01 | BG98: 52.12 | BH98: 84.91 | BI98: 90.23 | BJ98: 96.52 | BK98: 102.94 | BL98: 106.96
A99: 91 | B99: 41.608 | C99: 59.738 | D99: 94.808 | E99: 100.254 | F99: 110.558 | G99: 114.492 | H99: 118.93 | I99: 121.548 | J99: 121.548 | K99: 130.928 | M99: 91 | N99: 41.608 | O99: 59.738 | P99: 94.808 | Q99: 100.254 | R99: 110.558 | S99: 114.492 | T99: 118.93 | U99: 121.548 | V99: 121.548 | W99: 130.928 | AA99: 91 | AB99: 43.108 | AC99: 61.238 | AD99: 96.308 | AE99: 101.754 | AF99: 112.058 | AG99: 115.992 | AH99: 120.43 | AI99: 123.048 | AJ99: 123.048 | AK99: 132.428 | AM99: 91 | AN99: 34.51 | AO99: 51.31 | AP99: 84.75 | AQ99: 89.71 | AR99: 96.07 | AS99: 102.55 | AT99: 106.57 | AV99: 91 | AW99: 33.669 | AX99: 50.058 | AY99: 82.6875 | AZ99: 87.525 | BA99: 93.725 | BB99: 100.05 | BC99: 103.975 | BE99: 91 | BF99: 36.01 | BG99: 52.81 | BH99: 86.25 | BI99: 91.21 | BJ99: 97.57 | BK99: 104.05 | BL99: 108.07
A100: 92 | B100: 41.636 | C100: 59.752 | D100: 96.054 | E100: 101.626 | F100: 110.586 | G100: 116.438 | H100: 120.624 | I100: 122.892 | J100: 122.892 | K100: 132.104 | M100: 92 | N100: 41.636 | O100: 59.752 | P100: 96.054 | Q100: 101.626 | R100: 110.586 | S100: 116.438 | T100: 120.624 | U100: 122.892 | V100: 122.892 | W100: 132.104 | AA100: 92 | AB100: 43.136 | AC100: 61.252 | AD100: 97.554 | AE100: 103.126 | AF100: 112.086 | AG100: 117.938 | AH100: 122.124 | AI100: 124.392 | AJ100: 124.392 | AK100: 133.604 | AM100: 92 | AN100: 35.2 | AO100: 52.08 | AP100: 85.91 | AQ100: 90.84 | AR100: 97.11 | AS100: 103.74 | AT100: 107.75 | AV100: 92 | AW100: 34.344 | AX100: 50.814 | AY100: 83.8125 | AZ100: 88.625 | BA100: 94.7375 | BB100: 101.2125 | BC100: 105.125 | BE100: 92 | BF100: 36.7 | BG100: 53.58 | BH100: 87.41 | BI100: 92.34 | BJ100: 98.61 | BK100: 105.24 | BL100: 109.25
A101: 93 | B101: 41.65 | C101: 59.948 | D101: 97.202 | E101: 102.872 | F101: 110.6 | G101: 117.712 | H101: 121.59 | I101: 124.208 | J101: 124.208 | K101: 132.118 | M101: 93 | N101: 41.65 | O101: 59.948 | P101: 97.202 | Q101: 102.872 | R101: 110.6 | S101: 117.712 | T101: 121.59 | U101: 124.208 | V101: 124.208 | W101: 132.118 | AA101: 93 | AB101: 43.15 | AC101: 61.448 | AD101: 98.702 | AE101: 104.372 | AF101: 112.1 | AG101: 119.212 | AH101: 123.09 | AI101: 125.708 | AJ101: 125.708 | AK101: 133.618 | AM101: 93 | AN101: 35.73 | AO101: 52.68 | AP101: 87.04 | AQ101: 92.08 | AR101: 98.27 | AS101: 104.86 | AT101: 108.97 | AV101: 93 | AW101: 34.857 | AX101: 51.3945 | AY101: 84.9125 | AZ101: 89.8375 | BA101: 95.875 | BB101: 102.3 | BC101: 106.3125 | BE101: 93 | BF101: 37.23 | BG101: 54.18 | BH101: 88.54 | BI101: 93.58 | BJ101: 99.77 | BK101: 106.36 | BL101: 110.47
A102: 94 | B102: 41.664 | C102: 60.55 | D102: 98.392 | E102: 104.034 | F102: 110.866 | G102: 118.286 | H102: 122.822 | I102: 125.468 | J102: 125.468 | K102: 135.478 | M102: 94 | N102: 41.664 | O102: 60.55 | P102: 98.392 | Q102: 104.034 | R102: 110.866 | S102: 118.286 | T102: 122.822 | U102: 125.468 | V102: 125.468 | W102: 135.478 | AA102: 94 | AB102: 43.164 | AC102: 62.05 | AD102: 99.892 | AE102: 105.534 | AF102: 112.366 | AG102: 119.786 | AH102: 124.322 | AI102: 126.968 | AJ102: 126.968 | AK102: 136.978 | AM102: 94 | AN102: 36.17 | AO102: 53.3 | AP102: 88.07 | AQ102: 93.21 | AR102: 99.39 | AS102: 105.95 | AT102: 110.17 | AV102: 94 | AW102: 35.289 | AX102: 52.002 | AY102: 85.925 | AZ102: 90.9375 | BA102: 96.9625 | BB102: 103.3625 | BC102: 107.4875 | BE102: 94 | BF102: 37.67 | BG102: 54.8 | BH102: 89.57 | BI102: 94.71 | BJ102: 100.89 | BK102: 107.45 | BL102: 111.67
A103: 95 | B103: 41.664 | C103: 60.564 | D103: 99.302 | E103: 105.182 | F103: 112.126 | G103: 119.434 | H103: 124.208 | I103: 125.482 | J103: 125.482 | K103: 135.492 | M103: 95 | N103: 41.664 | O103: 60.564 | P103: 99.302 | Q103: 105.182 | R103: 112.126 | S103: 119.434 | T103: 124.208 | U103: 125.482 | V103: 125.482 | W103: 135.492 | AA103: 95 | AB103: 43.164 | AC103: 62.064 | AD103: 100.802 | AE103: 106.682 | AF103: 113.626 | AG103: 120.934 | AH103: 125.708 | AI103: 126.982 | AJ103: 126.982 | AK103: 136.992 | AM103: 95 | AN103: 36.17 | AO103: 53.87 | AP103: 89.15 | AQ103: 94.26 | AR103: 100.45 | AS103: 107.18 | AT103: 111.29 | AV103: 95 | AW103: 35.289 | AX103: 52.5555 | AY103: 86.975 | AZ103: 91.9625 | BA103: 98 | BB103: 104.5625 | BC103: 108.575 | BE103: 95 | BF103: 37.67 | BG103: 55.37 | BH103: 90.65 | BI103: 95.76 | BJ103: 101.95 | BK103: 108.68 | BL103: 112.79
A104: 96 | B104: 44.1 | C104: 62.944 | D104: 100.38 | E104: 106.33 | F104: 113.372 | G104: 120.75 | H104: 125.454 | I104: 125.496 | J104: 125.496 | K104: 135.506 | M104: 96 | N104: 44.1 | O104: 62.944 | P104: 100.38 | Q104: 106.33 | R104: 113.372 | S104: 120.75 | T104: 125.454 | U104: 125.496 | V104: 125.496 | W104: 135.506 | AA104: 96 | AB104: 45.6 | AC104: 64.444 | AD104: 101.88 | AE104: 107.83 | AF104: 114.872 | AG104: 122.25 | AH104: 126.954 | AI104: 126.996 | AJ104: 126.996 | AK104: 137.006 | AM104: 96 | AN104: 36.19 | AO104: 54.49 | AP104: 89.97 | AQ104: 95.3 | AR104: 101.59 | AS104: 108.21 | AT104: 112.55 | AV104: 96 | AW104: 35.3025 | AX104: 53.163 | AY104: 87.775 | AZ104: 92.975 | BA104: 99.1125 | BB104: 105.575 | BC104: 109.8 | BE104: 96 | BF104: =AN104+1.5 -> 37.69 | BG104: 55.99 | BH104: 91.47 | BI104: 96.8 | BJ104: 103.09 | BK104: 109.71 | BL104: 114.05
A105: 97 | B105: 44.492 | C105: 63.028 | D105: 101.402 | E105: 107.618 | F105: 116.704 | G105: 122.808 | H105: 127.624 | I105: 128.31 | J105: 128.31 | K105: 135.52 | M105: 97 | N105: 44.492 | O105: 63.028 | P105: 101.402 | Q105: 107.618 | R105: 116.704 | S105: 122.808 | T105: 127.624 | U105: 128.31 | V105: 128.31 | W105: 135.52 | AA105: 97 | AB105: 45.992 | AC105: 64.528 | AD105: 102.902 | AE105: 109.118 | AF105: 118.204 | AG105: 124.308 | AH105: 129.124 | AI105: 129.81 | AJ105: 129.81 | AK105: 137.02 | AM105: 97 | AN105: 37.67 | AO105: 55.09 | AP105: 90.96 | AQ105: 96.34 | AR105: 102.72 | AS105: 109.41 | AT105: 113.67 | AV105: 97 | AW105: 36.747 | AX105: 53.7435 | AY105: 88.7375 | AZ105: 93.9875 | BA105: 100.2125 | BB105: 106.7375 | BC105: 110.9 | BE105: 97 | BF105: 39.17 | BG105: 56.59 | BH105: 92.46 | BI105: 97.84 | BJ105: 104.22 | BK105: 110.91 | BL105: 115.17
A106: 98 | B106: 44.506 | C106: 63.714 | D106: 102.466 | E106: 107.632 | F106: 116.718 | G106: 123.284 | H106: 128.128 | I106: 128.436 | J106: 128.436 | K106: 141.092 | M106: 98 | N106: 44.506 | O106: 63.714 | P106: 102.466 | Q106: 107.632 | R106: 116.718 | S106: 123.284 | T106: 128.128 | U106: 128.436 | V106: 128.436 | W106: 141.092 | AA106: 98 | AB106: 46.006 | AC106: 65.214 | AD106: 103.966 | AE106: 109.132 | AF106: 118.218 | AG106: 124.784 | AH106: 129.628 | AI106: 129.936 | AJ106: 129.936 | AK106: 142.592 | AM106: 98 | AN106: 37.96 | AO106: 55.7 | AP106: 91.88 | AQ106: 97.5 | AR106: 103.76 | AS106: 110.6 | AT106: 114.86 | AV106: 98 | AW106: 37.0305 | AX106: 54.3375 | AY106: 89.6375 | AZ106: 95.125 | BA106: 101.225 | BB106: 107.9 | BC106: 112.0625 | BE106: 98 | BF106: 39.46 | BG106: 57.2 | BH106: 93.38 | BI106: 99 | BJ106: 105.26 | BK106: 112.1 | BL106: 116.36
A107: 99 | B107: 45.43 | C107: 63.77 | D107: 103.306 | E107: 109.914 | F107: 116.928 | G107: 124.6 | H107: 129.444 | I107: 129.85 | J107: 129.85 | K107: 143.906 | M107: 99 | N107: 45.43 | O107: 63.77 | P107: 103.306 | Q107: 109.914 | R107: 116.928 | S107: 124.6 | T107: 129.444 | U107: 129.85 | V107: 129.85 | W107: 143.906 | AA107: 99 | AB107: 46.93 | AC107: 65.27 | AD107: 104.806 | AE107: 111.414 | AF107: 118.428 | AG107: 126.1 | AH107: 130.944 | AI107: 131.35 | AJ107: 131.35 | AK107: 145.406 | AM107: 99 | AN107: 37.97 | AO107: 56.29 | AP107: 92.84 | AQ107: 97.52 | AR107: 104.91 | AS107: 111.7 | AT107: 116.09 | AV107: 99 | AW107: 37.044 | AX107: 54.918 | AY107: 90.575 | AZ107: 95.1375 | BA107: 102.35 | BB107: 108.975 | BC107: 113.2625 | BE107: 99 | BF107: 39.47 | BG107: 57.79 | BH107: 94.34 | BI107: 99.02 | BJ107: 106.41 | BK107: 113.2 | BL107: 117.59
A108: 100 | B108: 45.808 | C108: 65.016 | D108: 103.992 | E108: 111.076 | F108: 121.072 | G108: 126.084 | H108: 130.816 | I108: 132.916 | J108: 132.916 | K108: 143.92 | M108: 100 | N108: 45.808 | O108: 65.016 | P108: 103.992 | Q108: 111.076 | R108: 121.072 | S108: 126.084 | T108: 130.816 | U108: 132.916 | V108: 132.916 | W108: 143.92 | AA108: 100 | AB108: 47.308 | AC108: 66.516 | AD108: 105.492 | AE108: 112.576 | AF108: 122.572 | AG108: 127.584 | AH108: 132.316 | AI108: 134.416 | AJ108: 134.416 | AK108: 145.42 | AM108: 100 | AN108: 37.98 | AO108: 56.8 | AP108: 93.61 | AQ108: 99.59 | AR108: 105.95 | AS108: 112.89 | AT108: 117.29 | AV108: 100 | AW108: 37.0575 | AX108: 55.4175 | AY108: 91.325 | AZ108: 97.1625 | BA108: 103.3625 | BB108: 110.1375 | BC108: 114.425 | BE108: 100 | BF108: 39.48 | BG108: 58.3 | BH108: 95.11 | BI108: 101.09 | BJ108: 107.45 | BK108: 114.39 | BL108: 118.79
A109: 101 | B109: 46.256 | C109: 65.66 | D109: 105.042 | E109: 112.182 | F109: 122.29 | G109: 127.344 | H109: 132.118 | I109: 134.246 | J109: 134.246 | K109: 145.376 | M109: 101 | N109: 46.256 | O109: 65.66 | P109: 105.042 | Q109: 112.182 | R109: 122.29 | S109: 127.344 | T109: 132.118 | U109: 134.246 | V109: 134.246 | W109: 145.376 | AA109: 101 | AB109: 47.756 | AC109: 67.16 | AD109: 106.542 | AE109: 113.682 | AF109: 123.79 | AG109: 128.844 | AH109: 133.618 | AI109: 135.746 | AJ109: 135.746 | AK109: 146.876 | AM109: 101 | AN109: 38 | AO109: 56.86 | AP109: 94.22 | AQ109: 100.37 | AR109: 106.28 | AS109: 113.42 | AT109: 117.59 | AV109: 101 | AW109: 37.071 | AX109: 55.4715 | AY109: 91.925 | AZ109: 97.925 | BA109: 103.6875 | BB109: 110.65 | BC109: 114.725 | BE109: 101 | BF109: 39.5 | BG109: 58.36 | BH109: 95.72 | BI109: 101.87 | BJ109: 107.78 | BK109: 114.92 | BL109: 119.09
A110: 102 | B110: 46.718 | C110: 66.318 | D110: 106.064 | E110: 113.302 | F110: 123.494 | G110: 128.604 | H110: 133.434 | I110: 135.576 | J110: 135.576 | K110: 146.832 | M110: 102 | N110: 46.718 | O110: 66.318 | P110: 106.064 | Q110: 113.302 | R110: 123.494 | S110: 128.604 | T110: 133.434 | U110: 135.576 | V110: 135.576 | W110: 146.832 | AA110: 102 | AB110: 48.218 | AC110: 67.818 | AD110: 107.564 | AE110: 114.802 | AF110: 124.994 | AG110: 130.104 | AH110: 134.934 | AI110: 137.076 | AJ110: 137.076 | AK110: 148.332 | AM110: 102 | AN110: 38.37 | AO110: 57.43 | AP110: 95.17 | AQ110: 101.37 | AR110: 107.34 | AS110: 114.54 | AT110: 118.77 | AV110: 102 | AW110: 37.4355 | AX110: 56.025 | AY110: 92.85 | AZ110: 98.9 | BA110: 104.725 | BB110: 111.75 | BC110: 115.875 | BE110: 102 | BF110: 39.87 | BG110: 58.93 | BH110: 96.67 | BI110: 102.87 | BJ110: 108.84 | BK110: 116.04 | BL110: 120.27
A111: 103 | B111: 47.18 | C111: 66.962 | D111: 107.114 | E111: 114.408 | F111: 124.712 | G111: 129.864 | H111: 134.736 | I111: 136.906 | J111: 136.906 | K111: 148.288 | M111: 103 | N111: 47.18 | O111: 66.962 | P111: 107.114 | Q111: 114.408 | R111: 124.712 | S111: 129.864 | T111: 134.736 | U111: 136.906 | V111: 136.906 | W111: 148.288 | AA111: 103 | AB111: 48.68 | AC111: 68.462 | AD111: 108.614 | AE111: 115.908 | AF111: 126.212 | AG111: 131.364 | AH111: 136.236 | AI111: 138.406 | AJ111: 138.406 | AK111: 149.788 | AM111: 103 | AN111: 38.76 | AO111: 57.99 | AP111: 96.11 | AQ111: 102.38 | AR111: 108.41 | AS111: 115.68 | AT111: 119.95 | AV111: 103 | AW111: 37.8135 | AX111: 56.5785 | AY111: 93.7625 | AZ111: 99.8875 | BA111: 105.7625 | BB111: 112.8625 | BC111: 117.025 | BE111: 103 | BF111: 40.26 | BG111: 59.49 | BH111: 97.61 | BI111: 103.88 | BJ111: 109.91 | BK111: 117.18 | BL111: 121.45
A112: 104 | B112: 47.628 | C112: 67.62 | D112: 108.15 | E112: 115.514 | F112: 125.916 | G112: 131.124 | H112: 136.052 | I112: 138.236 | J112: 138.236 | K112: 149.744 | M112: 104 | N112: 47.628 | O112: 67.62 | P112: 108.15 | Q112: 115.514 | R112: 125.916 | S112: 131.124 | T112: 136.052 | U112: 138.236 | V112: 138.236 | W112: 149.744 | AA112: 104 | AB112: 49.128 | AC112: 69.12 | AD112: 109.65 | AE112: 117.014 | AF112: 127.416 | AG112: 132.624 | AH112: 137.552 | AI112: 139.736 | AJ112: 139.736 | AK112: 151.244 | AM112: 104 | AN112: 39.13 | AO112: 58.56 | AP112: 97.05 | AQ112: 103.38 | AR112: 109.47 | AS112: 116.81 | AT112: 121.12 | AV112: 104 | AW112: 38.178 | AX112: 57.132 | AY112: 94.6875 | AZ112: 100.8625 | BA112: 106.8 | BB112: 113.9625 | BC112: 118.1625 | BE112: 104 | BF112: 40.63 | BG112: 60.06 | BH112: 98.55 | BI112: 104.88 | BJ112: 110.97 | BK112: 118.31 | BL112: 122.62
A113: 105 | B113: 48.09 | C113: 68.264 | D113: 109.2 | E113: 116.634 | F113: 127.134 | G113: 132.384 | H113: 137.354 | I113: 139.566 | J113: 139.566 | K113: 151.2 | M113: 105 | N113: 48.09 | O113: 68.264 | P113: 109.2 | Q113: 116.634 | R113: 127.134 | S113: 132.384 | T113: 137.354 | U113: 139.566 | V113: 139.566 | W113: 151.2 | AA113: 105 | AB113: 49.59 | AC113: 69.764 | AD113: 110.7 | AE113: 118.134 | AF113: 128.634 | AG113: 133.884 | AH113: 138.854 | AI113: 141.066 | AJ113: 141.066 | AK113: 152.7 | AM113: 105 | AN113: 39.52 | AO113: 59.14 | AP113: 97.99 | AQ113: 104.38 | AR113: 110.53 | AS113: 117.95 | AT113: 122.3 | AV113: 105 | AW113: 38.556 | AX113: 57.699 | AY113: 95.6 | AZ113: 101.8375 | BA113: 107.8375 | BB113: 115.075 | BC113: 119.3125 | BE113: 105 | BF113: 41.02 | BG113: 60.64 | BH113: 99.49 | BI113: 105.88 | BJ113: 112.03 | BK113: 119.45 | BL113: 123.8
A114: 106 | B114: 48.552 | C114: 68.922 | D114: 110.222 | E114: 117.74 | F114: 128.338 | G114: 133.644 | H114: 138.67 | I114: 140.896 | J114: 140.896 | K114: 152.656 | M114: 106 | N114: 48.552 | O114: 68.922 | P114: 110.222 | Q114: 117.74 | R114: 128.338 | S114: 133.644 | T114: 138.67 | U114: 140.896 | V114: 140.896 | W114: 152.656 | AA114: 106 | AB114: 50.052 | AC114: 70.422 | AD114: 111.722 | AE114: 119.24 | AF114: 129.838 | AG114: 135.144 | AH114: 140.17 | AI114: 142.396 | AJ114: 142.396 | AK114: 154.156 | AM114: 106 | AN114: 39.89 | AO114: 59.71 | AP114: 98.94 | AQ114: 105.4 | AR114: 111.6 | AS114: 119.08 | AT114: 123.47 | AV114: 106 | AW114: 38.9205 | AX114: 58.2525 | AY114: 96.525 | AZ114: 102.825 | BA114: 108.875 | BB114: 116.175 | BC114: 120.4625 | BE114: 106 | BF114: 41.39 | BG114: 61.21 | BH114: 100.44 | BI114: 106.9 | BJ114: 113.1 | BK114: 120.58 | BL114: 124.97
A115: 107 | B115: 49.014 | C115: 69.566 | D115: 111.272 | E115: 118.846 | F115: 129.556 | G115: 134.904 | H115: 139.972 | I115: 142.226 | J115: 142.226 | K115: 154.112 | M115: 107 | N115: 49.014 | O115: 69.566 | P115: 111.272 | Q115: 118.846 | R115: 129.556 | S115: 134.904 | T115: 139.972 | U115: 142.226 | V115: 142.226 | W115: 154.112 | AA115: 107 | AB115: 50.514 | AC115: 71.066 | AD115: 112.772 | AE115: 120.346 | AF115: 131.056 | AG115: 136.404 | AH115: 141.472 | AI115: 143.726 | AJ115: 143.726 | AK115: 155.612 | AM115: 107 | AN115: 40.28 | AO115: 60.28 | AP115: 99.87 | AQ115: 106.4 | AR115: 112.65 | AS115: 120.22 | AT115: 124.65 | AV115: 107 | AW115: 39.2985 | AX115: 58.806 | AY115: 97.4375 | AZ115: 103.8 | BA115: 109.9 | BB115: 117.2875 | BC115: 121.6125 | BE115: 107 | BF115: 41.78 | BG115: 61.78 | BH115: 101.37 | BI115: 107.9 | BJ115: 114.15 | BK115: 121.72 | BL115: 126.15
A116: 108 | B116: 49.462 | C116: 70.21 | D116: 112.308 | E116: 119.966 | F116: 130.76 | G116: 136.164 | H116: 141.274 | I116: 143.556 | J116: 143.556 | K116: 155.568 | M116: 108 | N116: 49.462 | O116: 70.21 | P116: 112.308 | Q116: 119.966 | R116: 130.76 | S116: 136.164 | T116: 141.274 | U116: 143.556 | V116: 143.556 | W116: 155.568 | AA116: 108 | AB116: 50.962 | AC116: 71.71 | AD116: 113.808 | AE116: 121.466 | AF116: 132.26 | AG116: 137.664 | AH116: 142.774 | AI116: 145.056 | AJ116: 145.056 | AK116: 157.068 | AM116: 108 | AN116: 40.65 | AO116: 60.84 | AP116: 100.82 | AQ116: 107.39 | AR116: 113.71 | AS116: 121.35 | AT116: 125.82 | AV116: 108 | AW116: 39.663 | AX116: 59.3595 | AY116: 98.3625 | AZ116: 104.775 | BA116: 110.9375 | BB116: 118.3875 | BC116: 122.75 | BE116: 108 | BF116: 42.15 | BG116: 62.34 | BH116: 102.32 | BI116: 108.89 | BJ116: 115.21 | BK116: 122.85 | BL116: 127.32
A117: 109 | B117: 49.924 | C117: 70.868 | D117: 113.358 | E117: 121.072 | F117: 131.978 | G117: 137.424 | H117: 142.59 | I117: 144.886 | J117: 144.886 | K117: 157.024 | M117: 109 | N117: 49.924 | O117: 70.868 | P117: 113.358 | Q117: 121.072 | R117: 131.978 | S117: 137.424 | T117: 142.59 | U117: 144.886 | V117: 144.886 | W117: 157.024 | AA117: 109 | AB117: 51.424 | AC117: 72.368 | AD117: 114.858 | AE117: 122.572 | AF117: 133.478 | AG117: 138.924 | AH117: 144.09 | AI117: 146.386 | AJ117: 146.386 | AK117: 158.524 | AM117: 109 | AN117: 41.04 | AO117: 61.41 | AP117: 101.76 | AQ117: 108.41 | AR117: 114.77 | AS117: 122.49 | AT117: 127 | AV117: 109 | AW117: 40.041 | AX117: 59.913 | AY117: 99.275 | AZ117: 105.7625 | BA117: 111.975 | BB117: 119.5 | BC117: 123.9 | BE117: 109 | BF117: 42.54 | BG117: 62.91 | BH117: 103.26 | BI117: 109.91 | BJ117: 116.27 | BK117: 123.99 | BL117: 128.5
A118: 110 | B118: 50.386 | C118: 71.512 | D118: 114.38 | E118: 122.178 | F118: 133.182 | G118: 138.684 | H118: 143.892 | I118: 146.216 | J118: 146.216 | K118: 158.48 | M118: 110 | N118: 50.386 | O118: 71.512 | P118: 114.38 | Q118: 122.178 | R118: 133.182 | S118: 138.684 | T118: 143.892 | U118: 146.216 | V118: 146.216 | W118: 158.48 | AA118: 110 | AB118: 51.886 | AC118: 73.012 | AD118: 115.88 | AE118: 123.678 | AF118: 134.682 | AG118: 140.184 | AH118: 145.392 | AI118: 147.716 | AJ118: 147.716 | AK118: 159.98 | AM118: 110 | AN118: 41.42 | AO118: 61.98 | AP118: 102.71 | AQ118: 109.41 | AR118: 115.84 | AS118: 123.62 | AT118: 128.18 | AV118: 110 | AW118: 40.4055 | AX118: 60.4665 | AY118: 100.2 | AZ118: 106.7375 | BA118: 113.0125 | BB118: 120.6 | BC118: 125.05 | BE118: 110 | BF118: 42.92 | BG118: 63.48 | BH118: 104.21 | BI118: 110.91 | BJ118: 117.34 | BK118: 125.12 | BL118: 129.68
A119: 111 | B119: 50.834 | C119: 72.17 | D119: 115.43 | E119: 123.298 | F119: 134.4 | G119: 139.944 | H119: 145.208 | I119: 147.546 | J119: 147.546 | K119: 159.936 | M119: 111 | N119: 50.834 | O119: 72.17 | P119: 115.43 | Q119: 123.298 | R119: 134.4 | S119: 139.944 | T119: 145.208 | U119: 147.546 | V119: 147.546 | W119: 159.936 | AA119: 111 | AB119: 52.334 | AC119: 73.67 | AD119: 116.93 | AE119: 124.798 | AF119: 135.9 | AG119: 141.444 | AH119: 146.708 | AI119: 149.046 | AJ119: 149.046 | AK119: 161.436 | AM119: 111 | AN119: 41.8 | AO119: 62.55 | AP119: 103.64 | AQ119: 110.41 | AR119: 116.9 | AS119: 124.76 | AT119: 129.36 | AV119: 111 | AW119: 40.7835 | AX119: 61.02 | AY119: 101.1125 | AZ119: 107.7125 | BA119: 114.05 | BB119: 121.7125 | BC119: 126.2 | BE119: 111 | BF119: 43.3 | BG119: 64.05 | BH119: 105.14 | BI119: 111.91 | BJ119: 118.4 | BK119: 126.26 | BL119: 130.86
A120: 112 | B120: 51.296 | C120: 72.814 | D120: 116.466 | E120: 124.404 | F120: 135.604 | G120: 141.204 | H120: 146.51 | I120: 148.876 | J120: 148.876 | K120: 161.392 | M120: 112 | N120: 51.296 | O120: 72.814 | P120: 116.466 | Q120: 124.404 | R120: 135.604 | S120: 141.204 | T120: 146.51 | U120: 148.876 | V120: 148.876 | W120: 161.392 | AA120: 112 | AB120: 52.796 | AC120: 74.314 | AD120: 117.966 | AE120: 125.904 | AF120: 137.104 | AG120: 142.704 | AH120: 148.01 | AI120: 150.376 | AJ120: 150.376 | AK120: 162.892 | AM120: 112 | AN120: 42.18 | AO120: 63.11 | AP120: 104.59 | AQ120: 111.42 | AR120: 117.96 | AS120: 125.88 | AT120: 130.53 | AV120: 112 | AW120: 41.148 | AX120: 61.5735 | AY120: 102.0375 | AZ120: 108.7 | BA120: 115.0875 | BB120: 122.8125 | BC120: 127.35 | BE120: 112 | BF120: 43.68 | BG120: 64.61 | BH120: 106.09 | BI120: 112.92 | BJ120: 119.46 | BK120: 127.38 | BL120: 132.03
A121: 113 | B121: 51.758 | C121: 73.472 | D121: 117.516 | E121: 125.51 | F121: 136.822 | G121: 142.464 | H121: 147.826 | I121: 150.206 | J121: 150.206 | K121: 162.848 | M121: 113 | N121: 51.758 | O121: 73.472 | P121: 117.516 | Q121: 125.51 | R121: 136.822 | S121: 142.464 | T121: 147.826 | U121: 150.206 | V121: 150.206 | W121: 162.848 | AA121: 113 | AB121: 53.258 | AC121: 74.972 | AD121: 119.016 | AE121: 127.01 | AF121: 138.322 | AG121: 143.964 | AH121: 149.326 | AI121: 151.706 | AJ121: 151.706 | AK121: 164.348 | AM121: 113 | AN121: 42.55 | AO121: 63.68 | AP121: 105.52 | AQ121: 112.42 | AR121: 119.03 | AS121: 127.02 | AT121: 131.7 | AV121: 113 | AW121: 41.5125 | AX121: 62.127 | AY121: 102.95 | AZ121: 109.675 | BA121: 116.125 | BB121: 123.925 | BC121: 128.4875 | BE121: 113 | BF121: 44.05 | BG121: 65.18 | BH121: 107.02 | BI121: 113.92 | BJ121: 120.53 | BK121: 128.52 | BL121: 133.2
A122: 114 | B122: 52.22 | C122: 74.116 | D122: 118.552 | E122: 126.63 | F122: 138.026 | G122: 143.724 | H122: 149.128 | I122: 151.536 | J122: 151.536 | K122: 164.304 | M122: 114 | N122: 52.22 | O122: 74.116 | P122: 118.552 | Q122: 126.63 | R122: 138.026 | S122: 143.724 | T122: 149.128 | U122: 151.536 | V122: 151.536 | W122: 164.304 | AA122: 114 | AB122: 53.72 | AC122: 75.616 | AD122: 120.052 | AE122: 128.13 | AF122: 139.526 | AG122: 145.224 | AH122: 150.628 | AI122: 153.036 | AJ122: 153.036 | AK122: 165.804 | AM122: 114 | AN122: 42.94 | AO122: 64.25 | AP122: 106.47 | AQ122: 113.42 | AR122: 120.09 | AS122: 128.15 | AT122: 132.88 | AV122: 114 | AW122: 41.8905 | AX122: 62.6805 | AY122: 103.875 | AZ122: 110.65 | BA122: 117.1625 | BB122: 125.025 | BC122: 129.6375 | BE122: 114 | BF122: 44.44 | BG122: 65.75 | BH122: 107.97 | BI122: 114.92 | BJ122: 121.59 | BK122: 129.65 | BL122: 134.38
A123: 115 | B123: 52.668 | C123: 74.774 | D123: 119.588 | E123: 127.736 | F123: 139.244 | G123: 144.984 | H123: 150.444 | I123: 152.866 | J123: 152.866 | K123: 165.76 | M123: 115 | N123: 52.668 | O123: 74.774 | P123: 119.588 | Q123: 127.736 | R123: 139.244 | S123: 144.984 | T123: 150.444 | U123: 152.866 | V123: 152.866 | W123: 165.76 | AA123: 115 | AB123: 54.168 | AC123: 76.274 | AD123: 121.088 | AE123: 129.236 | AF123: 140.744 | AG123: 146.484 | AH123: 151.944 | AI123: 154.366 | AJ123: 154.366 | AK123: 167.26 | AM123: 115 | AN123: 43.31 | AO123: 64.81 | AP123: 107.42 | AQ123: 114.43 | AR123: 121.16 | AS123: 129.29 | AT123: 134.06 | AV123: 115 | AW123: 42.255 | AX123: 63.234 | AY123: 104.8 | AZ123: 111.6375 | BA123: 118.2 | BB123: 126.1375 | BC123: 130.7875 | BE123: 115 | BF123: 44.81 | BG123: 66.31 | BH123: 108.92 | BI123: 115.93 | BJ123: 122.66 | BK123: 130.79 | BL123: 135.56
A124: 116 | B124: 53.13 | C124: 75.418 | D124: 120.638 | E124: 128.842 | F124: 140.448 | G124: 146.244 | H124: 151.746 | I124: 154.182 | J124: 154.182 | K124: 167.216 | M124: 116 | N124: 53.13 | O124: 75.418 | P124: 120.638 | Q124: 128.842 | R124: 140.448 | S124: 146.244 | T124: 151.746 | U124: 154.182 | V124: 154.182 | W124: 167.216 | AA124: 116 | AB124: =B124+1.5 -> 54.63 | AC124: 76.918 | AD124: 122.138 | AE124: 130.342 | AF124: 141.948 | AG124: 147.744 | AH124: 153.246 | AI124: 155.682 | AJ124: 155.682 | AK124: 168.716 | AM124: 116 | AN124: 43.7 | AO124: 65.4 | AP124: 108.36 | AQ124: 115.43 | AR124: 122.22 | AS124: 130.42 | AT124: 135.24 | AV124: 116 | AW124: 42.633 | AX124: 63.801 | AY124: 105.7125 | AZ124: 112.6125 | BA124: 119.2375 | BB124: 127.2375 | BC124: 131.9375 | BE124: 116 | BF124: 45.2 | BG124: 66.9 | BH124: 109.86 | BI124: 116.93 | BJ124: 123.72 | BK124: 131.92 | BL124: 136.74
A125: 117 | B125: 53.592 | C125: 76.062 | D125: 121.66 | E125: 129.962 | F125: 141.666 | G125: 147.504 | H125: 153.048 | I125: 155.512 | J125: 155.512 | K125: 168.672 | M125: 117 | N125: 53.592 | O125: 76.062 | P125: 121.66 | Q125: 129.962 | R125: 141.666 | S125: 147.504 | T125: 153.048 | U125: 155.512 | V125: 155.512 | W125: 168.672 | AA125: 117 | AB125: 55.092 | AC125: 77.562 | AD125: 123.16 | AE125: 131.462 | AF125: 143.166 | AG125: 149.004 | AH125: 154.548 | AI125: 157.012 | AJ125: 157.012 | AK125: 170.172 | AM125: 117 | AN125: 44.07 | AO125: 65.96 | AP125: 109.3 | AQ125: 116.43 | AR125: 123.28 | AS125: 131.56 | AT125: 136.4 | AV125: 117 | AW125: 42.9975 | AX125: 64.3545 | AY125: 106.6375 | AZ125: 113.5875 | BA125: 120.275 | BB125: 128.35 | BC125: 133.075 | BE125: 117 | BF125: 45.57 | BG125: 67.46 | BH125: 110.8 | BI125: 117.93 | BJ125: 124.78 | BK125: 133.06 | BL125: 137.9
A126: 118 | B126: 54.04 | C126: 76.72 | D126: 122.71 | E126: 131.068 | F126: 142.87 | G126: 148.778 | H126: 154.364 | I126: 156.842 | J126: 156.842 | K126: 170.128 | M126: 118 | N126: 54.04 | O126: 76.72 | P126: 122.71 | Q126: 131.068 | R126: 142.87 | S126: 148.778 | T126: 154.364 | U126: 156.842 | V126: 156.842 | W126: 170.128 | AA126: 118 | AB126: 55.54 | AC126: 78.22 | AD126: 124.21 | AE126: 132.568 | AF126: 144.37 | AG126: 150.278 | AH126: 155.864 | AI126: 158.342 | AJ126: 158.342 | AK126: 171.628 | AM126: 118 | AN126: 44.46 | AO126: 66.53 | AP126: 110.24 | AQ126: 117.44 | AR126: 124.35 | AS126: 132.69 | AT126: 137.58 | AV126: 118 | AW126: 43.3755 | AX126: 64.908 | AY126: 107.55 | AZ126: 114.575 | BA126: 121.3125 | BB126: 129.45 | BC126: 134.225 | BE126: 118 | BF126: 45.96 | BG126: 68.03 | BH126: 111.74 | BI126: 118.94 | BJ126: 125.85 | BK126: 134.19 | BL126: 139.08
A127: 119 | B127: 54.502 | C127: 77.364 | D127: 123.746 | E127: 132.174 | F127: 144.088 | G127: 150.038 | H127: 155.666 | I127: 158.172 | J127: 158.172 | K127: 171.584 | M127: 119 | N127: 54.502 | O127: 77.364 | P127: 123.746 | Q127: 132.174 | R127: 144.088 | S127: 150.038 | T127: 155.666 | U127: 158.172 | V127: 158.172 | W127: 171.584 | AA127: 119 | AB127: 56.002 | AC127: 78.864 | AD127: 125.246 | AE127: 133.674 | AF127: 145.588 | AG127: 151.538 | AH127: 157.166 | AI127: 159.672 | AJ127: 159.672 | AK127: 173.084 | AM127: 119 | AN127: 44.83 | AO127: 67.1 | AP127: 111.19 | AQ127: 118.44 | AR127: 125.41 | AS127: 133.83 | AT127: 138.76 | AV127: 119 | AW127: 43.74 | AX127: 65.4615 | AY127: 108.475 | AZ127: 115.55 | BA127: 122.35 | BB127: 130.5625 | BC127: 135.375 | BE127: 119 | BF127: 46.33 | BG127: 68.6 | BH127: 112.69 | BI127: 119.94 | BJ127: 126.91 | BK127: 135.33 | BL127: 140.26
A128: 120 | B128: 54.964 | C128: 78.022 | D128: 124.796 | E128: 133.294 | F128: 145.292 | G128: 151.298 | H128: 156.982 | I128: 159.502 | J128: 159.502 | K128: 173.04 | M128: 120 | N128: 54.964 | O128: 78.022 | P128: 124.796 | Q128: 133.294 | R128: 145.292 | S128: 151.298 | T128: 156.982 | U128: 159.502 | V128: 159.502 | W128: 173.04 | AA128: 120 | AB128: 56.464 | AC128: 79.522 | AD128: 126.296 | AE128: 134.794 | AF128: 146.792 | AG128: 152.798 | AH128: 158.482 | AI128: 161.002 | AJ128: 161.002 | AK128: 174.54 | AM128: 120 | AN128: 45.22 | AO128: 67.67 | AP128: 112.12 | AQ128: 119.44 | AR128: 126.47 | AS128: 134.95 | AT128: 139.94 | AV128: 120 | AW128: 44.118 | AX128: 66.015 | AY128: 109.3875 | AZ128: 116.525 | BA128: 123.3875 | BB128: 131.6625 | BC128: 136.525 | BE128: 120 | BF128: 46.72 | BG128: 69.17 | BH128: 113.62 | BI128: 120.94 | BJ128: 127.97 | BK128: 136.45 | BL128: 141.44
A129: 121 | B129: 55.426 | C129: 78.666 | D129: 125.818 | E129: 134.4 | F129: 146.496 | G129: 152.558 | H129: 158.284 | I129: 160.832 | J129: 160.832 | K129: 174.496 | M129: 121 | N129: 55.426 | O129: 78.666 | P129: 125.818 | Q129: 134.4 | R129: 146.496 | S129: 152.558 | T129: 158.284 | U129: 160.832 | V129: 160.832 | W129: 174.496 | AA129: 121 | AB129: 56.926 | AC129: 80.166 | AD129: 127.318 | AE129: 135.9 | AF129: 147.996 | AG129: 154.058 | AH129: 159.784 | AI129: 162.332 | AJ129: 162.332 | AK129: 175.996 | AM129: 121 | AN129: 45.59 | AO129: 68.23 | AP129: 113.07 | AQ129: 120.45 | AR129: 127.54 | AS129: 136.09 | AT129: 141.12 | AV129: 121 | AW129: 44.4825 | AX129: 66.5685 | AY129: 110.3125 | AZ129: 117.5125 | BA129: 124.425 | BB129: 132.775 | BC129: 137.675 | BE129: 121 | BF129: 47.09 | BG129: 69.73 | BH129: 114.57 | BI129: 121.95 | BJ129: 129.04 | BK129: 137.59 | BL129: 142.62
A130: 122 | B130: 55.874 | C130: 79.324 | D130: 126.868 | E130: 135.506 | F130: 147.714 | G130: 153.818 | H130: 159.6 | I130: 162.162 | J130: 162.162 | K130: 175.952 | M130: 122 | N130: 55.874 | O130: 79.324 | P130: 126.868 | Q130: 135.506 | R130: 147.714 | S130: 153.818 | T130: 159.6 | U130: 162.162 | V130: 162.162 | W130: 175.952 | AA130: 122 | AB130: 57.374 | AC130: 80.824 | AD130: 128.368 | AE130: 137.006 | AF130: 149.214 | AG130: 155.318 | AH130: 161.1 | AI130: 163.662 | AJ130: 163.662 | AK130: 177.452 | AM130: 122 | AN130: 45.98 | AO130: 68.8 | AP130: 114.01 | AQ130: 121.45 | AR130: 128.6 | AS130: 137.22 | AT130: 142.28 | AV130: 122 | AW130: 44.8605 | AX130: 67.122 | AY130: 111.225 | AZ130: 118.4875 | BA130: 125.4625 | BB130: 133.875 | BC130: 138.8125 | BE130: 122 | BF130: 47.48 | BG130: 70.3 | BH130: 115.51 | BI130: 122.95 | BJ130: 130.1 | BK130: 138.72 | BL130: 143.78
A131: 123 | B131: 56.336 | C131: 79.968 | D131: 127.904 | E131: 136.626 | F131: 148.918 | G131: 155.078 | H131: 160.902 | I131: 163.492 | J131: 163.492 | K131: 177.408 | M131: 123 | N131: 56.336 | O131: 79.968 | P131: 127.904 | Q131: 136.626 | R131: 148.918 | S131: 155.078 | T131: 160.902 | U131: 163.492 | V131: 163.492 | W131: 177.408 | AA131: 123 | AB131: 57.836 | AC131: 81.468 | AD131: 129.404 | AE131: 138.126 | AF131: 150.418 | AG131: 156.578 | AH131: 162.402 | AI131: 164.992 | AJ131: 164.992 | AK131: 178.908 | AM131: 123 | AN131: 46.36 | AO131: 69.37 | AP131: 114.95 | AQ131: 122.45 | AR131: 129.66 | AS131: 138.36 | AT131: 143.46 | AV131: 123 | AW131: 45.225 | AX131: 67.6755 | AY131: 112.15 | AZ131: 119.4625 | BA131: 126.5 | BB131: 134.9875 | BC131: 139.9625 | BE131: 123 | BF131: 47.86 | BG131: 70.87 | BH131: 116.45 | BI131: 123.95 | BJ131: 131.16 | BK131: 139.86 | BL131: 144.96
A132: 124 | B132: 56.798 | C132: 80.612 | D132: 128.954 | E132: 137.732 | F132: 150.136 | G132: 156.338 | H132: 162.204 | I132: 164.822 | J132: 164.822 | K132: 178.864 | M132: 124 | N132: 56.798 | O132: 80.612 | P132: 128.954 | Q132: 137.732 | R132: 150.136 | S132: 156.338 | T132: 162.204 | U132: 164.822 | V132: 164.822 | W132: 178.864 | AA132: 124 | AB132: 58.298 | AC132: 82.112 | AD132: 130.454 | AE132: 139.232 | AF132: 151.636 | AG132: 157.838 | AH132: 163.704 | AI132: 166.322 | AJ132: 166.322 | AK132: 180.364 | AM132: 124 | AN132: 46.73 | AO132: 69.93 | AP132: 115.89 | AQ132: 123.46 | AR132: 130.73 | AS132: 139.49 | AT132: 144.64 | AV132: 124 | AW132: 45.5895 | AX132: 68.229 | AY132: 113.0625 | AZ132: 120.45 | BA132: 127.5375 | BB132: 136.0875 | BC132: 141.1125 | BE132: 124 | BF132: 48.23 | BG132: 71.43 | BH132: 117.39 | BI132: 124.96 | BJ132: 132.23 | BK132: 140.99 | BL132: 146.14
A133: 125 | B133: 57.246 | C133: 81.27 | D133: 129.976 | E133: 138.838 | F133: 151.34 | G133: 157.598 | H133: 163.52 | I133: 166.152 | J133: 166.152 | K133: 180.32 | M133: 125 | N133: 57.246 | O133: 81.27 | P133: 129.976 | Q133: 138.838 | R133: 151.34 | S133: 157.598 | T133: 163.52 | U133: 166.152 | V133: 166.152 | W133: 180.32 | AA133: 125 | AB133: 58.746 | AC133: 82.77 | AD133: 131.476 | AE133: 140.338 | AF133: 152.84 | AG133: 159.098 | AH133: 165.02 | AI133: 167.652 | AJ133: 167.652 | AK133: 181.82 | AM133: 125 | AN133: 47.12 | AO133: 70.5 | AP133: 116.84 | AQ133: 124.46 | AR133: 131.78 | AS133: 140.63 | AT133: 145.82 | AV133: 125 | AW133: 45.9675 | AX133: 68.7825 | AY133: 113.9875 | AZ133: 121.425 | BA133: 128.5625 | BB133: 137.2 | BC133: 142.2625 | BE133: 125 | BF133: 48.62 | BG133: 72 | BH133: 118.34 | BI133: 125.96 | BJ133: 133.28 | BK133: 142.13 | BL133: 147.32
A134: 126 | B134: 57.708 | C134: 81.914 | D134: 131.026 | E134: 139.958 | F134: 152.558 | G134: 158.858 | H134: 164.822 | I134: 167.482 | J134: 167.482 | K134: 181.776 | M134: 126 | N134: 57.708 | O134: 81.914 | P134: 131.026 | Q134: 139.958 | R134: 152.558 | S134: 158.858 | T134: 164.822 | U134: 167.482 | V134: 167.482 | W134: 181.776 | AA134: 126 | AB134: 59.208 | AC134: 83.414 | AD134: 132.526 | AE134: 141.458 | AF134: 154.058 | AG134: 160.358 | AH134: 166.322 | AI134: 168.982 | AJ134: 168.982 | AK134: 183.276 | AM134: 126 | AN134: 47.49 | AO134: 71.07 | AP134: 117.77 | AQ134: 125.46 | AR134: 132.84 | AS134: 141.76 | AT134: 146.99 | AV134: 126 | AW134: 46.332 | AX134: 69.336 | AY134: 114.9 | AZ134: 122.4 | BA134: 129.6 | BB134: 138.3 | BC134: 143.4 | BE134: 126 | BF134: 48.99 | BG134: 72.57 | BH134: 119.27 | BI134: 126.96 | BJ134: 134.34 | BK134: 143.26 | BL134: 148.49
A135: 127 | B135: 58.17 | C135: 82.572 | D135: 132.062 | E135: 141.064 | F135: 153.762 | G135: 160.118 | H135: 166.138 | I135: 168.812 | J135: 168.812 | K135: 183.232 | M135: 127 | N135: 58.17 | O135: 82.572 | P135: 132.062 | Q135: 141.064 | R135: 153.762 | S135: 160.118 | T135: 166.138 | U135: 168.812 | V135: 168.812 | W135: 183.232 | AA135: 127 | AB135: 59.67 | AC135: 84.072 | AD135: 133.562 | AE135: 142.564 | AF135: 155.262 | AG135: 161.618 | AH135: 167.638 | AI135: 170.312 | AJ135: 170.312 | AK135: 184.732 | AM135: 127 | AN135: 47.88 | AO135: 71.64 | AP135: 118.72 | AQ135: 126.47 | AR135: 133.9 | AS135: 142.9 | AT135: 148.16 | AV135: 127 | AW135: 46.71 | AX135: 69.8895 | AY135: 115.825 | AZ135: 123.3875 | BA135: 130.6375 | BB135: 139.4125 | BC135: 144.55 | BE135: 127 | BF135: 49.38 | BG135: 73.14 | BH135: 120.22 | BI135: 127.97 | BJ135: 135.4 | BK135: 144.4 | BL135: 149.66
A136: 128 | B136: 58.632 | C136: 83.216 | D136: 133.112 | E136: 142.17 | F136: 154.98 | G136: 161.378 | H136: 167.44 | I136: 170.142 | J136: 170.142 | K136: 184.688 | M136: 128 | N136: 58.632 | O136: 83.216 | P136: 133.112 | Q136: 142.17 | R136: 154.98 | S136: 161.378 | T136: 167.44 | U136: 170.142 | V136: 170.142 | W136: 184.688 | AA136: 128 | AB136: 60.132 | AC136: 84.716 | AD136: 134.612 | AE136: 143.67 | AF136: 156.48 | AG136: 162.878 | AH136: 168.94 | AI136: 171.642 | AJ136: 171.642 | AK136: 186.188 | AM136: 128 | AN136: 48.25 | AO136: 72.22 | AP136: 119.66 | AQ136: 127.47 | AR136: 134.97 | AS136: 144.03 | AT136: 149.34 | AV136: 128 | AW136: 47.0745 | AX136: 70.4565 | AY136: 116.7375 | AZ136: 124.3625 | BA136: 131.675 | BB136: 140.5125 | BC136: 145.7 | BE136: 128 | BF136: =AN136+1.5 -> 49.75 | BG136: 73.72 | BH136: 121.16 | BI136: 128.97 | BJ136: 136.47 | BK136: 145.53 | BL136: 150.84
A137: 129 | B137: 59.08 | C137: 83.874 | D137: 134.148 | E137: 143.29 | F137: 156.184 | G137: 162.638 | H137: 168.756 | I137: 171.472 | J137: 171.472 | K137: 186.144 | M137: 129 | N137: 59.08 | O137: 83.874 | P137: 134.148 | Q137: 143.29 | R137: 156.184 | S137: 162.638 | T137: 168.756 | U137: 171.472 | V137: 171.472 | W137: 186.144 | AA137: 129 | AB137: 60.58 | AC137: 85.374 | AD137: 135.648 | AE137: 144.79 | AF137: 157.684 | AG137: 164.138 | AH137: 170.256 | AI137: 172.972 | AJ137: 172.972 | AK137: 187.644 | AM137: 129 | AN137: 48.64 | AO137: 72.79 | AP137: 120.6 | AQ137: 128.47 | AR137: 136.03 | AS137: 145.17 | AT137: 150.52 | AV137: 129 | AW137: 47.4525 | AX137: 71.01 | AY137: 117.6625 | AZ137: 125.3375 | BA137: 132.7125 | BB137: 141.625 | BC137: 146.85 | BE137: 129 | BF137: 50.14 | BG137: 74.29 | BH137: 122.1 | BI137: 129.97 | BJ137: 137.53 | BK137: 146.67 | BL137: 152.02
A138: 130 | B138: 59.542 | C138: 84.518 | D138: 135.184 | E138: 144.396 | F138: 157.402 | G138: 163.898 | H138: 170.058 | I138: 172.802 | J138: 172.802 | K138: 187.6 | M138: 130 | N138: 59.542 | O138: 84.518 | P138: 135.184 | Q138: 144.396 | R138: 157.402 | S138: 163.898 | T138: 170.058 | U138: 172.802 | V138: 172.802 | W138: 187.6 | AA138: 130 | AB138: 61.042 | AC138: 86.018 | AD138: 136.684 | AE138: 145.896 | AF138: 158.902 | AG138: 165.398 | AH138: 171.558 | AI138: 174.302 | AJ138: 174.302 | AK138: 189.1 | AM138: 130 | AN138: 49.01 | AO138: 73.35 | AP138: 121.55 | AQ138: 129.48 | AR138: 137.09 | AS138: 146.29 | AT138: 151.7 | AV138: 130 | AW138: 47.817 | AX138: 71.5635 | AY138: 118.5875 | AZ138: 126.325 | BA138: 133.75 | BB138: 142.725 | BC138: 148 | BE138: 130 | BF138: 50.51 | BG138: 74.85 | BH138: 123.05 | BI138: 130.98 | BJ138: 138.59 | BK138: 147.79 | BL138: 153.2
A139: 131 | B139: 60.004 | C139: 85.176 | D139: 136.234 | E139: 145.502 | F139: 158.606 | G139: 165.158 | H139: 171.374 | I139: 174.132 | J139: 174.132 | K139: 189.056 | M139: 131 | N139: 60.004 | O139: 85.176 | P139: 136.234 | Q139: 145.502 | R139: 158.606 | S139: 165.158 | T139: 171.374 | U139: 174.132 | V139: 174.132 | W139: 189.056 | AA139: 131 | AB139: 61.504 | AC139: 86.676 | AD139: 137.734 | AE139: 147.002 | AF139: 160.106 | AG139: 166.658 | AH139: 172.874 | AI139: 175.632 | AJ139: 175.632 | AK139: 190.556 | AM139: 131 | AN139: 49.4 | AO139: 73.92 | AP139: 122.49 | AQ139: 130.48 | AR139: 138.16 | AS139: 147.43 | AT139: 152.87 | AV139: 131 | AW139: 48.195 | AX139: 72.117 | AY139: 119.5 | AZ139: 127.3 | BA139: 134.7875 | BB139: 143.8375 | BC139: 149.1375 | BE139: 131 | BF139: 50.9 | BG139: 75.42 | BH139: 123.99 | BI139: 131.98 | BJ139: 139.66 | BK139: 148.93 | BL139: 154.37
A140: 132 | B140: 60.452 | C140: 85.82 | D140: 137.256 | E140: 146.622 | F140: 159.824 | G140: 166.418 | H140: 172.676 | I140: 175.448 | J140: 175.448 | K140: 190.512 | M140: 132 | N140: 60.452 | O140: 85.82 | P140: 137.256 | Q140: 146.622 | R140: 159.824 | S140: 166.418 | T140: 172.676 | U140: 175.448 | V140: 175.448 | W140: 190.512 | AA140: 132 | AB140: 61.952 | AC140: 87.32 | AD140: 138.756 | AE140: 148.122 | AF140: 161.324 | AG140: 167.918 | AH140: 174.176 | AI140: 176.948 | AJ140: 176.948 | AK140: 192.012 | AM140: 132 | AN140: 49.77 | AO140: 74.49 | AP140: 123.44 | AQ140: 131.48 | AR140: 139.22 | AS140: 148.56 | AT140: 154.04 | AV140: 132 | AW140: 48.5595 | AX140: 72.6705 | AY140: 120.425 | AZ140: 128.275 | BA140: 135.825 | BB140: 144.9375 | BC140: 150.2875 | BE140: 132 | BF140: 51.27 | BG140: 75.99 | BH140: 124.94 | BI140: 132.98 | BJ140: 140.72 | BK140: 150.06 | BL140: 155.54
A141: 133 | B141: 60.914 | C141: 86.464 | D141: 138.306 | E141: 147.728 | F141: 161.028 | G141: 167.678 | H141: 173.978 | I141: 176.778 | J141: 176.778 | K141: 191.968 | M141: 133 | N141: 60.914 | O141: 86.464 | P141: 138.306 | Q141: 147.728 | R141: 161.028 | S141: 167.678 | T141: 173.978 | U141: 176.778 | V141: 176.778 | W141: 191.968 | AA141: 133 | AB141: 62.414 | AC141: 87.964 | AD141: 139.806 | AE141: 149.228 | AF141: 162.528 | AG141: 169.178 | AH141: 175.478 | AI141: 178.278 | AJ141: 178.278 | AK141: 193.468 | AM141: 133 | AN141: 50.16 | AO141: 75.05 | AP141: 124.37 | AQ141: 132.49 | AR141: 140.28 | AS141: 149.7 | AT141: 155.22 | AV141: 133 | AW141: 48.9375 | AX141: 73.224 | AY141: 121.3375 | AZ141: 129.2625 | BA141: 136.8625 | BB141: 146.05 | BC141: 151.4375 | BE141: 133 | BF141: 51.66 | BG141: 76.55 | BH141: 125.87 | BI141: 133.99 | BJ141: 141.78 | BK141: 151.2 | BL141: 156.72
A142: 134 | B142: 61.376 | C142: 87.122 | D142: 139.342 | E142: 148.834 | F142: 162.246 | G142: 168.938 | H142: 175.294 | I142: 178.108 | J142: 178.108 | K142: 193.424 | M142: 134 | N142: 61.376 | O142: 87.122 | P142: 139.342 | Q142: 148.834 | R142: 162.246 | S142: 168.938 | T142: 175.294 | U142: 178.108 | V142: 178.108 | W142: 193.424 | AA142: 134 | AB142: 62.876 | AC142: 88.622 | AD142: 140.842 | AE142: 150.334 | AF142: 163.746 | AG142: 170.438 | AH142: 176.794 | AI142: 179.608 | AJ142: 179.608 | AK142: 194.924 | AM142: 134 | AN142: 50.53 | AO142: 75.62 | AP142: 125.32 | AQ142: 133.49 | AR142: 141.35 | AS142: 150.83 | AT142: 156.4 | AV142: 134 | AW142: 49.302 | AX142: 73.7775 | AY142: 122.2625 | AZ142: 130.2375 | BA142: 137.9 | BB142: 147.15 | BC142: 152.5875 | BE142: 134 | BF142: 52.03 | BG142: 77.12 | BH142: 126.82 | BI142: 134.99 | BJ142: 142.85 | BK142: 152.33 | BL142: 157.9
A143: 135 | B143: 61.838 | C143: 87.766 | D143: 140.392 | E143: 149.954 | F143: 163.45 | G143: 170.198 | H143: 176.596 | I143: 179.438 | J143: 179.438 | K143: 194.88 | M143: 135 | N143: 61.838 | O143: 87.766 | P143: 140.392 | Q143: 149.954 | R143: 163.45 | S143: 170.198 | T143: 176.596 | U143: 179.438 | V143: 179.438 | W143: 194.88 | AA143: 135 | AB143: 63.338 | AC143: 89.266 | AD143: 141.892 | AE143: 151.454 | AF143: 164.95 | AG143: 171.698 | AH143: 178.096 | AI143: 180.938 | AJ143: 180.938 | AK143: 196.38 | AM143: 135 | AN143: 50.92 | AO143: 76.19 | AP143: 126.25 | AQ143: 134.49 | AR143: 142.41 | AS143: 151.97 | AT143: 157.57 | AV143: 135 | AW143: 49.68 | AX143: 74.331 | AY143: 123.175 | AZ143: 131.2125 | BA143: 138.9375 | BB143: 148.2625 | BC143: 153.725 | BE143: 135 | BF143: 52.42 | BG143: 77.69 | BH143: 127.75 | BI143: 135.99 | BJ143: 143.91 | BK143: 153.47 | BL143: 159.07
A144: 136 | B144: 62.286 | C144: 88.424 | D144: 141.414 | E144: 151.06 | F144: 164.668 | G144: 171.458 | H144: 177.912 | I144: 180.768 | J144: 180.768 | K144: 196.336 | M144: 136 | N144: 62.286 | O144: 88.424 | P144: 141.414 | Q144: 151.06 | R144: 164.668 | S144: 171.458 | T144: 177.912 | U144: 180.768 | V144: 180.768 | W144: 196.336 | AA144: 136 | AB144: 63.786 | AC144: 89.924 | AD144: 142.914 | AE144: 152.56 | AF144: 166.168 | AG144: 172.958 | AH144: 179.412 | AI144: 182.268 | AJ144: 182.268 | AK144: 197.836 | AM144: 136 | AN144: 51.3 | AO144: 76.76 | AP144: 127.2 | AQ144: 135.51 | AR144: 143.47 | AS144: 153.11 | AT144: 158.75 | AV144: 136 | AW144: 50.0445 | AX144: 74.8845 | AY144: 124.1 | AZ144: 132.2 | BA144: 139.975 | BB144: 149.375 | BC144: 154.875 | BE144: 136 | BF144: 52.8 | BG144: 78.26 | BH144: 128.7 | BI144: 137.01 | BJ144: 144.97 | BK144: 154.61 | BL144: 160.25
A145: 137 | B145: 62.748 | C145: 89.068 | D145: 142.464 | E145: 152.166 | F145: 165.872 | G145: 172.732 | H145: 179.214 | I145: 182.098 | J145: 182.098 | K145: 197.792 | M145: 137 | N145: 62.748 | O145: 89.068 | P145: 142.464 | Q145: 152.166 | R145: 165.872 | S145: 172.732 | T145: 179.214 | U145: 182.098 | V145: 182.098 | W145: 197.792 | AA145: 137 | AB145: 64.248 | AC145: 90.568 | AD145: 143.964 | AE145: 153.666 | AF145: 167.372 | AG145: 174.232 | AH145: 180.714 | AI145: 183.598 | AJ145: 183.598 | AK145: 199.292 | AM145: 137 | AN145: 51.67 | AO145: 77.32 | AP145: 128.14 | AQ145: 136.5 | AR145: 144.54 | AS145: 154.24 | AT145: 159.93 | AV145: 137 | AW145: 50.409 | AX145: 75.438 | AY145: 125.0125 | AZ145: 133.175 | BA145: 141.0125 | BB145: 150.475 | BC145: 156.025 | BE145: 137 | BF145: 53.17 | BG145: 78.82 | BH145: 129.64 | BI145: 138 | BJ145: 146.04 | BK145: 155.74 | BL145: 161.43
A146: 138 | B146: 63.21 | C146: 89.726 | D146: 143.5 | E146: 153.286 | F146: 167.09 | G146: 173.992 | H146: 180.53 | I146: 183.428 | J146: 183.428 | K146: 199.248 | M146: 138 | N146: 63.21 | O146: 89.726 | P146: 143.5 | Q146: 153.286 | R146: 167.09 | S146: 173.992 | T146: 180.53 | U146: 183.428 | V146: 183.428 | W146: 199.248 | AA146: 138 | AB146: 64.71 | AC146: 91.226 | AD146: 145 | AE146: 154.786 | AF146: 168.59 | AG146: 175.492 | AH146: 182.03 | AI146: 184.928 | AJ146: 184.928 | AK146: 200.748 | AM146: 138 | AN146: 52.06 | AO146: 77.89 | AP146: 129.09 | AQ146: 137.5 | AR146: 145.6 | AS146: 155.38 | AT146: 161.1 | AV146: 138 | AW146: 50.787 | AX146: 75.9915 | AY146: 125.9375 | AZ146: 134.15 | BA146: 142.05 | BB146: 151.5875 | BC146: 157.175 | BE146: 138 | BF146: 53.56 | BG146: 79.39 | BH146: 130.59 | BI146: 139 | BJ146: 147.1 | BK146: 156.88 | BL146: 162.6
A147: 139 | B147: 63.658 | C147: 90.37 | D147: 144.55 | E147: 154.392 | F147: 168.294 | G147: 175.252 | H147: 181.832 | I147: 184.758 | J147: 184.758 | K147: 200.704 | M147: 139 | N147: 63.658 | O147: 90.37 | P147: 144.55 | Q147: 154.392 | R147: 168.294 | S147: 175.252 | T147: 181.832 | U147: 184.758 | V147: 184.758 | W147: 200.704 | AA147: 139 | AB147: 65.158 | AC147: 91.87 | AD147: 146.05 | AE147: 155.892 | AF147: 169.794 | AG147: 176.752 | AH147: 183.332 | AI147: 186.258 | AJ147: 186.258 | AK147: 202.204 | AM147: 139 | AN147: 52.43 | AO147: 78.47 | AP147: 130.02 | AQ147: 138.52 | AR147: 146.66 | AS147: 156.5 | AT147: 162.27 | AV147: 139 | AW147: 51.1515 | AX147: 76.5585 | AY147: 126.85 | AZ147: 135.1375 | BA147: 143.0875 | BB147: 152.6875 | BC147: 158.3125 | BE147: 139 | BF147: 53.93 | BG147: 79.97 | BH147: 131.52 | BI147: 140.02 | BJ147: 148.16 | BK147: 158 | BL147: 163.77
A148: 140 | B148: 64.12 | C148: 91.014 | D148: 145.572 | E148: 155.498 | F148: 169.512 | G148: 176.512 | H148: 183.134 | I148: 186.088 | J148: 186.088 | K148: 202.16 | M148: 140 | N148: 64.12 | O148: 91.014 | P148: 145.572 | Q148: 155.498 | R148: 169.512 | S148: 176.512 | T148: 183.134 | U148: 186.088 | V148: 186.088 | W148: 202.16 | AA148: 140 | AB148: 65.62 | AC148: 92.514 | AD148: 147.072 | AE148: 156.998 | AF148: 171.012 | AG148: 178.012 | AH148: 184.634 | AI148: 187.588 | AJ148: 187.588 | AK148: 203.66 | AM148: 140 | AN148: 52.82 | AO148: 79.04 | AP148: 130.97 | AQ148: 139.52 | AR148: 147.73 | AS148: 157.65 | AT148: 163.45 | AV148: 140 | AW148: 51.5295 | AX148: 77.112 | AY148: 127.775 | AZ148: 136.1125 | BA148: 144.125 | BB148: 153.8 | BC148: 159.4625 | BE148: 140 | BF148: 54.32 | BG148: 80.54 | BH148: 132.47 | BI148: 141.02 | BJ148: 149.23 | BK148: 159.15 | BL148: 164.95
A149: 141 | B149: 64.582 | C149: 91.672 | D149: 146.622 | E149: 156.618 | F149: 170.716 | G149: 177.772 | H149: 184.45 | I149: 187.418 | J149: 187.418 | K149: 203.616 | M149: 141 | N149: 64.582 | O149: 91.672 | P149: 146.622 | Q149: 156.618 | R149: 170.716 | S149: 177.772 | T149: 184.45 | U149: 187.418 | V149: 187.418 | W149: 203.616 | AA149: 141 | AB149: 66.082 | AC149: 93.172 | AD149: 148.122 | AE149: 158.118 | AF149: 172.216 | AG149: =G149+1.5 -> 179.272 | AH149: =H149+1.5 -> 185.95 | AI149: =I149+1.5 -> 188.918 | AJ149: =J149+1.5 -> 188.918 | AK149: =K149+1.5 -> 205.116 | AM149: 141 | AN149: 53.19 | AO149: 79.61 | AP149: 131.9 | AQ149: 140.51 | AR149: 148.79 | AS149: 158.77 | AT149: 164.63 | AV149: 141 | AW149: 51.894 | AX149: 77.6655 | AY149: 128.6875 | AZ149: 137.0875 | BA149: 145.1625 | BB149: 154.9 | BC149: 160.6125 | BE149: 141 | BF149: 54.69 | BG149: 81.11 | BH149: 133.4 | BI149: 142.01 | BJ149: 150.29 | BK149: 160.27 | BL149: 166.13
A150: 142 | B150: 65.044 | C150: 92.316 | D150: 147.672 | E150: 157.724 | F150: 171.934 | G150: 179.032 | H150: 185.752 | I150: 188.748 | J150: 188.748 | K150: 205.072 | M150: 142 | N150: 65.044 | O150: 92.316 | P150: 147.672 | Q150: 157.724 | R150: 171.934 | S150: 179.032 | T150: 185.752 | U150: 188.748 | V150: 188.748 | W150: 205.072 | AA150: 142 | AB150: =B150+1.5 -> 66.544 | AC150: =C150+1.5 -> 93.816 | AD150: =D150+1.5 -> 149.172 | AE150: =E150+1.5 -> 159.224 | AF150: =F150+1.5 -> 173.434 | AG150: 180.532 | AH150: 187.252 | AI150: 190.248 | AJ150: 190.248 | AK150: 206.572 | AM150: 142 | AN150: 53.58 | AO150: 80.17 | AP150: 132.85 | AQ150: 141.53 | AR150: 149.86 | AS150: 159.91 | AT150: 165.81 | AV150: 142 | AW150: 52.272 | AX150: 78.219 | AY150: 129.6125 | AZ150: 138.075 | BA150: 146.2 | BB150: 156.0125 | BC150: 161.7625 | BE150: 142 | BF150: 55.08 | BG150: 81.67 | BH150: 134.35 | BI150: 143.03 | BJ150: 151.36 | BK150: 161.41 | BL150: 167.31
A151: 143 | B151: 65.492 | C151: 92.974 | D151: 148.708 | E151: 158.83 | F151: 173.138 | G151: 180.292 | H151: 187.068 | I151: 190.078 | J151: 190.078 | K151: 206.528 | M151: 143 | N151: 65.492 | O151: 92.974 | P151: 148.708 | Q151: 158.83 | R151: 173.138 | S151: 180.292 | T151: 187.068 | U151: 190.078 | V151: 190.078 | W151: 206.528 | AA151: 143 | AB151: 66.992 | AC151: 94.474 | AD151: 150.208 | AE151: 160.33 | AF151: 174.638 | AG151: 181.792 | AH151: 188.568 | AI151: 191.578 | AJ151: 191.578 | AK151: 208.028 | AM151: 143 | AN151: 53.95 | AO151: 80.74 | AP151: 133.8 | AQ151: 142.53 | AR151: 150.91 | AS151: 161.04 | AT151: 166.99 | AV151: 143 | AW151: 52.6365 | AX151: 78.7725 | AY151: 130.5375 | AZ151: 139.05 | BA151: 147.225 | BB151: 157.1125 | BC151: 162.9125 | BE151: 143 | BF151: 55.45 | BG151: 82.24 | BH151: 135.3 | BI151: 144.03 | BJ151: 152.41 | BK151: 162.54 | BL151: 168.49
A152: 144 | B152: 65.954 | C152: 93.618 | D152: 149.744 | E152: 159.95 | F152: 174.356 | G152: 181.552 | H152: 188.37 | I152: 191.408 | J152: 191.408 | K152: 207.984 | M152: 144 | N152: 65.954 | O152: 93.618 | P152: 149.744 | Q152: 159.95 | R152: 174.356 | S152: 181.552 | T152: 188.37 | U152: 191.408 | V152: 191.408 | W152: 207.984 | AA152: 144 | AB152: 67.454 | AC152: 95.118 | AD152: 151.244 | AE152: 161.45 | AF152: 175.856 | AG152: 183.052 | AH152: 189.87 | AI152: 192.908 | AJ152: 192.908 | AK152: 209.484 | AM152: 144 | AN152: 54.34 | AO152: 81.31 | AP152: 134.74 | AQ152: 143.53 | AR152: 151.97 | AS152: 162.18 | AT152: 168.15 | AV152: 144 | AW152: 53.0145 | AX152: 79.326 | AY152: 131.45 | AZ152: 140.025 | BA152: 148.2625 | BB152: 158.225 | BC152: 164.05 | BE152: 144 | BF152: 55.84 | BG152: 82.81 | BH152: 136.24 | BI152: 145.03 | BJ152: 153.47 | BK152: 163.68 | BL152: 169.65
A153: 145 | B153: 66.416 | C153: 94.276 | D153: 150.78 | E153: 161.056 | F153: 175.56 | G153: 182.812 | H153: 189.686 | I153: 192.738 | J153: 192.738 | K153: 209.44 | M153: 145 | N153: 66.416 | O153: 94.276 | P153: 150.78 | Q153: 161.056 | R153: 175.56 | S153: 182.812 | T153: 189.686 | U153: 192.738 | V153: 192.738 | W153: 209.44 | AA153: 145 | AB153: 67.916 | AC153: 95.776 | AD153: 152.28 | AE153: 162.556 | AF153: 177.06 | AG153: 184.312 | AH153: 191.186 | AI153: 194.238 | AJ153: 194.238 | AK153: 210.94 | AM153: 145 | AN153: 54.71 | AO153: 81.88 | AP153: 135.68 | AQ153: 144.54 | AR153: 153.03 | AS153: 163.31 | AT153: 169.33 | AV153: 145 | AW153: 53.379 | AX153: 79.8795 | AY153: 132.375 | AZ153: 141.0125 | BA153: 149.3 | BB153: 159.325 | BC153: 165.2 | BE153: 145 | BF153: 56.21 | BG153: 83.38 | BH153: 137.18 | BI153: 146.04 | BJ153: 154.53 | BK153: 164.81 | BL153: 170.83
A154: 146 | B154: 66.864 | C154: 94.92 | D154: 151.83 | E154: 162.162 | F154: 176.764 | G154: 184.072 | H154: 190.988 | I154: 194.068 | J154: 194.068 | K154: 210.896 | M154: 146 | N154: 66.864 | O154: 94.92 | P154: 151.83 | Q154: 162.162 | R154: 176.764 | S154: 184.072 | T154: 190.988 | U154: 194.068 | V154: 194.068 | W154: 210.896 | AA154: 146 | AB154: 68.364 | AC154: 96.42 | AD154: 153.33 | AE154: 163.662 | AF154: 178.264 | AG154: 185.572 | AH154: 192.488 | AI154: 195.568 | AJ154: 195.568 | AK154: 212.396 | AM154: 146 | AN154: 55.1 | AO154: 82.44 | AP154: 136.62 | AQ154: 145.54 | AR154: 154.1 | AS154: 164.45 | AT154: 170.51 | AV154: 146 | AW154: 53.757 | AX154: 80.433 | AY154: 133.2875 | AZ154: 141.9875 | BA154: 150.3375 | BB154: 160.4375 | BC154: 166.35 | BE154: 146 | BF154: 56.6 | BG154: 83.94 | BH154: 138.12 | BI154: 147.04 | BJ154: 155.6 | BK154: 165.95 | BL154: 172.01
A155: 147 | B155: 67.326 | C155: 95.564 | D155: 152.866 | E155: 163.282 | F155: 177.982 | G155: 185.332 | H155: 192.29 | I155: 195.398 | J155: 195.398 | K155: 212.352 | M155: 147 | N155: 67.326 | O155: 95.564 | P155: 152.866 | Q155: 163.282 | R155: 177.982 | S155: 185.332 | T155: 192.29 | U155: 195.398 | V155: 195.398 | W155: 212.352 | AA155: 147 | AB155: 68.826 | AC155: 97.064 | AD155: 154.366 | AE155: 164.782 | AF155: 179.482 | AG155: 186.832 | AH155: 193.79 | AI155: 196.898 | AJ155: 196.898 | AK155: 213.852 | AM155: 147 | AN155: 55.47 | AO155: 83.01 | AP155: 137.57 | AQ155: 146.54 | AR155: 155.16 | AS155: 165.58 | AT155: 171.69 | AV155: 147 | AW155: 54.1215 | AX155: 80.9865 | AY155: 134.2125 | AZ155: 142.9625 | BA155: 151.375 | BB155: 161.5375 | BC155: 167.5 | BE155: 147 | BF155: 56.97 | BG155: 84.51 | BH155: 139.07 | BI155: 148.04 | BJ155: 156.66 | BK155: 167.08 | BL155: 173.19
A156: 148 | B156: 67.788 | C156: 96.222 | D156: 153.902 | E156: 164.388 | F156: 179.186 | G156: 186.592 | H156: 193.606 | I156: 196.728 | J156: 196.728 | K156: 213.808 | M156: 148 | N156: 67.788 | O156: 96.222 | P156: 153.902 | Q156: 164.388 | R156: 179.186 | S156: 186.592 | T156: 193.606 | U156: 196.728 | V156: 196.728 | W156: 213.808 | AA156: 148 | AB156: 69.288 | AC156: 97.722 | AD156: 155.402 | AE156: 165.888 | AF156: 180.686 | AG156: 188.092 | AH156: 195.106 | AI156: 198.228 | AJ156: 198.228 | AK156: 215.308 | AM156: 148 | AN156: 55.85 | AO156: 83.58 | AP156: 138.5 | AQ156: 147.55 | AR156: 156.22 | AS156: 166.72 | AT156: 172.85 | AV156: 148 | AW156: 54.486 | AX156: 81.54 | AY156: 135.125 | AZ156: 143.95 | BA156: 152.4125 | BB156: 162.65 | BC156: 168.6375 | BE156: 148 | BF156: 57.35 | BG156: 85.08 | BH156: 140 | BI156: 149.05 | BJ156: 157.72 | BK156: 168.22 | BL156: 174.35
A157: 149 | B157: 68.236 | C157: 96.866 | D157: 154.938 | E157: 165.494 | F157: 180.404 | G157: 187.852 | H157: 194.908 | I157: 198.044 | J157: 198.044 | K157: 215.264 | M157: 149 | N157: 68.236 | O157: 96.866 | P157: 154.938 | Q157: 165.494 | R157: 180.404 | S157: 187.852 | T157: 194.908 | U157: 198.044 | V157: 198.044 | W157: 215.264 | AA157: 149 | AB157: 69.736 | AC157: 98.366 | AD157: 156.438 | AE157: 166.994 | AF157: 181.904 | AG157: 189.352 | AH157: 196.408 | AI157: 199.544 | AJ157: 199.544 | AK157: 216.764 | AM157: 149 | AN157: 56.24 | AO157: 84.15 | AP157: 139.45 | AQ157: 148.55 | AR157: 157.29 | AS157: 167.84 | AT157: 174.03 | AV157: 149 | AW157: 54.864 | AX157: 82.0935 | AY157: 136.05 | AZ157: 144.925 | BA157: 153.45 | BB157: 163.75 | BC157: 169.7875 | BE157: 149 | BF157: 57.74 | BG157: 85.65 | BH157: 140.95 | BI157: 150.05 | BJ157: 158.79 | BK157: 169.34 | BL157: 175.53
A158: 150 | B158: 68.698 | C158: 97.524 | D158: 155.988 | E158: 166.614 | F158: 181.608 | G158: 189.112 | H158: 196.224 | I158: 199.374 | J158: 199.374 | K158: 216.72 | M158: 150 | N158: 68.698 | O158: 97.524 | P158: 155.988 | Q158: 166.614 | R158: 181.608 | S158: 189.112 | T158: 196.224 | U158: 199.374 | V158: 199.374 | W158: 216.72 | AA158: 150 | AB158: 70.198 | AC158: 99.024 | AD158: 157.488 | AE158: 168.114 | AF158: 183.108 | AG158: 190.612 | AH158: 197.724 | AI158: 200.874 | AJ158: 200.874 | AK158: 218.22 | AM158: 150 | AN158: 56.61 | AO158: 84.73 | AP158: 140.39 | AQ158: 149.55 | AR158: 158.35 | AS158: 168.98 | AT158: 175.21 | AV158: 150 | AW158: 55.2285 | AX158: 82.6605 | AY158: 136.9625 | AZ158: 145.9 | BA158: 154.4875 | BB158: 164.8625 | BC158: 170.9375 | BE158: 150 | BF158: 58.11 | BG158: 86.23 | BH158: 141.89 | BI158: 151.05 | BJ158: 159.85 | BK158: 170.48 | BL158: 176.71
A159: 151+ | B159: 0.4579866667 | C159: 0.65016 | D159: 1.03992 | E159: 1.11076 | F159: 1.21072 | G159: 1.260746667 | H159: 1.30816 | I159: 1.32916 | J159: 1.32916 | K159: 1.4448 | M159: 151+ | N159: =N158/150 -> 0.4579866667 | O159: 0.65016 | P159: 1.03992 | Q159: 1.11076 | R159: 1.21072 | S159: 1.260746667 | T159: 1.30816 | U159: 1.32916 | V159: 1.32916 | W159: 1.4448 | AA159: 151+ | AB159: =AB158/150 -> 0.4679866667 | AC159: 0.66016 | AD159: 1.04992 | AE159: 1.12076 | AF159: 1.22072 | AG159: 1.270746667 | AH159: 1.31816 | AI159: 1.33916 | AJ159: 1.33916 | AK159: 1.4548 | AM159: 151+ | AN159: 0.3774 | AO159: 0.5648666667 | AP159: 0.9359333333 | AQ159: 0.997 | AR159: 1.055666667 | AS159: 1.126533333 | AT159: 1.168066667 | AV159: 151+ | AW159: 0.36819 | AX159: 0.55107 | AY159: 0.9130833333 | AZ159: 0.9726666667 | BA159: 1.029916667 | BB159: 1.099083333 | BC159: 1.139583333 | BE159: 151+ | BF159: =BF158/$A$158 -> 0.3874 | BG159: 0.5748666667 | BH159: 0.9459333333 | BI159: 1.007 | BJ159: 1.065666667 | BK159: 1.136533333 | BL159: =BL158/$A158 -> 1.178066667
A162: Lbs. | B162: Zone 102 | C162: Zone 103 | D162: Zone 104 | E162: Zone 105 | F162: Zone 106 | G162: Zone 107 | H162: Zone 108 | I162: Zone 124 | J162: Zone 125 | K162: Zone 126 | M162: Lbs. | N162: Zone 102 | O162: Zone 103 | P162: Zone 104 | Q162: Zone 105 | R162: Zone 106 | S162: Zone 107 | T162: Zone 108 | U162: Zone 124 | V162: Zone 125 | W162: Zone 126 | AA162: Lbs. | AB162: Zone 102 | AC162: Zone 103 | AD162: Zone 104 | AE162: Zone 105 | AF162: Zone 106 | AG162: Zone 107 | AH162: Zone 108 | AI162: Zone 124 | AJ162: Zone 125 | AK162: Zone 126
A163: Letter | B163: =AN8-B8 -> -0.01 | C163: -0.01 | D163: -0.05 | E163: -0.05 | F163: -0.05 | G163: -0.05 | H163: -0.05 | I163: -8.344 | K163: -3.314 | M163: Letter | N163: 5.6 | O163: 5.6 | P163: 6.454 | Q163: 6.944 | R163: 7 | S163: 7.7 | T163: 7.826 | U163: 8.344 | V163: 8.344 | W163: 8.764 | AA163: Letter | AB163: =BF8-AB8 -> -0.01 | AC163: =BG8-AC8 -> -0.01 | AD163: -0.05 | AE163: -0.05 | AF163: -0.05 | AG163: -0.05 | AH163: -0.05 | AI163: =I163+1.5 -> -6.844 | AK163: -1.814
A164: 1 | B164: -0.05 | C164: -1.892 | D164: -2.748 | E164: -3.402 | F164: -4.262 | G164: -4.6 | H164: -4.526 | I164: 13.104 | J164: 13.104 | K164: 13.118 | M164: 1 | N164: 5.614 | O164: 7.532 | P164: 9.618 | Q164: 10.682 | R164: 11.592 | S164: 12.39 | T164: 12.726 | U164: 13.104 | V164: 13.104 | W164: 13.118 | AA164: 1 | AB164: -0.05 | AC164: -1.892 | AD164: -2.748 | AE164: -3.402 | AF164: -4.262 | AG164: -4.6 | AH164: -4.526 | AI164: 14.604 | AJ164: 14.604 | AK164: 14.618
A165: 2 | B165: -0.086 | C165: -1.724 | D165: -2.806 | E165: -2.916 | F165: -3.434 | G165: -3.34 | H165: -3.61 | I165: 14.308 | J165: 14.308 | K165: 14.322 | M165: 2 | N165: 5.726 | O165: 8.134 | P165: 10.836 | Q165: 11.816 | R165: 13.104 | S165: 13.65 | T165: 14.21 | U165: 14.308 | V165: 14.308 | W165: 14.322 | AA165: 2 | AB165: -0.086 | AC165: -1.724 | AD165: -2.806 | AE165: -2.916 | AF165: -3.434 | AG165: -3.34 | AH165: -3.61 | AI165: 15.808 | AJ165: 15.808 | AK165: 15.822
A166: 3 | B166: -0.814 | C166: -1.928 | D166: -2.938 | E166: -3.24 | F166: -3.598 | G166: -3.658 | H166: -3.71 | I166: 15.974 | J166: 15.974 | K166: 17.92 | M166: 3 | N166: 6.454 | O166: 8.708 | P166: 11.998 | Q166: 13.09 | R166: 14.518 | S166: 15.008 | T166: 15.54 | U166: 15.974 | V166: 15.974 | W166: 17.92 | AA166: 3 | AB166: -0.814 | AC166: -1.928 | AD166: -2.938 | AE166: -3.24 | AF166: -3.598 | AG166: -3.658 | AH166: -3.71 | AI166: 17.474 | AJ166: 17.474 | AK166: 19.42
A167: 4 | B167: -1.318 | C167: -1.948 | D167: -2.976 | E167: -3.402 | F167: -3.738 | G167: -3.848 | H167: -4.062 | I167: 17.444 | J167: 17.444 | K167: 19.544 | M167: 4 | N167: 6.958 | O167: 9.128 | P167: 13.006 | Q167: 14.322 | R167: 15.848 | S167: 16.338 | T167: 16.982 | U167: 17.444 | V167: 17.444 | W167: 19.544 | AA167: 4 | AB167: -1.318 | AC167: -1.948 | AD167: -2.976 | AE167: -3.402 | AF167: -3.738 | AG167: -3.848 | AH167: -4.062 | AI167: 18.944 | AJ167: 18.944 | AK167: 21.044
A168: 5 | B168: -1.188 | C168: -1.856 | D168: -3.344 | E168: -3.696 | F168: -3.982 | G168: -4.106 | H168: -4.196 | I168: 18.872 | J168: 18.872 | K168: 21.042 | M168: 5 | N168: 7.028 | O168: 9.506 | P168: 14.224 | Q168: 15.666 | R168: 17.192 | S168: 17.696 | T168: 18.326 | U168: 18.872 | V168: 18.872 | W168: 21.042 | AA168: 5 | AB168: -1.188 | AC168: -1.856 | AD168: -3.344 | AE168: -3.696 | AF168: -3.982 | AG168: -4.106 | AH168: -4.196 | AI168: 20.372 | AJ168: 20.372 | AK168: 22.542
A169: 6 | B169: -1.774 | C169: -2.278 | D169: -3.496 | E169: -3.884 | F169: -4.51 | G169: -4.452 | H169: -4.754 | I169: 20.216 | J169: 20.216 | K169: 22.652 | M169: 6 | N169: 7.784 | O169: 10.038 | P169: 15.386 | Q169: 16.884 | R169: 18.62 | S169: 18.942 | T169: 19.754 | U169: 20.216 | V169: 20.216 | W169: 22.652 | AA169: 6 | AB169: -1.774 | AC169: -2.278 | AD169: -3.496 | AE169: -3.884 | AF169: -4.51 | AG169: -4.452 | AH169: -4.754 | AI169: 21.716 | AJ169: 21.716 | AK169: 24.152
A170: 7 | B170: -1.798 | C170: -1.812 | D170: -3.59 | E170: -4.284 | F170: -4.646 | G170: -4.878 | H170: -4.918 | I170: 21.56 | J170: 21.56 | K170: 24.248 | M170: 7 | N170: 8.148 | O170: 10.542 | P170: 16.45 | Q170: 18.144 | R170: 19.936 | S170: 20.398 | T170: 21.098 | U170: 21.56 | V170: 21.56 | W170: 24.248 | AA170: 7 | AB170: -1.798 | AC170: -1.812 | AD170: -3.59 | AE170: -4.284 | AF170: -4.646 | AG170: -4.878 | AH170: -4.918 | AI170: 23.06 | AJ170: 23.06 | AK170: 25.748
A171: 8 | B171: -1.738 | C171: -1.95 | D171: -3.754 | E171: -4.256 | F171: -4.916 | G171: -5.136 | H171: -5.176 | I171: 22.876 | J171: 22.876 | K171: 25.452 | M171: 8 | N171: 8.218 | O171: 11.06 | P171: 17.514 | Q171: 19.306 | R171: 21.266 | S171: 21.826 | T171: 22.456 | U171: 22.876 | V171: 22.876 | W171: 25.452 | AA171: 8 | AB171: -1.738 | AC171: -1.95 | AD171: -3.754 | AE171: -4.256 | AF171: -4.916 | AG171: -5.136 | AH171: -5.176 | AI171: 24.376 | AJ171: 24.376 | AK171: 26.952
A172: 9 | B172: -1.506 | C172: -2.096 | D172: -3.848 | E172: -4.522 | F172: -5.136 | G172: -5.384 | H172: -5.508 | I172: 24.332 | J172: 24.332 | K172: 27.118 | M172: 9 | N172: 8.316 | O172: 11.466 | P172: 18.508 | Q172: 20.552 | R172: 22.596 | S172: 23.254 | T172: 23.898 | U172: 24.332 | V172: 24.332 | W172: 27.118 | AA172: 9 | AB172: -1.506 | AC172: -2.096 | AD172: -3.848 | AE172: -4.522 | AF172: -5.136 | AG172: -5.384 | AH172: -5.508 | AI172: 25.832 | AJ172: 25.832 | AK172: 28.618
A173: 10 | B173: -1.16 | C173: -1.7 | D173: -3.882 | E173: -4.56 | F173: -4.07 | G173: -4.228 | H173: -4.968 | I173: 25.76 | J173: 25.76 | K173: 27.132 | M173: 10 | N173: 8.33 | O173: 11.48 | P173: 19.362 | Q173: 21.63 | R173: 22.61 | S173: 23.268 | T173: 24.528 | U173: 25.76 | V173: 25.76 | W173: 27.132 | AA173: 10 | AB173: -1.16 | AC173: -1.7 | AD173: -3.882 | AE173: -4.56 | AF173: -4.07 | AG173: -4.228 | AH173: -4.968 | AI173: 27.26 | AJ173: 27.26 | AK173: 28.632
A174: 11 | B174: -1.878 | C174: -2.416 | D174: -4.184 | E174: -4.832 | F174: -5.616 | G174: -5.918 | H174: -5.954 | I174: 27.202 | J174: 27.202 | K174: 29.988 | M174: 11 | N174: 9.198 | O174: 12.586 | P174: 20.384 | Q174: 22.792 | R174: 25.256 | S174: 26.068 | T174: 26.684 | U174: 27.202 | V174: 27.202 | W174: 29.988 | AA174: 11 | AB174: -1.878 | AC174: -2.416 | AD174: -4.184 | AE174: -4.832 | AF174: -5.616 | AG174: -5.918 | AH174: -5.954 | AI174: 28.702 | AJ174: 28.702 | AK174: 31.488
A175: 12 | B175: -1.996 | C175: -2.494 | D175: -4.436 | E175: -4.906 | F175: -5.772 | G175: -6.152 | H175: -6.262 | I175: 28.532 | J175: 28.532 | K175: 30.688 | M175: 12 | N175: 9.576 | O175: 13.104 | P175: 21.476 | Q175: 23.856 | R175: 26.502 | S175: 27.482 | T175: 28.112 | U175: 28.532 | V175: 28.532 | W175: 30.688 | AA175: 12 | AB175: -1.996 | AC175: -2.494 | AD175: -4.436 | AE175: -4.906 | AF175: -5.772 | AG175: -6.152 | AH175: -6.262 | AI175: 30.032 | AJ175: 30.032 | AK175: 32.188
A176: 13 | B176: -1.886 | C176: -2.454 | D176: -4.538 | E176: -5.128 | F176: -5.826 | G176: -6.438 | H176: -6.45 | I176: 29.96 | J176: 29.96 | K176: 31.57 | M176: 13 | N176: 9.716 | O176: 13.594 | P176: 22.498 | Q176: 24.948 | R176: 27.566 | S176: 28.938 | T176: 29.47 | U176: 29.96 | V176: 29.96 | W176: 31.57 | AA176: 13 | AB176: -1.886 | AC176: -2.454 | AD176: -4.538 | AE176: -5.128 | AF176: -5.826 | AG176: -6.438 | AH176: -6.45 | AI176: 31.46 | AJ176: 31.46 | AK176: 33.07
A177: 14 | B177: -2.168 | C177: -2.402 | D177: -4.85 | E177: -5.278 | F177: -6.014 | G177: -6.518 | H177: -6.772 | I177: 31.304 | J177: 31.304 | K177: 32.466 | M177: 14 | N177: 10.108 | O177: 14.112 | P177: 23.66 | Q177: 25.998 | R177: 28.644 | S177: 30.198 | T177: 30.912 | U177: 31.304 | V177: 31.304 | W177: 32.466 | AA177: 14 | AB177: -2.168 | AC177: -2.402 | AD177: -4.85 | AE177: -5.278 | AF177: -6.014 | AG177: -6.518 | AH177: -6.772 | AI177: 32.804 | AJ177: 32.804 | AK177: 33.966
A178: 15 | B178: -2.014 | C178: -2.34 | D178: -4.678 | E178: -5.448 | F178: -5.158 | G178: -6.458 | H178: -6.768 | I178: 32.256 | J178: 32.256 | K178: 33.292 | M178: 15 | N178: 10.234 | O178: 14.49 | P178: 24.458 | Q178: 27.048 | R178: 28.658 | S178: 31.178 | T178: 32.088 | U178: 32.256 | V178: 32.256 | W178: 33.292 | AA178: 15 | AB178: -2.014 | AC178: -2.34 | AD178: -4.678 | AE178: -5.448 | AF178: -5.158 | AG178: -6.458 | AH178: -6.768 | AI178: 33.756 | AJ178: 33.756 | AK178: 34.792
A179: 16 | B179: =AN24-B24 -> -2.09 | C179: -2.54 | D179: -5.174 | E179: -5.586 | F179: -6.304 | G179: -6.47 | H179: -6.606 | I179: 33.544 | J179: 33.544 | K179: 34.776 | M179: 16 | N179: 10.64 | O179: 15.12 | P179: 25.634 | Q179: 28.056 | R179: 30.674 | S179: 31.99 | T179: 32.886 | U179: 33.544 | V179: 33.544 | W179: 34.776 | AA179: 16 | AB179: -2.09 | AC179: =BG24-AC24 -> -2.54 | AD179: -5.174 | AE179: -5.586 | AF179: -6.304 | AG179: -6.47 | AH179: -6.606 | AI179: =I179+1.5 -> 35.044 | AJ179: 35.044 | AK179: 36.276
A180: 17 | B180: -2.354 | C180: -2.754 | D180: -4.912 | E180: -5.628 | F180: -6.194 | G180: -6.514 | H180: -6.674 | I180: 34.286 | J180: 34.286 | K180: 35.77 | M180: 17 | N180: 11.074 | O180: 15.624 | P180: 26.362 | Q180: 28.938 | R180: 31.374 | S180: 32.704 | T180: 33.614 | U180: 34.286 | V180: 34.286 | W180: 35.77 | AA180: 17 | AB180: =BF25-AB25 -> -2.354 | AC180: -2.754 | AD180: -4.912 | AE180: -5.628 | AF180: -6.194 | AG180: -6.514 | AH180: -6.674 | AI180: 35.786 | AJ180: 35.786 | AK180: 37.27
A181: 18 | B181: -2.282 | C181: -3.028 | D181: -5.11 | E181: -5.514 | F181: -6.304 | G181: -6.652 | H181: -6.976 | I181: 35.14 | J181: 35.14 | K181: 37.226 | M181: 18 | N181: 11.452 | O181: 16.128 | P181: 27.16 | Q181: 29.554 | R181: 32.074 | S181: 33.432 | T181: 34.496 | U181: 35.14 | V181: 35.14 | W181: 37.226 | AA181: 18 | AB181: -2.282 | AC181: -3.028 | AD181: -5.11 | AE181: -5.514 | AF181: -6.304 | AG181: -6.652 | AH181: -6.976 | AI181: 36.64 | AJ181: 36.64 | AK181: 38.726
A182: 19 | B182: -2.236 | C182: -3.112 | D182: -5.07 | E182: -5.634 | F182: -6.472 | G182: -6.804 | H182: -7.146 | I182: 36.302 | J182: 36.302 | K182: 38.234 | M182: 19 | N182: 11.676 | O182: 16.562 | P182: 27.79 | Q182: 30.184 | R182: 32.802 | S182: 34.174 | T182: 35.406 | U182: 36.302 | V182: 36.302 | W182: 38.234 | AA182: 19 | AB182: -2.236 | AC182: -3.112 | AD182: -5.07 | AE182: -5.634 | AF182: -6.472 | AG182: -6.804 | AH182: -7.146 | AI182: 37.802 | AJ182: 37.802 | AK182: 39.734
A183: 20 | B183: -2 | C183: -2.952 | D183: -5.254 | E183: -5.852 | F183: -6.586 | G183: -7.002 | H183: -7.228 | I183: 37.016 | J183: 37.016 | K183: 40.768 | M183: 20 | N183: 11.69 | O183: 16.772 | P183: 28.504 | Q183: 30.912 | R183: 33.516 | S183: 34.972 | T183: 36.218 | U183: 37.016 | V183: 37.016 | W183: 40.768 | AA183: 20 | AB183: -2 | AC183: -2.952 | AD183: -5.254 | AE183: -5.852 | AF183: -6.586 | AG183: -7.002 | AH183: -7.228 | AI183: 38.516 | AJ183: 38.516 | AK183: 42.268
A184: 21 | B184: -2.436 | C184: -3.21 | D184: -4.06 | E184: -4.456 | F184: -5.052 | G184: -5.302 | H184: -5.742 | I184: 37.87 | J184: 37.87 | K184: 41.902 | M184: 21 | N184: 12.306 | O184: 17.43 | P184: 29.12 | Q184: 31.696 | R184: 34.202 | S184: 35.672 | T184: 37.212 | U184: 37.87 | V184: 37.87 | W184: 41.902 | AA184: 21 | AB184: -2.436 | AC184: -3.21 | AD184: -4.06 | AE184: -4.456 | AF184: -5.052 | AG184: -5.302 | AH184: -5.742 | AI184: 39.37 | AJ184: 39.37 | AK184: 43.402
A185: 22 | B185: -2.54 | C185: -3.322 | D185: -4.09 | E185: -4.5 | F185: -4.906 | G185: -5.258 | H185: -5.68 | I185: 38.71 | J185: 38.71 | K185: 42.868 | M185: 22 | N185: 12.67 | O185: 17.822 | P185: 29.82 | Q185: 32.41 | R185: 34.916 | S185: 36.498 | T185: 38.01 | U185: 38.71 | V185: 38.71 | W185: 42.868 | AA185: 22 | AB185: -2.54 | AC185: -3.322 | AD185: -4.09 | AE185: -4.5 | AF185: -4.906 | AG185: -5.258 | AH185: -5.68 | AI185: 40.21 | AJ185: 40.21 | AK185: 44.368
A186: 23 | B186: -2.432 | C186: -3.366 | D186: -4.154 | E186: -4.658 | F186: -4.968 | G186: -5.202 | H186: -5.886 | I186: 39.76 | J186: 39.76 | K186: 43.568 | M186: 23 | N186: 12.922 | O186: 18.186 | P186: 30.534 | Q186: 33.208 | R186: 35.728 | S186: 37.282 | T186: 38.906 | U186: 39.76 | V186: 39.76 | W186: 43.568 | AA186: 23 | AB186: -2.432 | AC186: -3.366 | AD186: -4.154 | AE186: -4.658 | AF186: -4.968 | AG186: -5.202 | AH186: -5.886 | AI186: 41.26 | AJ186: 41.26 | AK186: 45.068
A187: 24 | B187: -2.552 | C187: -3.428 | D187: -4.236 | E187: -4.798 | F187: -5.21 | G187: -5.324 | H187: -5.904 | I187: 40.516 | J187: 40.516 | K187: 44.422 | M187: 24 | N187: 13.202 | O187: 18.508 | P187: 31.346 | Q187: 34.048 | R187: 36.68 | S187: 38.094 | T187: 39.704 | U187: 40.516 | V187: 40.516 | W187: 44.422 | AA187: 24 | AB187: -2.552 | AC187: -3.428 | AD187: -4.236 | AE187: -4.798 | AF187: -5.21 | AG187: -5.324 | AH187: -5.904 | AI187: 42.016 | AJ187: 42.016 | AK187: 45.922
A188: 25 | B188: -2.384 | C188: -3.276 | D188: -4.314 | E188: -4.758 | F188: -4.748 | G188: -5.528 | H188: -6.026 | I188: 41.776 | J188: 41.776 | K188: 44.688 | M188: 25 | N188: 13.314 | O188: 18.606 | P188: 32.144 | Q188: 34.748 | R188: 37.058 | S188: 39.018 | T188: 40.516 | U188: 41.776 | V188: 41.776 | W188: 44.688 | AA188: 25 | AB188: -2.384 | AC188: -3.276 | AD188: -4.314 | AE188: -4.758 | AF188: -4.748 | AG188: -5.528 | AH188: -6.026 | AI188: 43.276 | AJ188: 43.276 | AK188: 46.188
A189: 26 | B189: -2.642 | C189: -3.66 | D189: -4.456 | E189: -4.642 | F189: -5.494 | G189: -5.342 | H189: -6.03 | I189: 42.42 | J189: 42.42 | K189: 46.116 | M189: 26 | N189: 13.832 | O189: 19.32 | P189: 33.026 | Q189: 35.602 | R189: 38.654 | S189: 40.012 | T189: 41.37 | U189: 42.42 | V189: 42.42 | W189: 46.116 | AA189: 26 | AB189: -2.642 | AC189: -3.66 | AD189: -4.456 | AE189: -4.642 | AF189: -5.494 | AG189: -5.342 | AH189: -6.03 | AI189: 43.92 | AJ189: 43.92 | AK189: 47.616
A190: 27 | B190: -2.654 | C190: -3.574 | D190: -4.448 | E190: -4.934 | F190: -5.788 | G190: -5.49 | H190: -6.044 | I190: 43.302 | J190: 43.302 | K190: 46.9 | M190: 27 | N190: 14.084 | O190: 19.684 | P190: 33.838 | Q190: 36.624 | R190: 39.718 | S190: 40.88 | T190: 42.154 | U190: 43.302 | V190: 43.302 | W190: 46.9 | AA190: 27 | AB190: -2.654 | AC190: -3.574 | AD190: -4.448 | AE190: -4.934 | AF190: -5.788 | AG190: -5.49 | AH190: -6.044 | AI190: 44.802 | AJ190: 44.802 | AK190: 48.4
A191: 28 | B191: -2.838 | C191: -3.568 | D191: -4.584 | E191: -5.284 | F191: -5.95 | G191: -5.422 | H191: -6.01 | I191: 44.1 | J191: 44.1 | K191: 47.894 | M191: 28 | N191: 14.448 | O191: 20.118 | P191: 34.734 | Q191: 37.674 | R191: 40.53 | S191: 41.692 | T191: 43.05 | U191: 44.1 | V191: 44.1 | W191: 47.894 | AA191: 28 | AB191: -2.838 | AC191: -3.568 | AD191: -4.584 | AE191: -5.284 | AF191: -5.95 | AG191: -5.422 | AH191: -6.01 | AI191: 45.6 | AJ191: 45.6 | AK191: 49.394
A192: 29 | B192: -2.628 | C192: -3.474 | D192: -4.656 | E192: -5.412 | F192: -5.958 | G192: -5.492 | H192: -5.86 | I192: 44.814 | J192: 44.814 | K192: 48.986 | M192: 29 | N192: 14.588 | O192: 20.454 | P192: 35.616 | Q192: 38.472 | R192: 41.398 | S192: 42.602 | T192: 43.96 | U192: 44.814 | V192: 44.814 | W192: 48.986 | AA192: 29 | AB192: -2.628 | AC192: -3.474 | AD192: -4.656 | AE192: -5.412 | AF192: -5.958 | AG192: -5.492 | AH192: -5.86 | AI192: 46.314 | AJ192: 46.314 | AK192: 50.486
A193: 30 | B193: -2.372 | C193: -3.188 | D193: -4.68 | E193: -5.634 | F193: -5.302 | G193: -5.634 | H193: -5.124 | I193: 45.626 | J193: 45.626 | K193: 49.168 | M193: 30 | N193: 14.602 | O193: 20.468 | P193: 36.33 | Q193: 39.354 | R193: 41.412 | S193: 43.414 | T193: 44.254 | U193: 45.626 | V193: 45.626 | W193: 49.168 | AA193: 30 | AB193: -2.372 | AC193: -3.188 | AD193: -4.68 | AE193: -5.634 | AF193: -5.302 | AG193: -5.634 | AH193: -5.124 | AI193: 47.126 | AJ193: 47.126 | AK193: 50.668
A194: 31 | B194: -2.85 | C194: -3.734 | D194: -4.634 | E194: -5.78 | F194: -6.118 | G194: -5.836 | H194: -5.862 | I194: 46.452 | J194: 46.452 | K194: 50.778 | M194: 31 | N194: 15.26 | O194: 21.224 | P194: 37.114 | Q194: 40.25 | R194: 43.078 | S194: 44.296 | T194: 45.752 | U194: 46.452 | V194: 46.452 | W194: 50.778 | AA194: 31 | AB194: -2.85 | AC194: -3.734 | AD194: -4.634 | AE194: -5.78 | AF194: -6.118 | AG194: -5.836 | AH194: -5.862 | AI194: 47.952 | AJ194: 47.952 | AK194: 52.278
A195: 32 | B195: =AN40-B40 -> -3.034 | C195: -4.034 | D195: -4.766 | E195: -5.806 | F195: -6.18 | G195: -6.062 | H195: -5.93 | I195: 47.32 | J195: 47.32 | K195: 51.87 | M195: 32 | N195: 15.694 | O195: 21.714 | P195: 37.926 | Q195: 41.146 | R195: 43.96 | S195: 45.192 | T195: 46.62 | U195: 47.32 | V195: 47.32 | W195: 51.87 | AA195: 32 | AB195: -3.034 | AC195: -4.034 | AD195: -4.766 | AE195: -5.806 | AF195: -6.18 | AG195: -6.062 | AH195: -5.93 | AI195: 48.82 | AJ195: 48.82 | AK195: 53.37
A196: 33 | B196: -3.138 | C196: -4.29 | D196: -4.934 | E196: -5.918 | F196: -6.216 | G196: -6.29 | H196: -6.214 | I196: 48.398 | J196: 48.398 | K196: 52.99 | M196: 33 | N196: 16.058 | O196: 22.26 | P196: 38.654 | Q196: 42.028 | R196: 44.856 | S196: 46.2 | T196: 47.684 | U196: 48.398 | V196: 48.398 | W196: 52.99 | AA196: 33 | AB196: =BF41-AB41 -> -3.138 | AC196: -4.29 | AD196: -4.934 | AE196: -5.918 | AF196: -6.216 | AG196: -6.29 | AH196: -6.214 | AI196: 49.898 | AJ196: 49.898 | AK196: 54.49
A197: 34 | B197: -3.198 | C197: -4.246 | D197: -5.126 | E197: -6.074 | F197: -6.202 | G197: -6.554 | H197: -6.278 | I197: 49.378 | J197: 49.378 | K197: 53.998 | M197: 34 | N197: 16.408 | O197: 22.596 | P197: 39.536 | Q197: 42.924 | R197: 45.822 | S197: 47.194 | T197: 48.678 | U197: 49.378 | V197: 49.378 | W197: 53.998 | AA197: 34 | AB197: -3.198 | AC197: -4.246 | AD197: -5.126 | AE197: -6.074 | AF197: -6.202 | AG197: -6.554 | AH197: -6.278 | AI197: 50.878 | AJ197: 50.878 | AK197: 55.498
A198: 35 | B198: -3.318 | C198: -4.256 | D198: -5.168 | E198: -6.32 | F198: -6.234 | G198: -6.658 | H198: -6.39 | I198: 50.386 | J198: 50.386 | K198: 55.076 | M198: 35 | N198: 16.758 | O198: 23.016 | P198: 40.418 | Q198: 43.82 | R198: 46.704 | S198: 48.188 | T198: 49.63 | U198: 50.386 | V198: 50.386 | W198: 55.076 | AA198: 35 | AB198: -3.318 | AC198: -4.256 | AD198: -5.168 | AE198: -6.32 | AF198: -6.234 | AG198: -6.658 | AH198: -6.39 | AI198: 51.886 | AJ198: 51.886 | AK198: 56.576
A199: 36 | B199: -3.498 | C199: -4.26 | D199: -5.306 | E199: -6.432 | F199: -6.374 | G199: -6.812 | H199: -6.536 | I199: 51.352 | J199: 51.352 | K199: 56.294 | M199: 36 | N199: 17.318 | O199: 23.38 | P199: 41.286 | Q199: 44.702 | R199: 47.614 | S199: 49.252 | T199: 50.596 | U199: 51.352 | V199: 51.352 | W199: 56.294 | AA199: 36 | AB199: -3.498 | AC199: -4.26 | AD199: -5.306 | AE199: -6.432 | AF199: -6.374 | AG199: -6.812 | AH199: -6.536 | AI199: 52.852 | AJ199: 52.852 | AK199: 57.794
A200: 37 | B200: -3.262 | C200: -4.512 | D200: -5.348 | E200: -6.572 | F200: -6.486 | G200: -7.114 | H200: -6.64 | I200: 52.444 | J200: 52.444 | K200: 57.204 | M200: 37 | N200: 17.332 | O200: 24.052 | P200: 42.098 | Q200: 45.612 | R200: 48.566 | S200: 50.344 | T200: 51.66 | U200: 52.444 | V200: 52.444 | W200: 57.204 | AA200: 37 | AB200: -3.262 | AC200: -4.512 | AD200: -5.348 | AE200: -6.572 | AF200: -6.486 | AG200: -7.114 | AH200: -6.64 | AI200: 53.944 | AJ200: 53.944 | AK200: 58.704
A201: 38 | B201: -3.272 | C201: -4.63 | D201: -5.11 | E201: -6.42 | F201: -6.56 | G201: -7.55 | H201: -7.04 | I201: 53.424 | J201: 53.424 | K201: 58.324 | M201: 38 | N201: 17.612 | O201: 24.43 | P201: 42.84 | Q201: 46.41 | R201: 49.49 | S201: 51.52 | T201: 52.64 | U201: 53.424 | V201: 53.424 | W201: 58.324 | AA201: 38 | AB201: -3.272 | AC201: -4.63 | AD201: -5.11 | AE201: -6.42 | AF201: -6.56 | AG201: -7.55 | AH201: -7.04 | AI201: 54.924 | AJ201: 54.924 | AK201: 59.824
A202: 39 | B202: -3.606 | C202: -4.65 | D202: -5.068 | E202: -6.338 | F202: -6.638 | G202: -7.974 | H202: -7.32 | I202: 54.474 | J202: 54.474 | K202: 58.338 | M202: 39 | N202: 18.186 | O202: 24.85 | P202: 43.638 | Q202: 47.278 | R202: 50.428 | S202: 52.584 | T202: 53.69 | U202: 54.474 | V202: 54.474 | W202: 58.338 | AA202: 39 | AB202: -3.606 | AC202: -4.65 | AD202: -5.068 | AE202: -6.338 | AF202: -6.638 | AG202: -7.974 | AH202: -7.32 | AI202: 55.974 | AJ202: 55.974 | AK202: 59.838
... 112 more rows

Sheet ND Svr Multi
A1: UPS Next Day Saver Service | J1: UPS Next Day Saver Service | N1: Residential Surcharge | Q1: 1.59
A2: - Commercial | J2: - Residential
A3: (Per Package Rates from 48 State Origin) | J3: (Per Package Rates from 48 State Origin)
A4: Rates below do not include Residential Surcharge | J4: Rates Include Residential Surcharge
A5: Lbs. | B5: Zone 132 | C5: Zone 133 | D5: Zone 134 | E5: Zone 135 | F5: Zone 136 | G5: Zone 137 | H5: Zone 138 | J5: Lbs. | K5: Zone 132 | L5: Zone 133 | M5: Zone 134 | N5: Zone 135 | O5: Zone 136 | P5: Zone 137 | Q5: Zone 138
A6: Letter | B6: 5.814 | C6: 5.814 | D6: 6.7932 | E6: 7.3134 | F6: 7.3746 | G6: 8.1294 | H6: 8.262 | J6: Letter | K6: 7.404 | L6: 7.404 | M6: 8.3832 | N6: 8.9034 | O6: 8.9646 | P6: 9.7194 | Q6: 9.852
A7: 1 | B7: 5.7834 | C7: 5.865 | D7: 7.293 | E7: 7.7316 | F7: 7.7826 | G7: 8.2722 | H7: 8.7108 | J7: 1 | K7: 7.3734 | L7: 7.455 | M7: 8.883 | N7: 9.3216 | O7: 9.3726 | P7: 9.8622 | Q7: 10.3008
A8: 2 | B8: 5.865 | C8: 6.6606 | D8: 8.5374 | E8: 9.4554 | F8: 10.2714 | G8: 10.9548 | H8: 11.2506 | J8: 2 | K8: 7.455 | L8: 8.2506 | M8: 10.1274 | N8: 11.0454 | O8: 11.8614 | P8: 12.5448 | Q8: 12.8406
A9: 3 | B9: 5.865 | C9: 7.0482 | D9: 9.6288 | E9: 10.4652 | F9: 11.5974 | G9: 12.0564 | H9: 12.5664 | J9: 3 | K9: 7.455 | L9: 8.6382 | M9: 11.2188 | N9: 12.0552 | O9: 13.1874 | P9: 13.6464 | Q9: 14.1564
A10: 4 | B10: 5.865 | C10: 7.4664 | D10: 10.6488 | E10: 11.5974 | F10: 12.8622 | G10: 13.26 | H10: 13.719 | J10: 4 | K10: 7.455 | L10: 9.0564 | M10: 12.2388 | N10: 13.1874 | O10: 14.4522 | P10: 14.85 | Q10: 15.309
A11: 5 | B11: 6.069 | C11: 7.9458 | D11: 11.5566 | E11: 12.7092 | F11: 14.0352 | G11: 14.433 | H11: 15.0042 | J11: 5 | K11: 7.659 | L11: 9.5358 | M11: 13.1466 | N11: 14.2992 | O11: 15.6252 | P11: 16.023 | Q11: 16.5942
A12: 6 | B12: 6.2424 | C12: 8.0682 | D12: 12.6276 | E12: 13.8108 | F12: 14.9838 | G12: 15.3918 | H12: 15.9324 | J12: 6 | K12: 7.8324 | L12: 9.6582 | M12: 14.2176 | N12: 15.4008 | O12: 16.5738 | P12: 16.9818 | Q12: 17.5224
A13: 7 | B13: 6.5994 | C13: 9.0678 | D13: 13.6578 | E13: 14.7186 | F13: 16.2486 | G13: 16.4832 | H13: 17.187 | J13: 7 | K13: 8.1894 | L13: 10.6578 | M13: 15.2478 | N13: 16.3086 | O13: 17.8386 | P13: 18.0732 | Q13: 18.777
A14: 8 | B14: 6.732 | C14: 9.4656 | D14: 14.6166 | E14: 15.9834 | F14: 17.3706 | G14: 17.7276 | H14: 18.3498 | J14: 8 | K14: 8.322 | L14: 11.0556 | M14: 16.2066 | N14: 17.5734 | O14: 18.9606 | P14: 19.3176 | Q14: 19.9398
A15: 9 | B15: 7.0788 | C15: 9.741 | D15: 15.5652 | E15: 17.0238 | F15: 18.5436 | G15: 18.9822 | H15: 19.533 | J15: 9 | K15: 8.6688 | L15: 11.331 | M15: 17.1552 | N15: 18.6138 | O15: 20.1336 | P15: 20.5722 | Q15: 21.123
A16: 10 | B16: 7.4562 | C16: 10.1592 | D16: 16.4424 | E16: 18.1356 | F16: 19.6962 | G16: 20.2266 | H16: 20.7774 | J16: 10 | K16: 9.0462 | L16: 11.7492 | M16: 18.0324 | N16: 19.7256 | O16: 21.2862 | P16: 21.8166 | Q16: 22.3674
A17: 11 | B17: 7.6092 | C17: 10.5672 | D17: 17.2074 | E17: 19.0842 | F17: 20.859 | G17: 21.3996 | H17: 22.0218 | J17: 11 | K17: 9.1992 | L17: 12.1572 | M17: 18.7974 | N17: 20.6742 | O17: 22.449 | P17: 22.9896 | Q17: 23.6118
A18: 12 | B18: 7.8744 | C18: 11.0262 | D18: 18.0948 | E18: 20.1348 | F18: 22.0218 | G18: 22.6542 | H18: 23.205 | J18: 12 | K18: 9.4644 | L18: 12.6162 | M18: 19.6848 | N18: 21.7248 | O18: 23.6118 | P18: 24.2442 | Q18: 24.795
A19: 13 | B19: 8.1396 | C19: 11.577 | D19: 19.0842 | E19: 21.0528 | F19: 23.0928 | G19: 23.8986 | H19: 24.4494 | J19: 13 | K19: 9.7296 | L19: 13.167 | M19: 20.6742 | N19: 22.6428 | O19: 24.6828 | P19: 25.4886 | Q19: 26.0394
A20: 14 | B20: 8.2518 | C20: 12.1686 | D20: 19.9716 | E20: 22.0116 | F20: 24.0414 | G20: 25.1532 | H20: 25.6428 | J20: 14 | K20: 9.8418 | L20: 13.7586 | M20: 21.5616 | N20: 23.6016 | O20: 25.6314 | P20: 26.7432 | Q20: 27.2328
A21: 15 | B21: 8.5476 | C21: 12.6276 | D21: 21.012 | E21: 22.95 | F21: 24.9594 | G21: 26.2548 | H21: 26.8974 | J21: 15 | K21: 10.1376 | L21: 14.2176 | M21: 22.602 | N21: 24.54 | O21: 26.5494 | P21: 27.8448 | Q21: 28.4874
A22: 16 | B22: 8.8842 | C22: 13.0764 | D22: 21.7362 | E22: 23.8578 | F22: 25.8876 | G22: 27.1014 | H22: 27.9174 | J22: 16 | K22: 10.4742 | L22: 14.6664 | M22: 23.3262 | N22: 25.4478 | O22: 27.4776 | P22: 28.6914 | Q22: 29.5074
A23: 17 | B23: 9.0576 | C23: 13.3722 | D23: 22.7766 | E23: 24.7554 | F23: 26.7444 | G23: 27.8256 | H23: 28.611 | J23: 17 | K23: 10.6476 | L23: 14.9622 | M23: 24.3666 | N23: 26.3454 | O23: 28.3344 | P23: 29.4156 | Q23: 30.201
A24: 18 | B24: 9.5268 | C24: 13.617 | D24: 23.4294 | E24: 25.5306 | F24: 27.3768 | G24: 28.4478 | H24: 29.2332 | J24: 18 | K24: 11.1168 | L24: 15.207 | M24: 25.0194 | N24: 27.1206 | O24: 28.9668 | P24: 30.0378 | Q24: 30.8232
A25: 19 | B25: 9.8124 | C25: 13.974 | D25: 24.1332 | E25: 26.0712 | F25: 27.9684 | G25: 29.07 | H25: 30.0186 | J25: 19 | K25: 11.4024 | L25: 15.564 | M25: 25.7232 | N25: 27.6612 | O25: 29.5584 | P25: 30.66 | Q25: 31.6086
A26: 20 | B26: 10.0674 | C26: 14.3616 | D26: 24.6942 | E26: 26.6118 | F26: 28.6008 | G26: 29.7126 | H26: 30.7938 | J26: 20 | K26: 11.6574 | L26: 15.9516 | M26: 26.2842 | N26: 28.2018 | O26: 30.1908 | P26: 31.3026 | Q26: 32.3838
A27: 21 | B27: 10.2612 | C27: 14.7798 | D27: 26.6118 | E27: 28.9374 | F27: 30.957 | G27: 32.2626 | H27: 33.4254 | J27: 21 | K27: 11.8512 | L27: 16.3698 | M27: 28.2018 | N27: 30.5274 | O27: 32.547 | P27: 33.8526 | Q27: 35.0154
A28: 22 | B28: 10.5264 | C28: 15.0654 | D28: 27.336 | E28: 29.6412 | F28: 31.875 | G28: 33.1806 | H28: 34.3332 | J28: 22 | K28: 12.1164 | L28: 16.6554 | M28: 28.926 | N28: 31.2312 | O28: 33.465 | P28: 34.7706 | Q28: 35.9232
A29: 23 | B29: 10.9038 | C29: 15.402 | D29: 28.0194 | E29: 30.3246 | F29: 32.6706 | G29: 34.0782 | H29: 35.0778 | J29: 23 | K29: 12.4938 | L29: 16.992 | M29: 29.6094 | N29: 31.9146 | O29: 34.2606 | P29: 35.6682 | Q29: 36.6678
A30: 24 | B30: 11.067 | C30: 15.6774 | D30: 28.7946 | E30: 31.059 | F30: 33.4254 | G30: 34.8024 | H30: 35.8938 | J30: 24 | K30: 12.657 | L30: 17.2674 | M30: 30.3846 | N30: 32.649 | O30: 35.0154 | P30: 36.3924 | Q30: 37.4838
A31: 25 | B31: 11.3628 | C31: 15.9324 | D31: 29.5596 | E31: 31.8546 | F31: 34.3128 | G31: 35.5776 | H31: 36.6384 | J31: 25 | K31: 12.9528 | L31: 17.5224 | M31: 31.1496 | N31: 33.4446 | O31: 35.9028 | P31: 37.1676 | Q31: 38.2284
A32: 26 | B32: 11.628 | C32: 16.2792 | D32: 30.345 | E32: 32.8848 | F32: 35.2206 | G32: 36.822 | H32: 37.536 | J32: 26 | K32: 13.218 | L32: 17.8692 | M32: 31.935 | N32: 34.4748 | O32: 36.8106 | P32: 38.412 | Q32: 39.126
A33: 27 | B33: 11.883 | C33: 16.7382 | D33: 31.2222 | E33: 33.66 | F33: 36.0468 | G33: 37.587 | H33: 38.352 | J33: 27 | K33: 13.473 | L33: 18.3282 | M33: 32.8122 | N33: 35.25 | O33: 37.6368 | P33: 39.177 | Q33: 39.942
A34: 28 | B34: 12.0666 | C34: 17.1972 | D34: 32.0178 | E34: 34.4046 | F34: 36.7302 | G34: 38.5254 | H34: 39.3414 | J34: 28 | K34: 13.6566 | L34: 18.7872 | M34: 33.6078 | N34: 35.9946 | O34: 38.3202 | P34: 40.1154 | Q34: 40.9314
A35: 29 | B35: 12.4338 | C35: 17.646 | D35: 32.8848 | E35: 35.1186 | F35: 37.638 | G35: 39.423 | H35: 40.4736 | J35: 29 | K35: 14.0238 | L35: 19.236 | M35: 34.4748 | N35: 36.7086 | O35: 39.228 | P35: 41.013 | Q35: 42.0636
A36: 30 | B36: 12.7092 | C36: 17.9622 | D36: 33.6192 | E36: 35.8122 | F36: 38.352 | G36: 40.1268 | H36: 41.565 | J36: 30 | K36: 14.2992 | L36: 19.5522 | M36: 35.2092 | N36: 37.4022 | O36: 39.942 | P36: 41.7168 | Q36: 43.155
A37: 31 | B37: 12.8928 | C37: 18.1764 | D37: 34.4964 | E37: 36.618 | F37: 39.2496 | G37: 40.851 | H37: 42.3708 | J37: 31 | K37: 14.4828 | L37: 19.7664 | M37: 36.0864 | N37: 38.208 | O37: 40.8396 | P37: 42.441 | Q37: 43.9608
A38: 32 | B38: 13.158 | C38: 18.3702 | D38: 35.2206 | E38: 37.536 | F38: 40.1268 | G38: 41.565 | H38: 43.2276 | J38: 32 | K38: 14.748 | L38: 19.9602 | M38: 36.8106 | N38: 39.126 | O38: 41.7168 | P38: 43.155 | Q38: 44.8176
A39: 33 | B39: 13.4232 | C39: 18.6762 | D39: 35.8122 | E39: 38.352 | F39: 41.0448 | G39: 42.3912 | H39: 44.0436 | J39: 33 | K39: 15.0132 | L39: 20.2662 | M39: 37.4022 | N39: 39.942 | O39: 42.6348 | P39: 43.9812 | Q39: 45.6336
A40: 34 | B40: 13.7292 | C40: 19.074 | D40: 36.5466 | E40: 39.1374 | F40: 42.0852 | G40: 43.1562 | H40: 45.033 | J40: 34 | K40: 15.3192 | L40: 20.664 | M40: 38.1366 | N40: 40.7274 | O40: 43.6752 | P40: 44.7462 | Q40: 46.623
A41: 35 | B41: 13.9638 | C41: 19.4922 | D41: 37.4442 | E41: 39.831 | F41: 42.9828 | G41: 44.1048 | H41: 45.9306 | J41: 35 | K41: 15.5538 | L41: 21.0822 | M41: 39.0342 | N41: 41.421 | O41: 44.5728 | P41: 45.6948 | Q41: 47.5206
A42: 36 | B42: 14.3616 | C42: 19.8696 | D42: 38.2092 | E42: 40.647 | F42: 43.809 | G42: 45.0738 | H42: 46.7976 | J42: 36 | K42: 15.9516 | L42: 21.4596 | M42: 39.7992 | N42: 42.237 | O42: 45.399 | P42: 46.6638 | Q42: 48.3876
A43: 37 | B43: 14.6268 | C43: 20.3082 | D43: 39.0354 | E43: 41.463 | F43: 44.6964 | G43: 45.9204 | H43: 47.8176 | J43: 37 | K43: 16.2168 | L43: 21.8982 | M43: 40.6254 | N43: 43.053 | O43: 46.2864 | P43: 47.5104 | Q43: 49.4076
A44: 38 | B44: 14.9022 | C44: 20.5734 | D44: 40.0758 | E44: 42.4728 | F44: 45.594 | G44: 46.7058 | H44: 48.4296 | J44: 38 | K44: 16.4922 | L44: 22.1634 | M44: 41.6658 | N44: 44.0628 | O44: 47.184 | P44: 48.2958 | Q44: 50.0196
A45: 39 | B45: 15.1572 | C45: 20.9916 | D45: 40.9734 | E45: 43.4826 | F45: 46.512 | G45: 47.379 | H45: 49.2558 | J45: 39 | K45: 16.7472 | L45: 22.5816 | M45: 42.5634 | N45: 45.0726 | O45: 48.102 | P45: 48.969 | Q45: 50.8458
A46: 40 | B46: 15.5448 | C46: 21.4812 | D46: 41.769 | E46: 44.3904 | F46: 47.6544 | G46: 48.2154 | H46: 50.1636 | J46: 40 | K46: 17.1348 | L46: 23.0712 | M46: 43.359 | N46: 45.9804 | O46: 49.2444 | P46: 49.8054 | Q46: 51.7536
A47: 41 | B47: 15.81 | C47: 21.9912 | D47: 42.534 | E47: 45.4206 | F47: 48.6438 | G47: 49.2558 | H47: 51.2448 | J47: 41 | K47: 17.4 | L47: 23.5812 | M47: 44.124 | N47: 47.0106 | O47: 50.2338 | P47: 50.8458 | Q47: 52.8348
A48: 42 | B48: 16.0752 | C48: 22.2972 | D48: 43.35 | E48: 46.308 | F48: 49.6332 | G48: 50.1636 | H48: 52.3464 | J48: 42 | K48: 17.6652 | L48: 23.8872 | M48: 44.94 | N48: 47.898 | O48: 51.2232 | P48: 51.7536 | Q48: 53.9364
A49: 43 | B49: 16.3506 | C49: 22.593 | D49: 44.1048 | E49: 47.328 | F49: 50.643 | G49: 51.153 | H49: 53.5704 | J49: 43 | K49: 17.9406 | L49: 24.183 | M49: 45.6948 | N49: 48.918 | O49: 52.233 | P49: 52.743 | Q49: 55.1604
A50: 44 | B50: 16.626 | C50: 23.0928 | D50: 44.9004 | E50: 48.3276 | F50: 51.5712 | G50: 52.1934 | H50: 54.774 | J50: 44 | K50: 18.216 | L50: 24.6828 | M50: 46.4904 | N50: 49.9176 | O50: 53.1612 | P50: 53.7834 | Q50: 56.364
A51: 45 | B51: 16.9116 | C51: 23.4906 | D51: 45.7266 | E51: 49.2558 | F51: 52.6932 | G51: 53.0706 | H51: 55.998 | J51: 45 | K51: 18.5016 | L51: 25.0806 | M51: 47.3166 | N51: 50.8458 | O51: 54.2832 | P51: 54.6606 | Q51: 57.588
A52: 46 | B52: 17.1972 | C52: 24.0006 | D52: 46.512 | E52: 50.1636 | F52: 53.6724 | G52: 54.06 | H52: 57.018 | J52: 46 | K52: 18.7872 | L52: 25.5906 | M52: 48.102 | N52: 51.7536 | O52: 55.2624 | P52: 55.65 | Q52: 58.608
A53: 47 | B53: 17.4624 | C53: 24.3984 | D53: 47.379 | E53: 50.9592 | F53: 54.5802 | G53: 55.1106 | H53: 57.9258 | J53: 47 | K53: 19.0524 | L53: 25.9884 | M53: 48.969 | N53: 52.5492 | O53: 56.1702 | P53: 56.7006 | Q53: 59.5158
A54: 48 | B54: 17.8092 | C54: 24.9084 | D54: 48.3276 | E54: 51.765 | F54: 55.4166 | G54: 56.2122 | H54: 58.803 | J54: 48 | K54: 19.3992 | L54: 26.4984 | M54: 49.9176 | N54: 53.355 | O54: 57.0066 | P54: 57.8022 | Q54: 60.393
A55: 49 | B55: 18.0948 | C55: 25.4082 | D55: 49.1742 | E55: 52.6932 | F55: 56.2836 | G55: 57.0996 | H55: 59.6496 | J55: 49 | K55: 19.6848 | L55: 26.9982 | M55: 50.7642 | N55: 54.2832 | O55: 57.8736 | P55: 58.6896 | Q55: 61.2396
A56: 50 | B56: 18.36 | C56: 25.8978 | D56: 49.8882 | E56: 53.2848 | F56: 57.1404 | G56: 58.0482 | H56: 60.2004 | J56: 50 | K56: 19.95 | L56: 27.4878 | M56: 51.4782 | N56: 54.8748 | O56: 58.7304 | P56: 59.6382 | Q56: 61.7904
A57: 51 | B57: 18.7068 | C57: 26.2854 | D57: 49.8984 | E57: 53.3052 | F57: 57.1506 | G57: 58.0584 | H57: 60.231 | J57: 51 | K57: 20.2968 | L57: 27.8754 | M57: 51.4884 | N57: 54.8952 | O57: 58.7406 | P57: 59.6484 | Q57: 61.821
A58: 52 | B58: 18.9924 | C58: 26.7954 | D58: 51.4896 | E58: 55.1616 | F58: 58.803 | G58: 60.129 | H58: 62.577 | J58: 52 | K58: 20.5824 | L58: 28.3854 | M58: 53.0796 | N58: 56.7516 | O58: 60.393 | P58: 61.719 | Q58: 64.167
A59: 53 | B59: 19.3596 | C59: 27.2034 | D59: 52.2648 | E59: 56.2122 | F59: 59.6496 | G59: 61.3632 | H59: 63.7704 | J59: 53 | K59: 20.9496 | L59: 28.7934 | M59: 53.8548 | N59: 57.8022 | O59: 61.2396 | P59: 62.9532 | Q59: 65.3604
A60: 54 | B60: 19.737 | C60: 27.7848 | D60: 53.0808 | E60: 57.1914 | F60: 60.333 | G60: 62.679 | H60: 65.0862 | J60: 54 | K60: 21.327 | L60: 29.3748 | M60: 54.6708 | N60: 58.7814 | O60: 61.923 | P60: 64.269 | Q60: 66.6762
A61: 55 | B61: 19.9818 | C61: 28.2948 | D61: 53.9478 | E61: 58.3542 | F61: 61.149 | G61: 64.0764 | H61: 66.2796 | J61: 55 | K61: 21.5718 | L61: 29.8848 | M61: 55.5378 | N61: 59.9442 | O61: 62.739 | P61: 65.6664 | Q61: 67.8696
A62: 56 | B62: 20.3592 | C62: 28.9068 | D62: 54.9066 | E62: 59.1396 | F62: 62.0466 | G62: 64.9842 | H62: 67.4628 | J62: 56 | K62: 21.9492 | L62: 30.4968 | M62: 56.4966 | N62: 60.7296 | O62: 63.6366 | P62: 66.5742 | Q62: 69.0528
A63: 57 | B63: 20.7264 | C63: 29.3862 | D63: 55.8348 | E63: 59.772 | F63: 62.985 | G63: 66.351 | H63: 68.6256 | J63: 57 | K63: 22.3164 | L63: 30.9762 | M63: 57.4248 | N63: 61.362 | O63: 64.575 | P63: 67.941 | Q63: 70.2156
A64: 58 | B64: 21.1854 | C64: 30.0186 | D64: 56.508 | E64: 60.9042 | F64: 64.1682 | G64: 67.5444 | H64: 69.5334 | J64: 58 | K64: 22.7754 | L64: 31.6086 | M64: 58.098 | N64: 62.4942 | O64: 65.7582 | P64: 69.1344 | Q64: 71.1234
A65: 59 | B65: 21.6444 | C65: 30.702 | D65: 57.0996 | E65: 61.7304 | F65: 65.5248 | G65: 68.8194 | H65: 70.8288 | J65: 59 | K65: 23.2344 | L65: 32.292 | M65: 58.6896 | N65: 63.3204 | O65: 67.1148 | P65: 70.4094 | Q65: 72.4188
A66: 60 | B66: 22.0218 | C66: 31.4874 | D66: 58.0074 | E66: 62.4954 | F66: 66.7794 | G66: 69.9516 | H66: 72.012 | J66: 60 | K66: 23.6118 | L66: 33.0774 | M66: 59.5974 | N66: 64.0854 | O66: 68.3694 | P66: 71.5416 | Q66: 73.602
A67: 61 | B67: 22.3686 | C67: 32.2014 | D67: 58.9356 | E67: 63.5562 | F67: 67.932 | G67: 71.2368 | H67: 73.1748 | J67: 61 | K67: 23.9586 | L67: 33.7914 | M67: 60.5256 | N67: 65.1462 | O67: 69.522 | P67: 72.8268 | Q67: 74.7648
A68: 62 | B68: 22.746 | C68: 32.793 | D68: 59.8536 | E68: 64.3008 | F68: 69.1152 | G68: 72.4302 | H68: 74.4294 | J68: 62 | K68: 24.336 | L68: 34.383 | M68: 61.4436 | N68: 65.8908 | O68: 70.7052 | P68: 74.0202 | Q68: 76.0194
A69: 63 | B69: 23.3886 | C69: 33.2826 | D69: 60.7818 | E69: 65.0862 | F69: 70.3494 | G69: 73.491 | H69: 75.8166 | J69: 63 | K69: 24.9786 | L69: 34.8726 | M69: 62.3718 | N69: 66.6762 | O69: 71.9394 | P69: 75.081 | Q69: 77.4066
A70: 64 | B70: 23.715 | C70: 33.9252 | D70: 61.7508 | E70: 66.096 | F70: 71.553 | G70: 74.562 | H70: 77.1834 | J70: 64 | K70: 25.305 | L70: 35.5152 | M70: 63.3408 | N70: 67.686 | O70: 73.143 | P70: 76.152 | Q70: 78.7734
A71: 65 | B71: 24.1842 | C71: 34.5882 | D71: 62.679 | E71: 67.116 | F71: 72.777 | G71: 75.9594 | H71: 78.5502 | J71: 65 | K71: 25.7742 | L71: 36.1782 | M71: 64.269 | N71: 68.706 | O71: 74.367 | P71: 77.5494 | Q71: 80.1402
A72: 66 | B72: 24.5616 | C72: 35.2002 | D72: 63.5562 | E72: 68.034 | F72: 73.848 | G72: 77.163 | H72: 79.6926 | J72: 66 | K72: 26.1516 | L72: 36.7902 | M72: 65.1462 | N72: 69.624 | O72: 75.438 | P72: 78.753 | Q72: 81.2826
A73: 67 | B73: 25.0002 | C73: 35.2206 | D73: 63.5766 | E73: 68.0442 | F73: 75.1026 | G73: 78.5502 | H73: 80.7228 | J73: 67 | K73: 26.5902 | L73: 36.8106 | M73: 65.1666 | N73: 69.6342 | O73: 76.6926 | P73: 80.1402 | Q73: 82.3128
A74: 68 | B74: 25.3776 | C74: 36.618 | D74: 65.5248 | E74: 70.0434 | F74: 76.2042 | G74: 79.6926 | H74: 81.957 | J74: 68 | K74: 26.9676 | L74: 38.208 | M74: 67.1148 | N74: 71.6334 | O74: 77.7942 | P74: 81.2826 | Q74: 83.547
A75: 69 | B75: 25.8468 | C75: 37.2912 | D75: 66.504 | E75: 71.043 | F75: 77.3772 | G75: 80.8452 | H75: 83.2626 | J75: 69 | K75: 27.4368 | L75: 38.8812 | M75: 68.094 | N75: 72.633 | O75: 78.9672 | P75: 82.4352 | Q75: 84.8526
A76: 70 | B76: 26.3058 | C76: 37.9236 | D76: 67.2894 | E76: 72.0732 | F76: 78.7236 | G76: 81.957 | H76: 84.5478 | J76: 70 | K76: 27.8958 | L76: 39.5136 | M76: 68.8794 | N76: 73.6632 | O76: 80.3136 | P76: 83.547 | Q76: 86.1378
A77: 71 | B77: 26.8362 | C77: 38.6784 | D77: 68.3298 | E77: 73.1646 | F77: 80.0394 | G77: 83.0382 | H77: 85.9758 | J77: 71 | K77: 28.4262 | L77: 40.2684 | M77: 69.9198 | N77: 74.7546 | O77: 81.6294 | P77: 84.6282 | Q77: 87.5658
A78: 72 | B78: 27.3564 | C78: 39.3108 | D78: 68.901 | E78: 74.0826 | F78: 80.5086 | G78: 83.8746 | H78: 87.1998 | J78: 72 | K78: 28.9464 | L78: 40.9008 | M78: 70.491 | N78: 75.6726 | O78: 82.0986 | P78: 85.4646 | Q78: 88.7898
A79: 73 | B79: 27.9174 | C79: 39.9228 | D79: 69.8292 | E79: 75.1026 | F79: 81.6714 | G79: 85.272 | H79: 88.6992 | J79: 73 | K79: 29.5074 | L79: 41.5128 | M79: 71.4192 | N79: 76.6926 | O79: 83.2614 | P79: 86.862 | Q79: 90.2892
A80: 74 | B80: 28.2948 | C80: 40.8102 | D80: 70.9308 | E80: 76.2042 | F80: 82.773 | G80: 86.6184 | H80: 90.3312 | J80: 74 | K80: 29.8848 | L80: 42.4002 | M80: 72.5208 | N80: 77.7942 | O80: 84.363 | P80: 88.2084 | Q80: 91.9212
A81: 75 | B81: 28.8558 | C81: 41.5344 | D81: 71.859 | E81: 77.3772 | F81: 84.0786 | G81: 87.7812 | H81: 91.9326 | J81: 75 | K81: 30.4458 | L81: 43.1244 | M81: 73.449 | N81: 78.9672 | O81: 85.6686 | P81: 89.3712 | Q81: 93.5226
A82: 76 | B82: 29.2944 | C82: 42.0954 | D82: 72.675 | E82: 78.5502 | F82: 84.711 | G82: 89.2194 | H82: 92.8812 | J82: 76 | K82: 30.8844 | L82: 43.6854 | M82: 74.265 | N82: 80.1402 | O82: 86.301 | P82: 90.8094 | Q82: 94.4712
A83: 77 | B83: 29.7432 | C83: 42.1158 | D83: 73.6848 | E83: 79.6926 | F83: 86.3736 | G83: 90.5454 | H83: 94.5846 | J83: 77 | K83: 31.3332 | L83: 43.7058 | M83: 75.2748 | N83: 81.2826 | O83: 87.9636 | P83: 92.1354 | Q83: 96.1746
A84: 78 | B84: 30.3042 | C84: 43.4418 | D84: 74.562 | E84: 80.9676 | F84: 87.4956 | G84: 91.9326 | H84: 96.1962 | J84: 78 | K84: 31.8942 | L84: 45.0318 | M84: 76.152 | N84: 82.5576 | O84: 89.0856 | P84: 93.5226 | Q84: 97.7862
A85: 79 | B85: 30.7428 | C85: 44.1354 | D85: 75.5922 | E85: 82.1202 | F85: 88.5972 | G85: 93.1464 | H85: 97.9302 | J85: 79 | K85: 32.3328 | L85: 45.7254 | M85: 77.1822 | N85: 83.7102 | O85: 90.1872 | P85: 94.7364 | Q85: 99.5202
A86: 80 | B86: 31.1202 | C86: 44.9412 | D86: 76.4592 | E86: 83.3748 | F86: 89.7498 | G86: 94.452 | H86: 99.3582 | J86: 80 | K86: 32.7102 | L86: 46.5312 | M86: 78.0492 | N86: 84.9648 | O86: 91.3398 | P86: 96.042 | Q86: 100.9482
A87: 81 | B87: 31.1916 | C87: 45.6552 | D87: 77.0712 | E87: 84.5478 | F87: 90.1986 | G87: 95.8596 | H87: 100.2456 | J87: 81 | K87: 32.7816 | L87: 47.2452 | M87: 78.6612 | N87: 86.1378 | O87: 91.7886 | P87: 97.4496 | Q87: 101.8356
A88: 82 | B88: 32.1096 | C88: 46.4712 | D88: 77.9994 | E88: 85.5882 | F88: 91.647 | G88: 97.104 | H88: 101.8368 | J88: 82 | K88: 33.6996 | L88: 48.0612 | M88: 79.5894 | N88: 87.1782 | O88: 93.237 | P88: 98.694 | Q88: 103.4268
A89: 83 | B89: 32.844 | C89: 47.1852 | D89: 79.6518 | E89: 86.8122 | F89: 92.3202 | G89: 98.5014 | H89: 103.122 | J89: 83 | K89: 34.434 | L89: 48.7752 | M89: 81.2418 | N89: 88.4022 | O89: 93.9102 | P89: 100.0914 | Q89: 104.712
A90: 84 | B90: 33.3132 | C90: 47.9604 | D90: 80.7228 | E90: 87.7302 | F90: 94.0542 | G90: 99.909 | H90: 104.4684 | J90: 84 | K90: 34.9032 | L90: 49.5504 | M90: 82.3128 | N90: 89.3202 | O90: 95.6442 | P90: 101.499 | Q90: 106.0584
A91: 85 | B91: 33.66 | C91: 48.6948 | D91: 81.6102 | E91: 88.8114 | F91: 94.0644 | G91: 101.337 | H91: 105.6312 | J91: 85 | K91: 35.25 | L91: 50.2848 | M91: 83.2002 | N91: 90.4014 | O91: 95.6544 | P91: 102.927 | Q91: 107.2212
A92: 86 | B92: 33.8334 | C92: 49.4802 | D92: 82.926 | E92: 89.8314 | F92: 96.2982 | G92: 102.6528 | H92: 106.9164 | J92: 86 | K92: 35.4234 | L92: 51.0702 | M92: 84.516 | N92: 91.4214 | O92: 97.8882 | P92: 104.2428 | Q92: 108.5064
A93: 87 | B93: 34.5474 | C93: 50.2044 | D93: 84.6702 | E93: 91.035 | F93: 96.3288 | G93: 103.9278 | H93: 108.2016 | J93: 87 | K93: 36.1374 | L93: 51.7944 | M93: 86.2602 | N93: 92.625 | O93: 97.9188 | P93: 105.5178 | Q93: 109.7916
A94: 88 | B94: 34.9656 | C94: 51.0306 | D94: 85.9758 | E94: 92.2692 | F94: 96.3288 | G94: 105.3864 | H94: 109.395 | J94: 88 | K94: 36.5556 | L94: 52.6206 | M94: 87.5658 | N94: 93.8592 | O94: 97.9188 | P94: 106.9764 | Q94: 110.985
A95: 89 | B95: 35.3022 | C95: 51.816 | D95: 86.8224 | E95: 93.2586 | F95: 99.1338 | G95: 106.5594 | H95: 110.6496 | J95: 89 | K95: 36.8922 | L95: 53.406 | M95: 88.4124 | N95: 94.8486 | O95: 100.7238 | P95: 108.1494 | Q95: 112.2396
A96: 90 | B96: 35.8632 | C96: 52.6116 | D96: 88.5972 | E96: 94.2378 | F96: 100.929 | G96: 107.7426 | H96: 112.0164 | J96: 90 | K96: 37.4532 | L96: 54.2016 | M96: 90.1872 | N96: 95.8278 | O96: 102.519 | P96: 109.3326 | Q96: 113.6064
A97: 91 | B97: 35.8632 | C97: 53.3256 | D97: 90.015 | E97: 95.2782 | F97: 102.0408 | G97: 108.9258 | H97: 113.1894 | J97: 91 | K97: 37.4532 | L97: 54.9156 | M97: 91.605 | N97: 96.8682 | O97: 103.6308 | P97: 110.5158 | Q97: 114.7794
A98: 92 | B98: 36.5874 | C98: 54.1212 | D98: 91.2492 | E98: 96.4818 | F98: 103.1526 | G98: 110.1804 | H98: 114.444 | J98: 92 | K98: 38.1774 | L98: 55.7112 | M98: 92.8392 | N98: 98.0718 | O98: 104.7426 | P98: 111.7704 | Q98: 116.034
A99: 93 | B99: 37.1382 | C99: 54.7536 | D99: 92.4426 | E99: 97.8078 | F99: 104.3766 | G99: 111.384 | H99: 115.7394 | J99: 93 | K99: 38.7282 | L99: 56.3436 | M99: 94.0326 | N99: 99.3978 | O99: 105.9666 | P99: 112.974 | Q99: 117.3294
A100: 94 | B100: 37.587 | C100: 55.3962 | D100: 93.5442 | E100: 99.0012 | F100: 105.57 | G100: 112.5366 | H100: 117.0144 | J100: 94 | K100: 39.177 | L100: 56.9862 | M100: 95.1342 | N100: 100.5912 | O100: 107.16 | P100: 114.1266 | Q100: 118.6044
A101: 95 | B101: 37.587 | C101: 55.9878 | D101: 94.6866 | E101: 100.113 | F101: 106.692 | G101: 113.8422 | H101: 118.2078 | J101: 95 | K101: 39.177 | L101: 57.5778 | M101: 96.2766 | N101: 101.703 | O101: 108.282 | P101: 115.4322 | Q101: 119.7978
A102: 96 | B102: 37.6074 | C102: 56.6304 | D102: 95.5638 | E102: 101.2248 | F102: 107.8956 | G102: 114.9336 | H102: 119.544 | J102: 96 | K102: 39.1974 | L102: 58.2204 | M102: 97.1538 | N102: 102.8148 | O102: 109.4856 | P102: 116.5236 | Q102: 121.134
A103: 97 | B103: 39.1476 | C103: 57.2526 | D103: 96.6144 | E103: 102.3264 | F103: 109.0992 | G103: 116.2086 | H103: 120.7374 | J103: 97 | K103: 40.7376 | L103: 58.8426 | M103: 98.2044 | N103: 103.9164 | O103: 110.6892 | P103: 117.7986 | Q103: 122.3274
A104: 98 | B104: 39.4536 | C104: 57.885 | D104: 97.5834 | E104: 103.5606 | F104: 110.2008 | G104: 117.4734 | H104: 122.0022 | J104: 98 | K104: 41.0436 | L104: 59.475 | M104: 99.1734 | N104: 105.1506 | O104: 111.7908 | P104: 119.0634 | Q104: 123.5922
A105: 99 | B105: 39.4638 | C105: 58.497 | D105: 98.6034 | E105: 103.581 | F105: 111.435 | G105: 118.6464 | H105: 123.2976 | J105: 99 | K105: 41.0538 | L105: 60.087 | M105: 100.1934 | N105: 105.171 | O105: 113.025 | P105: 120.2364 | Q105: 124.8876
A106: 100 | B106: 39.474 | C106: 59.0274 | D106: 99.4296 | E106: 105.774 | F106: 112.5366 | G106: 119.901 | H106: 124.5828 | J106: 100 | K106: 41.064 | L106: 60.6174 | M106: 101.0196 | N106: 107.364 | O106: 114.1266 | P106: 121.491 | Q106: 126.1728
A107: 101 | B107: 39.4944 | C107: 59.0886 | D107: 100.0722 | E107: 106.6104 | F107: 112.8834 | G107: 120.4722 | H107: 124.899 | J107: 101 | K107: 41.0844 | L107: 60.6786 | M107: 101.6622 | N107: 108.2004 | O107: 114.4734 | P107: 122.0622 | Q107: 126.489
A108: 102 | B108: 39.882 | C108: 59.6904 | D108: 101.082 | E108: 107.6712 | F108: 114.0054 | G108: 121.6554 | H108: 126.1434 | J108: 102 | K108: 41.472 | L108: 61.2804 | M108: 102.672 | N108: 109.2612 | O108: 115.5954 | P108: 123.2454 | Q108: 127.7334
A109: 103 | B109: 40.2798 | C109: 60.2718 | D109: 102.0816 | E109: 108.7422 | F109: 115.1478 | G109: 122.859 | H109: 127.4082 | J109: 103 | K109: 41.8698 | L109: 61.8618 | M109: 103.6716 | N109: 110.3322 | O109: 116.7378 | P109: 124.449 | Q109: 128.9982
A110: 104 | B110: 40.6674 | C110: 60.8634 | D110: 103.0812 | E110: 109.803 | F110: 116.2698 | G110: 124.0728 | H110: 128.6424 | J110: 104 | K110: 42.2574 | L110: 62.4534 | M110: 104.6712 | N110: 111.393 | O110: 117.8598 | P110: 125.6628 | Q110: 130.2324
A111: 105 | B111: 41.0754 | C111: 61.4652 | D111: 104.0808 | E111: 110.874 | F111: 117.3918 | G111: 125.2764 | H111: 129.897 | J111: 105 | K111: 42.6654 | L111: 63.0552 | M111: 105.6708 | N111: 112.464 | O111: 118.9818 | P111: 126.8664 | Q111: 131.487
A112: 106 | B112: 41.4528 | C112: 62.0568 | D112: 105.0906 | E112: 111.9552 | F112: 118.5444 | G112: 126.48 | H112: 131.1414 | J112: 106 | K112: 43.0428 | L112: 63.6468 | M112: 106.6806 | N112: 113.5452 | O112: 120.1344 | P112: 128.07 | Q112: 132.7314
A113: 107 | B113: 41.8608 | C113: 62.6484 | D113: 106.08 | E113: 113.016 | F113: 119.6562 | G113: 127.6836 | H113: 132.396 | J113: 107 | K113: 43.4508 | L113: 64.2384 | M113: 107.67 | N113: 114.606 | O113: 121.2462 | P113: 129.2736 | Q113: 133.986
A114: 108 | B114: 42.2484 | C114: 63.2298 | D114: 107.0898 | E114: 114.0564 | F114: 120.7782 | G114: 128.8872 | H114: 133.6404 | J114: 108 | K114: 43.8384 | L114: 64.8198 | M114: 108.6798 | N114: 115.6464 | O114: 122.3682 | P114: 130.4772 | Q114: 135.2304
A115: 109 | B115: 42.6564 | C115: 63.8214 | D115: 108.0894 | E115: 115.1478 | F115: 121.9002 | G115: 130.101 | H115: 134.8848 | J115: 109 | K115: 44.2464 | L115: 65.4114 | M115: 109.6794 | N115: 116.7378 | O115: 123.4902 | P115: 131.691 | Q115: 136.4748
A116: 110 | B116: 43.044 | C116: 64.413 | D116: 109.089 | E116: 116.2086 | F116: 123.0426 | G116: 131.3046 | H116: 136.1496 | J116: 110 | K116: 44.634 | L116: 66.003 | M116: 110.679 | N116: 117.7986 | O116: 124.6326 | P116: 132.8946 | Q116: 137.7396
A117: 111 | B117: 43.4418 | C117: 65.0046 | D117: 110.0784 | E117: 117.2694 | F117: 124.1646 | G117: 132.5082 | H117: 137.4042 | J117: 111 | K117: 45.0318 | L117: 66.5946 | M117: 111.6684 | N117: 118.8594 | O117: 125.7546 | P117: 134.0982 | Q117: 138.9942
A118: 112 | B118: 43.8396 | C118: 65.586 | D118: 111.0882 | E118: 118.3404 | F118: 125.2968 | G118: 133.7016 | H118: 138.6384 | J118: 112 | K118: 45.4296 | L118: 67.176 | M118: 112.6782 | N118: 119.9304 | O118: 126.8868 | P118: 135.2916 | Q118: 140.2284
A119: 113 | B119: 44.217 | C119: 66.1776 | D119: 112.0776 | E119: 119.4012 | F119: 126.429 | G119: 134.9052 | H119: 139.8828 | J119: 113 | K119: 45.807 | L119: 67.7676 | M119: 113.6676 | N119: 120.9912 | O119: 128.019 | P119: 136.4952 | Q119: 141.4728
A120: 114 | B120: 44.625 | C120: 66.7692 | D120: 113.0874 | E120: 120.4722 | F120: 127.551 | G120: 136.119 | H120: 141.1374 | J120: 114 | K120: 46.215 | L120: 68.3592 | M120: 114.6774 | N120: 122.0622 | O120: 129.141 | P120: 137.709 | Q120: 142.7274
A121: 115 | B121: 45.0126 | C121: 67.3506 | D121: 114.087 | E121: 121.5432 | F121: 128.6934 | G121: 137.3226 | H121: 142.392 | J121: 115 | K121: 46.6026 | L121: 68.9406 | M121: 115.677 | N121: 123.1332 | O121: 130.2834 | P121: 138.9126 | Q121: 143.982
A122: 116 | B122: 45.4206 | C122: 67.9728 | D122: 115.0866 | E122: 122.604 | F122: 129.8154 | G122: 138.5262 | H122: 143.6466 | J122: 116 | K122: 47.0106 | L122: 69.5628 | M122: 116.6766 | N122: 124.194 | O122: 131.4054 | P122: 140.1162 | Q122: 145.2366
A123: 117 | B123: 45.798 | C123: 68.5542 | D123: 116.0862 | E123: 123.6648 | F123: 130.9374 | G123: 139.7298 | H123: 144.8706 | J123: 117 | K123: 47.388 | L123: 70.1442 | M123: 117.6762 | N123: 125.2548 | O123: 132.5274 | P123: 141.3198 | Q123: 146.4606
A124: 118 | B124: 46.206 | C124: 69.1458 | D124: 117.096 | E124: 124.7358 | F124: 132.0798 | G124: 140.9334 | H124: 146.1354 | J124: 118 | K124: 47.796 | L124: 70.7358 | M124: 118.686 | N124: 126.3258 | O124: 133.6698 | P124: 142.5234 | Q124: 147.7254
A125: 119 | B125: 46.5936 | C125: 69.7374 | D125: 118.1058 | E125: 125.8068 | F125: 133.2018 | G125: 142.137 | H125: 147.3798 | J125: 119 | K125: 48.1836 | L125: 71.3274 | M125: 119.6958 | N125: 127.3968 | O125: 134.7918 | P125: 143.727 | Q125: 148.9698
A126: 120 | B126: 46.9914 | C126: 70.329 | D126: 119.0952 | E126: 126.8676 | F126: 134.3238 | G126: 143.3406 | H126: 148.6344 | J126: 120 | K126: 48.5814 | L126: 71.919 | M126: 120.6852 | N126: 128.4576 | O126: 135.9138 | P126: 144.9306 | Q126: 150.2244
A127: 121 | B127: 47.379 | C127: 70.9104 | D127: 120.0948 | E127: 127.9386 | F127: 135.4662 | G127: 144.5442 | H127: 149.889 | J127: 121 | K127: 48.969 | L127: 72.5004 | M127: 121.6848 | N127: 129.5286 | O127: 137.0562 | P127: 146.1342 | Q127: 151.479
A128: 122 | B128: 47.787 | C128: 71.502 | D128: 121.0944 | E128: 128.9994 | F128: 136.5882 | G128: 145.7478 | H128: 151.1232 | J128: 122 | K128: 49.377 | L128: 73.092 | M128: 122.6844 | N128: 130.5894 | O128: 138.1782 | P128: 147.3378 | Q128: 152.7132
A129: 123 | B129: 48.1848 | C129: 72.0936 | D129: 122.094 | E129: 130.0602 | F129: 137.7102 | G129: 146.9514 | H129: 152.3778 | J129: 123 | K129: 49.7748 | L129: 73.6836 | M129: 123.684 | N129: 131.6502 | O129: 139.3002 | P129: 148.5414 | Q129: 153.9678
A130: 124 | B130: 48.5622 | C130: 72.675 | D130: 123.0936 | E130: 131.1312 | F130: 138.8628 | G130: 148.155 | H130: 153.6222 | J130: 124 | K130: 50.1522 | L130: 74.265 | M130: 124.6836 | N130: 132.7212 | O130: 140.4528 | P130: 149.745 | Q130: 155.2122
A131: 125 | B131: 48.9702 | C131: 73.2666 | D131: 124.1034 | E131: 132.192 | F131: 139.9746 | G131: 149.3688 | H131: 154.887 | J131: 125 | K131: 50.5602 | L131: 74.8566 | M131: 125.6934 | N131: 133.782 | O131: 141.5646 | P131: 150.9588 | Q131: 156.477
A132: 126 | B132: 49.3578 | C132: 73.8582 | D132: 125.0826 | E132: 133.2528 | F132: 141.0966 | G132: 150.5724 | H132: 156.1212 | J132: 126 | K132: 50.9478 | L132: 75.4482 | M132: 126.6726 | N132: 134.8428 | O132: 142.6866 | P132: 152.1624 | Q132: 157.7112
A133: 127 | B133: 49.7556 | C133: 74.4498 | D133: 126.0924 | E133: 134.3238 | F133: 142.2288 | G133: 151.776 | H133: 157.3656 | J133: 127 | K133: 51.3456 | L133: 76.0398 | M133: 127.6824 | N133: 135.9138 | O133: 143.8188 | P133: 153.366 | Q133: 158.9556
A134: 128 | B134: 50.1432 | C134: 75.0516 | D134: 127.092 | E134: 135.3846 | F134: 143.361 | G134: 152.9796 | H134: 158.6202 | J134: 128 | K134: 51.7332 | L134: 76.6416 | M134: 128.682 | N134: 136.9746 | O134: 144.951 | P134: 154.5696 | Q134: 160.2102
A135: 129 | B135: 50.5512 | C135: 75.6534 | D135: 128.0916 | E135: 136.4556 | F135: 144.483 | G135: 154.1832 | H135: 159.8748 | J135: 129 | K135: 52.1412 | L135: 77.2434 | M135: 129.6816 | N135: 138.0456 | O135: 146.073 | P135: 155.7732 | Q135: 161.4648
A136: 130 | B136: 50.9388 | C136: 76.2348 | D136: 129.1014 | E136: 137.5266 | F136: 145.6152 | G136: 155.3868 | H136: 161.1294 | J136: 130 | K136: 52.5288 | L136: 77.8248 | M136: 130.6914 | N136: 139.1166 | O136: 147.2052 | P136: 156.9768 | Q136: 162.7194
A137: 131 | B137: 51.3366 | C137: 76.8264 | D137: 130.101 | E137: 138.5874 | F137: 146.7474 | G137: 156.5904 | H137: 162.3636 | J137: 131 | K137: 52.9266 | L137: 78.4164 | M137: 131.691 | N137: 140.1774 | O137: 148.3374 | P137: 158.1804 | Q137: 163.9536
A138: 132 | B138: 51.7242 | C138: 77.418 | D138: 131.1108 | E138: 139.6482 | F138: 147.8694 | G138: 157.794 | H138: 163.6182 | J138: 132 | K138: 53.3142 | L138: 79.008 | M138: 132.7008 | N138: 141.2382 | O138: 149.4594 | P138: 159.384 | Q138: 165.2082
A139: 133 | B139: 52.1322 | C139: 77.9994 | D139: 132.1002 | E139: 140.7192 | F139: 149.0016 | G139: 158.9976 | H139: 164.8626 | J139: 133 | K139: 53.7222 | L139: 79.5894 | M139: 133.6902 | N139: 142.3092 | O139: 150.5916 | P139: 160.5876 | Q139: 166.4526
A140: 134 | B140: 52.5198 | C140: 78.591 | D140: 133.11 | E140: 141.7902 | F140: 150.1338 | G140: 160.2012 | H140: 166.1172 | J140: 134 | K140: 54.1098 | L140: 80.181 | M140: 134.7 | N140: 143.3802 | O140: 151.7238 | P140: 161.7912 | Q140: 167.7072
A141: 135 | B141: 52.9176 | C141: 79.1826 | D141: 134.0994 | E141: 142.851 | F141: 151.2558 | G141: 161.415 | H141: 167.3616 | J141: 135 | K141: 54.5076 | L141: 80.7726 | M141: 135.6894 | N141: 144.441 | O141: 152.8458 | P141: 163.005 | Q141: 168.9516
A142: 136 | B142: 53.3154 | C142: 79.7742 | D142: 135.1092 | E142: 143.9322 | F142: 152.388 | G142: 162.6288 | H142: 168.6162 | J142: 136 | K142: 54.9054 | L142: 81.3642 | M142: 136.6992 | N142: 145.5222 | O142: 153.978 | P142: 164.2188 | Q142: 170.2062
A143: 137 | B143: 53.703 | C143: 80.3556 | D143: 136.1088 | E143: 144.9828 | F143: 153.5202 | G143: 163.8222 | H143: 169.8708 | J143: 137 | K143: 55.293 | L143: 81.9456 | M143: 137.6988 | N143: 146.5728 | O143: 155.1102 | P143: 165.4122 | Q143: 171.4608
A144: 138 | B144: 54.1008 | C144: 80.9472 | D144: 137.1084 | E144: 146.0538 | F144: 154.6422 | G144: 165.036 | H144: 171.105 | J144: 138 | K144: 55.6908 | L144: 82.5372 | M144: 138.6984 | N144: 147.6438 | O144: 156.2322 | P144: 166.626 | Q144: 172.695
A145: 139 | B145: 54.4884 | C145: 81.549 | D145: 138.0978 | E145: 147.135 | F145: 155.7744 | G145: 166.2192 | H145: 172.3494 | J145: 139 | K145: 56.0784 | L145: 83.139 | M145: 139.6878 | N145: 148.725 | O145: 157.3644 | P145: 167.8092 | Q145: 173.9394
A146: 140 | B146: 54.8964 | C146: 82.1406 | D146: 139.1076 | E146: 148.1856 | F146: 156.9066 | G146: 167.4534 | H146: 173.6142 | J146: 140 | K146: 56.4864 | L146: 83.7306 | M146: 140.6976 | N146: 149.7756 | O146: 158.4966 | P146: 169.0434 | Q146: 175.2042
A147: 141 | B147: 55.284 | C147: 82.7322 | D147: 140.097 | E147: 149.2362 | F147: 158.0286 | G147: 168.6366 | H147: 174.8586 | J147: 141 | K147: 56.874 | L147: 84.3222 | M147: 141.687 | N147: 150.8262 | O147: 159.6186 | P147: 170.2266 | Q147: 176.4486
A148: 142 | B148: 55.6818 | C148: 83.3238 | D148: 141.1068 | E148: 150.3174 | F148: 159.171 | G148: 169.8504 | H148: 176.1132 | J148: 142 | K148: 57.2718 | L148: 84.9138 | M148: 142.6968 | N148: 151.9074 | O148: 160.761 | P148: 171.4404 | Q148: 177.7032
A149: 143 | B149: 56.0694 | C149: 83.9154 | D149: 142.1064 | E149: 151.3884 | F149: 160.2828 | G149: 171.0438 | H149: 177.3678 | J149: 143 | K149: 57.6594 | L149: 85.5054 | M149: 143.6964 | N149: 152.9784 | O149: 161.8728 | P149: 172.6338 | Q149: 178.9578
A150: 144 | B150: 56.4774 | C150: 84.507 | D150: 143.106 | E150: 152.4492 | F150: 161.415 | G150: 172.2576 | H150: 178.602 | J150: 144 | K150: 58.0674 | L150: 86.097 | M150: 144.696 | N150: 154.0392 | O150: 163.005 | P150: 173.8476 | Q150: 180.192
A151: 145 | B151: 56.8548 | C151: 85.0986 | D151: 144.1056 | E151: 153.5202 | F151: 162.5472 | G151: 173.451 | H151: 179.8566 | J151: 145 | K151: 58.4448 | L151: 86.6886 | M151: 145.6956 | N151: 155.1102 | O151: 164.1372 | P151: 175.041 | Q151: 181.4466
A152: 146 | B152: 57.2628 | C152: 85.68 | D152: 145.1154 | E152: 154.581 | F152: 163.6794 | G152: 174.675 | H152: 181.101 | J152: 146 | K152: 58.8528 | L152: 87.27 | M152: 146.7054 | N152: 156.171 | O152: 165.2694 | P152: 176.265 | Q152: 182.691
A153: 147 | B153: 57.6504 | C153: 86.2716 | D153: 146.1252 | E153: 155.6418 | F153: 164.8014 | G153: 175.8684 | H153: 182.3658 | J153: 147 | K153: 59.2404 | L153: 87.8616 | M153: 147.7152 | N153: 157.2318 | O153: 166.3914 | P153: 177.4584 | Q153: 183.9558
A154: 148 | B154: 58.0482 | C154: 86.8632 | D154: 147.1146 | E154: 156.723 | F154: 165.9336 | G154: 177.0822 | H154: 183.5898 | J154: 148 | K154: 59.6382 | L154: 88.4532 | M154: 148.7046 | N154: 158.313 | O154: 167.5236 | P154: 178.6722 | Q154: 185.1798
A155: 149 | B155: 58.446 | C155: 87.4548 | D155: 148.1142 | E155: 157.7838 | F155: 167.0658 | G155: 178.2654 | H155: 184.8444 | J155: 149 | K155: 60.036 | L155: 89.0448 | M155: 149.7042 | N155: 159.3738 | O155: 168.6558 | P155: 179.8554 | Q155: 186.4344
A156: 150 | B156: 58.8336 | C156: 88.0566 | D156: 149.1138 | E156: 158.8446 | F156: 168.1878 | G156: 179.4792 | H156: 186.0888 | J156: 150 | K156: 60.4236 | L156: 89.6466 | M156: 150.7038 | N156: 160.4346 | O156: 169.7778 | P156: 181.0692 | Q156: 187.6788
A157: 151+ | B157: 0.3872 | C157: 0.5706 | D157: 0.9781 | E157: 1.0393 | F157: 1.1004 | G157: 1.1717 | H157: 1.2227 | J157: 151+ | K157: 0.3974 | L157: 0.591 | M157: 0.9883 | N157: 1.0495 | O157: 1.1106 | P157: 1.1921 | Q157: 1.2329

Sheet 2DA Multi
A1: UPS Second Day Air Service | M1: UPS Second Day Air Service
A2: - Commercial | M2: - Residential | R2: Residential Surcharge | U2: 1.59
A3: (Per Package Rates from 48 State Origin) | M3: (Per Package Rates from 48 State Origin)
A4: Rates below do not include Residential Surcharge | M4: Rates Include Residential Surcharge
A5: Lbs. | B5: Zone 202 | C5: Zone 203 | D5: Zone 204 | E5: Zone 205 | F5: Zone 206 | G5: Zone 207 | H5: Zone 208 | I5: Zone 224 | J5: Zone 225 | K5: Zone 226 | M5: Lbs. | N5: Zone 202 | O5: Zone 203 | P5: Zone 204 | Q5: Zone 205 | R5: Zone 206 | S5: Zone 207 | T5: Zone 208 | U5: Zone 224 | V5: Zone 225 | W5: Zone 226
A6: Letter | B6: 4.794 | C6: 4.794 | D6: 4.794 | E6: 4.794 | F6: 5.8344 | G6: 6.0792 | H6: 6.1302 | I6: 9.8634 | J6: 9.8634 | K6: 10.9752 | M6: Letter | N6: 6.384 | O6: 6.384 | P6: 6.384 | Q6: 6.384 | R6: 7.4244 | S6: 7.6692 | T6: 7.7202 | U6: 11.4534 | V6: 11.4534 | W6: 12.5652
A7: 1 | B7: 4.845 | C7: 4.845 | D7: 4.845 | E7: 4.845 | F7: 5.763 | G7: 6.0282 | H7: 6.12 | I7: 9.4452 | J7: 9.4452 | K7: 10.0878 | M7: 1 | N7: 6.435 | O7: 6.435 | P7: 6.435 | Q7: 6.435 | R7: 7.353 | S7: 7.6182 | T7: 7.71 | U7: 11.0352 | V7: 11.0352 | W7: 11.6778
A8: 2 | B8: 4.845 | C8: 4.845 | D8: 4.845 | E8: 5.1102 | F8: 6.3648 | G8: 6.9258 | H8: 7.2216 | I8: 10.5468 | J8: 10.5468 | K8: 12.4848 | M8: 2 | N8: 6.435 | O8: 6.435 | P8: 6.435 | Q8: 6.7002 | R8: 7.9548 | S8: 8.5158 | T8: 8.8116 | U8: 12.1368 | V8: 12.1368 | W8: 14.0748
A9: 3 | B9: 4.845 | C9: 4.845 | D9: 4.845 | E9: 5.5998 | F9: 7.3134 | G9: 8.0376 | H9: 8.2926 | I9: 12.036 | J9: 12.036 | K9: 13.0458 | M9: 3 | N9: 6.435 | O9: 6.435 | P9: 6.435 | Q9: 7.1898 | R9: 8.9034 | S9: 9.6276 | T9: 9.8826 | U9: 13.626 | V9: 13.626 | W9: 14.6358
A10: 4 | B10: 4.845 | C10: 4.845 | D10: 4.9062 | E10: 6.528 | F10: 8.4456 | G10: 9.1596 | H10: 9.4554 | I10: 12.8418 | J10: 12.8418 | K10: 13.7088 | M10: 4 | N10: 6.435 | O10: 6.435 | P10: 6.4962 | Q10: 8.118 | R10: 10.0356 | S10: 10.7496 | T10: 11.0454 | U10: 14.4318 | V10: 14.4318 | W10: 15.2988
A11: 5 | B11: 4.845 | C11: 4.845 | D11: 5.355 | E11: 7.242 | F11: 9.4248 | G11: 10.1796 | H11: 10.761 | I11: 13.9434 | J11: 13.9434 | K11: 14.2698 | M11: 5 | N11: 6.435 | O11: 6.435 | P11: 6.945 | Q11: 8.832 | R11: 11.0148 | S11: 11.7696 | T11: 12.351 | U11: 15.5334 | V11: 15.5334 | W11: 15.8598
A12: 6 | B12: 4.845 | C12: 4.845 | D12: 5.814 | E12: 7.8948 | F12: 10.4754 | G12: 11.322 | H12: 11.7708 | I12: 14.79 | J12: 14.79 | K12: 15.1572 | M12: 6 | N12: 6.435 | O12: 6.435 | P12: 7.404 | Q12: 9.4848 | R12: 12.0654 | S12: 12.912 | T12: 13.3608 | U12: 16.38 | V12: 16.38 | W12: 16.7472
A13: 7 | B13: 4.845 | C13: 5.1816 | D13: 6.2934 | E13: 8.6394 | F13: 11.7708 | G13: 12.5562 | H13: 12.954 | I13: 15.9528 | J13: 15.9528 | K13: 15.9222 | M13: 7 | N13: 6.435 | O13: 6.7716 | P13: 7.8834 | Q13: 10.2294 | R13: 13.3608 | S13: 14.1462 | T13: 14.544 | U13: 17.5428 | V13: 17.5428 | W13: 17.5122
A14: 8 | B14: 4.845 | C14: 5.661 | D14: 6.7422 | E14: 9.4044 | F14: 13.0254 | G14: 13.8312 | H14: 14.2596 | I14: 16.7586 | J14: 16.7586 | K14: 16.7892 | M14: 8 | N14: 6.435 | O14: 7.251 | P14: 8.3322 | Q14: 10.9944 | R14: 14.6154 | S14: 15.4212 | T14: 15.8496 | U14: 18.3486 | V14: 18.3486 | W14: 18.3792
A15: 9 | B15: 5.1102 | C15: 5.9058 | D15: 7.2726 | E15: 10.098 | F15: 14.1474 | G15: 15.1572 | H15: 15.657 | I15: 17.952 | J15: 17.952 | K15: 17.7888 | M15: 9 | N15: 6.7002 | O15: 7.4958 | P15: 8.8626 | Q15: 11.688 | R15: 15.7374 | S15: 16.7472 | T15: 17.247 | U15: 19.542 | V15: 19.542 | W15: 19.3788
A16: 10 | B16: 5.3346 | C16: 6.2628 | D16: 7.8438 | E16: 10.7916 | F16: 15.1062 | G16: 16.4832 | H16: 16.932 | I16: 19.4514 | J16: 19.4514 | K16: 18.6354 | M16: 10 | N16: 6.9246 | O16: 7.8528 | P16: 9.4338 | Q16: 12.3816 | R16: 16.6962 | S16: 18.0732 | T16: 18.522 | U16: 21.0414 | V16: 21.0414 | W16: 20.2254
A17: 11 | B17: 5.5692 | C17: 6.5994 | D17: 8.2008 | E17: 11.5362 | F17: 16.3302 | G17: 17.6766 | H17: 18.309 | I17: 20.6142 | J17: 20.6142 | K17: 20.2164 | M17: 11 | N17: 7.1592 | O17: 8.1894 | P17: 9.7908 | Q17: 13.1262 | R17: 17.9202 | S17: 19.2666 | T17: 19.899 | U17: 22.2042 | V17: 22.2042 | W17: 21.8064
A18: 12 | B18: 5.865 | C18: 6.987 | D18: 8.6598 | E18: 12.1788 | F18: 17.5746 | G18: 18.9414 | H18: 19.584 | I18: 21.3588 | J18: 21.3588 | K18: 21.0936 | M18: 12 | N18: 7.455 | O18: 8.577 | P18: 10.2498 | Q18: 13.7688 | R18: 19.1646 | S18: 20.5314 | T18: 21.174 | U18: 22.9488 | V18: 22.9488 | W18: 22.6836
A19: 13 | B19: 6.2628 | C19: 7.344 | D19: 8.9658 | E19: 12.9132 | F19: 18.717 | G19: 19.8594 | H19: 20.706 | I19: 22.1238 | J19: 22.1238 | K19: 21.7056 | M19: 13 | N19: 7.8528 | O19: 8.934 | P19: 10.5558 | Q19: 14.5032 | R19: 20.307 | S19: 21.4494 | T19: 22.296 | U19: 23.7138 | V19: 23.7138 | W19: 23.2956
A20: 14 | B20: 6.5586 | C20: 7.7316 | D20: 9.5472 | E20: 13.6578 | F20: 19.8594 | G20: 20.8998 | H20: 21.6342 | I20: 22.9908 | J20: 22.9908 | K20: 22.6032 | M20: 14 | N20: 8.1486 | O20: 9.3216 | P20: 11.1372 | Q20: 15.2478 | R20: 21.4494 | S20: 22.4898 | T20: 23.2242 | U20: 24.5808 | V20: 24.5808 | W20: 24.1932
A21: 15 | B21: 6.8136 | C21: 7.9152 | D21: 10.0164 | E21: 14.1882 | F21: 20.8998 | G21: 21.8382 | H21: 22.6236 | I21: 24.0414 | J21: 24.0414 | K21: 23.8782 | M21: 15 | N21: 8.4036 | O21: 9.5052 | P21: 11.6064 | Q21: 15.7782 | R21: 22.4898 | S21: 23.4282 | T21: 24.2136 | U21: 25.6314 | V21: 25.6314 | W21: 25.4682
A22: 16 | B22: 6.987 | C22: 8.1804 | D22: 10.455 | E22: 14.6472 | F22: 21.8382 | G22: 22.9398 | H22: 23.5722 | I22: 25.0308 | J22: 25.0308 | K22: 24.2352 | M22: 16 | N22: 8.577 | O22: 9.7704 | P22: 12.045 | Q22: 16.2372 | R22: 23.4282 | S22: 24.5298 | T22: 25.1622 | U22: 26.6208 | V22: 26.6208 | W22: 25.8252
A23: 17 | B23: 7.2012 | C23: 8.4354 | D23: 10.8936 | E23: 15.3306 | F23: 22.8072 | G23: 24.1638 | H23: 24.684 | I23: 26.2242 | J23: 26.2242 | K23: 25.3266 | M23: 17 | N23: 8.7912 | O23: 10.0254 | P23: 12.4836 | Q23: 16.9206 | R23: 24.3972 | S23: 25.7538 | T23: 26.274 | U23: 27.8142 | V23: 27.8142 | W23: 26.9166
A24: 18 | B24: 7.4664 | C24: 8.7108 | D24: 11.3016 | E24: 15.8814 | F24: 23.7456 | G24: 25.245 | H24: 26.1426 | I24: 27.7848 | J24: 27.7848 | K24: 27.4686 | M24: 18 | N24: 9.0564 | O24: 10.3008 | P24: 12.8916 | Q24: 17.4714 | R24: 25.3356 | S24: 26.835 | T24: 27.7326 | U24: 29.3748 | V24: 29.3748 | W24: 29.0586
A25: 19 | B25: 7.7316 | C25: 8.9454 | D25: 11.628 | E25: 16.524 | F25: 24.6228 | G25: 26.418 | H25: 26.9994 | I25: 28.7028 | J25: 28.7028 | K25: 27.897 | M25: 19 | N25: 9.3216 | O25: 10.5354 | P25: 13.218 | Q25: 18.114 | R25: 26.2128 | S25: 28.008 | T25: 28.5894 | U25: 30.2928 | V25: 30.2928 | W25: 29.487
A26: 20 | B26: 8.0172 | C26: 9.333 | D26: 12.0768 | E26: 17.289 | F26: 25.4796 | G26: 27.3054 | H26: 27.9786 | I26: 29.7126 | J26: 29.7126 | K26: 28.968 | M26: 20 | N26: 9.6072 | O26: 10.923 | P26: 13.6668 | Q26: 18.879 | R26: 27.0696 | S26: 28.8954 | T26: 29.5686 | U26: 31.3026 | V26: 31.3026 | W26: 30.558
A27: 21 | B27: 8.3946 | C27: 9.7104 | D27: 12.5358 | E27: 17.8602 | F27: 26.418 | G27: 28.2234 | H27: 29.2842 | I27: 31.0998 | J27: 31.0998 | K27: 30.3858 | M27: 21 | N27: 9.9846 | O27: 11.3004 | P27: 14.1258 | Q27: 19.4502 | R27: 28.008 | S27: 29.8134 | T27: 30.8742 | U27: 32.6898 | V27: 32.6898 | W27: 31.9758
A28: 22 | B28: 8.6394 | C28: 10.1592 | D28: 12.8724 | E28: 18.3498 | F28: 27.2646 | G28: 29.2944 | H28: 30.3654 | I28: 32.2524 | J28: 32.2524 | K28: 31.6812 | M28: 22 | N28: 10.2294 | O28: 11.7492 | P28: 14.4624 | Q28: 19.9398 | R28: 28.8546 | S28: 30.8844 | T28: 31.9554 | U28: 33.8424 | V28: 33.8424 | W28: 33.2712
A29: 23 | B29: 8.8536 | C29: 10.3836 | D29: 13.3212 | E29: 18.8904 | F29: 28.2234 | G29: 30.2634 | H29: 31.4976 | I29: 33.4662 | J29: 33.4662 | K29: 32.8032 | M29: 23 | N29: 10.4436 | O29: 11.9736 | P29: 14.9112 | Q29: 20.4804 | R29: 29.8134 | S29: 31.8534 | T29: 33.0876 | U29: 35.0562 | V29: 35.0562 | W29: 34.3932
A30: 24 | B30: 9.0372 | C30: 10.7916 | D30: 13.7496 | E30: 19.6146 | F30: 29.2638 | G30: 31.4466 | H30: 32.6196 | I30: 34.6392 | J30: 34.6392 | K30: 34.0476 | M30: 24 | N30: 10.6272 | O30: 12.3816 | P30: 15.3396 | Q30: 21.2046 | R30: 30.8538 | S30: 33.0366 | T30: 34.2096 | U30: 36.2292 | V30: 36.2292 | W30: 35.6376
A31: 25 | B31: 9.333 | C31: 11.0976 | D31: 14.0148 | E31: 20.3082 | F31: 30.2124 | G31: 32.5686 | H31: 33.7314 | I31: 35.8632 | J31: 35.8632 | K31: 35.292 | M31: 25 | N31: 10.923 | O31: 12.6876 | P31: 15.6048 | Q31: 21.8982 | R31: 31.8024 | S31: 34.1586 | T31: 35.3214 | U31: 37.4532 | V31: 37.4532 | W31: 36.882
A32: 26 | B32: 9.6084 | C32: 11.3934 | D32: 14.5452 | E32: 20.9508 | F32: 31.2528 | G32: 33.66 | H32: 34.6392 | I32: 36.8118 | J32: 36.8118 | K32: 36.4548 | M32: 26 | N32: 11.1984 | O32: 12.9834 | P32: 16.1352 | Q32: 22.5408 | R32: 32.8428 | S32: 35.25 | T32: 36.2292 | U32: 38.4018 | V32: 38.4018 | W32: 38.0448
A33: 27 | B33: 9.9246 | C33: 11.7198 | D33: 14.9226 | E33: 21.6954 | F33: 32.3136 | G33: 34.8024 | H33: 35.7306 | I33: 37.9848 | J33: 37.9848 | K33: 37.6074 | M33: 27 | N33: 11.5146 | O33: 13.3098 | P33: 16.5126 | Q33: 23.2854 | R33: 33.9036 | S33: 36.3924 | T33: 37.3206 | U33: 39.5748 | V33: 39.5748 | W33: 39.1974
A34: 28 | B34: 10.2408 | C34: 12.1278 | D34: 15.2388 | E34: 22.2156 | F34: 33.1092 | G34: 35.6796 | H34: 36.618 | I34: 39.2088 | J34: 39.2088 | K34: 39.0252 | M34: 28 | N34: 11.8308 | O34: 13.7178 | P34: 16.8288 | Q34: 23.8056 | R34: 34.6992 | S34: 37.2696 | T34: 38.208 | U34: 40.7988 | V34: 40.7988 | W34: 40.6152
A35: 29 | B35: 10.5264 | C35: 12.3216 | D35: 15.7182 | E35: 22.7256 | F35: 34.017 | G35: 36.618 | H35: 37.689 | I35: 40.2186 | J35: 40.2186 | K35: 40.1676 | M35: 29 | N35: 12.1164 | O35: 13.9116 | P35: 17.3082 | Q35: 24.3156 | R35: 35.607 | S35: 38.208 | T35: 39.279 | U35: 41.8086 | V35: 41.8086 | W35: 41.7576
A36: 30 | B36: 10.71 | C36: 12.6582 | D36: 16.2486 | E36: 23.4702 | F36: 34.9452 | G36: 37.5768 | H36: 38.6478 | I36: 41.4528 | J36: 41.4528 | K36: 41.2488 | M36: 30 | N36: 12.3 | O36: 14.2482 | P36: 17.8386 | Q36: 25.0602 | R36: 36.5352 | S36: 39.1668 | T36: 40.2378 | U36: 43.0428 | V36: 43.0428 | W36: 42.8388
A37: 31 | B37: 11.0262 | C37: 13.0866 | D37: 16.6974 | E37: 24.0006 | F37: 35.7306 | G37: 38.403 | H37: 39.6678 | I37: 42.483 | J37: 42.483 | K37: 42.5544 | M37: 31 | N37: 12.6162 | O37: 14.6766 | P37: 18.2874 | Q37: 25.5906 | R37: 37.3206 | S37: 39.993 | T37: 41.2578 | U37: 44.073 | V37: 44.073 | W37: 44.1444
A38: 32 | B38: 11.1894 | C38: 13.3722 | D38: 17.1564 | E38: 24.5922 | F38: 36.771 | G38: 39.4638 | H38: 40.6368 | I38: 43.8294 | J38: 43.8294 | K38: 43.758 | M38: 32 | N38: 12.7794 | O38: 14.9622 | P38: 18.7464 | Q38: 26.1822 | R38: 38.361 | S38: 41.0538 | T38: 42.2268 | U38: 45.4194 | V38: 45.4194 | W38: 45.348
A39: 33 | B39: 11.5056 | C39: 13.7088 | D39: 17.6256 | E39: 25.1022 | F39: 37.7706 | G39: 40.3716 | H39: 41.6568 | I39: 45.0228 | J39: 45.0228 | K39: 44.8902 | M39: 33 | N39: 13.0956 | O39: 15.2988 | P39: 19.2156 | Q39: 26.6922 | R39: 39.3606 | S39: 41.9616 | T39: 43.2468 | U39: 46.6128 | V39: 46.6128 | W39: 46.4802
A40: 34 | B40: 11.8728 | C40: 13.9842 | D40: 18.0132 | E40: 25.9794 | F40: 38.913 | G40: 41.361 | H40: 42.6972 | I40: 46.1958 | J40: 46.1958 | K40: 46.1244 | M40: 34 | N40: 13.4628 | O40: 15.5742 | P40: 19.6032 | Q40: 27.5694 | R40: 40.503 | S40: 42.951 | T40: 44.2872 | U40: 47.7858 | V40: 47.7858 | W40: 47.7144
A41: 35 | B41: 12.1074 | C41: 14.382 | D41: 18.411 | E41: 26.4996 | F41: 40.0758 | G41: 42.4116 | H41: 43.758 | I41: 47.4606 | J41: 47.4606 | K41: 47.4402 | M41: 35 | N41: 13.6974 | O41: 15.972 | P41: 20.001 | Q41: 28.0896 | R41: 41.6658 | S41: 44.0016 | T41: 45.348 | U41: 49.0506 | V41: 49.0506 | W41: 49.0302
A42: 36 | B42: 12.2706 | C42: 14.7186 | D42: 18.7578 | E42: 27.03 | F42: 41.1672 | G42: 43.758 | H42: 44.8596 | I42: 48.5418 | J42: 48.5418 | K42: 48.5112 | M42: 36 | N42: 13.8606 | O42: 16.3086 | P42: 20.3478 | Q42: 28.62 | R42: 42.7572 | S42: 45.348 | T42: 46.4496 | U42: 50.1318 | V42: 50.1318 | W42: 50.1012
A43: 37 | B43: 12.5154 | C43: 14.9328 | D43: 19.2168 | E43: 27.7236 | F43: 42.2688 | G43: 44.9106 | H43: 46.053 | I43: 49.8168 | J43: 49.8168 | K43: 49.9392 | M43: 37 | N43: 14.1054 | O43: 16.5228 | P43: 20.8068 | Q43: 29.3136 | R43: 43.8588 | S43: 46.5006 | T43: 47.643 | U43: 51.4068 | V43: 51.4068 | W43: 51.5292
A44: 38 | B44: 12.7296 | C44: 15.1776 | D44: 19.7166 | E44: 28.2948 | F44: 43.3602 | G44: 46.0836 | H44: 47.2974 | I44: 50.9592 | J44: 50.9592 | K44: 51.0306 | M44: 38 | N44: 14.3196 | O44: 16.7676 | P44: 21.3066 | Q44: 29.8848 | R44: 44.9502 | S44: 47.6736 | T44: 48.8874 | U44: 52.5492 | V44: 52.5492 | W44: 52.6206
A45: 39 | B45: 13.1172 | C45: 15.5652 | D45: 20.043 | E45: 28.8456 | F45: 44.4006 | G45: 47.2974 | H45: 48.5316 | I45: 52.173 | J45: 52.173 | K45: 52.2852 | M45: 39 | N45: 14.7072 | O45: 17.1552 | P45: 21.633 | Q45: 30.4356 | R45: 45.9906 | S45: 48.8874 | T45: 50.1216 | U45: 53.763 | V45: 53.763 | W45: 53.8752
A46: 40 | B46: 13.464 | C46: 15.9732 | D46: 20.502 | E46: 29.5188 | F46: 45.4206 | G46: 48.4602 | H46: 49.6128 | I46: 53.2032 | J46: 53.2032 | K46: 53.5704 | M46: 40 | N46: 15.054 | O46: 17.5632 | P46: 22.092 | Q46: 31.1088 | R46: 47.0106 | S46: 50.0502 | T46: 51.2028 | U46: 54.7932 | V46: 54.7932 | W46: 55.1604
A47: 41 | B47: 13.821 | C47: 16.3608 | D47: 20.7468 | E47: 30.0696 | F47: 46.4202 | G47: 49.7046 | H47: 50.9592 | I47: 54.3558 | J47: 54.3558 | K47: 54.0804 | M47: 41 | N47: 15.411 | O47: 17.9508 | P47: 22.3368 | Q47: 31.6596 | R47: 48.0102 | S47: 51.2946 | T47: 52.5492 | U47: 55.9458 | V47: 55.9458 | W47: 55.6704
A48: 42 | B48: 14.0148 | C48: 16.7382 | D48: 21.165 | E48: 30.6714 | F48: 47.4198 | G48: 50.9592 | H48: 52.2342 | I48: 55.6002 | J48: 55.6002 | K48: 55.3044 | M48: 42 | N48: 15.6048 | O48: 18.3282 | P48: 22.755 | Q48: 32.2614 | R48: 49.0098 | S48: 52.5492 | T48: 53.8242 | U48: 57.1902 | V48: 57.1902 | W48: 56.8944
A49: 43 | B49: 14.331 | C49: 17.085 | D49: 21.5016 | E49: 31.1916 | F49: 48.5316 | G49: 51.8976 | H49: 53.3154 | I49: 56.6304 | J49: 56.6304 | K49: 56.7018 | M49: 43 | N49: 15.921 | O49: 18.675 | P49: 23.0916 | Q49: 32.7816 | R49: 50.1216 | S49: 53.4876 | T49: 54.9054 | U49: 58.2204 | V49: 58.2204 | W49: 58.2918
A50: 44 | B50: 14.6166 | C50: 17.3298 | D50: 21.9606 | E50: 31.7526 | F50: 49.4802 | G50: 52.785 | H50: 54.366 | I50: 57.7524 | J50: 57.7524 | K50: 57.6912 | M50: 44 | N50: 16.2066 | O50: 18.9198 | P50: 23.5506 | Q50: 33.3426 | R50: 51.0702 | S50: 54.375 | T50: 55.956 | U50: 59.3424 | V50: 59.3424 | W50: 59.2812
A51: 45 | B51: 14.9226 | C51: 17.7276 | D51: 22.2972 | E51: 32.2014 | F51: 50.3574 | G51: 53.754 | H51: 55.1718 | I51: 58.6092 | J51: 58.6092 | K51: 58.8336 | M51: 45 | N51: 16.5126 | O51: 19.3176 | P51: 23.8872 | Q51: 33.7914 | R51: 51.9474 | S51: 55.344 | T51: 56.7618 | U51: 60.1992 | V51: 60.1992 | W51: 60.4236
A52: 46 | B52: 15.0858 | C52: 17.9418 | D52: 22.746 | E52: 32.6808 | F52: 51.2346 | G52: 54.6108 | H52: 56.508 | I52: 60.027 | J52: 60.027 | K52: 60.0576 | M52: 46 | N52: 16.6758 | O52: 19.5318 | P52: 24.336 | Q52: 34.2708 | R52: 52.8246 | S52: 56.2008 | T52: 58.098 | U52: 61.617 | V52: 61.617 | W52: 61.6476
A53: 47 | B53: 15.4122 | C53: 18.2784 | D53: 23.154 | E53: 33.15 | F53: 52.2342 | G53: 55.4778 | H53: 57.5994 | I53: 61.1694 | J53: 61.1694 | K53: 61.4856 | M53: 47 | N53: 17.0022 | O53: 19.8684 | P53: 24.744 | Q53: 34.74 | R53: 53.8242 | S53: 57.0678 | T53: 59.1894 | U53: 62.7594 | V53: 62.7594 | W53: 63.0756
A54: 48 | B54: 15.7182 | C54: 18.7068 | D54: 23.562 | E54: 33.6294 | F54: 53.1522 | G54: 56.4264 | H54: 58.5684 | I54: 62.1996 | J54: 62.1996 | K54: 62.5362 | M54: 48 | N54: 17.3082 | O54: 20.2968 | P54: 25.152 | Q54: 35.2194 | R54: 54.7422 | S54: 58.0164 | T54: 60.1584 | U54: 63.7896 | V54: 63.7896 | W54: 64.1262
A55: 49 | B55: 16.0242 | C55: 19.1454 | D55: 23.9496 | E55: 34.2108 | F55: 54.0498 | G55: 57.2322 | H55: 59.6802 | I55: 63.3726 | J55: 63.3726 | K55: 62.9034 | M55: 49 | N55: 17.6142 | O55: 20.7354 | P55: 25.5396 | Q55: 35.8008 | R55: 55.6398 | S55: 58.8222 | T55: 61.2702 | U55: 64.9626 | V55: 64.9626 | W55: 64.4934
A56: 50 | B56: 16.269 | C56: 19.4004 | D56: 24.327 | E56: 34.8024 | F56: 54.978 | G56: 58.1094 | H56: 60.6186 | I56: 64.3926 | J56: 64.3926 | K56: 62.9238 | M56: 50 | N56: 17.859 | O56: 20.9904 | P56: 25.917 | Q56: 36.3924 | R56: 56.568 | S56: 59.6994 | T56: 62.2086 | U56: 65.9826 | V56: 65.9826 | W56: 64.5138
A57: 51 | B57: 16.5036 | C57: 19.6146 | D57: 24.735 | E57: 35.3022 | F57: 55.896 | G57: 59.1804 | H57: 61.6794 | I57: 65.5044 | J57: 65.5044 | K57: 64.4742 | M57: 51 | N57: 18.0936 | O57: 21.2046 | P57: 26.325 | Q57: 36.8922 | R57: 57.486 | S57: 60.7704 | T57: 63.2694 | U57: 67.0944 | V57: 67.0944 | W57: 66.0642
A58: 52 | B58: 16.6974 | C58: 19.9206 | D58: 25.194 | E58: 36.1488 | F58: 56.7324 | G58: 60.2616 | H58: 62.7504 | I58: 66.6468 | J58: 66.6468 | K58: 66.9834 | M58: 52 | N58: 18.2874 | O58: 21.5106 | P58: 26.784 | Q58: 37.7388 | R58: 58.3224 | S58: 61.8516 | T58: 64.3404 | U58: 68.2368 | V58: 68.2368 | W58: 68.5734
A59: 53 | B59: 17.0136 | C59: 20.3082 | D59: 25.5408 | E59: 36.6792 | F59: 57.5994 | G59: 61.3326 | H59: 63.5256 | I59: 66.6672 | J59: 66.6672 | K59: 67.0038 | M59: 53 | N59: 18.6036 | O59: 21.8982 | P59: 27.1308 | Q59: 38.2692 | R59: 59.1894 | S59: 62.9226 | T59: 65.1156 | U59: 68.2572 | V59: 68.2572 | W59: 68.5938
A60: 54 | B60: 17.2482 | C60: 20.6448 | D60: 25.9284 | E60: 37.2504 | F60: 58.5684 | G60: 62.526 | H60: 64.4742 | I60: 68.493 | J60: 68.493 | K60: 67.0242 | M60: 54 | N60: 18.8382 | O60: 22.2348 | P60: 27.5184 | Q60: 38.8404 | R60: 60.1584 | S60: 64.116 | T60: 66.0642 | U60: 70.083 | V60: 70.083 | W60: 68.6142
A61: 55 | B61: 17.5848 | C61: 20.9814 | D61: 26.2446 | E61: 37.9236 | F61: 59.5986 | G61: 63.7194 | H61: 65.4432 | I61: 69.4926 | J61: 69.4926 | K61: 70.4514 | M61: 55 | N61: 19.1748 | O61: 22.5714 | P61: 27.8346 | Q61: 39.5136 | R61: 61.1886 | S61: 65.3094 | T61: 67.0332 | U61: 71.0826 | V61: 71.0826 | W61: 72.0414
A62: 56 | B62: 17.8398 | C62: 21.267 | D62: 26.622 | E62: 38.5356 | F62: 60.5166 | G62: 64.719 | H62: 66.6162 | I62: 70.7676 | J62: 70.7676 | K62: 71.0124 | M62: 56 | N62: 19.4298 | O62: 22.857 | P62: 28.212 | Q62: 40.1256 | R62: 62.1066 | S62: 66.309 | T62: 68.2062 | U62: 72.3576 | V62: 72.3576 | W62: 72.6024
A63: 57 | B63: 18.0642 | C63: 21.6036 | D63: 27.0504 | E63: 39.066 | F63: 61.5672 | G63: 65.79 | H63: 67.83 | I63: 72.0528 | J63: 72.0528 | K63: 71.0226 | M63: 57 | N63: 19.6542 | O63: 23.1936 | P63: 28.6404 | Q63: 40.656 | R63: 63.1572 | S63: 67.38 | T63: 69.42 | U63: 73.6428 | V63: 73.6428 | W63: 72.6126
A64: 58 | B64: 18.411 | C64: 21.9606 | D64: 27.54 | E64: 39.7086 | F64: 62.7504 | G64: 66.9222 | H64: 68.8806 | I64: 73.134 | J64: 73.134 | K64: 72.1344 | M64: 58 | N64: 20.001 | O64: 23.5506 | P64: 29.13 | Q64: 41.2986 | R64: 64.3404 | S64: 68.5122 | T64: 70.4706 | U64: 74.724 | V64: 74.724 | W64: 73.7244
A65: 59 | B65: 18.6354 | C65: 22.2156 | D65: 28.0602 | E65: 40.4328 | F65: 63.903 | G65: 68.0034 | H65: 69.9924 | I65: 74.3478 | J65: 74.3478 | K65: 73.032 | M65: 59 | N65: 20.2254 | O65: 23.8056 | P65: 29.6502 | Q65: 42.0228 | R65: 65.493 | S65: 69.5934 | T65: 71.5824 | U65: 75.9378 | V65: 75.9378 | W65: 74.622
A66: 60 | B66: 18.7986 | C66: 22.44 | D66: 28.4988 | E66: 41.004 | F66: 65.0352 | G66: 69.1662 | H66: 70.8696 | I66: 75.2454 | J66: 75.2454 | K66: 73.8582 | M66: 60 | N66: 20.3886 | O66: 24.03 | P66: 30.0888 | Q66: 42.594 | R66: 66.6252 | S66: 70.7562 | T66: 72.4596 | U66: 76.8354 | V66: 76.8354 | W66: 75.4482
A67: 61 | B67: 19.1454 | C67: 22.746 | D67: 28.8864 | E67: 41.5344 | F67: 66.0042 | G67: 69.9516 | H67: 72.012 | I67: 75.4086 | J67: 75.4086 | K67: 77.4996 | M67: 61 | N67: 20.7354 | O67: 24.336 | P67: 30.4764 | Q67: 43.1244 | R67: 67.5942 | S67: 71.5416 | T67: 73.602 | U67: 76.9986 | V67: 76.9986 | W67: 79.0896
A68: 62 | B68: 19.4922 | C68: 23.1846 | D68: 29.2332 | E68: 42.2076 | F68: 66.9222 | G68: 71.145 | H68: 73.2768 | I68: 77.826 | J68: 77.826 | K68: 79.305 | M68: 62 | N68: 21.0822 | O68: 24.7746 | P68: 30.8232 | Q68: 43.7976 | R68: 68.5122 | S68: 72.735 | T68: 74.8668 | U68: 79.416 | V68: 79.416 | W68: 80.895
A69: 63 | B69: 19.8084 | C69: 23.562 | D69: 29.6004 | E69: 42.7584 | F69: 67.8912 | G69: 72.318 | H69: 74.6844 | I69: 79.2132 | J69: 79.2132 | K69: 79.3254 | M69: 63 | N69: 21.3984 | O69: 25.152 | P69: 31.1904 | Q69: 44.3484 | R69: 69.4812 | S69: 73.908 | T69: 76.2744 | U69: 80.8032 | V69: 80.8032 | W69: 80.9154
A70: 64 | B70: 20.1654 | C70: 23.8986 | D70: 29.9472 | E70: 43.35 | F70: 68.901 | G70: 73.491 | H70: 75.6534 | I70: 79.2336 | J70: 79.2336 | K70: 79.3356 | M70: 64 | N70: 21.7554 | O70: 25.4886 | P70: 31.5372 | Q70: 44.94 | R70: 70.491 | S70: 75.081 | T70: 77.2434 | U70: 80.8236 | V70: 80.8236 | W70: 80.9256
A71: 65 | B71: 20.4714 | C71: 24.2556 | D71: 30.4062 | E71: 43.9926 | F71: 69.921 | G71: 74.7048 | H71: 76.9692 | I71: 81.7428 | J71: 81.7428 | K71: 80.325 | M71: 65 | N71: 22.0614 | O71: 25.8456 | P71: 31.9962 | Q71: 45.5826 | R71: 71.511 | S71: 76.2948 | T71: 78.5592 | U71: 83.3328 | V71: 83.3328 | W71: 81.915
A72: 66 | B72: 20.7264 | C72: 24.5004 | D72: 30.8346 | E72: 44.7066 | F72: 71.0634 | G72: 75.6534 | H72: 78.336 | I72: 82.0284 | J72: 82.0284 | K72: 81.906 | M72: 66 | N72: 22.3164 | O72: 26.0904 | P72: 32.4246 | Q72: 46.2966 | R72: 72.6534 | S72: 77.2434 | T72: 79.926 | U72: 83.6184 | V72: 83.6184 | W72: 83.496
A73: 67 | B73: 20.91 | C73: 24.9696 | D73: 31.314 | E73: 45.4308 | F73: 71.9406 | G73: 76.7652 | H73: 79.4682 | I73: 84.3948 | J73: 84.3948 | K73: 83.1708 | M73: 67 | N73: 22.5 | O73: 26.5596 | P73: 32.904 | Q73: 47.0208 | R73: 73.5306 | S73: 78.3552 | T73: 81.0582 | U73: 85.9848 | V73: 85.9848 | W73: 84.7608
A74: 68 | B74: 21.165 | C74: 25.194 | D74: 31.7526 | E74: 46.2162 | F74: 72.9096 | G74: 77.7852 | H74: 80.4678 | I74: 85.4658 | J74: 85.4658 | K74: 84.1908 | M74: 68 | N74: 22.755 | O74: 26.784 | P74: 33.3426 | Q74: 47.8062 | R74: 74.4996 | S74: 79.3752 | T74: 82.0578 | U74: 87.0558 | V74: 87.0558 | W74: 85.7808
A75: 69 | B75: 21.5118 | C75: 25.551 | D75: 32.1504 | E75: 47.0628 | F75: 73.8174 | G75: 78.846 | H75: 81.8754 | I75: 85.7616 | J75: 85.7616 | K75: 84.6702 | M75: 69 | N75: 23.1018 | O75: 27.141 | P75: 33.7404 | Q75: 48.6528 | R75: 75.4074 | S75: 80.436 | T75: 83.4654 | U75: 87.3516 | V75: 87.3516 | W75: 86.2602
A76: 70 | B76: 21.8484 | C76: 25.9488 | D76: 32.6706 | E76: 47.8686 | F76: 74.7048 | G76: 79.8354 | H76: 82.7934 | I76: 86.7 | J76: 86.7 | K76: 85.6902 | M76: 70 | N76: 23.4384 | O76: 27.5388 | P76: 34.2606 | Q76: 49.4586 | R76: 76.2948 | S76: 81.4254 | T76: 84.3834 | U76: 88.29 | V76: 88.29 | W76: 87.2802
A77: 71 | B77: 22.1238 | C77: 26.2956 | D77: 33.1092 | E77: 48.5316 | F77: 75.7248 | G77: 80.7534 | H77: 83.8848 | I77: 87.8424 | J77: 87.8424 | K77: 87.8118 | M77: 71 | N77: 23.7138 | O77: 27.8856 | P77: 34.6992 | Q77: 50.1216 | R77: 77.3148 | S77: 82.3434 | T77: 85.4748 | U77: 89.4324 | V77: 89.4324 | W77: 89.4018
A78: 72 | B78: 22.3992 | C78: 26.775 | D78: 33.5172 | E78: 49.266 | F78: 76.7652 | G78: 81.906 | H78: 85.1394 | I78: 89.1582 | J78: 89.1582 | K78: 88.1586 | M78: 72 | N78: 23.9892 | O78: 28.365 | P78: 35.1072 | Q78: 50.856 | R78: 78.3552 | S78: 83.496 | T78: 86.7294 | U78: 90.7482 | V78: 90.7482 | W78: 89.7486
A79: 73 | B79: 22.6032 | C79: 26.9892 | D79: 34.017 | E79: 50.0922 | F79: 77.8566 | G79: 83.028 | H79: 86.1084 | I79: 90.168 | J79: 90.168 | K79: 89.148 | M79: 73 | N79: 24.1932 | O79: 28.5792 | P79: 35.607 | Q79: 51.6822 | R79: 79.4466 | S79: 84.618 | T79: 87.6984 | U79: 91.758 | V79: 91.758 | W79: 90.738
A80: 74 | B80: 22.9194 | C80: 27.3258 | D80: 34.476 | E80: 50.7348 | F80: 78.897 | G80: 84.2928 | H80: 87.414 | I80: 92.8404 | J80: 92.8404 | K80: 91.6674 | M80: 74 | N80: 24.5094 | O80: 28.9158 | P80: 36.066 | Q80: 52.3248 | R80: 80.487 | S80: 85.8828 | T80: 89.004 | U80: 94.4304 | V80: 94.4304 | W80: 93.2574
A81: 75 | B81: 23.2458 | C81: 27.7746 | D81: 34.8534 | E81: 51.4386 | F81: 79.968 | G81: 85.4148 | H81: 88.5666 | I81: 94.0236 | J81: 94.0236 | K81: 92.82 | M81: 75 | N81: 24.8358 | O81: 29.3646 | P81: 36.4434 | Q81: 53.0286 | R81: 81.558 | S81: 87.0048 | T81: 90.1566 | U81: 95.6136 | V81: 95.6136 | W81: 94.41
A82: 76 | B82: 23.4906 | C82: 28.0806 | D82: 35.2818 | E82: 52.0302 | F82: 80.427 | G82: 86.6592 | H82: 89.5254 | I82: 94.8804 | J82: 94.8804 | K82: 94.0848 | M82: 76 | N82: 25.0806 | O82: 29.6706 | P82: 36.8718 | Q82: 53.6202 | R82: 82.017 | S82: 88.2492 | T82: 91.1154 | U82: 96.4704 | V82: 96.4704 | W82: 95.6748
A83: 77 | B83: 23.8986 | C83: 28.4478 | D83: 35.7204 | E83: 52.683 | F83: 82.1508 | G83: 87.6486 | H83: 90.6066 | I83: 94.9008 | J83: 94.9008 | K83: 94.1256 | M83: 77 | N83: 25.4886 | O83: 30.0378 | P83: 37.3104 | Q83: 54.273 | R83: 83.7408 | S83: 89.2386 | T83: 92.1966 | U83: 96.4908 | V83: 96.4908 | W83: 95.7156
A84: 78 | B84: 24.1332 | C84: 28.6824 | D84: 36.2406 | E84: 53.448 | F84: 82.1712 | G84: 88.7808 | H84: 91.341 | I84: 95.6658 | J84: 95.6658 | K84: 94.6662 | M84: 78 | N84: 25.7232 | O84: 30.2724 | P84: 37.8306 | Q84: 55.038 | R84: 83.7612 | S84: 90.3708 | T84: 92.931 | U84: 97.2558 | V84: 97.2558 | W84: 96.2562
A85: 79 | B85: 24.3984 | C85: 29.0394 | D85: 36.7302 | E85: 54.2334 | F85: 84.3438 | G85: 89.8008 | H85: 92.8812 | I85: 97.2672 | J85: 97.2672 | K85: 96.237 | M85: 79 | N85: 25.9884 | O85: 30.6294 | P85: 38.3202 | Q85: 55.8234 | R85: 85.9338 | S85: 91.3908 | T85: 94.4712 | U85: 98.8572 | V85: 98.8572 | W85: 97.827
A86: 80 | B86: 24.786 | C86: 29.376 | D86: 37.2504 | E86: 54.927 | F86: 85.4148 | G86: 90.9024 | H86: 92.8914 | I86: 98.4606 | J86: 98.4606 | K86: 97.4406 | M86: 80 | N86: 26.376 | O86: 30.966 | P86: 38.8404 | Q86: 56.517 | R86: 87.0048 | S86: 92.4924 | T86: 94.4814 | U86: 100.0506 | V86: 100.0506 | W86: 99.0306
A87: 81 | B87: 25.0002 | C87: 29.7126 | D87: 37.2708 | E87: 54.9474 | F87: 85.4352 | G87: 90.9228 | H87: 92.9118 | I87: 99.1848 | J87: 99.1848 | K87: 97.7466 | M87: 81 | N87: 26.5902 | O87: 31.3026 | P87: 38.8608 | Q87: 56.5374 | R87: 87.0252 | S87: 92.5128 | T87: 94.5018 | U87: 100.7748 | V87: 100.7748 | W87: 99.3366
A88: 82 | B88: 25.2858 | C88: 30.0798 | D88: 38.0868 | E88: 56.3346 | F88: 87.3936 | G88: 93.1872 | H88: 96.2472 | I88: 100.7862 | J88: 100.7862 | K88: 99.858 | M88: 82 | N88: 26.8758 | O88: 31.6698 | P88: 39.6768 | Q88: 57.9246 | R88: 88.9836 | S88: 94.7772 | T88: 97.8372 | U88: 102.3762 | V88: 102.3762 | W88: 101.448
A89: 83 | B89: 25.4694 | C89: 30.4266 | D89: 38.5866 | E89: 56.355 | F89: 88.3932 | G89: 93.5442 | H89: 97.3896 | I89: 101.9592 | J89: 101.9592 | K89: 101.1534 | M89: 83 | N89: 27.0594 | O89: 32.0166 | P89: 40.1766 | Q89: 57.945 | R89: 89.9832 | S89: 95.1342 | T89: 98.9796 | U89: 103.5492 | V89: 103.5492 | W89: 102.7434
A90: 84 | B90: 25.7856 | C90: 30.8346 | D90: 38.9232 | E90: 57.3342 | F90: 88.4136 | G90: 95.7066 | H90: 98.3484 | I90: 102.9792 | J90: 102.9792 | K90: 102.2448 | M90: 84 | N90: 27.3756 | O90: 32.4246 | P90: 40.5132 | Q90: 58.9242 | R90: 90.0036 | S90: 97.2966 | T90: 99.9384 | U90: 104.5692 | V90: 104.5692 | W90: 103.8348
A91: 85 | B91: 26.0916 | C91: 31.2426 | D91: 39.3006 | E91: 58.2522 | F91: 90.3618 | G91: 96.9816 | H91: 99.399 | I91: 104.091 | J91: 104.091 | K91: 103.4178 | M91: 85 | N91: 27.6816 | O91: 32.8326 | P91: 40.8906 | Q91: 59.8422 | R91: 91.9518 | S91: 98.5716 | T91: 100.989 | U91: 105.681 | V91: 105.681 | W91: 105.0078
A92: 86 | B92: 26.4588 | C92: 31.263 | D92: 39.7596 | E92: 58.9254 | F92: 90.372 | G92: 98.2362 | H92: 100.5618 | I92: 105.2844 | J92: 105.2844 | K92: 104.5602 | M92: 86 | N92: 28.0488 | O92: 32.853 | P92: 41.3496 | Q92: 60.5154 | R92: 91.962 | S92: 99.8262 | T92: 102.1518 | U92: 106.8744 | V92: 106.8744 | W92: 106.1502
A93: 87 | B93: 26.6424 | C93: 31.8852 | D93: 40.2084 | E93: 59.5884 | F93: 90.3924 | G93: 98.2566 | H93: 101.5614 | I93: 106.335 | J93: 106.335 | K93: 105.6822 | M93: 87 | N93: 28.2324 | O93: 33.4752 | P93: 41.7984 | Q93: 61.1784 | R93: 91.9824 | S93: 99.8466 | T93: 103.1514 | U93: 107.925 | V93: 107.925 | W93: 107.2722
A94: 88 | B94: 26.8872 | C94: 32.2728 | D94: 40.6878 | E94: 60.1392 | F94: 90.4128 | G94: 98.277 | H94: 101.5818 | I94: 107.5182 | J94: 107.5182 | K94: 106.8756 | M94: 88 | N94: 28.4772 | O94: 33.8628 | P94: 42.2778 | Q94: 61.7292 | R94: 92.0028 | S94: 99.867 | T94: 103.1718 | U94: 109.1082 | V94: 109.1082 | W94: 108.4656
A95: 89 | B95: 27.1728 | C95: 32.4666 | D95: 41.0958 | E95: 60.7104 | F95: 90.423 | G95: 98.2872 | H95: 101.592 | I95: 108.8748 | J95: 108.8748 | K95: 108.069 | M95: 89 | N95: 28.7628 | O95: 34.0566 | P95: 42.6858 | Q95: 62.3004 | R95: 92.013 | S95: 99.8772 | T95: 103.182 | U95: 110.4648 | V95: 110.4648 | W95: 109.659
A96: 90 | B96: 27.6318 | C96: 32.8032 | D96: 41.4834 | E96: 61.3428 | F96: 94.2378 | G96: 102.9282 | H96: 105.0702 | I96: 110.0376 | J96: 110.0376 | K96: 109.3338 | M96: 90 | N96: 29.2218 | O96: 34.3932 | P96: 43.0734 | Q96: 62.9328 | R96: 95.8278 | S96: 104.5182 | T96: 106.6602 | U96: 111.6276 | V96: 111.6276 | W96: 110.9238
A97: 91 | B97: 28.0194 | C97: 33.2214 | D97: 41.5038 | E97: 62.1282 | F97: 94.2582 | G97: 104.2134 | H97: 106.2126 | I97: 111.2106 | J97: 111.2106 | K97: 110.5782 | M97: 91 | N97: 29.6094 | O97: 34.8114 | P97: 43.0938 | Q97: 63.7182 | R97: 95.8482 | S97: 105.8034 | T97: 107.8026 | U97: 112.8006 | V97: 112.8006 | W97: 112.1682
A98: 92 | B98: 28.3764 | C98: 33.558 | D98: 42.3606 | E98: 62.1486 | F98: 94.2786 | G98: 104.2338 | H98: 107.2836 | I98: 112.3428 | J98: 112.3428 | K98: 111.7308 | M98: 92 | N98: 29.9664 | O98: 35.148 | P98: 43.9506 | Q98: 63.7386 | R98: 95.8686 | S98: 105.8238 | T98: 108.8736 | U98: 113.9328 | V98: 113.9328 | W98: 113.3208
A99: 93 | B99: 28.611 | C99: 34.0476 | D99: 42.3708 | E99: 62.169 | F99: 94.299 | G99: 104.2542 | H99: 107.304 | I99: 113.4444 | J99: 113.4444 | K99: 112.914 | M99: 93 | N99: 30.201 | O99: 35.6376 | P99: 43.9608 | Q99: 63.759 | R99: 95.889 | S99: 105.8442 | T99: 108.894 | U99: 115.0344 | V99: 115.0344 | W99: 114.504
A100: 94 | B100: 28.8456 | C100: 34.068 | D100: 42.8502 | E100: 62.1792 | F100: 94.3194 | G100: 107.4468 | H100: 108.3648 | I100: 113.4648 | J100: 113.4648 | K100: 112.9242 | M100: 94 | N100: 30.4356 | O100: 35.658 | P100: 44.4402 | Q100: 63.7692 | R100: 95.9094 | S100: 109.0368 | T100: 109.9548 | U100: 115.0548 | V100: 115.0548 | W100: 114.5142
A101: 95 | B101: 29.0904 | C101: 34.0884 | D101: 43.7376 | E101: 62.1996 | F101: 94.3398 | G101: 107.457 | H101: 110.4762 | I101: 115.6578 | J101: 115.6578 | K101: 115.005 | M101: 95 | N101: 30.6804 | O101: 35.6784 | P101: 45.3276 | Q101: 63.7896 | R101: 95.9298 | S101: 109.047 | T101: 112.0662 | U101: 117.2478 | V101: 117.2478 | W101: 116.595
A102: 96 | B102: 29.3046 | C102: 34.476 | D102: 44.1048 | E102: 62.5668 | F102: 95.1252 | G102: 107.4774 | H102: 111.6288 | I102: 116.9124 | J102: 116.9124 | K102: 116.1474 | M102: 96 | N102: 30.8946 | O102: 36.066 | P102: 45.6948 | Q102: 64.1568 | R102: 96.7152 | S102: 109.0674 | T102: 113.2188 | U102: 118.5024 | V102: 118.5024 | W102: 117.7374
A103: 97 | B103: 29.6004 | C103: 34.4964 | D103: 44.115 | E103: 65.5248 | F103: 102.2754 | G103: 107.508 | H103: 112.2102 | I103: 118.0344 | J103: 118.0344 | K103: 117.2388 | M103: 97 | N103: 31.1904 | O103: 36.0864 | P103: 45.705 | Q103: 67.1148 | R103: 103.8654 | S103: 109.098 | T103: 113.8002 | U103: 119.6244 | V103: 119.6244 | W103: 118.8288
A104: 98 | B104: 29.8554 | C104: 34.5168 | D104: 44.6148 | E104: 65.5452 | F104: 102.2958 | G104: 111.7512 | H104: 112.2306 | I104: 118.065 | J104: 118.065 | K104: 117.3204 | M104: 98 | N104: 31.4454 | O104: 36.1068 | P104: 46.2048 | Q104: 67.1352 | R104: 103.8858 | S104: 113.3412 | T104: 113.8206 | U104: 119.655 | V104: 119.655 | W104: 118.9104
A105: 99 | B105: 30.1206 | C105: 34.8738 | D105: 44.6352 | E105: 65.5656 | F105: 102.3162 | G105: 111.7716 | H105: 112.2408 | I105: 118.1058 | J105: 118.1058 | K105: 117.3714 | M105: 99 | N105: 31.7106 | O105: 36.4638 | P105: 46.2252 | Q105: 67.1556 | R105: 103.9062 | S105: 113.3616 | T105: 113.8308 | U105: 119.6958 | V105: 119.6958 | W105: 118.9614
A106: 100 | B106: 30.3552 | C106: 34.8942 | D106: 44.6556 | E106: 65.5758 | F106: 104.091 | G106: 112.1082 | H106: 114.444 | I106: 122.0736 | J106: 122.0736 | K106: 121.9818 | M106: 100 | N106: 31.9452 | O106: 36.4842 | P106: 46.2456 | Q106: 67.1658 | R106: 105.681 | S106: 113.6982 | T106: 116.034 | U106: 123.6636 | V106: 123.6636 | W106: 123.5718
A107: 101 | B107: 30.651 | C107: 35.241 | D107: 45.0942 | E107: 66.2184 | F107: 105.1212 | G107: 113.2098 | H107: 115.5864 | I107: 123.2976 | J107: 123.2976 | K107: 123.2262 | M107: 101 | N107: 32.241 | O107: 36.831 | P107: 46.6842 | Q107: 67.8084 | R107: 106.7112 | S107: 114.7998 | T107: 117.1764 | U107: 124.8876 | V107: 124.8876 | W107: 124.8162
A108: 102 | B108: 30.957 | C108: 35.2614 | D108: 45.5328 | E108: 66.8916 | F108: 106.182 | G108: 114.342 | H108: 116.7288 | I108: 124.5114 | J108: 124.5114 | K108: 124.4706 | M108: 102 | N108: 32.547 | O108: 36.8514 | P108: 47.1228 | Q108: 68.4816 | R108: 107.772 | S108: 115.932 | T108: 118.3188 | U108: 126.1014 | V108: 126.1014 | W108: 126.0606
